Workbook

Sheet Dreh
B1: Name | L1: aktuell | M1: 2025-07-11 | Q1: Version | T1: 20250711 | Z1: Tip: Suche nach "leeren Tagen" | AJ1: Tip: Zu einem Monat gehen | BO1: Mit "Rollen" auf Tastatur eingestellt, kann man bequem nach rechts "rollen".
B2: Funktion | L2: Bearb. | M2: MGA | Q2: Legende | T2: =CHOOSE(MONTH(R$5),"Januar","Februar","Maerz","April","Mai","Juni","Juli","August","September","Oktober","November","Dezember")&" "&RIGHT(YEAR(R$5),2) -> April 25 | AG2: =CHOOSE(MONTH(AE$5),"Januar","Februar","Maerz","April","Mai","Juni","Juli","August","September","Oktober","November","Dezember")&" "&RIGHT(YEAR(AE$5),2) -> Mai 25 | AS2: =CHOOSE(MONTH(AQ$5),"Januar","Februar","Maerz","April","Mai","Juni","Juli","August","September","Oktober","November","Dezember")&" "&RIGHT(YEAR(AQ$5),2) -> Juni 25 | BE2: =CHOOSE(MONTH(BC$5),"Januar","Februar","Maerz","April","Mai","Juni","Juli","August","September","Oktober","November","Dezember")&" "&RIGHT(YEAR(BC$5),2) -> Juli 25 | BQ2: =CHOOSE(MONTH(BO$5),"Januar","Februar","Maerz","April","Mai","Juni","Juli","August","September","Oktober","November","Dezember")&" "&RIGHT(YEAR(BO$5),2) -> August 25 | CC2: =CHOOSE(MONTH(CA$5),"Januar","Februar","Maerz","April","Mai","Juni","Juli","August","September","Oktober","November","Dezember")&" "&RIGHT(YEAR(CA$5),2) -> September 25 | CO2: =CHOOSE(MONTH(CM$5),"Januar","Februar","Maerz","April","Mai","Juni","Juli","August","September","Oktober","November","Dezember")&" "&RIGHT(YEAR(CM$5),2) -> Oktober 25 | DB2: =CHOOSE(MONTH(CZ$5),"Januar","Februar","Maerz","April","Mai","Juni","Juli","August","September","Oktober","November","Dezember")&" "&RIGHT(YEAR(CZ$5),2) -> November 25 | DN2: =CHOOSE(MONTH(DL$5),"Januar","Februar","Maerz","April","Mai","Juni","Juli","August","September","Oktober","November","Dezember")&" "&RIGHT(YEAR(DL$5),2) -> Dezember 25 | DZ2: =CHOOSE(MONTH(DX$5),"Januar","Februar","Maerz","April","Mai","Juni","Juli","August","September","Oktober","November","Dezember")&" "&RIGHT(YEAR(DX$5),2) -> Januar 26 | EL2: =CHOOSE(MONTH(EJ$5),"Januar","Februar","Maerz","April","Mai","Juni","Juli","August","September","Oktober","November","Dezember")&" "&RIGHT(YEAR(EJ$5),2) -> Februar 26 | EX2: =CHOOSE(MONTH(EV$5),"Januar","Februar","Maerz","April","Mai","Juni","Juli","August","September","Oktober","November","Dezember")&" "&RIGHT(YEAR(EV$5),2) -> Maerz 26 | FJ2: =CHOOSE(MONTH(FH$5),"Januar","Februar","Maerz","April","Mai","Juni","Juli","August","September","Oktober","November","Dezember")&" "&RIGHT(YEAR(FH$5),2) -> April 26 | FV2: =CHOOSE(MONTH(FT$5),"Januar","Februar","Maerz","April","Mai","Juni","Juli","August","September","Oktober","November","Dezember")&" "&RIGHT(YEAR(FT$5),2) -> Mai 26
S3: A | T3: x | U3: autom (x) | AA3: fest | AF3: B | AG3: x | AH3: autom (x) | AN3: fest | AR3: C | AS3: x | AT3: autom (x) | AZ3: fest | BD3: D | BE3: x | BF3: autom (x) | BL3: fest | BP3: E | BQ3: x | BR3: autom (x) | BX3: fest | CB3: F | CC3: x | CD3: autom (x) | CJ3: fest | CN3: G | CO3: x | CP3: autom (x) | CV3: fest | DA3: H | DB3: x | DC3: autom (x) | DI3: fest | DM3: I | DN3: x | DO3: autom (x) | DU3: fest | DY3: J | DZ3: x | EA3: autom (x) | EG3: fest | EK3: K | EL3: x | EM3: autom (x) | ES3: fest | EW3: L | EX3: x | EY3: autom (x) | FE3: fest | FI3: M | FJ3: x | FK3: autom (x) | FQ3: fest | FU3: N | FV3: x | FW3: autom (x) | GC3: fest
B4: Geboren | H4: Rente ab | J4: =IF(Geburtsdatum>0,Rentenbeginn,"…") -> … | L4: Kto | R4: =YEAR(R5) -> 2025 | T4: V | U4: D | V4: A | W4: R | X4: U | Y4: F | Z4: ZS | AA4: KR | AB4: AZV/ZK | AE4: =YEAR(AE5) -> 2025 | AG4: V | AH4: D | AI4: A | AJ4: R | AK4: U | AL4: F | AM4: ZS | AN4: KR | AO4: AZV/ZK | AQ4: =YEAR(AQ5) -> 2025 | AS4: V | AT4: D | AU4: A | AV4: R | AW4: U | AX4: F | AY4: ZS | AZ4: KR | BA4: AZV/ZK | BC4: =YEAR(BC5) -> 2025 | BE4: V | BF4: D | BG4: A | BH4: R | BI4: U | BJ4: F | BK4: ZS | BL4: KR | BM4: AZV/ZK | BO4: =YEAR(BO5) -> 2025 | BQ4: V | BR4: D | BS4: A | BT4: R | BU4: U | BV4: F | BW4: ZS | BX4: KR | BY4: AZV/ZK | CA4: =YEAR(CA5) -> 2025 | CC4: V | CD4: D | CE4: A | CF4: R | CG4: U | CH4: F | CI4: ZS | CJ4: KR | CK4: AZV/ZK | CM4: =YEAR(CM5) -> 2025 | CO4: V | CP4: D | CQ4: A | CR4: R | CS4: U | CT4: F | CU4: ZS | CV4: KR | CW4: AZV/ZK | CZ4: =YEAR(CZ5) -> 2025 | DB4: V | DC4: D | DD4: A | DE4: R | DF4: U | DG4: F | DH4: ZS | DI4: KR | DJ4: AZV/ZK | DL4: =YEAR(DL5) -> 2025 | DN4: V | DO4: D | DP4: A | DQ4: R | DR4: U | DS4: F | DT4: ZS | DU4: KR | DV4: AZV/ZK | DX4: =YEAR(DX5) -> 2026 | DZ4: V | EA4: D | EB4: A | EC4: R | ED4: U | EE4: F | EF4: ZS | EG4: KR | EH4: AZV/ZK | EJ4: =YEAR(Monat13) -> 2026 | EL4: V | EM4: D | EN4: A | EO4: R | EP4: U | EQ4: F | ER4: ZS | ES4: KR | ET4: AZV/ZK | EV4: =YEAR(EV5) -> 2026 | EX4: V | EY4: D | EZ4: A | FA4: R | FB4: U | FC4: F | FD4: ZS | FE4: KR | FF4: AZV/ZK | FH4: =YEAR(FH5) -> 2026 | FJ4: V | FK4: D | FL4: A | FM4: R | FN4: U | FO4: F | FP4: ZS | FQ4: KR | FR4: AZV/ZK | FT4: =YEAR(FT5) -> 2026 | FV4: V | FW4: D | FX4: A | FY4: R | FZ4: U | GA4: F | GB4: ZS | GC4: KR | GD4: AZV/ZK
L5: Effekt | Q5: =IF(ISNUMBER(R5),CHOOSE(WEEKDAY(R5,2),"Mo","Di","Mi","Do","Fr","Sa","So"),"") -> Di | R5: =KalenderBeginn -> 2025-04-01 | S5: =IF(OR(NOT(ISNUMBER(R5)),ISERROR(VLOOKUP(R5,Blocktage,6,FALSE))),"", IF(VLOOKUP(R5,Blocktage,3,FALSE)="F","F", IF(VLOOKUP(R5,Blocktage,6,FALSE)<>0,VLOOKUP(R5,Blocktage,6,FALSE),""))) ->  | T5: =IF(AND(ISNUMBER(R5),AB5<>"AZV",T$3="x",COUNTIFS(U5:AB5,"B*")=0,Q5<>"Sa",Q5<>"So"), IF(AND(R5>=Vertr1Von,R5<=Vertr1Bis),"X", IF(AND(R5>=Vertr2von,R5<=Vertr2Bis),"X", IF(AND(R5>=Vertr3Von,R5<=Vertr3bis),"X", IF(AND(R5>=Vertr4von,R5<=Vertr4bis),"X", IF(AND(R5>=Vertr5von,R5<=Vertr5bis),"X", IF(AND(R5>=Vertr6von,R5<=Vertr6bis),"X", ".")))))),"") -> . | U5: =IF(AND(T$3="x",LEFT(S5,1)="B", OR(AND(AKTIVB1="x",S5="B1"), AND(AKTIVB2="x",S5="B2"), AND(AKTIVB3="x",S5="B3"), AND(AKTIVB4="x",S5="B4"), AND(AKTIVB5="x",S5="B5"), AND(AKTIVB6="x",S5="B6"), AND(AKTIVB7="x",S5="B7"), )), IF(AND(R5>=Vertr1Von,R5<=Vertr1Bis),S5&Vertrag1Gage, IF(AND(R5>=Vertr2von,R5<=Vertr2Bis),S5&Vertrag2Gage, IF(AND(R5>=Vertr3Von,R5<=Vertr3bis),S5&Vertrag3Gage, IF(AND(R5>=Vertr4von,R5<=Vertr4bis),S5&Vertrag4Gage, IF(AND(R5>=Vertr5von,R5<=Vertr5bis),S5&Vertrag5Gage, IF(AND(R5>=Vertr6von,R5<=Vertr6bis),S5&Vertrag6Gage, "-")))))),"") ->  | Y5: =IF(AND(T$3="x",LEFT(S5,1)="F",ISTEXT(VLOOKUP(R5,Blocktage,5,FALSE))), IF(AND(R5>=Vertr1Von,R5<=Vertr1Bis),VLOOKUP(R5,Blocktage,5,FALSE)&Vertrag1Gage, IF(AND(R5>=Vertr2von,R5<=Vertr2Bis),VLOOKUP(R5,Blocktage,5,FALSE)&Vertrag2Gage, IF(AND(R5>=Vertr3Von,R5<=Vertr3bis),VLOOKUP(R5,Blocktage,5,FALSE)&Vertrag3Gage,"-"))),"") ->  | AD5: =IF(ISNUMBER(AE5),CHOOSE(WEEKDAY(AE5,2),"Mo","Di","Mi","Do","Fr","Sa","So"),"") -> Do | AE5: =DATE(YEAR(R5),MONTH(R5)+1,1) -> 2025-05-01 | AF5: =IF(OR(NOT(ISNUMBER(AE5)),ISERROR(VLOOKUP(AE5,Blocktage,6,FALSE))),"", IF(VLOOKUP(AE5,Blocktage,3,FALSE)="F","F", IF(VLOOKUP(AE5,Blocktage,6,FALSE)<>0,VLOOKUP(AE5,Blocktage,6,FALSE),""))) -> F | AG5: =IF(AND(ISNUMBER(AE5),AO5<>"AZV",AG$3="x",COUNTIFS(AH5:AO5,"B*")=0,AD5<>"Sa",AD5<>"So"), IF(AND(AE5>=Vertr1Von,AE5<=Vertr1Bis),"X", IF(AND(AE5>=Vertr2von,AE5<=Vertr2Bis),"X", IF(AND(AE5>=Vertr3Von,AE5<=Vertr3bis),"X", IF(AND(AE5>=Vertr4von,AE5<=Vertr4bis),"X", IF(AND(AE5>=Vertr5von,AE5<=Vertr5bis),"X", IF(AND(AE5>=Vertr6von,AE5<=Vertr6bis),"X", ".")))))),"") -> . | AH5: =IF(AND(AG$3="x",LEFT(AF5,1)="B", OR(AND(AKTIVB1="x",AF5="B1"), AND(AKTIVB2="x",AF5="B2"), AND(AKTIVB3="x",AF5="B3"), AND(AKTIVB4="x",AF5="B4"), AND(AKTIVB5="x",AF5="B5"), AND(AKTIVB6="x",AF5="B6"), AND(AKTIVB7="x",AF5="B7"), )), IF(AND(AE5>=Vertr1Von,AE5<=Vertr1Bis),AF5&Vertrag1Gage, IF(AND(AE5>=Vertr2von,AE5<=Vertr2Bis),AF5&Vertrag2Gage, IF(AND(AE5>=Vertr3Von,AE5<=Vertr3bis),AF5&Vertrag3Gage, IF(AND(AE5>=Vertr4von,AE5<=Vertr4bis),AF5&Vertrag4Gage, IF(AND(AE5>=Vertr5von,AE5<=Vertr5bis),AF5&Vertrag5Gage, IF(AND(AE5>=Vertr6von,AE5<=Vertr6bis),AF5&Vertrag6Gage, "-")))))),"") ->  | AL5: =IF(AND(AG$3="x",LEFT(AF5,1)="F",ISTEXT(VLOOKUP(AE5,Blocktage,5,FALSE))), IF(AND(AE5>=Vertr1Von,AE5<=Vertr1Bis),VLOOKUP(AE5,Blocktage,5,FALSE)&Vertrag1Gage, IF(AND(AE5>=Vertr2von,AE5<=Vertr2Bis),VLOOKUP(AE5,Blocktage,5,FALSE)&Vertrag2Gage, IF(AND(AE5>=Vertr3Von,AE5<=Vertr3bis),VLOOKUP(AE5,Blocktage,5,FALSE)&Vertrag3Gage,"-"))),"") ->  | AP5: =IF(ISNUMBER(AQ5),CHOOSE(WEEKDAY(AQ5,2),"Mo","Di","Mi","Do","Fr","Sa","So"),"") -> So | AQ5: =DATE(YEAR(AE5),MONTH(AE5)+1,1) -> 2025-06-01 | AR5: =IF(OR(NOT(ISNUMBER(AQ5)),ISERROR(VLOOKUP(AQ5,Blocktage,6,FALSE))),"", IF(VLOOKUP(AQ5,Blocktage,3,FALSE)="F","F", IF(VLOOKUP(AQ5,Blocktage,6,FALSE)<>0,VLOOKUP(AQ5,Blocktage,6,FALSE),""))) ->  | AS5: =IF(AND(ISNUMBER(AQ5),BA5<>"AZV",AS$3="x",COUNTIFS(AT5:BA5,"B*")=0,AP5<>"Sa",AP5<>"So"), IF(AND(AQ5>=Vertr1Von,AQ5<=Vertr1Bis),"X", IF(AND(AQ5>=Vertr2von,AQ5<=Vertr2Bis),"X", IF(AND(AQ5>=Vertr3Von,AQ5<=Vertr3bis),"X", IF(AND(AQ5>=Vertr4von,AQ5<=Vertr4bis),"X", IF(AND(AQ5>=Vertr5von,AQ5<=Vertr5bis),"X", IF(AND(AQ5>=Vertr6von,AQ5<=Vertr6bis),"X", ".")))))),"") ->  | AT5: =IF(AND(AS$3="x",LEFT(AR5,1)="B", OR(AND(AKTIVB1="x",AR5="B1"), AND(AKTIVB2="x",AR5="B2"), AND(AKTIVB3="x",AR5="B3"), AND(AKTIVB4="x",AR5="B4"), AND(AKTIVB5="x",AR5="B5"), AND(AKTIVB6="x",AR5="B6"), AND(AKTIVB7="x",AR5="B7"), )), IF(AND(AQ5>=Vertr1Von,AQ5<=Vertr1Bis),AR5&Vertrag1Gage, IF(AND(AQ5>=Vertr2von,AQ5<=Vertr2Bis),AR5&Vertrag2Gage, IF(AND(AQ5>=Vertr3Von,AQ5<=Vertr3bis),AR5&Vertrag3Gage, IF(AND(AQ5>=Vertr4von,AQ5<=Vertr4bis),AR5&Vertrag4Gage, IF(AND(AQ5>=Vertr5von,AQ5<=Vertr5bis),AR5&Vertrag5Gage, IF(AND(AQ5>=Vertr6von,AQ5<=Vertr6bis),AR5&Vertrag6Gage, "-")))))),"") ->  | AX5: =IF(AND(AS$3="x",LEFT(AR5,1)="F",ISTEXT(VLOOKUP(AQ5,Blocktage,5,FALSE))), IF(AND(AQ5>=Vertr1Von,AQ5<=Vertr1Bis),VLOOKUP(AQ5,Blocktage,5,FALSE)&Vertrag1Gage, IF(AND(AQ5>=Vertr2von,AQ5<=Vertr2Bis),VLOOKUP(AQ5,Blocktage,5,FALSE)&Vertrag2Gage, IF(AND(AQ5>=Vertr3Von,AQ5<=Vertr3bis),VLOOKUP(AQ5,Blocktage,5,FALSE)&Vertrag3Gage,"-"))),"") ->  | BB5: =IF(ISNUMBER(BC5),CHOOSE(WEEKDAY(BC5,2),"Mo","Di","Mi","Do","Fr","Sa","So"),"") -> Di | BC5: =DATE(YEAR(AQ5),MONTH(AQ5)+1,1) -> 2025-07-01 | BD5: =IF(OR(NOT(ISNUMBER(BC5)),ISERROR(VLOOKUP(BC5,Blocktage,6,FALSE))),"", IF(VLOOKUP(BC5,Blocktage,3,FALSE)="F","F", IF(VLOOKUP(BC5,Blocktage,6,FALSE)<>0,VLOOKUP(BC5,Blocktage,6,FALSE),""))) ->  | BE5: =IF(AND(ISNUMBER(BC5),BM5<>"AZV",BE$3="x",COUNTIFS(BF5:BM5,"B*")=0,BB5<>"Sa",BB5<>"So"), IF(AND(BC5>=Vertr1Von,BC5<=Vertr1Bis),"X", IF(AND(BC5>=Vertr2von,BC5<=Vertr2Bis),"X", IF(AND(BC5>=Vertr3Von,BC5<=Vertr3bis),"X", IF(AND(BC5>=Vertr4von,BC5<=Vertr4bis),"X", IF(AND(BC5>=Vertr5von,BC5<=Vertr5bis),"X", IF(AND(BC5>=Vertr6von,BC5<=Vertr6bis),"X", ".")))))),"") ->  | BF5: =IF(AND(BE$3="x",LEFT(BD5,1)="B", OR(AND(AKTIVB1="x",BD5="B1"), AND(AKTIVB2="x",BD5="B2"), AND(AKTIVB3="x",BD5="B3"), AND(AKTIVB4="x",BD5="B4"), AND(AKTIVB5="x",BD5="B5"), AND(AKTIVB6="x",BD5="B6"), AND(AKTIVB7="x",BD5="B7"), )), IF(AND(BC5>=Vertr1Von,BC5<=Vertr1Bis),BD5&Vertrag1Gage, IF(AND(BC5>=Vertr2von,BC5<=Vertr2Bis),BD5&Vertrag2Gage, IF(AND(BC5>=Vertr3Von,BC5<=Vertr3bis),BD5&Vertrag3Gage, IF(AND(BC5>=Vertr4von,BC5<=Vertr4bis),BD5&Vertrag4Gage, IF(AND(BC5>=Vertr5von,BC5<=Vertr5bis),BD5&Vertrag5Gage, IF(AND(BC5>=Vertr6von,BC5<=Vertr6bis),BD5&Vertrag6Gage, "-")))))),"") ->  | BG5: Beispiel | BJ5: =IF(AND(BE$3="x",LEFT(BD5,1)="F",ISTEXT(VLOOKUP(BC5,Blocktage,5,FALSE))), IF(AND(BC5>=Vertr1Von,BC5<=Vertr1Bis),VLOOKUP(BC5,Blocktage,5,FALSE)&Vertrag1Gage, IF(AND(BC5>=Vertr2von,BC5<=Vertr2Bis),VLOOKUP(BC5,Blocktage,5,FALSE)&Vertrag2Gage, IF(AND(BC5>=Vertr3Von,BC5<=Vertr3bis),VLOOKUP(BC5,Blocktage,5,FALSE)&Vertrag3Gage,"-"))),"") ->  | BM5: 1 | BN5: =IF(ISNUMBER(BO5),CHOOSE(WEEKDAY(BO5,2),"Mo","Di","Mi","Do","Fr","Sa","So"),"") -> Fr | BO5: =DATE(YEAR(BC5),MONTH(BC5)+1,1) -> 2025-08-01 | BP5: =IF(OR(NOT(ISNUMBER(BO5)),ISERROR(VLOOKUP(BO5,Blocktage,6,FALSE))),"", IF(VLOOKUP(BO5,Blocktage,3,FALSE)="F","F", IF(VLOOKUP(BO5,Blocktage,6,FALSE)<>0,VLOOKUP(BO5,Blocktage,6,FALSE),""))) ->  | BQ5: =IF(AND(ISNUMBER(BO5),BY5<>"AZV",BQ$3="x",COUNTIFS(BR5:BY5,"B*")=0,BN5<>"Sa",BN5<>"So"), IF(AND(BO5>=Vertr1Von,BO5<=Vertr1Bis),"X", IF(AND(BO5>=Vertr2von,BO5<=Vertr2Bis),"X", IF(AND(BO5>=Vertr3Von,BO5<=Vertr3bis),"X", IF(AND(BO5>=Vertr4von,BO5<=Vertr4bis),"X", IF(AND(BO5>=Vertr5von,BO5<=Vertr5bis),"X", IF(AND(BO5>=Vertr6von,BO5<=Vertr6bis),"X", ".")))))),"") -> . | BR5: =IF(AND(BQ$3="x",LEFT(BP5,1)="B", OR(AND(AKTIVB1="x",BP5="B1"), AND(AKTIVB2="x",BP5="B2"), AND(AKTIVB3="x",BP5="B3"), AND(AKTIVB4="x",BP5="B4"), AND(AKTIVB5="x",BP5="B5"), AND(AKTIVB6="x",BP5="B6"), AND(AKTIVB7="x",BP5="B7"), )), IF(AND(BO5>=Vertr1Von,BO5<=Vertr1Bis),BP5&Vertrag1Gage, IF(AND(BO5>=Vertr2von,BO5<=Vertr2Bis),BP5&Vertrag2Gage, IF(AND(BO5>=Vertr3Von,BO5<=Vertr3bis),BP5&Vertrag3Gage, IF(AND(BO5>=Vertr4von,BO5<=Vertr4bis),BP5&Vertrag4Gage, IF(AND(BO5>=Vertr5von,BO5<=Vertr5bis),BP5&Vertrag5Gage, IF(AND(BO5>=Vertr6von,BO5<=Vertr6bis),BP5&Vertrag6Gage, "-")))))),"") ->  | BV5: =IF(AND(BQ$3="x",LEFT(BP5,1)="F",ISTEXT(VLOOKUP(BO5,Blocktage,5,FALSE))), IF(AND(BO5>=Vertr1Von,BO5<=Vertr1Bis),VLOOKUP(BO5,Blocktage,5,FALSE)&Vertrag1Gage, IF(AND(BO5>=Vertr2von,BO5<=Vertr2Bis),VLOOKUP(BO5,Blocktage,5,FALSE)&Vertrag2Gage, IF(AND(BO5>=Vertr3Von,BO5<=Vertr3bis),VLOOKUP(BO5,Blocktage,5,FALSE)&Vertrag3Gage,"-"))),"") ->  | BZ5: =IF(ISNUMBER(CA5),CHOOSE(WEEKDAY(CA5,2),"Mo","Di","Mi","Do","Fr","Sa","So"),"") -> Mo | CA5: =DATE(YEAR(BO5),MONTH(BO5)+1,1) -> 2025-09-01 | CB5: =IF(OR(NOT(ISNUMBER(CA5)),ISERROR(VLOOKUP(CA5,Blocktage,6,FALSE))),"", IF(VLOOKUP(CA5,Blocktage,3,FALSE)="F","F", IF(VLOOKUP(CA5,Blocktage,6,FALSE)<>0,VLOOKUP(CA5,Blocktage,6,FALSE),""))) ->  | CC5: =IF(AND(ISNUMBER(CA5),CK5<>"AZV",CC$3="x",COUNTIFS(CD5:CK5,"B*")=0,BZ5<>"Sa",BZ5<>"So"), IF(AND(CA5>=Vertr1Von,CA5<=Vertr1Bis),"X", IF(AND(CA5>=Vertr2von,CA5<=Vertr2Bis),"X", IF(AND(CA5>=Vertr3Von,CA5<=Vertr3bis),"X", IF(AND(CA5>=Vertr4von,CA5<=Vertr4bis),"X", IF(AND(CA5>=Vertr5von,CA5<=Vertr5bis),"X", IF(AND(CA5>=Vertr6von,CA5<=Vertr6bis),"X", ".")))))),"") -> . | CD5: =IF(AND(CC$3="x",LEFT(CB5,1)="B", OR(AND(AKTIVB1="x",CB5="B1"), AND(AKTIVB2="x",CB5="B2"), AND(AKTIVB3="x",CB5="B3"), AND(AKTIVB4="x",CB5="B4"), AND(AKTIVB5="x",CB5="B5"), AND(AKTIVB6="x",CB5="B6"), AND(AKTIVB7="x",CB5="B7"), )), IF(AND(CA5>=Vertr1Von,CA5<=Vertr1Bis),CB5&Vertrag1Gage, IF(AND(CA5>=Vertr2von,CA5<=Vertr2Bis),CB5&Vertrag2Gage, IF(AND(CA5>=Vertr3Von,CA5<=Vertr3bis),CB5&Vertrag3Gage, IF(AND(CA5>=Vertr4von,CA5<=Vertr4bis),CB5&Vertrag4Gage, IF(AND(CA5>=Vertr5von,CA5<=Vertr5bis),CB5&Vertrag5Gage, IF(AND(CA5>=Vertr6von,CA5<=Vertr6bis),CB5&Vertrag6Gage, "-")))))),"") ->  | CH5: =IF(AND(CC$3="x",LEFT(CB5,1)="F",ISTEXT(VLOOKUP(CA5,Blocktage,5,FALSE))), IF(AND(CA5>=Vertr1Von,CA5<=Vertr1Bis),VLOOKUP(CA5,Blocktage,5,FALSE)&Vertrag1Gage, IF(AND(CA5>=Vertr2von,CA5<=Vertr2Bis),VLOOKUP(CA5,Blocktage,5,FALSE)&Vertrag2Gage, IF(AND(CA5>=Vertr3Von,CA5<=Vertr3bis),VLOOKUP(CA5,Blocktage,5,FALSE)&Vertrag3Gage,"-"))),"") ->  | CL5: =IF(ISNUMBER(CM5),CHOOSE(WEEKDAY(CM5,2),"Mo","Di","Mi","Do","Fr","Sa","So"),"") -> Mi | CM5: =DATE(YEAR(CA5),MONTH(CA5)+1,1) -> 2025-10-01 | CN5: =IF(OR(NOT(ISNUMBER(CM5)),ISERROR(VLOOKUP(CM5,Blocktage,6,FALSE))),"", IF(VLOOKUP(CM5,Blocktage,3,FALSE)="F","F", IF(VLOOKUP(CM5,Blocktage,6,FALSE)<>0,VLOOKUP(CM5,Blocktage,6,FALSE),""))) ->  | CO5: =IF(AND(ISNUMBER(CM5),CW5<>"AZV",CO$3="x",COUNTIFS(CP5:CW5,"B*")=0,CL5<>"Sa",CL5<>"So"), IF(AND(CM5>=Vertr1Von,CM5<=Vertr1Bis),"X", IF(AND(CM5>=Vertr2von,CM5<=Vertr2Bis),"X", IF(AND(CM5>=Vertr3Von,CM5<=Vertr3bis),"X", IF(AND(CM5>=Vertr4von,CM5<=Vertr4bis),"X", IF(AND(CM5>=Vertr5von,CM5<=Vertr5bis),"X", IF(AND(CM5>=Vertr6von,CM5<=Vertr6bis),"X", ".")))))),"") -> . | CP5: =IF(AND(CO$3="x",LEFT(CN5,1)="B", OR(AND(AKTIVB1="x",CN5="B1"), AND(AKTIVB2="x",CN5="B2"), AND(AKTIVB3="x",CN5="B3"), AND(AKTIVB4="x",CN5="B4"), AND(AKTIVB5="x",CN5="B5"), AND(AKTIVB6="x",CN5="B6"), AND(AKTIVB7="x",CN5="B7"), )), IF(AND(CM5>=Vertr1Von,CM5<=Vertr1Bis),CN5&Vertrag1Gage, IF(AND(CM5>=Vertr2von,CM5<=Vertr2Bis),CN5&Vertrag2Gage, IF(AND(CM5>=Vertr3Von,CM5<=Vertr3bis),CN5&Vertrag3Gage, IF(AND(CM5>=Vertr4von,CM5<=Vertr4bis),CN5&Vertrag4Gage, IF(AND(CM5>=Vertr5von,CM5<=Vertr5bis),CN5&Vertrag5Gage, IF(AND(CM5>=Vertr6von,CM5<=Vertr6bis),CN5&Vertrag6Gage, "-")))))),"") ->  | CT5: =IF(AND(CO$3="x",LEFT(CN5,1)="F",ISTEXT(VLOOKUP(CM5,Blocktage,5,FALSE))), IF(AND(CM5>=Vertr1Von,CM5<=Vertr1Bis),VLOOKUP(CM5,Blocktage,5,FALSE)&Vertrag1Gage, IF(AND(CM5>=Vertr2von,CM5<=Vertr2Bis),VLOOKUP(CM5,Blocktage,5,FALSE)&Vertrag2Gage, IF(AND(CM5>=Vertr3Von,CM5<=Vertr3bis),VLOOKUP(CM5,Blocktage,5,FALSE)&Vertrag3Gage,"-"))),"") ->  | CY5: =IF(ISNUMBER(CZ5),CHOOSE(WEEKDAY(CZ5,2),"Mo","Di","Mi","Do","Fr","Sa","So"),"") -> Sa | CZ5: =DATE(YEAR(CM5),MONTH(CM5)+1,1) -> 2025-11-01 | DA5: =IF(OR(NOT(ISNUMBER(CZ5)),ISERROR(VLOOKUP(CZ5,Blocktage,6,FALSE))),"", IF(VLOOKUP(CZ5,Blocktage,3,FALSE)="F","F", IF(VLOOKUP(CZ5,Blocktage,6,FALSE)<>0,VLOOKUP(CZ5,Blocktage,6,FALSE),""))) ->  | DB5: =IF(AND(ISNUMBER(CZ5),DJ5<>"AZV",DB$3="x",COUNTIFS(DC5:DJ5,"B*")=0,CY5<>"Sa",CY5<>"So"), IF(AND(CZ5>=Vertr1Von,CZ5<=Vertr1Bis),"X", IF(AND(CZ5>=Vertr2von,CZ5<=Vertr2Bis),"X", IF(AND(CZ5>=Vertr3Von,CZ5<=Vertr3bis),"X", IF(AND(CZ5>=Vertr4von,CZ5<=Vertr4bis),"X", IF(AND(CZ5>=Vertr5von,CZ5<=Vertr5bis),"X", IF(AND(CZ5>=Vertr6von,CZ5<=Vertr6bis),"X", ".")))))),"") ->  | DC5: =IF(AND(DB$3="x",LEFT(DA5,1)="B", OR(AND(AKTIVB1="x",DA5="B1"), AND(AKTIVB2="x",DA5="B2"), AND(AKTIVB3="x",DA5="B3"), AND(AKTIVB4="x",DA5="B4"), AND(AKTIVB5="x",DA5="B5"), AND(AKTIVB6="x",DA5="B6"), AND(AKTIVB7="x",DA5="B7"), )), IF(AND(CZ5>=Vertr1Von,CZ5<=Vertr1Bis),DA5&Vertrag1Gage, IF(AND(CZ5>=Vertr2von,CZ5<=Vertr2Bis),DA5&Vertrag2Gage, IF(AND(CZ5>=Vertr3Von,CZ5<=Vertr3bis),DA5&Vertrag3Gage, IF(AND(CZ5>=Vertr4von,CZ5<=Vertr4bis),DA5&Vertrag4Gage, IF(AND(CZ5>=Vertr5von,CZ5<=Vertr5bis),DA5&Vertrag5Gage, IF(AND(CZ5>=Vertr6von,CZ5<=Vertr6bis),DA5&Vertrag6Gage, "-")))))),"") ->  | DG5: =IF(AND(DB$3="x",LEFT(DA5,1)="F",ISTEXT(VLOOKUP(CZ5,Blocktage,5,FALSE))), IF(AND(CZ5>=Vertr1Von,CZ5<=Vertr1Bis),VLOOKUP(CZ5,Blocktage,5,FALSE)&Vertrag1Gage, IF(AND(CZ5>=Vertr2von,CZ5<=Vertr2Bis),VLOOKUP(CZ5,Blocktage,5,FALSE)&Vertrag2Gage, IF(AND(CZ5>=Vertr3Von,CZ5<=Vertr3bis),VLOOKUP(CZ5,Blocktage,5,FALSE)&Vertrag3Gage,"-"))),"") ->  | DK5: =IF(ISNUMBER(DL5),CHOOSE(WEEKDAY(DL5,2),"Mo","Di","Mi","Do","Fr","Sa","So"),"") -> Mo | DL5: =DATE(YEAR(CZ5),MONTH(CZ5)+1,1) -> 2025-12-01 | DM5: =IF(OR(NOT(ISNUMBER(DL5)),ISERROR(VLOOKUP(DL5,Blocktage,6,FALSE))),"", IF(VLOOKUP(DL5,Blocktage,3,FALSE)="F","F", IF(VLOOKUP(DL5,Blocktage,6,FALSE)<>0,VLOOKUP(DL5,Blocktage,6,FALSE),""))) ->  | DN5: =IF(AND(ISNUMBER(DL5),DV5<>"AZV",DN$3="x",COUNTIFS(DO5:DV5,"B*")=0,DK5<>"Sa",DK5<>"So"), IF(AND(DL5>=Vertr1Von,DL5<=Vertr1Bis),"X", IF(AND(DL5>=Vertr2von,DL5<=Vertr2Bis),"X", IF(AND(DL5>=Vertr3Von,DL5<=Vertr3bis),"X", IF(AND(DL5>=Vertr4von,DL5<=Vertr4bis),"X", IF(AND(DL5>=Vertr5von,DL5<=Vertr5bis),"X", IF(AND(DL5>=Vertr6von,DL5<=Vertr6bis),"X", ".")))))),"") -> . | DO5: =IF(AND(DN$3="x",LEFT(DM5,1)="B", OR(AND(AKTIVB1="x",DM5="B1"), AND(AKTIVB2="x",DM5="B2"), AND(AKTIVB3="x",DM5="B3"), AND(AKTIVB4="x",DM5="B4"), AND(AKTIVB5="x",DM5="B5"), AND(AKTIVB6="x",DM5="B6"), AND(AKTIVB7="x",DM5="B7"), )), IF(AND(DL5>=Vertr1Von,DL5<=Vertr1Bis),DM5&Vertrag1Gage, IF(AND(DL5>=Vertr2von,DL5<=Vertr2Bis),DM5&Vertrag2Gage, IF(AND(DL5>=Vertr3Von,DL5<=Vertr3bis),DM5&Vertrag3Gage, IF(AND(DL5>=Vertr4von,DL5<=Vertr4bis),DM5&Vertrag4Gage, IF(AND(DL5>=Vertr5von,DL5<=Vertr5bis),DM5&Vertrag5Gage, IF(AND(DL5>=Vertr6von,DL5<=Vertr6bis),DM5&Vertrag6Gage, "-")))))),"") ->  | DS5: =IF(AND(DN$3="x",LEFT(DM5,1)="F",ISTEXT(VLOOKUP(DL5,Blocktage,5,FALSE))), IF(AND(DL5>=Vertr1Von,DL5<=Vertr1Bis),VLOOKUP(DL5,Blocktage,5,FALSE)&Vertrag1Gage, IF(AND(DL5>=Vertr2von,DL5<=Vertr2Bis),VLOOKUP(DL5,Blocktage,5,FALSE)&Vertrag2Gage, IF(AND(DL5>=Vertr3Von,DL5<=Vertr3bis),VLOOKUP(DL5,Blocktage,5,FALSE)&Vertrag3Gage,"-"))),"") ->  | DW5: =IF(ISNUMBER(DX5),CHOOSE(WEEKDAY(DX5,2),"Mo","Di","Mi","Do","Fr","Sa","So"),"") -> Do | DX5: =DATE(YEAR(DL5),MONTH(DL5)+1,1) -> 2026-01-01 | DY5: =IF(OR(NOT(ISNUMBER(DX5)),ISERROR(VLOOKUP(DX5,Blocktage,6,FALSE))),"", IF(VLOOKUP(DX5,Blocktage,3,FALSE)="F","F", IF(VLOOKUP(DX5,Blocktage,6,FALSE)<>0,VLOOKUP(DX5,Blocktage,6,FALSE),""))) ->  | DZ5: =IF(AND(ISNUMBER(DX5),EH5<>"AZV",DZ$3="x",COUNTIFS(EA5:EH5,"B*")=0,DW5<>"Sa",DW5<>"So"), IF(AND(DX5>=Vertr1Von,DX5<=Vertr1Bis),"X", IF(AND(DX5>=Vertr2von,DX5<=Vertr2Bis),"X", IF(AND(DX5>=Vertr3Von,DX5<=Vertr3bis),"X", IF(AND(DX5>=Vertr4von,DX5<=Vertr4bis),"X", IF(AND(DX5>=Vertr5von,DX5<=Vertr5bis),"X", IF(AND(DX5>=Vertr6von,DX5<=Vertr6bis),"X", ".")))))),"") -> . | EA5: =IF(AND(DZ$3="x",LEFT(DY5,1)="B", OR(AND(AKTIVB1="x",DY5="B1"), AND(AKTIVB2="x",DY5="B2"), AND(AKTIVB3="x",DY5="B3"), AND(AKTIVB4="x",DY5="B4"), AND(AKTIVB5="x",DY5="B5"), AND(AKTIVB6="x",DY5="B6"), AND(AKTIVB7="x",DY5="B7"), )), IF(AND(DX5>=Vertr1Von,DX5<=Vertr1Bis),DY5&Vertrag1Gage, IF(AND(DX5>=Vertr2von,DX5<=Vertr2Bis),DY5&Vertrag2Gage, IF(AND(DX5>=Vertr3Von,DX5<=Vertr3bis),DY5&Vertrag3Gage, IF(AND(DX5>=Vertr4von,DX5<=Vertr4bis),DY5&Vertrag4Gage, IF(AND(DX5>=Vertr5von,DX5<=Vertr5bis),DY5&Vertrag5Gage, IF(AND(DX5>=Vertr6von,DX5<=Vertr6bis),DY5&Vertrag6Gage, "-")))))),"") ->  | EE5: =IF(AND(DZ$3="x",LEFT(DY5,1)="F",ISTEXT(VLOOKUP(DX5,Blocktage,5,FALSE))), IF(AND(DX5>=Vertr1Von,DX5<=Vertr1Bis),VLOOKUP(DX5,Blocktage,5,FALSE)&Vertrag1Gage, IF(AND(DX5>=Vertr2von,DX5<=Vertr2Bis),VLOOKUP(DX5,Blocktage,5,FALSE)&Vertrag2Gage, IF(AND(DX5>=Vertr3Von,DX5<=Vertr3bis),VLOOKUP(DX5,Blocktage,5,FALSE)&Vertrag3Gage,"-"))),"") ->  | EI5: =IF(ISNUMBER(EJ5),CHOOSE(WEEKDAY(EJ5,2),"Mo","Di","Mi","Do","Fr","Sa","So"),"") -> So | EJ5: =DATE(YEAR(DX5),MONTH(DX5)+1,1) -> 2026-02-01 | EK5: =IF(OR(NOT(ISNUMBER(EJ5)),ISERROR(VLOOKUP(EJ5,Blocktage,6,FALSE))),"", IF(VLOOKUP(EJ5,Blocktage,3,FALSE)="F","F", IF(VLOOKUP(EJ5,Blocktage,6,FALSE)<>0,VLOOKUP(EJ5,Blocktage,6,FALSE),""))) ->  | EL5: =IF(AND(ISNUMBER(EJ5),ET5<>"AZV",EL$3="x",COUNTIFS(EM5:ET5,"B*")=0,EI5<>"Sa",EI5<>"So"), IF(AND(EJ5>=Vertr1Von,EJ5<=Vertr1Bis),"X", IF(AND(EJ5>=Vertr2von,EJ5<=Vertr2Bis),"X", IF(AND(EJ5>=Vertr3Von,EJ5<=Vertr3bis),"X", IF(AND(EJ5>=Vertr4von,EJ5<=Vertr4bis),"X", IF(AND(EJ5>=Vertr5von,EJ5<=Vertr5bis),"X", IF(AND(EJ5>=Vertr6von,EJ5<=Vertr6bis),"X", ".")))))),"") ->  | EM5: =IF(AND(EL$3="x",LEFT(EK5,1)="B", OR(AND(AKTIVB1="x",EK5="B1"), AND(AKTIVB2="x",EK5="B2"), AND(AKTIVB3="x",EK5="B3"), AND(AKTIVB4="x",EK5="B4"), AND(AKTIVB5="x",EK5="B5"), AND(AKTIVB6="x",EK5="B6"), AND(AKTIVB7="x",EK5="B7"), )), IF(AND(EJ5>=Vertr1Von,EJ5<=Vertr1Bis),EK5&Vertrag1Gage, IF(AND(EJ5>=Vertr2von,EJ5<=Vertr2Bis),EK5&Vertrag2Gage, IF(AND(EJ5>=Vertr3Von,EJ5<=Vertr3bis),EK5&Vertrag3Gage, IF(AND(EJ5>=Vertr4von,EJ5<=Vertr4bis),EK5&Vertrag4Gage, IF(AND(EJ5>=Vertr5von,EJ5<=Vertr5bis),EK5&Vertrag5Gage, IF(AND(EJ5>=Vertr6von,EJ5<=Vertr6bis),EK5&Vertrag6Gage, "-")))))),"") ->  | EQ5: =IF(AND(EL$3="x",LEFT(EK5,1)="F",ISTEXT(VLOOKUP(EJ5,Blocktage,5,FALSE))), IF(AND(EJ5>=Vertr1Von,EJ5<=Vertr1Bis),VLOOKUP(EJ5,Blocktage,5,FALSE)&Vertrag1Gage, IF(AND(EJ5>=Vertr2von,EJ5<=Vertr2Bis),VLOOKUP(EJ5,Blocktage,5,FALSE)&Vertrag2Gage, IF(AND(EJ5>=Vertr3Von,EJ5<=Vertr3bis),VLOOKUP(EJ5,Blocktage,5,FALSE)&Vertrag3Gage,"-"))),"") ->  | EU5: =IF(ISNUMBER(EV5),CHOOSE(WEEKDAY(EV5,2),"Mo","Di","Mi","Do","Fr","Sa","So"),"") -> So | EV5: =DATE(YEAR(EJ5),MONTH(EJ5)+1,1) -> 2026-03-01 | EW5: =IF(OR(NOT(ISNUMBER(EV5)),ISERROR(VLOOKUP(EV5,Blocktage,6,FALSE))),"", IF(VLOOKUP(EV5,Blocktage,3,FALSE)="F","F", IF(VLOOKUP(EV5,Blocktage,6,FALSE)<>0,VLOOKUP(EV5,Blocktage,6,FALSE),""))) ->  | EX5: =IF(AND(ISNUMBER(EV5),FF5<>"AZV",EX$3="x",COUNTIFS(EY5:FF5,"B*")=0,EU5<>"Sa",EU5<>"So"), IF(AND(EV5>=Vertr1Von,EV5<=Vertr1Bis),"X", IF(AND(EV5>=Vertr2von,EV5<=Vertr2Bis),"X", IF(AND(EV5>=Vertr3Von,EV5<=Vertr3bis),"X", IF(AND(EV5>=Vertr4von,EV5<=Vertr4bis),"X", IF(AND(EV5>=Vertr5von,EV5<=Vertr5bis),"X", IF(AND(EV5>=Vertr6von,EV5<=Vertr6bis),"X", ".")))))),"") ->  | EY5: =IF(AND(EX$3="x",LEFT(EW5,1)="B", OR(AND(AKTIVB1="x",EW5="B1"), AND(AKTIVB2="x",EW5="B2"), AND(AKTIVB3="x",EW5="B3"), AND(AKTIVB4="x",EW5="B4"), AND(AKTIVB5="x",EW5="B5"), AND(AKTIVB6="x",EW5="B6"), AND(AKTIVB7="x",EW5="B7"), )), IF(AND(EV5>=Vertr1Von,EV5<=Vertr1Bis),EW5&Vertrag1Gage, IF(AND(EV5>=Vertr2von,EV5<=Vertr2Bis),EW5&Vertrag2Gage, IF(AND(EV5>=Vertr3Von,EV5<=Vertr3bis),EW5&Vertrag3Gage, IF(AND(EV5>=Vertr4von,EV5<=Vertr4bis),EW5&Vertrag4Gage, IF(AND(EV5>=Vertr5von,EV5<=Vertr5bis),EW5&Vertrag5Gage, IF(AND(EV5>=Vertr6von,EV5<=Vertr6bis),EW5&Vertrag6Gage, "-")))))),"") ->  | FC5: =IF(AND(EX$3="x",LEFT(EW5,1)="F",ISTEXT(VLOOKUP(EV5,Blocktage,5,FALSE))), IF(AND(EV5>=Vertr1Von,EV5<=Vertr1Bis),VLOOKUP(EV5,Blocktage,5,FALSE)&Vertrag1Gage, IF(AND(EV5>=Vertr2von,EV5<=Vertr2Bis),VLOOKUP(EV5,Blocktage,5,FALSE)&Vertrag2Gage, IF(AND(EV5>=Vertr3Von,EV5<=Vertr3bis),VLOOKUP(EV5,Blocktage,5,FALSE)&Vertrag3Gage,"-"))),"") ->  | FG5: =IF(ISNUMBER(FH5),CHOOSE(WEEKDAY(FH5,2),"Mo","Di","Mi","Do","Fr","Sa","So"),"") -> Mi | FH5: =DATE(YEAR(EV5),MONTH(EV5)+1,1) -> 2026-04-01 | FI5: =IF(OR(NOT(ISNUMBER(FH5)),ISERROR(VLOOKUP(FH5,Blocktage,6,FALSE))),"", IF(VLOOKUP(FH5,Blocktage,3,FALSE)="F","F", IF(VLOOKUP(FH5,Blocktage,6,FALSE)<>0,VLOOKUP(FH5,Blocktage,6,FALSE),""))) ->  | FJ5: =IF(AND(ISNUMBER(FH5),FR5<>"AZV",FJ$3="x",COUNTIFS(FK5:FR5,"B*")=0,FG5<>"Sa",FG5<>"So"), IF(AND(FH5>=Vertr1Von,FH5<=Vertr1Bis),"X", IF(AND(FH5>=Vertr2von,FH5<=Vertr2Bis),"X", IF(AND(FH5>=Vertr3Von,FH5<=Vertr3bis),"X", IF(AND(FH5>=Vertr4von,FH5<=Vertr4bis),"X", IF(AND(FH5>=Vertr5von,FH5<=Vertr5bis),"X", IF(AND(FH5>=Vertr6von,FH5<=Vertr6bis),"X", ".")))))),"") -> . | FK5: =IF(AND(FJ$3="x",LEFT(FI5,1)="B", OR(AND(AKTIVB1="x",FI5="B1"), AND(AKTIVB2="x",FI5="B2"), AND(AKTIVB3="x",FI5="B3"), AND(AKTIVB4="x",FI5="B4"), AND(AKTIVB5="x",FI5="B5"), AND(AKTIVB6="x",FI5="B6"), AND(AKTIVB7="x",FI5="B7"), )), IF(AND(FH5>=Vertr1Von,FH5<=Vertr1Bis),FI5&Vertrag1Gage, IF(AND(FH5>=Vertr2von,FH5<=Vertr2Bis),FI5&Vertrag2Gage, IF(AND(FH5>=Vertr3Von,FH5<=Vertr3bis),FI5&Vertrag3Gage, IF(AND(FH5>=Vertr4von,FH5<=Vertr4bis),FI5&Vertrag4Gage, IF(AND(FH5>=Vertr5von,FH5<=Vertr5bis),FI5&Vertrag5Gage, IF(AND(FH5>=Vertr6von,FH5<=Vertr6bis),FI5&Vertrag6Gage, "-")))))),"") ->  | FO5: =IF(AND(FJ$3="x",LEFT(FI5,1)="F",ISTEXT(VLOOKUP(FH5,Blocktage,5,FALSE))), IF(AND(FH5>=Vertr1Von,FH5<=Vertr1Bis),VLOOKUP(FH5,Blocktage,5,FALSE)&Vertrag1Gage, IF(AND(FH5>=Vertr2von,FH5<=Vertr2Bis),VLOOKUP(FH5,Blocktage,5,FALSE)&Vertrag2Gage, IF(AND(FH5>=Vertr3Von,FH5<=Vertr3bis),VLOOKUP(FH5,Blocktage,5,FALSE)&Vertrag3Gage,"-"))),"") ->  | FS5: =IF(ISNUMBER(FT5),CHOOSE(WEEKDAY(FT5,2),"Mo","Di","Mi","Do","Fr","Sa","So"),"") -> Fr | FT5: =DATE(YEAR(FH5),MONTH(FH5)+1,1) -> 2026-05-01 | FU5: =IF(OR(NOT(ISNUMBER(FT5)),ISERROR(VLOOKUP(FT5,Blocktage,6,FALSE))),"", IF(VLOOKUP(FT5,Blocktage,3,FALSE)="F","F", IF(VLOOKUP(FT5,Blocktage,6,FALSE)<>0,VLOOKUP(FT5,Blocktage,6,FALSE),""))) ->  | FV5: =IF(AND(ISNUMBER(FT5),GD5<>"AZV",FV$3="x",COUNTIFS(FW5:GD5,"B*")=0,FS5<>"Sa",FS5<>"So"), IF(AND(FT5>=Vertr1Von,FT5<=Vertr1Bis),"X", IF(AND(FT5>=Vertr2von,FT5<=Vertr2Bis),"X", IF(AND(FT5>=Vertr3Von,FT5<=Vertr3bis),"X", IF(AND(FT5>=Vertr4von,FT5<=Vertr4bis),"X", IF(AND(FT5>=Vertr5von,FT5<=Vertr5bis),"X", IF(AND(FT5>=Vertr6von,FT5<=Vertr6bis),"X", ".")))))),"") -> . | FW5: =IF(AND(FV$3="x",LEFT(FU5,1)="B", OR(AND(AKTIVB1="x",FU5="B1"), AND(AKTIVB2="x",FU5="B2"), AND(AKTIVB3="x",FU5="B3"), AND(AKTIVB4="x",FU5="B4"), AND(AKTIVB5="x",FU5="B5"), AND(AKTIVB6="x",FU5="B6"), AND(AKTIVB7="x",FU5="B7"), )), IF(AND(FT5>=Vertr1Von,FT5<=Vertr1Bis),FU5&Vertrag1Gage, IF(AND(FT5>=Vertr2von,FT5<=Vertr2Bis),FU5&Vertrag2Gage, IF(AND(FT5>=Vertr3Von,FT5<=Vertr3bis),FU5&Vertrag3Gage, IF(AND(FT5>=Vertr4von,FT5<=Vertr4bis),FU5&Vertrag4Gage, IF(AND(FT5>=Vertr5von,FT5<=Vertr5bis),FU5&Vertrag5Gage, IF(AND(FT5>=Vertr6von,FT5<=Vertr6bis),FU5&Vertrag6Gage, "-")))))),"") ->  | GA5: =IF(AND(FV$3="x",LEFT(FU5,1)="F",ISTEXT(VLOOKUP(FT5,Blocktage,5,FALSE))), IF(AND(FT5>=Vertr1Von,FT5<=Vertr1Bis),VLOOKUP(FT5,Blocktage,5,FALSE)&Vertrag1Gage, IF(AND(FT5>=Vertr2von,FT5<=Vertr2Bis),VLOOKUP(FT5,Blocktage,5,FALSE)&Vertrag2Gage, IF(AND(FT5>=Vertr3Von,FT5<=Vertr3bis),VLOOKUP(FT5,Blocktage,5,FALSE)&Vertrag3Gage,"-"))),"") -> 
B6: Notizen und Hinweise | Q6: =IF(ISNUMBER(R6),CHOOSE(WEEKDAY(R6,2),"Mo","Di","Mi","Do","Fr","Sa","So"),"") -> Mi | R6: =IF(NOT(ISNUMBER(R5)),"",IF(MONTH(R5+1)=MONTH(R$5),R5+1,"")) -> 2025-04-02 | T6: . | U6: =IF(AND(T$3="x",LEFT(S6,1)="B", OR(AND(AKTIVB1="x",S6="B1"), AND(AKTIVB2="x",S6="B2"), AND(AKTIVB3="x",S6="B3"), AND(AKTIVB4="x",S6="B4"), AND(AKTIVB5="x",S6="B5"), AND(AKTIVB6="x",S6="B6"), AND(AKTIVB7="x",S6="B7"), )), IF(AND(R6>=Vertr1Von,R6<=Vertr1Bis),S6&Vertrag1Gage, IF(AND(R6>=Vertr2von,R6<=Vertr2Bis),S6&Vertrag2Gage, IF(AND(R6>=Vertr3Von,R6<=Vertr3bis),S6&Vertrag3Gage, IF(AND(R6>=Vertr4von,R6<=Vertr4bis),S6&Vertrag4Gage, IF(AND(R6>=Vertr5von,R6<=Vertr5bis),S6&Vertrag5Gage, IF(AND(R6>=Vertr6von,R6<=Vertr6bis),S6&Vertrag6Gage, "-")))))),"") ->  | AD6: =IF(ISNUMBER(AE6),CHOOSE(WEEKDAY(AE6,2),"Mo","Di","Mi","Do","Fr","Sa","So"),"") -> Fr | AE6: =IF(NOT(ISNUMBER(AE5)),"",IF(MONTH(AE5+1)=MONTH(AE$5),AE5+1,"")) -> 2025-05-02 | AG6: . | AH6: =IF(AND(AG$3="x",LEFT(AF6,1)="B", OR(AND(AKTIVB1="x",AF6="B1"), AND(AKTIVB2="x",AF6="B2"), AND(AKTIVB3="x",AF6="B3"), AND(AKTIVB4="x",AF6="B4"), AND(AKTIVB5="x",AF6="B5"), AND(AKTIVB6="x",AF6="B6"), AND(AKTIVB7="x",AF6="B7"), )), IF(AND(AE6>=Vertr1Von,AE6<=Vertr1Bis),AF6&Vertrag1Gage, IF(AND(AE6>=Vertr2von,AE6<=Vertr2Bis),AF6&Vertrag2Gage, IF(AND(AE6>=Vertr3Von,AE6<=Vertr3bis),AF6&Vertrag3Gage, IF(AND(AE6>=Vertr4von,AE6<=Vertr4bis),AF6&Vertrag4Gage, IF(AND(AE6>=Vertr5von,AE6<=Vertr5bis),AF6&Vertrag5Gage, IF(AND(AE6>=Vertr6von,AE6<=Vertr6bis),AF6&Vertrag6Gage, "-")))))),"") ->  | AP6: =IF(ISNUMBER(AQ6),CHOOSE(WEEKDAY(AQ6,2),"Mo","Di","Mi","Do","Fr","Sa","So"),"") -> Mo | AQ6: =IF(NOT(ISNUMBER(AQ5)),"",IF(MONTH(AQ5+1)=MONTH(AQ$5),AQ5+1,"")) -> 2025-06-02 | AR6: B1 | AT6: =IF(AND(AS$3="x",LEFT(AR6,1)="B", OR(AND(AKTIVB1="x",AR6="B1"), AND(AKTIVB2="x",AR6="B2"), AND(AKTIVB3="x",AR6="B3"), AND(AKTIVB4="x",AR6="B4"), AND(AKTIVB5="x",AR6="B5"), AND(AKTIVB6="x",AR6="B6"), AND(AKTIVB7="x",AR6="B7"), )), IF(AND(AQ6>=Vertr1Von,AQ6<=Vertr1Bis),AR6&Vertrag1Gage, IF(AND(AQ6>=Vertr2von,AQ6<=Vertr2Bis),AR6&Vertrag2Gage, IF(AND(AQ6>=Vertr3Von,AQ6<=Vertr3bis),AR6&Vertrag3Gage, IF(AND(AQ6>=Vertr4von,AQ6<=Vertr4bis),AR6&Vertrag4Gage, IF(AND(AQ6>=Vertr5von,AQ6<=Vertr5bis),AR6&Vertrag5Gage, IF(AND(AQ6>=Vertr6von,AQ6<=Vertr6bis),AR6&Vertrag6Gage, "-")))))),"") -> B11 | BB6: =IF(ISNUMBER(BC6),CHOOSE(WEEKDAY(BC6,2),"Mo","Di","Mi","Do","Fr","Sa","So"),"") -> Mi | BC6: =IF(NOT(ISNUMBER(BC5)),"",IF(MONTH(BC5+1)=MONTH(BC$5),BC5+1,"")) -> 2025-07-02 | BE6: . | BF6: =IF(AND(BE$3="x",LEFT(BD6,1)="B", OR(AND(AKTIVB1="x",BD6="B1"), AND(AKTIVB2="x",BD6="B2"), AND(AKTIVB3="x",BD6="B3"), AND(AKTIVB4="x",BD6="B4"), AND(AKTIVB5="x",BD6="B5"), AND(AKTIVB6="x",BD6="B6"), AND(AKTIVB7="x",BD6="B7"), )), IF(AND(BC6>=Vertr1Von,BC6<=Vertr1Bis),BD6&Vertrag1Gage, IF(AND(BC6>=Vertr2von,BC6<=Vertr2Bis),BD6&Vertrag2Gage, IF(AND(BC6>=Vertr3Von,BC6<=Vertr3bis),BD6&Vertrag3Gage, IF(AND(BC6>=Vertr4von,BC6<=Vertr4bis),BD6&Vertrag4Gage, IF(AND(BC6>=Vertr5von,BC6<=Vertr5bis),BD6&Vertrag5Gage, IF(AND(BC6>=Vertr6von,BC6<=Vertr6bis),BD6&Vertrag6Gage, "-")))))),"") ->  | BG6: hier wird ZK | BM6: 1 | BN6: =IF(ISNUMBER(BO6),CHOOSE(WEEKDAY(BO6,2),"Mo","Di","Mi","Do","Fr","Sa","So"),"") -> Sa | BO6: =IF(NOT(ISNUMBER(BO5)),"",IF(MONTH(BO5+1)=MONTH(BO$5),BO5+1,"")) -> 2025-08-02 | BR6: =IF(AND(BQ$3="x",LEFT(BP6,1)="B", OR(AND(AKTIVB1="x",BP6="B1"), AND(AKTIVB2="x",BP6="B2"), AND(AKTIVB3="x",BP6="B3"), AND(AKTIVB4="x",BP6="B4"), AND(AKTIVB5="x",BP6="B5"), AND(AKTIVB6="x",BP6="B6"), AND(AKTIVB7="x",BP6="B7"), )), IF(AND(BO6>=Vertr1Von,BO6<=Vertr1Bis),BP6&Vertrag1Gage, IF(AND(BO6>=Vertr2von,BO6<=Vertr2Bis),BP6&Vertrag2Gage, IF(AND(BO6>=Vertr3Von,BO6<=Vertr3bis),BP6&Vertrag3Gage, IF(AND(BO6>=Vertr4von,BO6<=Vertr4bis),BP6&Vertrag4Gage, IF(AND(BO6>=Vertr5von,BO6<=Vertr5bis),BP6&Vertrag5Gage, IF(AND(BO6>=Vertr6von,BO6<=Vertr6bis),BP6&Vertrag6Gage, "-")))))),"") ->  | BZ6: =IF(ISNUMBER(CA6),CHOOSE(WEEKDAY(CA6,2),"Mo","Di","Mi","Do","Fr","Sa","So"),"") -> Di | CA6: =IF(NOT(ISNUMBER(CA5)),"",IF(MONTH(CA5+1)=MONTH(CA$5),CA5+1,"")) -> 2025-09-02 | CC6: . | CD6: =IF(AND(CC$3="x",LEFT(CB6,1)="B", OR(AND(AKTIVB1="x",CB6="B1"), AND(AKTIVB2="x",CB6="B2"), AND(AKTIVB3="x",CB6="B3"), AND(AKTIVB4="x",CB6="B4"), AND(AKTIVB5="x",CB6="B5"), AND(AKTIVB6="x",CB6="B6"), AND(AKTIVB7="x",CB6="B7"), )), IF(AND(CA6>=Vertr1Von,CA6<=Vertr1Bis),CB6&Vertrag1Gage, IF(AND(CA6>=Vertr2von,CA6<=Vertr2Bis),CB6&Vertrag2Gage, IF(AND(CA6>=Vertr3Von,CA6<=Vertr3bis),CB6&Vertrag3Gage, IF(AND(CA6>=Vertr4von,CA6<=Vertr4bis),CB6&Vertrag4Gage, IF(AND(CA6>=Vertr5von,CA6<=Vertr5bis),CB6&Vertrag5Gage, IF(AND(CA6>=Vertr6von,CA6<=Vertr6bis),CB6&Vertrag6Gage, "-")))))),"") ->  | CL6: =IF(ISNUMBER(CM6),CHOOSE(WEEKDAY(CM6,2),"Mo","Di","Mi","Do","Fr","Sa","So"),"") -> Do | CM6: =IF(NOT(ISNUMBER(CM5)),"",IF(MONTH(CM5+1)=MONTH(CM$5),CM5+1,"")) -> 2025-10-02 | CO6: . | CP6: =IF(AND(CO$3="x",LEFT(CN6,1)="B", OR(AND(AKTIVB1="x",CN6="B1"), AND(AKTIVB2="x",CN6="B2"), AND(AKTIVB3="x",CN6="B3"), AND(AKTIVB4="x",CN6="B4"), AND(AKTIVB5="x",CN6="B5"), AND(AKTIVB6="x",CN6="B6"), AND(AKTIVB7="x",CN6="B7"), )), IF(AND(CM6>=Vertr1Von,CM6<=Vertr1Bis),CN6&Vertrag1Gage, IF(AND(CM6>=Vertr2von,CM6<=Vertr2Bis),CN6&Vertrag2Gage, IF(AND(CM6>=Vertr3Von,CM6<=Vertr3bis),CN6&Vertrag3Gage, IF(AND(CM6>=Vertr4von,CM6<=Vertr4bis),CN6&Vertrag4Gage, IF(AND(CM6>=Vertr5von,CM6<=Vertr5bis),CN6&Vertrag5Gage, IF(AND(CM6>=Vertr6von,CM6<=Vertr6bis),CN6&Vertrag6Gage, "-")))))),"") ->  | CY6: =IF(ISNUMBER(CZ6),CHOOSE(WEEKDAY(CZ6,2),"Mo","Di","Mi","Do","Fr","Sa","So"),"") -> So | CZ6: =IF(NOT(ISNUMBER(CZ5)),"",IF(MONTH(CZ5+1)=MONTH(CZ$5),CZ5+1,"")) -> 2025-11-02 | DC6: =IF(AND(DB$3="x",LEFT(DA6,1)="B", OR(AND(AKTIVB1="x",DA6="B1"), AND(AKTIVB2="x",DA6="B2"), AND(AKTIVB3="x",DA6="B3"), AND(AKTIVB4="x",DA6="B4"), AND(AKTIVB5="x",DA6="B5"), AND(AKTIVB6="x",DA6="B6"), AND(AKTIVB7="x",DA6="B7"), )), IF(AND(CZ6>=Vertr1Von,CZ6<=Vertr1Bis),DA6&Vertrag1Gage, IF(AND(CZ6>=Vertr2von,CZ6<=Vertr2Bis),DA6&Vertrag2Gage, IF(AND(CZ6>=Vertr3Von,CZ6<=Vertr3bis),DA6&Vertrag3Gage, IF(AND(CZ6>=Vertr4von,CZ6<=Vertr4bis),DA6&Vertrag4Gage, IF(AND(CZ6>=Vertr5von,CZ6<=Vertr5bis),DA6&Vertrag5Gage, IF(AND(CZ6>=Vertr6von,CZ6<=Vertr6bis),DA6&Vertrag6Gage, "-")))))),"") ->  | DK6: =IF(ISNUMBER(DL6),CHOOSE(WEEKDAY(DL6,2),"Mo","Di","Mi","Do","Fr","Sa","So"),"") -> Di | DL6: =IF(NOT(ISNUMBER(DL5)),"",IF(MONTH(DL5+1)=MONTH(DL$5),DL5+1,"")) -> 2025-12-02 | DN6: . | DO6: =IF(AND(DN$3="x",LEFT(DM6,1)="B", OR(AND(AKTIVB1="x",DM6="B1"), AND(AKTIVB2="x",DM6="B2"), AND(AKTIVB3="x",DM6="B3"), AND(AKTIVB4="x",DM6="B4"), AND(AKTIVB5="x",DM6="B5"), AND(AKTIVB6="x",DM6="B6"), AND(AKTIVB7="x",DM6="B7"), )), IF(AND(DL6>=Vertr1Von,DL6<=Vertr1Bis),DM6&Vertrag1Gage, IF(AND(DL6>=Vertr2von,DL6<=Vertr2Bis),DM6&Vertrag2Gage, IF(AND(DL6>=Vertr3Von,DL6<=Vertr3bis),DM6&Vertrag3Gage, IF(AND(DL6>=Vertr4von,DL6<=Vertr4bis),DM6&Vertrag4Gage, IF(AND(DL6>=Vertr5von,DL6<=Vertr5bis),DM6&Vertrag5Gage, IF(AND(DL6>=Vertr6von,DL6<=Vertr6bis),DM6&Vertrag6Gage, "-")))))),"") ->  | DW6: =IF(ISNUMBER(DX6),CHOOSE(WEEKDAY(DX6,2),"Mo","Di","Mi","Do","Fr","Sa","So"),"") -> Fr | DX6: =IF(NOT(ISNUMBER(DX5)),"",IF(MONTH(DX5+1)=MONTH(DX$5),DX5+1,"")) -> 2026-01-02 | DZ6: . | EA6: =IF(AND(DZ$3="x",LEFT(DY6,1)="B", OR(AND(AKTIVB1="x",DY6="B1"), AND(AKTIVB2="x",DY6="B2"), AND(AKTIVB3="x",DY6="B3"), AND(AKTIVB4="x",DY6="B4"), AND(AKTIVB5="x",DY6="B5"), AND(AKTIVB6="x",DY6="B6"), AND(AKTIVB7="x",DY6="B7"), )), IF(AND(DX6>=Vertr1Von,DX6<=Vertr1Bis),DY6&Vertrag1Gage, IF(AND(DX6>=Vertr2von,DX6<=Vertr2Bis),DY6&Vertrag2Gage, IF(AND(DX6>=Vertr3Von,DX6<=Vertr3bis),DY6&Vertrag3Gage, IF(AND(DX6>=Vertr4von,DX6<=Vertr4bis),DY6&Vertrag4Gage, IF(AND(DX6>=Vertr5von,DX6<=Vertr5bis),DY6&Vertrag5Gage, IF(AND(DX6>=Vertr6von,DX6<=Vertr6bis),DY6&Vertrag6Gage, "-")))))),"") ->  | EI6: =IF(ISNUMBER(EJ6),CHOOSE(WEEKDAY(EJ6,2),"Mo","Di","Mi","Do","Fr","Sa","So"),"") -> Mo | EJ6: =IF(NOT(ISNUMBER(EJ5)),"",IF(MONTH(EJ5+1)=MONTH(EJ$5),EJ5+1,"")) -> 2026-02-02 | EL6: . | EM6: =IF(AND(EL$3="x",LEFT(EK6,1)="B", OR(AND(AKTIVB1="x",EK6="B1"), AND(AKTIVB2="x",EK6="B2"), AND(AKTIVB3="x",EK6="B3"), AND(AKTIVB4="x",EK6="B4"), AND(AKTIVB5="x",EK6="B5"), AND(AKTIVB6="x",EK6="B6"), AND(AKTIVB7="x",EK6="B7"), )), IF(AND(EJ6>=Vertr1Von,EJ6<=Vertr1Bis),EK6&Vertrag1Gage, IF(AND(EJ6>=Vertr2von,EJ6<=Vertr2Bis),EK6&Vertrag2Gage, IF(AND(EJ6>=Vertr3Von,EJ6<=Vertr3bis),EK6&Vertrag3Gage, IF(AND(EJ6>=Vertr4von,EJ6<=Vertr4bis),EK6&Vertrag4Gage, IF(AND(EJ6>=Vertr5von,EJ6<=Vertr5bis),EK6&Vertrag5Gage, IF(AND(EJ6>=Vertr6von,EJ6<=Vertr6bis),EK6&Vertrag6Gage, "-")))))),"") ->  | EU6: =IF(ISNUMBER(EV6),CHOOSE(WEEKDAY(EV6,2),"Mo","Di","Mi","Do","Fr","Sa","So"),"") -> Mo | EV6: =IF(NOT(ISNUMBER(EV5)),"",IF(MONTH(EV5+1)=MONTH(EV$5),EV5+1,"")) -> 2026-03-02 | EX6: . | EY6: =IF(AND(EX$3="x",LEFT(EW6,1)="B", OR(AND(AKTIVB1="x",EW6="B1"), AND(AKTIVB2="x",EW6="B2"), AND(AKTIVB3="x",EW6="B3"), AND(AKTIVB4="x",EW6="B4"), AND(AKTIVB5="x",EW6="B5"), AND(AKTIVB6="x",EW6="B6"), AND(AKTIVB7="x",EW6="B7"), )), IF(AND(EV6>=Vertr1Von,EV6<=Vertr1Bis),EW6&Vertrag1Gage, IF(AND(EV6>=Vertr2von,EV6<=Vertr2Bis),EW6&Vertrag2Gage, IF(AND(EV6>=Vertr3Von,EV6<=Vertr3bis),EW6&Vertrag3Gage, IF(AND(EV6>=Vertr4von,EV6<=Vertr4bis),EW6&Vertrag4Gage, IF(AND(EV6>=Vertr5von,EV6<=Vertr5bis),EW6&Vertrag5Gage, IF(AND(EV6>=Vertr6von,EV6<=Vertr6bis),EW6&Vertrag6Gage, "-")))))),"") ->  | FG6: =IF(ISNUMBER(FH6),CHOOSE(WEEKDAY(FH6,2),"Mo","Di","Mi","Do","Fr","Sa","So"),"") -> Do | FH6: =IF(NOT(ISNUMBER(FH5)),"",IF(MONTH(FH5+1)=MONTH(FH$5),FH5+1,"")) -> 2026-04-02 | FJ6: . | FK6: =IF(AND(FJ$3="x",LEFT(FI6,1)="B", OR(AND(AKTIVB1="x",FI6="B1"), AND(AKTIVB2="x",FI6="B2"), AND(AKTIVB3="x",FI6="B3"), AND(AKTIVB4="x",FI6="B4"), AND(AKTIVB5="x",FI6="B5"), AND(AKTIVB6="x",FI6="B6"), AND(AKTIVB7="x",FI6="B7"), )), IF(AND(FH6>=Vertr1Von,FH6<=Vertr1Bis),FI6&Vertrag1Gage, IF(AND(FH6>=Vertr2von,FH6<=Vertr2Bis),FI6&Vertrag2Gage, IF(AND(FH6>=Vertr3Von,FH6<=Vertr3bis),FI6&Vertrag3Gage, IF(AND(FH6>=Vertr4von,FH6<=Vertr4bis),FI6&Vertrag4Gage, IF(AND(FH6>=Vertr5von,FH6<=Vertr5bis),FI6&Vertrag5Gage, IF(AND(FH6>=Vertr6von,FH6<=Vertr6bis),FI6&Vertrag6Gage, "-")))))),"") ->  | FS6: =IF(ISNUMBER(FT6),CHOOSE(WEEKDAY(FT6,2),"Mo","Di","Mi","Do","Fr","Sa","So"),"") -> Sa | FT6: =IF(NOT(ISNUMBER(FT5)),"",IF(MONTH(FT5+1)=MONTH(FT$5),FT5+1,"")) -> 2026-05-02 | FW6: =IF(AND(FV$3="x",LEFT(FU6,1)="B", OR(AND(AKTIVB1="x",FU6="B1"), AND(AKTIVB2="x",FU6="B2"), AND(AKTIVB3="x",FU6="B3"), AND(AKTIVB4="x",FU6="B4"), AND(AKTIVB5="x",FU6="B5"), AND(AKTIVB6="x",FU6="B6"), AND(AKTIVB7="x",FU6="B7"), )), IF(AND(FT6>=Vertr1Von,FT6<=Vertr1Bis),FU6&Vertrag1Gage, IF(AND(FT6>=Vertr2von,FT6<=Vertr2Bis),FU6&Vertrag2Gage, IF(AND(FT6>=Vertr3Von,FT6<=Vertr3bis),FU6&Vertrag3Gage, IF(AND(FT6>=Vertr4von,FT6<=Vertr4bis),FU6&Vertrag4Gage, IF(AND(FT6>=Vertr5von,FT6<=Vertr5bis),FU6&Vertrag5Gage, IF(AND(FT6>=Vertr6von,FT6<=Vertr6bis),FU6&Vertrag6Gage, "-")))))),"") -> 
E7: Beispiel mit ZK 80:20 (Ausnahme) | Q7: Do | R7: 2025-04-03 | T7: . | U7: =IF(AND(T$3="x",LEFT(S7,1)="B", OR(AND(AKTIVB1="x",S7="B1"), AND(AKTIVB2="x",S7="B2"), AND(AKTIVB3="x",S7="B3"), AND(AKTIVB4="x",S7="B4"), AND(AKTIVB5="x",S7="B5"), AND(AKTIVB6="x",S7="B6"), AND(AKTIVB7="x",S7="B7"), )), IF(AND(R7>=Vertr1Von,R7<=Vertr1Bis),S7&Vertrag1Gage, IF(AND(R7>=Vertr2von,R7<=Vertr2Bis),S7&Vertrag2Gage, IF(AND(R7>=Vertr3Von,R7<=Vertr3bis),S7&Vertrag3Gage, IF(AND(R7>=Vertr4von,R7<=Vertr4bis),S7&Vertrag4Gage, IF(AND(R7>=Vertr5von,R7<=Vertr5bis),S7&Vertrag5Gage, IF(AND(R7>=Vertr6von,R7<=Vertr6bis),S7&Vertrag6Gage, "-")))))),"") ->  | AD7: Sa | AE7: 2025-05-03 | AH7: =IF(AND(AG$3="x",LEFT(AF7,1)="B", OR(AND(AKTIVB1="x",AF7="B1"), AND(AKTIVB2="x",AF7="B2"), AND(AKTIVB3="x",AF7="B3"), AND(AKTIVB4="x",AF7="B4"), AND(AKTIVB5="x",AF7="B5"), AND(AKTIVB6="x",AF7="B6"), AND(AKTIVB7="x",AF7="B7"), )), IF(AND(AE7>=Vertr1Von,AE7<=Vertr1Bis),AF7&Vertrag1Gage, IF(AND(AE7>=Vertr2von,AE7<=Vertr2Bis),AF7&Vertrag2Gage, IF(AND(AE7>=Vertr3Von,AE7<=Vertr3bis),AF7&Vertrag3Gage, IF(AND(AE7>=Vertr4von,AE7<=Vertr4bis),AF7&Vertrag4Gage, IF(AND(AE7>=Vertr5von,AE7<=Vertr5bis),AF7&Vertrag5Gage, IF(AND(AE7>=Vertr6von,AE7<=Vertr6bis),AF7&Vertrag6Gage, "-")))))),"") ->  | AP7: Di | AQ7: 2025-06-03 | AR7: B1 | AT7: =IF(AND(AS$3="x",LEFT(AR7,1)="B", OR(AND(AKTIVB1="x",AR7="B1"), AND(AKTIVB2="x",AR7="B2"), AND(AKTIVB3="x",AR7="B3"), AND(AKTIVB4="x",AR7="B4"), AND(AKTIVB5="x",AR7="B5"), AND(AKTIVB6="x",AR7="B6"), AND(AKTIVB7="x",AR7="B7"), )), IF(AND(AQ7>=Vertr1Von,AQ7<=Vertr1Bis),AR7&Vertrag1Gage, IF(AND(AQ7>=Vertr2von,AQ7<=Vertr2Bis),AR7&Vertrag2Gage, IF(AND(AQ7>=Vertr3Von,AQ7<=Vertr3bis),AR7&Vertrag3Gage, IF(AND(AQ7>=Vertr4von,AQ7<=Vertr4bis),AR7&Vertrag4Gage, IF(AND(AQ7>=Vertr5von,AQ7<=Vertr5bis),AR7&Vertrag5Gage, IF(AND(AQ7>=Vertr6von,AQ7<=Vertr6bis),AR7&Vertrag6Gage, "-")))))),"") -> B11 | BB7: Do | BC7: 2025-07-03 | BE7: . | BF7: =IF(AND(BE$3="x",LEFT(BD7,1)="B", OR(AND(AKTIVB1="x",BD7="B1"), AND(AKTIVB2="x",BD7="B2"), AND(AKTIVB3="x",BD7="B3"), AND(AKTIVB4="x",BD7="B4"), AND(AKTIVB5="x",BD7="B5"), AND(AKTIVB6="x",BD7="B6"), AND(AKTIVB7="x",BD7="B7"), )), IF(AND(BC7>=Vertr1Von,BC7<=Vertr1Bis),BD7&Vertrag1Gage, IF(AND(BC7>=Vertr2von,BC7<=Vertr2Bis),BD7&Vertrag2Gage, IF(AND(BC7>=Vertr3Von,BC7<=Vertr3bis),BD7&Vertrag3Gage, IF(AND(BC7>=Vertr4von,BC7<=Vertr4bis),BD7&Vertrag4Gage, IF(AND(BC7>=Vertr5von,BC7<=Vertr5bis),BD7&Vertrag5Gage, IF(AND(BC7>=Vertr6von,BC7<=Vertr6bis),BD7&Vertrag6Gage, "-")))))),"") ->  | BG7: ZK 80:20 | BM7: 1 | BN7: So | BO7: 2025-08-03 | BR7: =IF(AND(BQ$3="x",LEFT(BP7,1)="B", OR(AND(AKTIVB1="x",BP7="B1"), AND(AKTIVB2="x",BP7="B2"), AND(AKTIVB3="x",BP7="B3"), AND(AKTIVB4="x",BP7="B4"), AND(AKTIVB5="x",BP7="B5"), AND(AKTIVB6="x",BP7="B6"), AND(AKTIVB7="x",BP7="B7"), )), IF(AND(BO7>=Vertr1Von,BO7<=Vertr1Bis),BP7&Vertrag1Gage, IF(AND(BO7>=Vertr2von,BO7<=Vertr2Bis),BP7&Vertrag2Gage, IF(AND(BO7>=Vertr3Von,BO7<=Vertr3bis),BP7&Vertrag3Gage, IF(AND(BO7>=Vertr4von,BO7<=Vertr4bis),BP7&Vertrag4Gage, IF(AND(BO7>=Vertr5von,BO7<=Vertr5bis),BP7&Vertrag5Gage, IF(AND(BO7>=Vertr6von,BO7<=Vertr6bis),BP7&Vertrag6Gage, "-")))))),"") ->  | BZ7: Mi | CA7: 2025-09-03 | CC7: . | CD7: =IF(AND(CC$3="x",LEFT(CB7,1)="B", OR(AND(AKTIVB1="x",CB7="B1"), AND(AKTIVB2="x",CB7="B2"), AND(AKTIVB3="x",CB7="B3"), AND(AKTIVB4="x",CB7="B4"), AND(AKTIVB5="x",CB7="B5"), AND(AKTIVB6="x",CB7="B6"), AND(AKTIVB7="x",CB7="B7"), )), IF(AND(CA7>=Vertr1Von,CA7<=Vertr1Bis),CB7&Vertrag1Gage, IF(AND(CA7>=Vertr2von,CA7<=Vertr2Bis),CB7&Vertrag2Gage, IF(AND(CA7>=Vertr3Von,CA7<=Vertr3bis),CB7&Vertrag3Gage, IF(AND(CA7>=Vertr4von,CA7<=Vertr4bis),CB7&Vertrag4Gage, IF(AND(CA7>=Vertr5von,CA7<=Vertr5bis),CB7&Vertrag5Gage, IF(AND(CA7>=Vertr6von,CA7<=Vertr6bis),CB7&Vertrag6Gage, "-")))))),"") ->  | CL7: Fr | CM7: 2025-10-03 | CN7: F | CO7: . | CP7: =IF(AND(CO$3="x",LEFT(CN7,1)="B", OR(AND(AKTIVB1="x",CN7="B1"), AND(AKTIVB2="x",CN7="B2"), AND(AKTIVB3="x",CN7="B3"), AND(AKTIVB4="x",CN7="B4"), AND(AKTIVB5="x",CN7="B5"), AND(AKTIVB6="x",CN7="B6"), AND(AKTIVB7="x",CN7="B7"), )), IF(AND(CM7>=Vertr1Von,CM7<=Vertr1Bis),CN7&Vertrag1Gage, IF(AND(CM7>=Vertr2von,CM7<=Vertr2Bis),CN7&Vertrag2Gage, IF(AND(CM7>=Vertr3Von,CM7<=Vertr3bis),CN7&Vertrag3Gage, IF(AND(CM7>=Vertr4von,CM7<=Vertr4bis),CN7&Vertrag4Gage, IF(AND(CM7>=Vertr5von,CM7<=Vertr5bis),CN7&Vertrag5Gage, IF(AND(CM7>=Vertr6von,CM7<=Vertr6bis),CN7&Vertrag6Gage, "-")))))),"") ->  | CY7: Mo | CZ7: 2025-11-03 | DB7: . | DC7: =IF(AND(DB$3="x",LEFT(DA7,1)="B", OR(AND(AKTIVB1="x",DA7="B1"), AND(AKTIVB2="x",DA7="B2"), AND(AKTIVB3="x",DA7="B3"), AND(AKTIVB4="x",DA7="B4"), AND(AKTIVB5="x",DA7="B5"), AND(AKTIVB6="x",DA7="B6"), AND(AKTIVB7="x",DA7="B7"), )), IF(AND(CZ7>=Vertr1Von,CZ7<=Vertr1Bis),DA7&Vertrag1Gage, IF(AND(CZ7>=Vertr2von,CZ7<=Vertr2Bis),DA7&Vertrag2Gage, IF(AND(CZ7>=Vertr3Von,CZ7<=Vertr3bis),DA7&Vertrag3Gage, IF(AND(CZ7>=Vertr4von,CZ7<=Vertr4bis),DA7&Vertrag4Gage, IF(AND(CZ7>=Vertr5von,CZ7<=Vertr5bis),DA7&Vertrag5Gage, IF(AND(CZ7>=Vertr6von,CZ7<=Vertr6bis),DA7&Vertrag6Gage, "-")))))),"") ->  | DK7: Mi | DL7: 2025-12-03 | DN7: . | DO7: =IF(AND(DN$3="x",LEFT(DM7,1)="B", OR(AND(AKTIVB1="x",DM7="B1"), AND(AKTIVB2="x",DM7="B2"), AND(AKTIVB3="x",DM7="B3"), AND(AKTIVB4="x",DM7="B4"), AND(AKTIVB5="x",DM7="B5"), AND(AKTIVB6="x",DM7="B6"), AND(AKTIVB7="x",DM7="B7"), )), IF(AND(DL7>=Vertr1Von,DL7<=Vertr1Bis),DM7&Vertrag1Gage, IF(AND(DL7>=Vertr2von,DL7<=Vertr2Bis),DM7&Vertrag2Gage, IF(AND(DL7>=Vertr3Von,DL7<=Vertr3bis),DM7&Vertrag3Gage, IF(AND(DL7>=Vertr4von,DL7<=Vertr4bis),DM7&Vertrag4Gage, IF(AND(DL7>=Vertr5von,DL7<=Vertr5bis),DM7&Vertrag5Gage, IF(AND(DL7>=Vertr6von,DL7<=Vertr6bis),DM7&Vertrag6Gage, "-")))))),"") ->  | DW7: Sa | DX7: 2026-01-03 | EA7: =IF(AND(DZ$3="x",LEFT(DY7,1)="B", OR(AND(AKTIVB1="x",DY7="B1"), AND(AKTIVB2="x",DY7="B2"), AND(AKTIVB3="x",DY7="B3"), AND(AKTIVB4="x",DY7="B4"), AND(AKTIVB5="x",DY7="B5"), AND(AKTIVB6="x",DY7="B6"), AND(AKTIVB7="x",DY7="B7"), )), IF(AND(DX7>=Vertr1Von,DX7<=Vertr1Bis),DY7&Vertrag1Gage, IF(AND(DX7>=Vertr2von,DX7<=Vertr2Bis),DY7&Vertrag2Gage, IF(AND(DX7>=Vertr3Von,DX7<=Vertr3bis),DY7&Vertrag3Gage, IF(AND(DX7>=Vertr4von,DX7<=Vertr4bis),DY7&Vertrag4Gage, IF(AND(DX7>=Vertr5von,DX7<=Vertr5bis),DY7&Vertrag5Gage, IF(AND(DX7>=Vertr6von,DX7<=Vertr6bis),DY7&Vertrag6Gage, "-")))))),"") ->  | EI7: Di | EJ7: 2026-02-03 | EL7: . | EM7: =IF(AND(EL$3="x",LEFT(EK7,1)="B", OR(AND(AKTIVB1="x",EK7="B1"), AND(AKTIVB2="x",EK7="B2"), AND(AKTIVB3="x",EK7="B3"), AND(AKTIVB4="x",EK7="B4"), AND(AKTIVB5="x",EK7="B5"), AND(AKTIVB6="x",EK7="B6"), AND(AKTIVB7="x",EK7="B7"), )), IF(AND(EJ7>=Vertr1Von,EJ7<=Vertr1Bis),EK7&Vertrag1Gage, IF(AND(EJ7>=Vertr2von,EJ7<=Vertr2Bis),EK7&Vertrag2Gage, IF(AND(EJ7>=Vertr3Von,EJ7<=Vertr3bis),EK7&Vertrag3Gage, IF(AND(EJ7>=Vertr4von,EJ7<=Vertr4bis),EK7&Vertrag4Gage, IF(AND(EJ7>=Vertr5von,EJ7<=Vertr5bis),EK7&Vertrag5Gage, IF(AND(EJ7>=Vertr6von,EJ7<=Vertr6bis),EK7&Vertrag6Gage, "-")))))),"") ->  | EU7: Di | EV7: 2026-03-03 | EX7: . | EY7: =IF(AND(EX$3="x",LEFT(EW7,1)="B", OR(AND(AKTIVB1="x",EW7="B1"), AND(AKTIVB2="x",EW7="B2"), AND(AKTIVB3="x",EW7="B3"), AND(AKTIVB4="x",EW7="B4"), AND(AKTIVB5="x",EW7="B5"), AND(AKTIVB6="x",EW7="B6"), AND(AKTIVB7="x",EW7="B7"), )), IF(AND(EV7>=Vertr1Von,EV7<=Vertr1Bis),EW7&Vertrag1Gage, IF(AND(EV7>=Vertr2von,EV7<=Vertr2Bis),EW7&Vertrag2Gage, IF(AND(EV7>=Vertr3Von,EV7<=Vertr3bis),EW7&Vertrag3Gage, IF(AND(EV7>=Vertr4von,EV7<=Vertr4bis),EW7&Vertrag4Gage, IF(AND(EV7>=Vertr5von,EV7<=Vertr5bis),EW7&Vertrag5Gage, IF(AND(EV7>=Vertr6von,EV7<=Vertr6bis),EW7&Vertrag6Gage, "-")))))),"") ->  | FG7: Fr | FH7: 2026-04-03 | FJ7: . | FK7: =IF(AND(FJ$3="x",LEFT(FI7,1)="B", OR(AND(AKTIVB1="x",FI7="B1"), AND(AKTIVB2="x",FI7="B2"), AND(AKTIVB3="x",FI7="B3"), AND(AKTIVB4="x",FI7="B4"), AND(AKTIVB5="x",FI7="B5"), AND(AKTIVB6="x",FI7="B6"), AND(AKTIVB7="x",FI7="B7"), )), IF(AND(FH7>=Vertr1Von,FH7<=Vertr1Bis),FI7&Vertrag1Gage, IF(AND(FH7>=Vertr2von,FH7<=Vertr2Bis),FI7&Vertrag2Gage, IF(AND(FH7>=Vertr3Von,FH7<=Vertr3bis),FI7&Vertrag3Gage, IF(AND(FH7>=Vertr4von,FH7<=Vertr4bis),FI7&Vertrag4Gage, IF(AND(FH7>=Vertr5von,FH7<=Vertr5bis),FI7&Vertrag5Gage, IF(AND(FH7>=Vertr6von,FH7<=Vertr6bis),FI7&Vertrag6Gage, "-")))))),"") ->  | FS7: So | FT7: 2026-05-03 | FW7: =IF(AND(FV$3="x",LEFT(FU7,1)="B", OR(AND(AKTIVB1="x",FU7="B1"), AND(AKTIVB2="x",FU7="B2"), AND(AKTIVB3="x",FU7="B3"), AND(AKTIVB4="x",FU7="B4"), AND(AKTIVB5="x",FU7="B5"), AND(AKTIVB6="x",FU7="B6"), AND(AKTIVB7="x",FU7="B7"), )), IF(AND(FT7>=Vertr1Von,FT7<=Vertr1Bis),FU7&Vertrag1Gage, IF(AND(FT7>=Vertr2von,FT7<=Vertr2Bis),FU7&Vertrag2Gage, IF(AND(FT7>=Vertr3Von,FT7<=Vertr3bis),FU7&Vertrag3Gage, IF(AND(FT7>=Vertr4von,FT7<=Vertr4bis),FU7&Vertrag4Gage, IF(AND(FT7>=Vertr5von,FT7<=Vertr5bis),FU7&Vertrag5Gage, IF(AND(FT7>=Vertr6von,FT7<=Vertr6bis),FU7&Vertrag6Gage, "-")))))),"") -> 
B8: Eingaben (ZK 80:20) hierzu siehe links unten | Q8: Fr | R8: 2025-04-04 | T8: . | U8: =IF(AND(T$3="x",LEFT(S8,1)="B", OR(AND(AKTIVB1="x",S8="B1"), AND(AKTIVB2="x",S8="B2"), AND(AKTIVB3="x",S8="B3"), AND(AKTIVB4="x",S8="B4"), AND(AKTIVB5="x",S8="B5"), AND(AKTIVB6="x",S8="B6"), AND(AKTIVB7="x",S8="B7"), )), IF(AND(R8>=Vertr1Von,R8<=Vertr1Bis),S8&Vertrag1Gage, IF(AND(R8>=Vertr2von,R8<=Vertr2Bis),S8&Vertrag2Gage, IF(AND(R8>=Vertr3Von,R8<=Vertr3bis),S8&Vertrag3Gage, IF(AND(R8>=Vertr4von,R8<=Vertr4bis),S8&Vertrag4Gage, IF(AND(R8>=Vertr5von,R8<=Vertr5bis),S8&Vertrag5Gage, IF(AND(R8>=Vertr6von,R8<=Vertr6bis),S8&Vertrag6Gage, "-")))))),"") ->  | AD8: So | AE8: 2025-05-04 | AH8: =IF(AND(AG$3="x",LEFT(AF8,1)="B", OR(AND(AKTIVB1="x",AF8="B1"), AND(AKTIVB2="x",AF8="B2"), AND(AKTIVB3="x",AF8="B3"), AND(AKTIVB4="x",AF8="B4"), AND(AKTIVB5="x",AF8="B5"), AND(AKTIVB6="x",AF8="B6"), AND(AKTIVB7="x",AF8="B7"), )), IF(AND(AE8>=Vertr1Von,AE8<=Vertr1Bis),AF8&Vertrag1Gage, IF(AND(AE8>=Vertr2von,AE8<=Vertr2Bis),AF8&Vertrag2Gage, IF(AND(AE8>=Vertr3Von,AE8<=Vertr3bis),AF8&Vertrag3Gage, IF(AND(AE8>=Vertr4von,AE8<=Vertr4bis),AF8&Vertrag4Gage, IF(AND(AE8>=Vertr5von,AE8<=Vertr5bis),AF8&Vertrag5Gage, IF(AND(AE8>=Vertr6von,AE8<=Vertr6bis),AF8&Vertrag6Gage, "-")))))),"") ->  | AP8: Mi | AQ8: 2025-06-04 | AR8: B1 | AT8: =IF(AND(AS$3="x",LEFT(AR8,1)="B", OR(AND(AKTIVB1="x",AR8="B1"), AND(AKTIVB2="x",AR8="B2"), AND(AKTIVB3="x",AR8="B3"), AND(AKTIVB4="x",AR8="B4"), AND(AKTIVB5="x",AR8="B5"), AND(AKTIVB6="x",AR8="B6"), AND(AKTIVB7="x",AR8="B7"), )), IF(AND(AQ8>=Vertr1Von,AQ8<=Vertr1Bis),AR8&Vertrag1Gage, IF(AND(AQ8>=Vertr2von,AQ8<=Vertr2Bis),AR8&Vertrag2Gage, IF(AND(AQ8>=Vertr3Von,AQ8<=Vertr3bis),AR8&Vertrag3Gage, IF(AND(AQ8>=Vertr4von,AQ8<=Vertr4bis),AR8&Vertrag4Gage, IF(AND(AQ8>=Vertr5von,AQ8<=Vertr5bis),AR8&Vertrag5Gage, IF(AND(AQ8>=Vertr6von,AQ8<=Vertr6bis),AR8&Vertrag6Gage, "-")))))),"") -> B11 | BB8: Fr | BC8: 2025-07-04 | BE8: . | BF8: =IF(AND(BE$3="x",LEFT(BD8,1)="B", OR(AND(AKTIVB1="x",BD8="B1"), AND(AKTIVB2="x",BD8="B2"), AND(AKTIVB3="x",BD8="B3"), AND(AKTIVB4="x",BD8="B4"), AND(AKTIVB5="x",BD8="B5"), AND(AKTIVB6="x",BD8="B6"), AND(AKTIVB7="x",BD8="B7"), )), IF(AND(BC8>=Vertr1Von,BC8<=Vertr1Bis),BD8&Vertrag1Gage, IF(AND(BC8>=Vertr2von,BC8<=Vertr2Bis),BD8&Vertrag2Gage, IF(AND(BC8>=Vertr3Von,BC8<=Vertr3bis),BD8&Vertrag3Gage, IF(AND(BC8>=Vertr4von,BC8<=Vertr4bis),BD8&Vertrag4Gage, IF(AND(BC8>=Vertr5von,BC8<=Vertr5bis),BD8&Vertrag5Gage, IF(AND(BC8>=Vertr6von,BC8<=Vertr6bis),BD8&Vertrag6Gage, "-")))))),"") ->  | BG8: aufgelöst | BM8: 1 | BN8: Mo | BO8: 2025-08-04 | BQ8: . | BR8: =IF(AND(BQ$3="x",LEFT(BP8,1)="B", OR(AND(AKTIVB1="x",BP8="B1"), AND(AKTIVB2="x",BP8="B2"), AND(AKTIVB3="x",BP8="B3"), AND(AKTIVB4="x",BP8="B4"), AND(AKTIVB5="x",BP8="B5"), AND(AKTIVB6="x",BP8="B6"), AND(AKTIVB7="x",BP8="B7"), )), IF(AND(BO8>=Vertr1Von,BO8<=Vertr1Bis),BP8&Vertrag1Gage, IF(AND(BO8>=Vertr2von,BO8<=Vertr2Bis),BP8&Vertrag2Gage, IF(AND(BO8>=Vertr3Von,BO8<=Vertr3bis),BP8&Vertrag3Gage, IF(AND(BO8>=Vertr4von,BO8<=Vertr4bis),BP8&Vertrag4Gage, IF(AND(BO8>=Vertr5von,BO8<=Vertr5bis),BP8&Vertrag5Gage, IF(AND(BO8>=Vertr6von,BO8<=Vertr6bis),BP8&Vertrag6Gage, "-")))))),"") ->  | BZ8: Do | CA8: 2025-09-04 | CC8: . | CD8: =IF(AND(CC$3="x",LEFT(CB8,1)="B", OR(AND(AKTIVB1="x",CB8="B1"), AND(AKTIVB2="x",CB8="B2"), AND(AKTIVB3="x",CB8="B3"), AND(AKTIVB4="x",CB8="B4"), AND(AKTIVB5="x",CB8="B5"), AND(AKTIVB6="x",CB8="B6"), AND(AKTIVB7="x",CB8="B7"), )), IF(AND(CA8>=Vertr1Von,CA8<=Vertr1Bis),CB8&Vertrag1Gage, IF(AND(CA8>=Vertr2von,CA8<=Vertr2Bis),CB8&Vertrag2Gage, IF(AND(CA8>=Vertr3Von,CA8<=Vertr3bis),CB8&Vertrag3Gage, IF(AND(CA8>=Vertr4von,CA8<=Vertr4bis),CB8&Vertrag4Gage, IF(AND(CA8>=Vertr5von,CA8<=Vertr5bis),CB8&Vertrag5Gage, IF(AND(CA8>=Vertr6von,CA8<=Vertr6bis),CB8&Vertrag6Gage, "-")))))),"") ->  | CL8: Sa | CM8: 2025-10-04 | CP8: =IF(AND(CO$3="x",LEFT(CN8,1)="B", OR(AND(AKTIVB1="x",CN8="B1"), AND(AKTIVB2="x",CN8="B2"), AND(AKTIVB3="x",CN8="B3"), AND(AKTIVB4="x",CN8="B4"), AND(AKTIVB5="x",CN8="B5"), AND(AKTIVB6="x",CN8="B6"), AND(AKTIVB7="x",CN8="B7"), )), IF(AND(CM8>=Vertr1Von,CM8<=Vertr1Bis),CN8&Vertrag1Gage, IF(AND(CM8>=Vertr2von,CM8<=Vertr2Bis),CN8&Vertrag2Gage, IF(AND(CM8>=Vertr3Von,CM8<=Vertr3bis),CN8&Vertrag3Gage, IF(AND(CM8>=Vertr4von,CM8<=Vertr4bis),CN8&Vertrag4Gage, IF(AND(CM8>=Vertr5von,CM8<=Vertr5bis),CN8&Vertrag5Gage, IF(AND(CM8>=Vertr6von,CM8<=Vertr6bis),CN8&Vertrag6Gage, "-")))))),"") ->  | CY8: Di | CZ8: 2025-11-04 | DB8: . | DC8: =IF(AND(DB$3="x",LEFT(DA8,1)="B", OR(AND(AKTIVB1="x",DA8="B1"), AND(AKTIVB2="x",DA8="B2"), AND(AKTIVB3="x",DA8="B3"), AND(AKTIVB4="x",DA8="B4"), AND(AKTIVB5="x",DA8="B5"), AND(AKTIVB6="x",DA8="B6"), AND(AKTIVB7="x",DA8="B7"), )), IF(AND(CZ8>=Vertr1Von,CZ8<=Vertr1Bis),DA8&Vertrag1Gage, IF(AND(CZ8>=Vertr2von,CZ8<=Vertr2Bis),DA8&Vertrag2Gage, IF(AND(CZ8>=Vertr3Von,CZ8<=Vertr3bis),DA8&Vertrag3Gage, IF(AND(CZ8>=Vertr4von,CZ8<=Vertr4bis),DA8&Vertrag4Gage, IF(AND(CZ8>=Vertr5von,CZ8<=Vertr5bis),DA8&Vertrag5Gage, IF(AND(CZ8>=Vertr6von,CZ8<=Vertr6bis),DA8&Vertrag6Gage, "-")))))),"") ->  | DK8: Do | DL8: 2025-12-04 | DN8: . | DO8: =IF(AND(DN$3="x",LEFT(DM8,1)="B", OR(AND(AKTIVB1="x",DM8="B1"), AND(AKTIVB2="x",DM8="B2"), AND(AKTIVB3="x",DM8="B3"), AND(AKTIVB4="x",DM8="B4"), AND(AKTIVB5="x",DM8="B5"), AND(AKTIVB6="x",DM8="B6"), AND(AKTIVB7="x",DM8="B7"), )), IF(AND(DL8>=Vertr1Von,DL8<=Vertr1Bis),DM8&Vertrag1Gage, IF(AND(DL8>=Vertr2von,DL8<=Vertr2Bis),DM8&Vertrag2Gage, IF(AND(DL8>=Vertr3Von,DL8<=Vertr3bis),DM8&Vertrag3Gage, IF(AND(DL8>=Vertr4von,DL8<=Vertr4bis),DM8&Vertrag4Gage, IF(AND(DL8>=Vertr5von,DL8<=Vertr5bis),DM8&Vertrag5Gage, IF(AND(DL8>=Vertr6von,DL8<=Vertr6bis),DM8&Vertrag6Gage, "-")))))),"") ->  | DW8: So | DX8: 2026-01-04 | EA8: =IF(AND(DZ$3="x",LEFT(DY8,1)="B", OR(AND(AKTIVB1="x",DY8="B1"), AND(AKTIVB2="x",DY8="B2"), AND(AKTIVB3="x",DY8="B3"), AND(AKTIVB4="x",DY8="B4"), AND(AKTIVB5="x",DY8="B5"), AND(AKTIVB6="x",DY8="B6"), AND(AKTIVB7="x",DY8="B7"), )), IF(AND(DX8>=Vertr1Von,DX8<=Vertr1Bis),DY8&Vertrag1Gage, IF(AND(DX8>=Vertr2von,DX8<=Vertr2Bis),DY8&Vertrag2Gage, IF(AND(DX8>=Vertr3Von,DX8<=Vertr3bis),DY8&Vertrag3Gage, IF(AND(DX8>=Vertr4von,DX8<=Vertr4bis),DY8&Vertrag4Gage, IF(AND(DX8>=Vertr5von,DX8<=Vertr5bis),DY8&Vertrag5Gage, IF(AND(DX8>=Vertr6von,DX8<=Vertr6bis),DY8&Vertrag6Gage, "-")))))),"") ->  | EI8: Mi | EJ8: 2026-02-04 | EL8: . | EM8: =IF(AND(EL$3="x",LEFT(EK8,1)="B", OR(AND(AKTIVB1="x",EK8="B1"), AND(AKTIVB2="x",EK8="B2"), AND(AKTIVB3="x",EK8="B3"), AND(AKTIVB4="x",EK8="B4"), AND(AKTIVB5="x",EK8="B5"), AND(AKTIVB6="x",EK8="B6"), AND(AKTIVB7="x",EK8="B7"), )), IF(AND(EJ8>=Vertr1Von,EJ8<=Vertr1Bis),EK8&Vertrag1Gage, IF(AND(EJ8>=Vertr2von,EJ8<=Vertr2Bis),EK8&Vertrag2Gage, IF(AND(EJ8>=Vertr3Von,EJ8<=Vertr3bis),EK8&Vertrag3Gage, IF(AND(EJ8>=Vertr4von,EJ8<=Vertr4bis),EK8&Vertrag4Gage, IF(AND(EJ8>=Vertr5von,EJ8<=Vertr5bis),EK8&Vertrag5Gage, IF(AND(EJ8>=Vertr6von,EJ8<=Vertr6bis),EK8&Vertrag6Gage, "-")))))),"") ->  | EU8: Mi | EV8: 2026-03-04 | EX8: . | EY8: =IF(AND(EX$3="x",LEFT(EW8,1)="B", OR(AND(AKTIVB1="x",EW8="B1"), AND(AKTIVB2="x",EW8="B2"), AND(AKTIVB3="x",EW8="B3"), AND(AKTIVB4="x",EW8="B4"), AND(AKTIVB5="x",EW8="B5"), AND(AKTIVB6="x",EW8="B6"), AND(AKTIVB7="x",EW8="B7"), )), IF(AND(EV8>=Vertr1Von,EV8<=Vertr1Bis),EW8&Vertrag1Gage, IF(AND(EV8>=Vertr2von,EV8<=Vertr2Bis),EW8&Vertrag2Gage, IF(AND(EV8>=Vertr3Von,EV8<=Vertr3bis),EW8&Vertrag3Gage, IF(AND(EV8>=Vertr4von,EV8<=Vertr4bis),EW8&Vertrag4Gage, IF(AND(EV8>=Vertr5von,EV8<=Vertr5bis),EW8&Vertrag5Gage, IF(AND(EV8>=Vertr6von,EV8<=Vertr6bis),EW8&Vertrag6Gage, "-")))))),"") ->  | FG8: Sa | FH8: 2026-04-04 | FK8: =IF(AND(FJ$3="x",LEFT(FI8,1)="B", OR(AND(AKTIVB1="x",FI8="B1"), AND(AKTIVB2="x",FI8="B2"), AND(AKTIVB3="x",FI8="B3"), AND(AKTIVB4="x",FI8="B4"), AND(AKTIVB5="x",FI8="B5"), AND(AKTIVB6="x",FI8="B6"), AND(AKTIVB7="x",FI8="B7"), )), IF(AND(FH8>=Vertr1Von,FH8<=Vertr1Bis),FI8&Vertrag1Gage, IF(AND(FH8>=Vertr2von,FH8<=Vertr2Bis),FI8&Vertrag2Gage, IF(AND(FH8>=Vertr3Von,FH8<=Vertr3bis),FI8&Vertrag3Gage, IF(AND(FH8>=Vertr4von,FH8<=Vertr4bis),FI8&Vertrag4Gage, IF(AND(FH8>=Vertr5von,FH8<=Vertr5bis),FI8&Vertrag5Gage, IF(AND(FH8>=Vertr6von,FH8<=Vertr6bis),FI8&Vertrag6Gage, "-")))))),"") ->  | FS8: Mo | FT8: 2026-05-04 | FV8: . | FW8: =IF(AND(FV$3="x",LEFT(FU8,1)="B", OR(AND(AKTIVB1="x",FU8="B1"), AND(AKTIVB2="x",FU8="B2"), AND(AKTIVB3="x",FU8="B3"), AND(AKTIVB4="x",FU8="B4"), AND(AKTIVB5="x",FU8="B5"), AND(AKTIVB6="x",FU8="B6"), AND(AKTIVB7="x",FU8="B7"), )), IF(AND(FT8>=Vertr1Von,FT8<=Vertr1Bis),FU8&Vertrag1Gage, IF(AND(FT8>=Vertr2von,FT8<=Vertr2Bis),FU8&Vertrag2Gage, IF(AND(FT8>=Vertr3Von,FT8<=Vertr3bis),FU8&Vertrag3Gage, IF(AND(FT8>=Vertr4von,FT8<=Vertr4bis),FU8&Vertrag4Gage, IF(AND(FT8>=Vertr5von,FT8<=Vertr5bis),FU8&Vertrag5Gage, IF(AND(FT8>=Vertr6von,FT8<=Vertr6bis),FU8&Vertrag6Gage, "-")))))),"") -> 
B9: Wochengagen (1,2,3): | H9: entspr.TG | K9: Ansatz Zeitkonto / AZV | Q9: Sa | R9: 2025-04-05 | U9: =IF(AND(T$3="x",LEFT(S9,1)="B", OR(AND(AKTIVB1="x",S9="B1"), AND(AKTIVB2="x",S9="B2"), AND(AKTIVB3="x",S9="B3"), AND(AKTIVB4="x",S9="B4"), AND(AKTIVB5="x",S9="B5"), AND(AKTIVB6="x",S9="B6"), AND(AKTIVB7="x",S9="B7"), )), IF(AND(R9>=Vertr1Von,R9<=Vertr1Bis),S9&Vertrag1Gage, IF(AND(R9>=Vertr2von,R9<=Vertr2Bis),S9&Vertrag2Gage, IF(AND(R9>=Vertr3Von,R9<=Vertr3bis),S9&Vertrag3Gage, IF(AND(R9>=Vertr4von,R9<=Vertr4bis),S9&Vertrag4Gage, IF(AND(R9>=Vertr5von,R9<=Vertr5bis),S9&Vertrag5Gage, IF(AND(R9>=Vertr6von,R9<=Vertr6bis),S9&Vertrag6Gage, "-")))))),"") ->  | AD9: Mo | AE9: 2025-05-05 | AG9: . | AH9: =IF(AND(AG$3="x",LEFT(AF9,1)="B", OR(AND(AKTIVB1="x",AF9="B1"), AND(AKTIVB2="x",AF9="B2"), AND(AKTIVB3="x",AF9="B3"), AND(AKTIVB4="x",AF9="B4"), AND(AKTIVB5="x",AF9="B5"), AND(AKTIVB6="x",AF9="B6"), AND(AKTIVB7="x",AF9="B7"), )), IF(AND(AE9>=Vertr1Von,AE9<=Vertr1Bis),AF9&Vertrag1Gage, IF(AND(AE9>=Vertr2von,AE9<=Vertr2Bis),AF9&Vertrag2Gage, IF(AND(AE9>=Vertr3Von,AE9<=Vertr3bis),AF9&Vertrag3Gage, IF(AND(AE9>=Vertr4von,AE9<=Vertr4bis),AF9&Vertrag4Gage, IF(AND(AE9>=Vertr5von,AE9<=Vertr5bis),AF9&Vertrag5Gage, IF(AND(AE9>=Vertr6von,AE9<=Vertr6bis),AF9&Vertrag6Gage, "-")))))),"") ->  | AP9: Do | AQ9: 2025-06-05 | AR9: B1 | AT9: =IF(AND(AS$3="x",LEFT(AR9,1)="B", OR(AND(AKTIVB1="x",AR9="B1"), AND(AKTIVB2="x",AR9="B2"), AND(AKTIVB3="x",AR9="B3"), AND(AKTIVB4="x",AR9="B4"), AND(AKTIVB5="x",AR9="B5"), AND(AKTIVB6="x",AR9="B6"), AND(AKTIVB7="x",AR9="B7"), )), IF(AND(AQ9>=Vertr1Von,AQ9<=Vertr1Bis),AR9&Vertrag1Gage, IF(AND(AQ9>=Vertr2von,AQ9<=Vertr2Bis),AR9&Vertrag2Gage, IF(AND(AQ9>=Vertr3Von,AQ9<=Vertr3bis),AR9&Vertrag3Gage, IF(AND(AQ9>=Vertr4von,AQ9<=Vertr4bis),AR9&Vertrag4Gage, IF(AND(AQ9>=Vertr5von,AQ9<=Vertr5bis),AR9&Vertrag5Gage, IF(AND(AQ9>=Vertr6von,AQ9<=Vertr6bis),AR9&Vertrag6Gage, "-")))))),"") -> B11 | BB9: Sa | BC9: 2025-07-05 | BF9: =IF(AND(BE$3="x",LEFT(BD9,1)="B", OR(AND(AKTIVB1="x",BD9="B1"), AND(AKTIVB2="x",BD9="B2"), AND(AKTIVB3="x",BD9="B3"), AND(AKTIVB4="x",BD9="B4"), AND(AKTIVB5="x",BD9="B5"), AND(AKTIVB6="x",BD9="B6"), AND(AKTIVB7="x",BD9="B7"), )), IF(AND(BC9>=Vertr1Von,BC9<=Vertr1Bis),BD9&Vertrag1Gage, IF(AND(BC9>=Vertr2von,BC9<=Vertr2Bis),BD9&Vertrag2Gage, IF(AND(BC9>=Vertr3Von,BC9<=Vertr3bis),BD9&Vertrag3Gage, IF(AND(BC9>=Vertr4von,BC9<=Vertr4bis),BD9&Vertrag4Gage, IF(AND(BC9>=Vertr5von,BC9<=Vertr5bis),BD9&Vertrag5Gage, IF(AND(BC9>=Vertr6von,BC9<=Vertr6bis),BD9&Vertrag6Gage, "-")))))),"") ->  | BN9: Di | BO9: 2025-08-05 | BQ9: . | BR9: =IF(AND(BQ$3="x",LEFT(BP9,1)="B", OR(AND(AKTIVB1="x",BP9="B1"), AND(AKTIVB2="x",BP9="B2"), AND(AKTIVB3="x",BP9="B3"), AND(AKTIVB4="x",BP9="B4"), AND(AKTIVB5="x",BP9="B5"), AND(AKTIVB6="x",BP9="B6"), AND(AKTIVB7="x",BP9="B7"), )), IF(AND(BO9>=Vertr1Von,BO9<=Vertr1Bis),BP9&Vertrag1Gage, IF(AND(BO9>=Vertr2von,BO9<=Vertr2Bis),BP9&Vertrag2Gage, IF(AND(BO9>=Vertr3Von,BO9<=Vertr3bis),BP9&Vertrag3Gage, IF(AND(BO9>=Vertr4von,BO9<=Vertr4bis),BP9&Vertrag4Gage, IF(AND(BO9>=Vertr5von,BO9<=Vertr5bis),BP9&Vertrag5Gage, IF(AND(BO9>=Vertr6von,BO9<=Vertr6bis),BP9&Vertrag6Gage, "-")))))),"") ->  | BZ9: Fr | CA9: 2025-09-05 | CC9: . | CD9: =IF(AND(CC$3="x",LEFT(CB9,1)="B", OR(AND(AKTIVB1="x",CB9="B1"), AND(AKTIVB2="x",CB9="B2"), AND(AKTIVB3="x",CB9="B3"), AND(AKTIVB4="x",CB9="B4"), AND(AKTIVB5="x",CB9="B5"), AND(AKTIVB6="x",CB9="B6"), AND(AKTIVB7="x",CB9="B7"), )), IF(AND(CA9>=Vertr1Von,CA9<=Vertr1Bis),CB9&Vertrag1Gage, IF(AND(CA9>=Vertr2von,CA9<=Vertr2Bis),CB9&Vertrag2Gage, IF(AND(CA9>=Vertr3Von,CA9<=Vertr3bis),CB9&Vertrag3Gage, IF(AND(CA9>=Vertr4von,CA9<=Vertr4bis),CB9&Vertrag4Gage, IF(AND(CA9>=Vertr5von,CA9<=Vertr5bis),CB9&Vertrag5Gage, IF(AND(CA9>=Vertr6von,CA9<=Vertr6bis),CB9&Vertrag6Gage, "-")))))),"") ->  | CL9: So | CM9: 2025-10-05 | CP9: =IF(AND(CO$3="x",LEFT(CN9,1)="B", OR(AND(AKTIVB1="x",CN9="B1"), AND(AKTIVB2="x",CN9="B2"), AND(AKTIVB3="x",CN9="B3"), AND(AKTIVB4="x",CN9="B4"), AND(AKTIVB5="x",CN9="B5"), AND(AKTIVB6="x",CN9="B6"), AND(AKTIVB7="x",CN9="B7"), )), IF(AND(CM9>=Vertr1Von,CM9<=Vertr1Bis),CN9&Vertrag1Gage, IF(AND(CM9>=Vertr2von,CM9<=Vertr2Bis),CN9&Vertrag2Gage, IF(AND(CM9>=Vertr3Von,CM9<=Vertr3bis),CN9&Vertrag3Gage, IF(AND(CM9>=Vertr4von,CM9<=Vertr4bis),CN9&Vertrag4Gage, IF(AND(CM9>=Vertr5von,CM9<=Vertr5bis),CN9&Vertrag5Gage, IF(AND(CM9>=Vertr6von,CM9<=Vertr6bis),CN9&Vertrag6Gage, "-")))))),"") ->  | CY9: Mi | CZ9: 2025-11-05 | DB9: . | DC9: =IF(AND(DB$3="x",LEFT(DA9,1)="B", OR(AND(AKTIVB1="x",DA9="B1"), AND(AKTIVB2="x",DA9="B2"), AND(AKTIVB3="x",DA9="B3"), AND(AKTIVB4="x",DA9="B4"), AND(AKTIVB5="x",DA9="B5"), AND(AKTIVB6="x",DA9="B6"), AND(AKTIVB7="x",DA9="B7"), )), IF(AND(CZ9>=Vertr1Von,CZ9<=Vertr1Bis),DA9&Vertrag1Gage, IF(AND(CZ9>=Vertr2von,CZ9<=Vertr2Bis),DA9&Vertrag2Gage, IF(AND(CZ9>=Vertr3Von,CZ9<=Vertr3bis),DA9&Vertrag3Gage, IF(AND(CZ9>=Vertr4von,CZ9<=Vertr4bis),DA9&Vertrag4Gage, IF(AND(CZ9>=Vertr5von,CZ9<=Vertr5bis),DA9&Vertrag5Gage, IF(AND(CZ9>=Vertr6von,CZ9<=Vertr6bis),DA9&Vertrag6Gage, "-")))))),"") ->  | DK9: Fr | DL9: 2025-12-05 | DN9: . | DO9: =IF(AND(DN$3="x",LEFT(DM9,1)="B", OR(AND(AKTIVB1="x",DM9="B1"), AND(AKTIVB2="x",DM9="B2"), AND(AKTIVB3="x",DM9="B3"), AND(AKTIVB4="x",DM9="B4"), AND(AKTIVB5="x",DM9="B5"), AND(AKTIVB6="x",DM9="B6"), AND(AKTIVB7="x",DM9="B7"), )), IF(AND(DL9>=Vertr1Von,DL9<=Vertr1Bis),DM9&Vertrag1Gage, IF(AND(DL9>=Vertr2von,DL9<=Vertr2Bis),DM9&Vertrag2Gage, IF(AND(DL9>=Vertr3Von,DL9<=Vertr3bis),DM9&Vertrag3Gage, IF(AND(DL9>=Vertr4von,DL9<=Vertr4bis),DM9&Vertrag4Gage, IF(AND(DL9>=Vertr5von,DL9<=Vertr5bis),DM9&Vertrag5Gage, IF(AND(DL9>=Vertr6von,DL9<=Vertr6bis),DM9&Vertrag6Gage, "-")))))),"") ->  | DW9: Mo | DX9: 2026-01-05 | DZ9: . | EA9: =IF(AND(DZ$3="x",LEFT(DY9,1)="B", OR(AND(AKTIVB1="x",DY9="B1"), AND(AKTIVB2="x",DY9="B2"), AND(AKTIVB3="x",DY9="B3"), AND(AKTIVB4="x",DY9="B4"), AND(AKTIVB5="x",DY9="B5"), AND(AKTIVB6="x",DY9="B6"), AND(AKTIVB7="x",DY9="B7"), )), IF(AND(DX9>=Vertr1Von,DX9<=Vertr1Bis),DY9&Vertrag1Gage, IF(AND(DX9>=Vertr2von,DX9<=Vertr2Bis),DY9&Vertrag2Gage, IF(AND(DX9>=Vertr3Von,DX9<=Vertr3bis),DY9&Vertrag3Gage, IF(AND(DX9>=Vertr4von,DX9<=Vertr4bis),DY9&Vertrag4Gage, IF(AND(DX9>=Vertr5von,DX9<=Vertr5bis),DY9&Vertrag5Gage, IF(AND(DX9>=Vertr6von,DX9<=Vertr6bis),DY9&Vertrag6Gage, "-")))))),"") ->  | EI9: Do | EJ9: 2026-02-05 | EL9: . | EM9: =IF(AND(EL$3="x",LEFT(EK9,1)="B", OR(AND(AKTIVB1="x",EK9="B1"), AND(AKTIVB2="x",EK9="B2"), AND(AKTIVB3="x",EK9="B3"), AND(AKTIVB4="x",EK9="B4"), AND(AKTIVB5="x",EK9="B5"), AND(AKTIVB6="x",EK9="B6"), AND(AKTIVB7="x",EK9="B7"), )), IF(AND(EJ9>=Vertr1Von,EJ9<=Vertr1Bis),EK9&Vertrag1Gage, IF(AND(EJ9>=Vertr2von,EJ9<=Vertr2Bis),EK9&Vertrag2Gage, IF(AND(EJ9>=Vertr3Von,EJ9<=Vertr3bis),EK9&Vertrag3Gage, IF(AND(EJ9>=Vertr4von,EJ9<=Vertr4bis),EK9&Vertrag4Gage, IF(AND(EJ9>=Vertr5von,EJ9<=Vertr5bis),EK9&Vertrag5Gage, IF(AND(EJ9>=Vertr6von,EJ9<=Vertr6bis),EK9&Vertrag6Gage, "-")))))),"") ->  | EU9: Do | EV9: 2026-03-05 | EX9: . | EY9: =IF(AND(EX$3="x",LEFT(EW9,1)="B", OR(AND(AKTIVB1="x",EW9="B1"), AND(AKTIVB2="x",EW9="B2"), AND(AKTIVB3="x",EW9="B3"), AND(AKTIVB4="x",EW9="B4"), AND(AKTIVB5="x",EW9="B5"), AND(AKTIVB6="x",EW9="B6"), AND(AKTIVB7="x",EW9="B7"), )), IF(AND(EV9>=Vertr1Von,EV9<=Vertr1Bis),EW9&Vertrag1Gage, IF(AND(EV9>=Vertr2von,EV9<=Vertr2Bis),EW9&Vertrag2Gage, IF(AND(EV9>=Vertr3Von,EV9<=Vertr3bis),EW9&Vertrag3Gage, IF(AND(EV9>=Vertr4von,EV9<=Vertr4bis),EW9&Vertrag4Gage, IF(AND(EV9>=Vertr5von,EV9<=Vertr5bis),EW9&Vertrag5Gage, IF(AND(EV9>=Vertr6von,EV9<=Vertr6bis),EW9&Vertrag6Gage, "-")))))),"") ->  | FG9: So | FH9: 2026-04-05 | FK9: =IF(AND(FJ$3="x",LEFT(FI9,1)="B", OR(AND(AKTIVB1="x",FI9="B1"), AND(AKTIVB2="x",FI9="B2"), AND(AKTIVB3="x",FI9="B3"), AND(AKTIVB4="x",FI9="B4"), AND(AKTIVB5="x",FI9="B5"), AND(AKTIVB6="x",FI9="B6"), AND(AKTIVB7="x",FI9="B7"), )), IF(AND(FH9>=Vertr1Von,FH9<=Vertr1Bis),FI9&Vertrag1Gage, IF(AND(FH9>=Vertr2von,FH9<=Vertr2Bis),FI9&Vertrag2Gage, IF(AND(FH9>=Vertr3Von,FH9<=Vertr3bis),FI9&Vertrag3Gage, IF(AND(FH9>=Vertr4von,FH9<=Vertr4bis),FI9&Vertrag4Gage, IF(AND(FH9>=Vertr5von,FH9<=Vertr5bis),FI9&Vertrag5Gage, IF(AND(FH9>=Vertr6von,FH9<=Vertr6bis),FI9&Vertrag6Gage, "-")))))),"") ->  | FS9: Di | FT9: 2026-05-05 | FV9: . | FW9: =IF(AND(FV$3="x",LEFT(FU9,1)="B", OR(AND(AKTIVB1="x",FU9="B1"), AND(AKTIVB2="x",FU9="B2"), AND(AKTIVB3="x",FU9="B3"), AND(AKTIVB4="x",FU9="B4"), AND(AKTIVB5="x",FU9="B5"), AND(AKTIVB6="x",FU9="B6"), AND(AKTIVB7="x",FU9="B7"), )), IF(AND(FT9>=Vertr1Von,FT9<=Vertr1Bis),FU9&Vertrag1Gage, IF(AND(FT9>=Vertr2von,FT9<=Vertr2Bis),FU9&Vertrag2Gage, IF(AND(FT9>=Vertr3Von,FT9<=Vertr3bis),FU9&Vertrag3Gage, IF(AND(FT9>=Vertr4von,FT9<=Vertr4bis),FU9&Vertrag4Gage, IF(AND(FT9>=Vertr5von,FT9<=Vertr5bis),FU9&Vertrag5Gage, IF(AND(FT9>=Vertr6von,FT9<=Vertr6bis),FU9&Vertrag6Gage, "-")))))),"") -> 
C10: Wochengage 1 | D10: Bx1 | E10: 1450 | H10: =GageA/5 -> 290 | K10: Zeitkto. J/N | L10: J | N10: Hinweis | Q10: So | R10: 2025-04-06 | U10: =IF(AND(T$3="x",LEFT(S10,1)="B", OR(AND(AKTIVB1="x",S10="B1"), AND(AKTIVB2="x",S10="B2"), AND(AKTIVB3="x",S10="B3"), AND(AKTIVB4="x",S10="B4"), AND(AKTIVB5="x",S10="B5"), AND(AKTIVB6="x",S10="B6"), AND(AKTIVB7="x",S10="B7"), )), IF(AND(R10>=Vertr1Von,R10<=Vertr1Bis),S10&Vertrag1Gage, IF(AND(R10>=Vertr2von,R10<=Vertr2Bis),S10&Vertrag2Gage, IF(AND(R10>=Vertr3Von,R10<=Vertr3bis),S10&Vertrag3Gage, IF(AND(R10>=Vertr4von,R10<=Vertr4bis),S10&Vertrag4Gage, IF(AND(R10>=Vertr5von,R10<=Vertr5bis),S10&Vertrag5Gage, IF(AND(R10>=Vertr6von,R10<=Vertr6bis),S10&Vertrag6Gage, "-")))))),"") ->  | AD10: Di | AE10: 2025-05-06 | AG10: . | AH10: =IF(AND(AG$3="x",LEFT(AF10,1)="B", OR(AND(AKTIVB1="x",AF10="B1"), AND(AKTIVB2="x",AF10="B2"), AND(AKTIVB3="x",AF10="B3"), AND(AKTIVB4="x",AF10="B4"), AND(AKTIVB5="x",AF10="B5"), AND(AKTIVB6="x",AF10="B6"), AND(AKTIVB7="x",AF10="B7"), )), IF(AND(AE10>=Vertr1Von,AE10<=Vertr1Bis),AF10&Vertrag1Gage, IF(AND(AE10>=Vertr2von,AE10<=Vertr2Bis),AF10&Vertrag2Gage, IF(AND(AE10>=Vertr3Von,AE10<=Vertr3bis),AF10&Vertrag3Gage, IF(AND(AE10>=Vertr4von,AE10<=Vertr4bis),AF10&Vertrag4Gage, IF(AND(AE10>=Vertr5von,AE10<=Vertr5bis),AF10&Vertrag5Gage, IF(AND(AE10>=Vertr6von,AE10<=Vertr6bis),AF10&Vertrag6Gage, "-")))))),"") ->  | AP10: Fr | AQ10: 2025-06-06 | AR10: REISE | AT10: =IF(AND(AS$3="x",LEFT(AR10,1)="B", OR(AND(AKTIVB1="x",AR10="B1"), AND(AKTIVB2="x",AR10="B2"), AND(AKTIVB3="x",AR10="B3"), AND(AKTIVB4="x",AR10="B4"), AND(AKTIVB5="x",AR10="B5"), AND(AKTIVB6="x",AR10="B6"), AND(AKTIVB7="x",AR10="B7"), )), IF(AND(AQ10>=Vertr1Von,AQ10<=Vertr1Bis),AR10&Vertrag1Gage, IF(AND(AQ10>=Vertr2von,AQ10<=Vertr2Bis),AR10&Vertrag2Gage, IF(AND(AQ10>=Vertr3Von,AQ10<=Vertr3bis),AR10&Vertrag3Gage, IF(AND(AQ10>=Vertr4von,AQ10<=Vertr4bis),AR10&Vertrag4Gage, IF(AND(AQ10>=Vertr5von,AQ10<=Vertr5bis),AR10&Vertrag5Gage, IF(AND(AQ10>=Vertr6von,AQ10<=Vertr6bis),AR10&Vertrag6Gage, "-")))))),"") ->  | AV10: B11 | BB10: So | BC10: 2025-07-06 | BF10: =IF(AND(BE$3="x",LEFT(BD10,1)="B", OR(AND(AKTIVB1="x",BD10="B1"), AND(AKTIVB2="x",BD10="B2"), AND(AKTIVB3="x",BD10="B3"), AND(AKTIVB4="x",BD10="B4"), AND(AKTIVB5="x",BD10="B5"), AND(AKTIVB6="x",BD10="B6"), AND(AKTIVB7="x",BD10="B7"), )), IF(AND(BC10>=Vertr1Von,BC10<=Vertr1Bis),BD10&Vertrag1Gage, IF(AND(BC10>=Vertr2von,BC10<=Vertr2Bis),BD10&Vertrag2Gage, IF(AND(BC10>=Vertr3Von,BC10<=Vertr3bis),BD10&Vertrag3Gage, IF(AND(BC10>=Vertr4von,BC10<=Vertr4bis),BD10&Vertrag4Gage, IF(AND(BC10>=Vertr5von,BC10<=Vertr5bis),BD10&Vertrag5Gage, IF(AND(BC10>=Vertr6von,BC10<=Vertr6bis),BD10&Vertrag6Gage, "-")))))),"") ->  | BN10: Mi | BO10: 2025-08-06 | BQ10: . | BR10: =IF(AND(BQ$3="x",LEFT(BP10,1)="B", OR(AND(AKTIVB1="x",BP10="B1"), AND(AKTIVB2="x",BP10="B2"), AND(AKTIVB3="x",BP10="B3"), AND(AKTIVB4="x",BP10="B4"), AND(AKTIVB5="x",BP10="B5"), AND(AKTIVB6="x",BP10="B6"), AND(AKTIVB7="x",BP10="B7"), )), IF(AND(BO10>=Vertr1Von,BO10<=Vertr1Bis),BP10&Vertrag1Gage, IF(AND(BO10>=Vertr2von,BO10<=Vertr2Bis),BP10&Vertrag2Gage, IF(AND(BO10>=Vertr3Von,BO10<=Vertr3bis),BP10&Vertrag3Gage, IF(AND(BO10>=Vertr4von,BO10<=Vertr4bis),BP10&Vertrag4Gage, IF(AND(BO10>=Vertr5von,BO10<=Vertr5bis),BP10&Vertrag5Gage, IF(AND(BO10>=Vertr6von,BO10<=Vertr6bis),BP10&Vertrag6Gage, "-")))))),"") ->  | BZ10: Sa | CA10: 2025-09-06 | CD10: =IF(AND(CC$3="x",LEFT(CB10,1)="B", OR(AND(AKTIVB1="x",CB10="B1"), AND(AKTIVB2="x",CB10="B2"), AND(AKTIVB3="x",CB10="B3"), AND(AKTIVB4="x",CB10="B4"), AND(AKTIVB5="x",CB10="B5"), AND(AKTIVB6="x",CB10="B6"), AND(AKTIVB7="x",CB10="B7"), )), IF(AND(CA10>=Vertr1Von,CA10<=Vertr1Bis),CB10&Vertrag1Gage, IF(AND(CA10>=Vertr2von,CA10<=Vertr2Bis),CB10&Vertrag2Gage, IF(AND(CA10>=Vertr3Von,CA10<=Vertr3bis),CB10&Vertrag3Gage, IF(AND(CA10>=Vertr4von,CA10<=Vertr4bis),CB10&Vertrag4Gage, IF(AND(CA10>=Vertr5von,CA10<=Vertr5bis),CB10&Vertrag5Gage, IF(AND(CA10>=Vertr6von,CA10<=Vertr6bis),CB10&Vertrag6Gage, "-")))))),"") ->  | CL10: Mo | CM10: 2025-10-06 | CO10: . | CP10: =IF(AND(CO$3="x",LEFT(CN10,1)="B", OR(AND(AKTIVB1="x",CN10="B1"), AND(AKTIVB2="x",CN10="B2"), AND(AKTIVB3="x",CN10="B3"), AND(AKTIVB4="x",CN10="B4"), AND(AKTIVB5="x",CN10="B5"), AND(AKTIVB6="x",CN10="B6"), AND(AKTIVB7="x",CN10="B7"), )), IF(AND(CM10>=Vertr1Von,CM10<=Vertr1Bis),CN10&Vertrag1Gage, IF(AND(CM10>=Vertr2von,CM10<=Vertr2Bis),CN10&Vertrag2Gage, IF(AND(CM10>=Vertr3Von,CM10<=Vertr3bis),CN10&Vertrag3Gage, IF(AND(CM10>=Vertr4von,CM10<=Vertr4bis),CN10&Vertrag4Gage, IF(AND(CM10>=Vertr5von,CM10<=Vertr5bis),CN10&Vertrag5Gage, IF(AND(CM10>=Vertr6von,CM10<=Vertr6bis),CN10&Vertrag6Gage, "-")))))),"") ->  | CY10: Do | CZ10: 2025-11-06 | DB10: . | DC10: =IF(AND(DB$3="x",LEFT(DA10,1)="B", OR(AND(AKTIVB1="x",DA10="B1"), AND(AKTIVB2="x",DA10="B2"), AND(AKTIVB3="x",DA10="B3"), AND(AKTIVB4="x",DA10="B4"), AND(AKTIVB5="x",DA10="B5"), AND(AKTIVB6="x",DA10="B6"), AND(AKTIVB7="x",DA10="B7"), )), IF(AND(CZ10>=Vertr1Von,CZ10<=Vertr1Bis),DA10&Vertrag1Gage, IF(AND(CZ10>=Vertr2von,CZ10<=Vertr2Bis),DA10&Vertrag2Gage, IF(AND(CZ10>=Vertr3Von,CZ10<=Vertr3bis),DA10&Vertrag3Gage, IF(AND(CZ10>=Vertr4von,CZ10<=Vertr4bis),DA10&Vertrag4Gage, IF(AND(CZ10>=Vertr5von,CZ10<=Vertr5bis),DA10&Vertrag5Gage, IF(AND(CZ10>=Vertr6von,CZ10<=Vertr6bis),DA10&Vertrag6Gage, "-")))))),"") ->  | DK10: Sa | DL10: 2025-12-06 | DO10: =IF(AND(DN$3="x",LEFT(DM10,1)="B", OR(AND(AKTIVB1="x",DM10="B1"), AND(AKTIVB2="x",DM10="B2"), AND(AKTIVB3="x",DM10="B3"), AND(AKTIVB4="x",DM10="B4"), AND(AKTIVB5="x",DM10="B5"), AND(AKTIVB6="x",DM10="B6"), AND(AKTIVB7="x",DM10="B7"), )), IF(AND(DL10>=Vertr1Von,DL10<=Vertr1Bis),DM10&Vertrag1Gage, IF(AND(DL10>=Vertr2von,DL10<=Vertr2Bis),DM10&Vertrag2Gage, IF(AND(DL10>=Vertr3Von,DL10<=Vertr3bis),DM10&Vertrag3Gage, IF(AND(DL10>=Vertr4von,DL10<=Vertr4bis),DM10&Vertrag4Gage, IF(AND(DL10>=Vertr5von,DL10<=Vertr5bis),DM10&Vertrag5Gage, IF(AND(DL10>=Vertr6von,DL10<=Vertr6bis),DM10&Vertrag6Gage, "-")))))),"") ->  | DW10: Di | DX10: 2026-01-06 | DZ10: . | EA10: =IF(AND(DZ$3="x",LEFT(DY10,1)="B", OR(AND(AKTIVB1="x",DY10="B1"), AND(AKTIVB2="x",DY10="B2"), AND(AKTIVB3="x",DY10="B3"), AND(AKTIVB4="x",DY10="B4"), AND(AKTIVB5="x",DY10="B5"), AND(AKTIVB6="x",DY10="B6"), AND(AKTIVB7="x",DY10="B7"), )), IF(AND(DX10>=Vertr1Von,DX10<=Vertr1Bis),DY10&Vertrag1Gage, IF(AND(DX10>=Vertr2von,DX10<=Vertr2Bis),DY10&Vertrag2Gage, IF(AND(DX10>=Vertr3Von,DX10<=Vertr3bis),DY10&Vertrag3Gage, IF(AND(DX10>=Vertr4von,DX10<=Vertr4bis),DY10&Vertrag4Gage, IF(AND(DX10>=Vertr5von,DX10<=Vertr5bis),DY10&Vertrag5Gage, IF(AND(DX10>=Vertr6von,DX10<=Vertr6bis),DY10&Vertrag6Gage, "-")))))),"") ->  | EI10: Fr | EJ10: 2026-02-06 | EL10: . | EM10: =IF(AND(EL$3="x",LEFT(EK10,1)="B", OR(AND(AKTIVB1="x",EK10="B1"), AND(AKTIVB2="x",EK10="B2"), AND(AKTIVB3="x",EK10="B3"), AND(AKTIVB4="x",EK10="B4"), AND(AKTIVB5="x",EK10="B5"), AND(AKTIVB6="x",EK10="B6"), AND(AKTIVB7="x",EK10="B7"), )), IF(AND(EJ10>=Vertr1Von,EJ10<=Vertr1Bis),EK10&Vertrag1Gage, IF(AND(EJ10>=Vertr2von,EJ10<=Vertr2Bis),EK10&Vertrag2Gage, IF(AND(EJ10>=Vertr3Von,EJ10<=Vertr3bis),EK10&Vertrag3Gage, IF(AND(EJ10>=Vertr4von,EJ10<=Vertr4bis),EK10&Vertrag4Gage, IF(AND(EJ10>=Vertr5von,EJ10<=Vertr5bis),EK10&Vertrag5Gage, IF(AND(EJ10>=Vertr6von,EJ10<=Vertr6bis),EK10&Vertrag6Gage, "-")))))),"") ->  | EU10: Fr | EV10: 2026-03-06 | EX10: . | EY10: =IF(AND(EX$3="x",LEFT(EW10,1)="B", OR(AND(AKTIVB1="x",EW10="B1"), AND(AKTIVB2="x",EW10="B2"), AND(AKTIVB3="x",EW10="B3"), AND(AKTIVB4="x",EW10="B4"), AND(AKTIVB5="x",EW10="B5"), AND(AKTIVB6="x",EW10="B6"), AND(AKTIVB7="x",EW10="B7"), )), IF(AND(EV10>=Vertr1Von,EV10<=Vertr1Bis),EW10&Vertrag1Gage, IF(AND(EV10>=Vertr2von,EV10<=Vertr2Bis),EW10&Vertrag2Gage, IF(AND(EV10>=Vertr3Von,EV10<=Vertr3bis),EW10&Vertrag3Gage, IF(AND(EV10>=Vertr4von,EV10<=Vertr4bis),EW10&Vertrag4Gage, IF(AND(EV10>=Vertr5von,EV10<=Vertr5bis),EW10&Vertrag5Gage, IF(AND(EV10>=Vertr6von,EV10<=Vertr6bis),EW10&Vertrag6Gage, "-")))))),"") ->  | FG10: Mo | FH10: 2026-04-06 | FJ10: . | FK10: =IF(AND(FJ$3="x",LEFT(FI10,1)="B", OR(AND(AKTIVB1="x",FI10="B1"), AND(AKTIVB2="x",FI10="B2"), AND(AKTIVB3="x",FI10="B3"), AND(AKTIVB4="x",FI10="B4"), AND(AKTIVB5="x",FI10="B5"), AND(AKTIVB6="x",FI10="B6"), AND(AKTIVB7="x",FI10="B7"), )), IF(AND(FH10>=Vertr1Von,FH10<=Vertr1Bis),FI10&Vertrag1Gage, IF(AND(FH10>=Vertr2von,FH10<=Vertr2Bis),FI10&Vertrag2Gage, IF(AND(FH10>=Vertr3Von,FH10<=Vertr3bis),FI10&Vertrag3Gage, IF(AND(FH10>=Vertr4von,FH10<=Vertr4bis),FI10&Vertrag4Gage, IF(AND(FH10>=Vertr5von,FH10<=Vertr5bis),FI10&Vertrag5Gage, IF(AND(FH10>=Vertr6von,FH10<=Vertr6bis),FI10&Vertrag6Gage, "-")))))),"") ->  | FS10: Mi | FT10: 2026-05-06 | FV10: . | FW10: =IF(AND(FV$3="x",LEFT(FU10,1)="B", OR(AND(AKTIVB1="x",FU10="B1"), AND(AKTIVB2="x",FU10="B2"), AND(AKTIVB3="x",FU10="B3"), AND(AKTIVB4="x",FU10="B4"), AND(AKTIVB5="x",FU10="B5"), AND(AKTIVB6="x",FU10="B6"), AND(AKTIVB7="x",FU10="B7"), )), IF(AND(FT10>=Vertr1Von,FT10<=Vertr1Bis),FU10&Vertrag1Gage, IF(AND(FT10>=Vertr2von,FT10<=Vertr2Bis),FU10&Vertrag2Gage, IF(AND(FT10>=Vertr3Von,FT10<=Vertr3bis),FU10&Vertrag3Gage, IF(AND(FT10>=Vertr4von,FT10<=Vertr4bis),FU10&Vertrag4Gage, IF(AND(FT10>=Vertr5von,FT10<=Vertr5bis),FU10&Vertrag5Gage, IF(AND(FT10>=Vertr6von,FT10<=Vertr6bis),FU10&Vertrag6Gage, "-")))))),"") -> 
C11: Wochengage 2 | D11: Bx2 | H11: =GageB/5 -> 0 | K11: Üstd-Zeitkonto J/N | M11: =IF(ZKÜStd<>"J","Kein ÜStd-ZK","ÜStd-ZK gilt") -> Kein ÜStd-ZK | Q11: Mo | R11: 2025-04-07 | T11: . | U11: =IF(AND(T$3="x",LEFT(S11,1)="B", OR(AND(AKTIVB1="x",S11="B1"), AND(AKTIVB2="x",S11="B2"), AND(AKTIVB3="x",S11="B3"), AND(AKTIVB4="x",S11="B4"), AND(AKTIVB5="x",S11="B5"), AND(AKTIVB6="x",S11="B6"), AND(AKTIVB7="x",S11="B7"), )), IF(AND(R11>=Vertr1Von,R11<=Vertr1Bis),S11&Vertrag1Gage, IF(AND(R11>=Vertr2von,R11<=Vertr2Bis),S11&Vertrag2Gage, IF(AND(R11>=Vertr3Von,R11<=Vertr3bis),S11&Vertrag3Gage, IF(AND(R11>=Vertr4von,R11<=Vertr4bis),S11&Vertrag4Gage, IF(AND(R11>=Vertr5von,R11<=Vertr5bis),S11&Vertrag5Gage, IF(AND(R11>=Vertr6von,R11<=Vertr6bis),S11&Vertrag6Gage, "-")))))),"") ->  | AD11: Mi | AE11: 2025-05-07 | AG11: . | AH11: =IF(AND(AG$3="x",LEFT(AF11,1)="B", OR(AND(AKTIVB1="x",AF11="B1"), AND(AKTIVB2="x",AF11="B2"), AND(AKTIVB3="x",AF11="B3"), AND(AKTIVB4="x",AF11="B4"), AND(AKTIVB5="x",AF11="B5"), AND(AKTIVB6="x",AF11="B6"), AND(AKTIVB7="x",AF11="B7"), )), IF(AND(AE11>=Vertr1Von,AE11<=Vertr1Bis),AF11&Vertrag1Gage, IF(AND(AE11>=Vertr2von,AE11<=Vertr2Bis),AF11&Vertrag2Gage, IF(AND(AE11>=Vertr3Von,AE11<=Vertr3bis),AF11&Vertrag3Gage, IF(AND(AE11>=Vertr4von,AE11<=Vertr4bis),AF11&Vertrag4Gage, IF(AND(AE11>=Vertr5von,AE11<=Vertr5bis),AF11&Vertrag5Gage, IF(AND(AE11>=Vertr6von,AE11<=Vertr6bis),AF11&Vertrag6Gage, "-")))))),"") ->  | AP11: Sa | AQ11: 2025-06-07 | AT11: =IF(AND(AS$3="x",LEFT(AR11,1)="B", OR(AND(AKTIVB1="x",AR11="B1"), AND(AKTIVB2="x",AR11="B2"), AND(AKTIVB3="x",AR11="B3"), AND(AKTIVB4="x",AR11="B4"), AND(AKTIVB5="x",AR11="B5"), AND(AKTIVB6="x",AR11="B6"), AND(AKTIVB7="x",AR11="B7"), )), IF(AND(AQ11>=Vertr1Von,AQ11<=Vertr1Bis),AR11&Vertrag1Gage, IF(AND(AQ11>=Vertr2von,AQ11<=Vertr2Bis),AR11&Vertrag2Gage, IF(AND(AQ11>=Vertr3Von,AQ11<=Vertr3bis),AR11&Vertrag3Gage, IF(AND(AQ11>=Vertr4von,AQ11<=Vertr4bis),AR11&Vertrag4Gage, IF(AND(AQ11>=Vertr5von,AQ11<=Vertr5bis),AR11&Vertrag5Gage, IF(AND(AQ11>=Vertr6von,AQ11<=Vertr6bis),AR11&Vertrag6Gage, "-")))))),"") ->  | BB11: Mo | BC11: 2025-07-07 | BE11: . | BF11: =IF(AND(BE$3="x",LEFT(BD11,1)="B", OR(AND(AKTIVB1="x",BD11="B1"), AND(AKTIVB2="x",BD11="B2"), AND(AKTIVB3="x",BD11="B3"), AND(AKTIVB4="x",BD11="B4"), AND(AKTIVB5="x",BD11="B5"), AND(AKTIVB6="x",BD11="B6"), AND(AKTIVB7="x",BD11="B7"), )), IF(AND(BC11>=Vertr1Von,BC11<=Vertr1Bis),BD11&Vertrag1Gage, IF(AND(BC11>=Vertr2von,BC11<=Vertr2Bis),BD11&Vertrag2Gage, IF(AND(BC11>=Vertr3Von,BC11<=Vertr3bis),BD11&Vertrag3Gage, IF(AND(BC11>=Vertr4von,BC11<=Vertr4bis),BD11&Vertrag4Gage, IF(AND(BC11>=Vertr5von,BC11<=Vertr5bis),BD11&Vertrag5Gage, IF(AND(BC11>=Vertr6von,BC11<=Vertr6bis),BD11&Vertrag6Gage, "-")))))),"") ->  | BM11: 1 | BN11: Do | BO11: 2025-08-07 | BQ11: . | BR11: =IF(AND(BQ$3="x",LEFT(BP11,1)="B", OR(AND(AKTIVB1="x",BP11="B1"), AND(AKTIVB2="x",BP11="B2"), AND(AKTIVB3="x",BP11="B3"), AND(AKTIVB4="x",BP11="B4"), AND(AKTIVB5="x",BP11="B5"), AND(AKTIVB6="x",BP11="B6"), AND(AKTIVB7="x",BP11="B7"), )), IF(AND(BO11>=Vertr1Von,BO11<=Vertr1Bis),BP11&Vertrag1Gage, IF(AND(BO11>=Vertr2von,BO11<=Vertr2Bis),BP11&Vertrag2Gage, IF(AND(BO11>=Vertr3Von,BO11<=Vertr3bis),BP11&Vertrag3Gage, IF(AND(BO11>=Vertr4von,BO11<=Vertr4bis),BP11&Vertrag4Gage, IF(AND(BO11>=Vertr5von,BO11<=Vertr5bis),BP11&Vertrag5Gage, IF(AND(BO11>=Vertr6von,BO11<=Vertr6bis),BP11&Vertrag6Gage, "-")))))),"") ->  | BZ11: So | CA11: 2025-09-07 | CD11: =IF(AND(CC$3="x",LEFT(CB11,1)="B", OR(AND(AKTIVB1="x",CB11="B1"), AND(AKTIVB2="x",CB11="B2"), AND(AKTIVB3="x",CB11="B3"), AND(AKTIVB4="x",CB11="B4"), AND(AKTIVB5="x",CB11="B5"), AND(AKTIVB6="x",CB11="B6"), AND(AKTIVB7="x",CB11="B7"), )), IF(AND(CA11>=Vertr1Von,CA11<=Vertr1Bis),CB11&Vertrag1Gage, IF(AND(CA11>=Vertr2von,CA11<=Vertr2Bis),CB11&Vertrag2Gage, IF(AND(CA11>=Vertr3Von,CA11<=Vertr3bis),CB11&Vertrag3Gage, IF(AND(CA11>=Vertr4von,CA11<=Vertr4bis),CB11&Vertrag4Gage, IF(AND(CA11>=Vertr5von,CA11<=Vertr5bis),CB11&Vertrag5Gage, IF(AND(CA11>=Vertr6von,CA11<=Vertr6bis),CB11&Vertrag6Gage, "-")))))),"") ->  | CL11: Di | CM11: 2025-10-07 | CO11: . | CP11: =IF(AND(CO$3="x",LEFT(CN11,1)="B", OR(AND(AKTIVB1="x",CN11="B1"), AND(AKTIVB2="x",CN11="B2"), AND(AKTIVB3="x",CN11="B3"), AND(AKTIVB4="x",CN11="B4"), AND(AKTIVB5="x",CN11="B5"), AND(AKTIVB6="x",CN11="B6"), AND(AKTIVB7="x",CN11="B7"), )), IF(AND(CM11>=Vertr1Von,CM11<=Vertr1Bis),CN11&Vertrag1Gage, IF(AND(CM11>=Vertr2von,CM11<=Vertr2Bis),CN11&Vertrag2Gage, IF(AND(CM11>=Vertr3Von,CM11<=Vertr3bis),CN11&Vertrag3Gage, IF(AND(CM11>=Vertr4von,CM11<=Vertr4bis),CN11&Vertrag4Gage, IF(AND(CM11>=Vertr5von,CM11<=Vertr5bis),CN11&Vertrag5Gage, IF(AND(CM11>=Vertr6von,CM11<=Vertr6bis),CN11&Vertrag6Gage, "-")))))),"") ->  | CY11: Fr | CZ11: 2025-11-07 | DB11: . | DC11: =IF(AND(DB$3="x",LEFT(DA11,1)="B", OR(AND(AKTIVB1="x",DA11="B1"), AND(AKTIVB2="x",DA11="B2"), AND(AKTIVB3="x",DA11="B3"), AND(AKTIVB4="x",DA11="B4"), AND(AKTIVB5="x",DA11="B5"), AND(AKTIVB6="x",DA11="B6"), AND(AKTIVB7="x",DA11="B7"), )), IF(AND(CZ11>=Vertr1Von,CZ11<=Vertr1Bis),DA11&Vertrag1Gage, IF(AND(CZ11>=Vertr2von,CZ11<=Vertr2Bis),DA11&Vertrag2Gage, IF(AND(CZ11>=Vertr3Von,CZ11<=Vertr3bis),DA11&Vertrag3Gage, IF(AND(CZ11>=Vertr4von,CZ11<=Vertr4bis),DA11&Vertrag4Gage, IF(AND(CZ11>=Vertr5von,CZ11<=Vertr5bis),DA11&Vertrag5Gage, IF(AND(CZ11>=Vertr6von,CZ11<=Vertr6bis),DA11&Vertrag6Gage, "-")))))),"") ->  | DK11: So | DL11: 2025-12-07 | DO11: =IF(AND(DN$3="x",LEFT(DM11,1)="B", OR(AND(AKTIVB1="x",DM11="B1"), AND(AKTIVB2="x",DM11="B2"), AND(AKTIVB3="x",DM11="B3"), AND(AKTIVB4="x",DM11="B4"), AND(AKTIVB5="x",DM11="B5"), AND(AKTIVB6="x",DM11="B6"), AND(AKTIVB7="x",DM11="B7"), )), IF(AND(DL11>=Vertr1Von,DL11<=Vertr1Bis),DM11&Vertrag1Gage, IF(AND(DL11>=Vertr2von,DL11<=Vertr2Bis),DM11&Vertrag2Gage, IF(AND(DL11>=Vertr3Von,DL11<=Vertr3bis),DM11&Vertrag3Gage, IF(AND(DL11>=Vertr4von,DL11<=Vertr4bis),DM11&Vertrag4Gage, IF(AND(DL11>=Vertr5von,DL11<=Vertr5bis),DM11&Vertrag5Gage, IF(AND(DL11>=Vertr6von,DL11<=Vertr6bis),DM11&Vertrag6Gage, "-")))))),"") ->  | DW11: Mi | DX11: 2026-01-07 | DZ11: . | EA11: =IF(AND(DZ$3="x",LEFT(DY11,1)="B", OR(AND(AKTIVB1="x",DY11="B1"), AND(AKTIVB2="x",DY11="B2"), AND(AKTIVB3="x",DY11="B3"), AND(AKTIVB4="x",DY11="B4"), AND(AKTIVB5="x",DY11="B5"), AND(AKTIVB6="x",DY11="B6"), AND(AKTIVB7="x",DY11="B7"), )), IF(AND(DX11>=Vertr1Von,DX11<=Vertr1Bis),DY11&Vertrag1Gage, IF(AND(DX11>=Vertr2von,DX11<=Vertr2Bis),DY11&Vertrag2Gage, IF(AND(DX11>=Vertr3Von,DX11<=Vertr3bis),DY11&Vertrag3Gage, IF(AND(DX11>=Vertr4von,DX11<=Vertr4bis),DY11&Vertrag4Gage, IF(AND(DX11>=Vertr5von,DX11<=Vertr5bis),DY11&Vertrag5Gage, IF(AND(DX11>=Vertr6von,DX11<=Vertr6bis),DY11&Vertrag6Gage, "-")))))),"") ->  | EI11: Sa | EJ11: 2026-02-07 | EM11: =IF(AND(EL$3="x",LEFT(EK11,1)="B", OR(AND(AKTIVB1="x",EK11="B1"), AND(AKTIVB2="x",EK11="B2"), AND(AKTIVB3="x",EK11="B3"), AND(AKTIVB4="x",EK11="B4"), AND(AKTIVB5="x",EK11="B5"), AND(AKTIVB6="x",EK11="B6"), AND(AKTIVB7="x",EK11="B7"), )), IF(AND(EJ11>=Vertr1Von,EJ11<=Vertr1Bis),EK11&Vertrag1Gage, IF(AND(EJ11>=Vertr2von,EJ11<=Vertr2Bis),EK11&Vertrag2Gage, IF(AND(EJ11>=Vertr3Von,EJ11<=Vertr3bis),EK11&Vertrag3Gage, IF(AND(EJ11>=Vertr4von,EJ11<=Vertr4bis),EK11&Vertrag4Gage, IF(AND(EJ11>=Vertr5von,EJ11<=Vertr5bis),EK11&Vertrag5Gage, IF(AND(EJ11>=Vertr6von,EJ11<=Vertr6bis),EK11&Vertrag6Gage, "-")))))),"") ->  | EU11: Sa | EV11: 2026-03-07 | EY11: =IF(AND(EX$3="x",LEFT(EW11,1)="B", OR(AND(AKTIVB1="x",EW11="B1"), AND(AKTIVB2="x",EW11="B2"), AND(AKTIVB3="x",EW11="B3"), AND(AKTIVB4="x",EW11="B4"), AND(AKTIVB5="x",EW11="B5"), AND(AKTIVB6="x",EW11="B6"), AND(AKTIVB7="x",EW11="B7"), )), IF(AND(EV11>=Vertr1Von,EV11<=Vertr1Bis),EW11&Vertrag1Gage, IF(AND(EV11>=Vertr2von,EV11<=Vertr2Bis),EW11&Vertrag2Gage, IF(AND(EV11>=Vertr3Von,EV11<=Vertr3bis),EW11&Vertrag3Gage, IF(AND(EV11>=Vertr4von,EV11<=Vertr4bis),EW11&Vertrag4Gage, IF(AND(EV11>=Vertr5von,EV11<=Vertr5bis),EW11&Vertrag5Gage, IF(AND(EV11>=Vertr6von,EV11<=Vertr6bis),EW11&Vertrag6Gage, "-")))))),"") ->  | FG11: Di | FH11: 2026-04-07 | FJ11: . | FK11: =IF(AND(FJ$3="x",LEFT(FI11,1)="B", OR(AND(AKTIVB1="x",FI11="B1"), AND(AKTIVB2="x",FI11="B2"), AND(AKTIVB3="x",FI11="B3"), AND(AKTIVB4="x",FI11="B4"), AND(AKTIVB5="x",FI11="B5"), AND(AKTIVB6="x",FI11="B6"), AND(AKTIVB7="x",FI11="B7"), )), IF(AND(FH11>=Vertr1Von,FH11<=Vertr1Bis),FI11&Vertrag1Gage, IF(AND(FH11>=Vertr2von,FH11<=Vertr2Bis),FI11&Vertrag2Gage, IF(AND(FH11>=Vertr3Von,FH11<=Vertr3bis),FI11&Vertrag3Gage, IF(AND(FH11>=Vertr4von,FH11<=Vertr4bis),FI11&Vertrag4Gage, IF(AND(FH11>=Vertr5von,FH11<=Vertr5bis),FI11&Vertrag5Gage, IF(AND(FH11>=Vertr6von,FH11<=Vertr6bis),FI11&Vertrag6Gage, "-")))))),"") ->  | FS11: Do | FT11: 2026-05-07 | FV11: . | FW11: =IF(AND(FV$3="x",LEFT(FU11,1)="B", OR(AND(AKTIVB1="x",FU11="B1"), AND(AKTIVB2="x",FU11="B2"), AND(AKTIVB3="x",FU11="B3"), AND(AKTIVB4="x",FU11="B4"), AND(AKTIVB5="x",FU11="B5"), AND(AKTIVB6="x",FU11="B6"), AND(AKTIVB7="x",FU11="B7"), )), IF(AND(FT11>=Vertr1Von,FT11<=Vertr1Bis),FU11&Vertrag1Gage, IF(AND(FT11>=Vertr2von,FT11<=Vertr2Bis),FU11&Vertrag2Gage, IF(AND(FT11>=Vertr3Von,FT11<=Vertr3bis),FU11&Vertrag3Gage, IF(AND(FT11>=Vertr4von,FT11<=Vertr4bis),FU11&Vertrag4Gage, IF(AND(FT11>=Vertr5von,FT11<=Vertr5bis),FU11&Vertrag5Gage, IF(AND(FT11>=Vertr6von,FT11<=Vertr6bis),FU11&Vertrag6Gage, "-")))))),"") -> 
C12: Wochengage 3 | D12: Bx3 | H12: =GageC/5 -> 0 | K12: Zeitkonto 80:20 J/N | L12: J | M12: Ansatz | N12: 0.8 | Q12: Di | R12: 2025-04-08 | T12: . | U12: =IF(AND(T$3="x",LEFT(S12,1)="B", OR(AND(AKTIVB1="x",S12="B1"), AND(AKTIVB2="x",S12="B2"), AND(AKTIVB3="x",S12="B3"), AND(AKTIVB4="x",S12="B4"), AND(AKTIVB5="x",S12="B5"), AND(AKTIVB6="x",S12="B6"), AND(AKTIVB7="x",S12="B7"), )), IF(AND(R12>=Vertr1Von,R12<=Vertr1Bis),S12&Vertrag1Gage, IF(AND(R12>=Vertr2von,R12<=Vertr2Bis),S12&Vertrag2Gage, IF(AND(R12>=Vertr3Von,R12<=Vertr3bis),S12&Vertrag3Gage, IF(AND(R12>=Vertr4von,R12<=Vertr4bis),S12&Vertrag4Gage, IF(AND(R12>=Vertr5von,R12<=Vertr5bis),S12&Vertrag5Gage, IF(AND(R12>=Vertr6von,R12<=Vertr6bis),S12&Vertrag6Gage, "-")))))),"") ->  | AD12: Do | AE12: 2025-05-08 | AG12: . | AH12: =IF(AND(AG$3="x",LEFT(AF12,1)="B", OR(AND(AKTIVB1="x",AF12="B1"), AND(AKTIVB2="x",AF12="B2"), AND(AKTIVB3="x",AF12="B3"), AND(AKTIVB4="x",AF12="B4"), AND(AKTIVB5="x",AF12="B5"), AND(AKTIVB6="x",AF12="B6"), AND(AKTIVB7="x",AF12="B7"), )), IF(AND(AE12>=Vertr1Von,AE12<=Vertr1Bis),AF12&Vertrag1Gage, IF(AND(AE12>=Vertr2von,AE12<=Vertr2Bis),AF12&Vertrag2Gage, IF(AND(AE12>=Vertr3Von,AE12<=Vertr3bis),AF12&Vertrag3Gage, IF(AND(AE12>=Vertr4von,AE12<=Vertr4bis),AF12&Vertrag4Gage, IF(AND(AE12>=Vertr5von,AE12<=Vertr5bis),AF12&Vertrag5Gage, IF(AND(AE12>=Vertr6von,AE12<=Vertr6bis),AF12&Vertrag6Gage, "-")))))),"") ->  | AP12: So | AQ12: 2025-06-08 | AT12: =IF(AND(AS$3="x",LEFT(AR12,1)="B", OR(AND(AKTIVB1="x",AR12="B1"), AND(AKTIVB2="x",AR12="B2"), AND(AKTIVB3="x",AR12="B3"), AND(AKTIVB4="x",AR12="B4"), AND(AKTIVB5="x",AR12="B5"), AND(AKTIVB6="x",AR12="B6"), AND(AKTIVB7="x",AR12="B7"), )), IF(AND(AQ12>=Vertr1Von,AQ12<=Vertr1Bis),AR12&Vertrag1Gage, IF(AND(AQ12>=Vertr2von,AQ12<=Vertr2Bis),AR12&Vertrag2Gage, IF(AND(AQ12>=Vertr3Von,AQ12<=Vertr3bis),AR12&Vertrag3Gage, IF(AND(AQ12>=Vertr4von,AQ12<=Vertr4bis),AR12&Vertrag4Gage, IF(AND(AQ12>=Vertr5von,AQ12<=Vertr5bis),AR12&Vertrag5Gage, IF(AND(AQ12>=Vertr6von,AQ12<=Vertr6bis),AR12&Vertrag6Gage, "-")))))),"") ->  | BB12: Di | BC12: 2025-07-08 | BE12: . | BF12: =IF(AND(BE$3="x",LEFT(BD12,1)="B", OR(AND(AKTIVB1="x",BD12="B1"), AND(AKTIVB2="x",BD12="B2"), AND(AKTIVB3="x",BD12="B3"), AND(AKTIVB4="x",BD12="B4"), AND(AKTIVB5="x",BD12="B5"), AND(AKTIVB6="x",BD12="B6"), AND(AKTIVB7="x",BD12="B7"), )), IF(AND(BC12>=Vertr1Von,BC12<=Vertr1Bis),BD12&Vertrag1Gage, IF(AND(BC12>=Vertr2von,BC12<=Vertr2Bis),BD12&Vertrag2Gage, IF(AND(BC12>=Vertr3Von,BC12<=Vertr3bis),BD12&Vertrag3Gage, IF(AND(BC12>=Vertr4von,BC12<=Vertr4bis),BD12&Vertrag4Gage, IF(AND(BC12>=Vertr5von,BC12<=Vertr5bis),BD12&Vertrag5Gage, IF(AND(BC12>=Vertr6von,BC12<=Vertr6bis),BD12&Vertrag6Gage, "-")))))),"") ->  | BM12: 1.2 | BN12: Fr | BO12: 2025-08-08 | BQ12: . | BR12: =IF(AND(BQ$3="x",LEFT(BP12,1)="B", OR(AND(AKTIVB1="x",BP12="B1"), AND(AKTIVB2="x",BP12="B2"), AND(AKTIVB3="x",BP12="B3"), AND(AKTIVB4="x",BP12="B4"), AND(AKTIVB5="x",BP12="B5"), AND(AKTIVB6="x",BP12="B6"), AND(AKTIVB7="x",BP12="B7"), )), IF(AND(BO12>=Vertr1Von,BO12<=Vertr1Bis),BP12&Vertrag1Gage, IF(AND(BO12>=Vertr2von,BO12<=Vertr2Bis),BP12&Vertrag2Gage, IF(AND(BO12>=Vertr3Von,BO12<=Vertr3bis),BP12&Vertrag3Gage, IF(AND(BO12>=Vertr4von,BO12<=Vertr4bis),BP12&Vertrag4Gage, IF(AND(BO12>=Vertr5von,BO12<=Vertr5bis),BP12&Vertrag5Gage, IF(AND(BO12>=Vertr6von,BO12<=Vertr6bis),BP12&Vertrag6Gage, "-")))))),"") ->  | BZ12: Mo | CA12: 2025-09-08 | CC12: . | CD12: =IF(AND(CC$3="x",LEFT(CB12,1)="B", OR(AND(AKTIVB1="x",CB12="B1"), AND(AKTIVB2="x",CB12="B2"), AND(AKTIVB3="x",CB12="B3"), AND(AKTIVB4="x",CB12="B4"), AND(AKTIVB5="x",CB12="B5"), AND(AKTIVB6="x",CB12="B6"), AND(AKTIVB7="x",CB12="B7"), )), IF(AND(CA12>=Vertr1Von,CA12<=Vertr1Bis),CB12&Vertrag1Gage, IF(AND(CA12>=Vertr2von,CA12<=Vertr2Bis),CB12&Vertrag2Gage, IF(AND(CA12>=Vertr3Von,CA12<=Vertr3bis),CB12&Vertrag3Gage, IF(AND(CA12>=Vertr4von,CA12<=Vertr4bis),CB12&Vertrag4Gage, IF(AND(CA12>=Vertr5von,CA12<=Vertr5bis),CB12&Vertrag5Gage, IF(AND(CA12>=Vertr6von,CA12<=Vertr6bis),CB12&Vertrag6Gage, "-")))))),"") ->  | CL12: Mi | CM12: 2025-10-08 | CO12: . | CP12: =IF(AND(CO$3="x",LEFT(CN12,1)="B", OR(AND(AKTIVB1="x",CN12="B1"), AND(AKTIVB2="x",CN12="B2"), AND(AKTIVB3="x",CN12="B3"), AND(AKTIVB4="x",CN12="B4"), AND(AKTIVB5="x",CN12="B5"), AND(AKTIVB6="x",CN12="B6"), AND(AKTIVB7="x",CN12="B7"), )), IF(AND(CM12>=Vertr1Von,CM12<=Vertr1Bis),CN12&Vertrag1Gage, IF(AND(CM12>=Vertr2von,CM12<=Vertr2Bis),CN12&Vertrag2Gage, IF(AND(CM12>=Vertr3Von,CM12<=Vertr3bis),CN12&Vertrag3Gage, IF(AND(CM12>=Vertr4von,CM12<=Vertr4bis),CN12&Vertrag4Gage, IF(AND(CM12>=Vertr5von,CM12<=Vertr5bis),CN12&Vertrag5Gage, IF(AND(CM12>=Vertr6von,CM12<=Vertr6bis),CN12&Vertrag6Gage, "-")))))),"") ->  | CY12: Sa | CZ12: 2025-11-08 | DC12: =IF(AND(DB$3="x",LEFT(DA12,1)="B", OR(AND(AKTIVB1="x",DA12="B1"), AND(AKTIVB2="x",DA12="B2"), AND(AKTIVB3="x",DA12="B3"), AND(AKTIVB4="x",DA12="B4"), AND(AKTIVB5="x",DA12="B5"), AND(AKTIVB6="x",DA12="B6"), AND(AKTIVB7="x",DA12="B7"), )), IF(AND(CZ12>=Vertr1Von,CZ12<=Vertr1Bis),DA12&Vertrag1Gage, IF(AND(CZ12>=Vertr2von,CZ12<=Vertr2Bis),DA12&Vertrag2Gage, IF(AND(CZ12>=Vertr3Von,CZ12<=Vertr3bis),DA12&Vertrag3Gage, IF(AND(CZ12>=Vertr4von,CZ12<=Vertr4bis),DA12&Vertrag4Gage, IF(AND(CZ12>=Vertr5von,CZ12<=Vertr5bis),DA12&Vertrag5Gage, IF(AND(CZ12>=Vertr6von,CZ12<=Vertr6bis),DA12&Vertrag6Gage, "-")))))),"") ->  | DK12: Mo | DL12: 2025-12-08 | DN12: . | DO12: =IF(AND(DN$3="x",LEFT(DM12,1)="B", OR(AND(AKTIVB1="x",DM12="B1"), AND(AKTIVB2="x",DM12="B2"), AND(AKTIVB3="x",DM12="B3"), AND(AKTIVB4="x",DM12="B4"), AND(AKTIVB5="x",DM12="B5"), AND(AKTIVB6="x",DM12="B6"), AND(AKTIVB7="x",DM12="B7"), )), IF(AND(DL12>=Vertr1Von,DL12<=Vertr1Bis),DM12&Vertrag1Gage, IF(AND(DL12>=Vertr2von,DL12<=Vertr2Bis),DM12&Vertrag2Gage, IF(AND(DL12>=Vertr3Von,DL12<=Vertr3bis),DM12&Vertrag3Gage, IF(AND(DL12>=Vertr4von,DL12<=Vertr4bis),DM12&Vertrag4Gage, IF(AND(DL12>=Vertr5von,DL12<=Vertr5bis),DM12&Vertrag5Gage, IF(AND(DL12>=Vertr6von,DL12<=Vertr6bis),DM12&Vertrag6Gage, "-")))))),"") ->  | DW12: Do | DX12: 2026-01-08 | DZ12: . | EA12: =IF(AND(DZ$3="x",LEFT(DY12,1)="B", OR(AND(AKTIVB1="x",DY12="B1"), AND(AKTIVB2="x",DY12="B2"), AND(AKTIVB3="x",DY12="B3"), AND(AKTIVB4="x",DY12="B4"), AND(AKTIVB5="x",DY12="B5"), AND(AKTIVB6="x",DY12="B6"), AND(AKTIVB7="x",DY12="B7"), )), IF(AND(DX12>=Vertr1Von,DX12<=Vertr1Bis),DY12&Vertrag1Gage, IF(AND(DX12>=Vertr2von,DX12<=Vertr2Bis),DY12&Vertrag2Gage, IF(AND(DX12>=Vertr3Von,DX12<=Vertr3bis),DY12&Vertrag3Gage, IF(AND(DX12>=Vertr4von,DX12<=Vertr4bis),DY12&Vertrag4Gage, IF(AND(DX12>=Vertr5von,DX12<=Vertr5bis),DY12&Vertrag5Gage, IF(AND(DX12>=Vertr6von,DX12<=Vertr6bis),DY12&Vertrag6Gage, "-")))))),"") ->  | EI12: So | EJ12: 2026-02-08 | EM12: =IF(AND(EL$3="x",LEFT(EK12,1)="B", OR(AND(AKTIVB1="x",EK12="B1"), AND(AKTIVB2="x",EK12="B2"), AND(AKTIVB3="x",EK12="B3"), AND(AKTIVB4="x",EK12="B4"), AND(AKTIVB5="x",EK12="B5"), AND(AKTIVB6="x",EK12="B6"), AND(AKTIVB7="x",EK12="B7"), )), IF(AND(EJ12>=Vertr1Von,EJ12<=Vertr1Bis),EK12&Vertrag1Gage, IF(AND(EJ12>=Vertr2von,EJ12<=Vertr2Bis),EK12&Vertrag2Gage, IF(AND(EJ12>=Vertr3Von,EJ12<=Vertr3bis),EK12&Vertrag3Gage, IF(AND(EJ12>=Vertr4von,EJ12<=Vertr4bis),EK12&Vertrag4Gage, IF(AND(EJ12>=Vertr5von,EJ12<=Vertr5bis),EK12&Vertrag5Gage, IF(AND(EJ12>=Vertr6von,EJ12<=Vertr6bis),EK12&Vertrag6Gage, "-")))))),"") ->  | EU12: So | EV12: 2026-03-08 | EY12: =IF(AND(EX$3="x",LEFT(EW12,1)="B", OR(AND(AKTIVB1="x",EW12="B1"), AND(AKTIVB2="x",EW12="B2"), AND(AKTIVB3="x",EW12="B3"), AND(AKTIVB4="x",EW12="B4"), AND(AKTIVB5="x",EW12="B5"), AND(AKTIVB6="x",EW12="B6"), AND(AKTIVB7="x",EW12="B7"), )), IF(AND(EV12>=Vertr1Von,EV12<=Vertr1Bis),EW12&Vertrag1Gage, IF(AND(EV12>=Vertr2von,EV12<=Vertr2Bis),EW12&Vertrag2Gage, IF(AND(EV12>=Vertr3Von,EV12<=Vertr3bis),EW12&Vertrag3Gage, IF(AND(EV12>=Vertr4von,EV12<=Vertr4bis),EW12&Vertrag4Gage, IF(AND(EV12>=Vertr5von,EV12<=Vertr5bis),EW12&Vertrag5Gage, IF(AND(EV12>=Vertr6von,EV12<=Vertr6bis),EW12&Vertrag6Gage, "-")))))),"") ->  | FG12: Mi | FH12: 2026-04-08 | FJ12: . | FK12: =IF(AND(FJ$3="x",LEFT(FI12,1)="B", OR(AND(AKTIVB1="x",FI12="B1"), AND(AKTIVB2="x",FI12="B2"), AND(AKTIVB3="x",FI12="B3"), AND(AKTIVB4="x",FI12="B4"), AND(AKTIVB5="x",FI12="B5"), AND(AKTIVB6="x",FI12="B6"), AND(AKTIVB7="x",FI12="B7"), )), IF(AND(FH12>=Vertr1Von,FH12<=Vertr1Bis),FI12&Vertrag1Gage, IF(AND(FH12>=Vertr2von,FH12<=Vertr2Bis),FI12&Vertrag2Gage, IF(AND(FH12>=Vertr3Von,FH12<=Vertr3bis),FI12&Vertrag3Gage, IF(AND(FH12>=Vertr4von,FH12<=Vertr4bis),FI12&Vertrag4Gage, IF(AND(FH12>=Vertr5von,FH12<=Vertr5bis),FI12&Vertrag5Gage, IF(AND(FH12>=Vertr6von,FH12<=Vertr6bis),FI12&Vertrag6Gage, "-")))))),"") ->  | FS12: Fr | FT12: 2026-05-08 | FV12: . | FW12: =IF(AND(FV$3="x",LEFT(FU12,1)="B", OR(AND(AKTIVB1="x",FU12="B1"), AND(AKTIVB2="x",FU12="B2"), AND(AKTIVB3="x",FU12="B3"), AND(AKTIVB4="x",FU12="B4"), AND(AKTIVB5="x",FU12="B5"), AND(AKTIVB6="x",FU12="B6"), AND(AKTIVB7="x",FU12="B7"), )), IF(AND(FT12>=Vertr1Von,FT12<=Vertr1Bis),FU12&Vertrag1Gage, IF(AND(FT12>=Vertr2von,FT12<=Vertr2Bis),FU12&Vertrag2Gage, IF(AND(FT12>=Vertr3Von,FT12<=Vertr3bis),FU12&Vertrag3Gage, IF(AND(FT12>=Vertr4von,FT12<=Vertr4bis),FU12&Vertrag4Gage, IF(AND(FT12>=Vertr5von,FT12<=Vertr5bis),FU12&Vertrag5Gage, IF(AND(FT12>=Vertr6von,FT12<=Vertr6bis),FU12&Vertrag6Gage, "-")))))),"") -> 
K13: Ansatz AZV J/N | L13: J | M13: =IF(AnsatzAZV<>"J","Kein Ansatz AZV","AZV gilt") -> AZV gilt | Q13: Mi | R13: 2025-04-09 | T13: . | U13: =IF(AND(T$3="x",LEFT(S13,1)="B", OR(AND(AKTIVB1="x",S13="B1"), AND(AKTIVB2="x",S13="B2"), AND(AKTIVB3="x",S13="B3"), AND(AKTIVB4="x",S13="B4"), AND(AKTIVB5="x",S13="B5"), AND(AKTIVB6="x",S13="B6"), AND(AKTIVB7="x",S13="B7"), )), IF(AND(R13>=Vertr1Von,R13<=Vertr1Bis),S13&Vertrag1Gage, IF(AND(R13>=Vertr2von,R13<=Vertr2Bis),S13&Vertrag2Gage, IF(AND(R13>=Vertr3Von,R13<=Vertr3bis),S13&Vertrag3Gage, IF(AND(R13>=Vertr4von,R13<=Vertr4bis),S13&Vertrag4Gage, IF(AND(R13>=Vertr5von,R13<=Vertr5bis),S13&Vertrag5Gage, IF(AND(R13>=Vertr6von,R13<=Vertr6bis),S13&Vertrag6Gage, "-")))))),"") ->  | AD13: Fr | AE13: 2025-05-09 | AG13: . | AH13: =IF(AND(AG$3="x",LEFT(AF13,1)="B", OR(AND(AKTIVB1="x",AF13="B1"), AND(AKTIVB2="x",AF13="B2"), AND(AKTIVB3="x",AF13="B3"), AND(AKTIVB4="x",AF13="B4"), AND(AKTIVB5="x",AF13="B5"), AND(AKTIVB6="x",AF13="B6"), AND(AKTIVB7="x",AF13="B7"), )), IF(AND(AE13>=Vertr1Von,AE13<=Vertr1Bis),AF13&Vertrag1Gage, IF(AND(AE13>=Vertr2von,AE13<=Vertr2Bis),AF13&Vertrag2Gage, IF(AND(AE13>=Vertr3Von,AE13<=Vertr3bis),AF13&Vertrag3Gage, IF(AND(AE13>=Vertr4von,AE13<=Vertr4bis),AF13&Vertrag4Gage, IF(AND(AE13>=Vertr5von,AE13<=Vertr5bis),AF13&Vertrag5Gage, IF(AND(AE13>=Vertr6von,AE13<=Vertr6bis),AF13&Vertrag6Gage, "-")))))),"") ->  | AP13: Mo | AQ13: 2025-06-09 | AR13: F | AT13: =IF(AND(AS$3="x",LEFT(AR13,1)="B", OR(AND(AKTIVB1="x",AR13="B1"), AND(AKTIVB2="x",AR13="B2"), AND(AKTIVB3="x",AR13="B3"), AND(AKTIVB4="x",AR13="B4"), AND(AKTIVB5="x",AR13="B5"), AND(AKTIVB6="x",AR13="B6"), AND(AKTIVB7="x",AR13="B7"), )), IF(AND(AQ13>=Vertr1Von,AQ13<=Vertr1Bis),AR13&Vertrag1Gage, IF(AND(AQ13>=Vertr2von,AQ13<=Vertr2Bis),AR13&Vertrag2Gage, IF(AND(AQ13>=Vertr3Von,AQ13<=Vertr3bis),AR13&Vertrag3Gage, IF(AND(AQ13>=Vertr4von,AQ13<=Vertr4bis),AR13&Vertrag4Gage, IF(AND(AQ13>=Vertr5von,AQ13<=Vertr5bis),AR13&Vertrag5Gage, IF(AND(AQ13>=Vertr6von,AQ13<=Vertr6bis),AR13&Vertrag6Gage, "-")))))),"") ->  | AX13: B11 | BB13: Mi | BC13: 2025-07-09 | BF13: =IF(AND(BE$3="x",LEFT(BD13,1)="B", OR(AND(AKTIVB1="x",BD13="B1"), AND(AKTIVB2="x",BD13="B2"), AND(AKTIVB3="x",BD13="B3"), AND(AKTIVB4="x",BD13="B4"), AND(AKTIVB5="x",BD13="B5"), AND(AKTIVB6="x",BD13="B6"), AND(AKTIVB7="x",BD13="B7"), )), IF(AND(BC13>=Vertr1Von,BC13<=Vertr1Bis),BD13&Vertrag1Gage, IF(AND(BC13>=Vertr2von,BC13<=Vertr2Bis),BD13&Vertrag2Gage, IF(AND(BC13>=Vertr3Von,BC13<=Vertr3bis),BD13&Vertrag3Gage, IF(AND(BC13>=Vertr4von,BC13<=Vertr4bis),BD13&Vertrag4Gage, IF(AND(BC13>=Vertr5von,BC13<=Vertr5bis),BD13&Vertrag5Gage, IF(AND(BC13>=Vertr6von,BC13<=Vertr6bis),BD13&Vertrag6Gage, "-")))))),"") ->  | BI13: B11 | BN13: Sa | BO13: 2025-08-09 | BR13: =IF(AND(BQ$3="x",LEFT(BP13,1)="B", OR(AND(AKTIVB1="x",BP13="B1"), AND(AKTIVB2="x",BP13="B2"), AND(AKTIVB3="x",BP13="B3"), AND(AKTIVB4="x",BP13="B4"), AND(AKTIVB5="x",BP13="B5"), AND(AKTIVB6="x",BP13="B6"), AND(AKTIVB7="x",BP13="B7"), )), IF(AND(BO13>=Vertr1Von,BO13<=Vertr1Bis),BP13&Vertrag1Gage, IF(AND(BO13>=Vertr2von,BO13<=Vertr2Bis),BP13&Vertrag2Gage, IF(AND(BO13>=Vertr3Von,BO13<=Vertr3bis),BP13&Vertrag3Gage, IF(AND(BO13>=Vertr4von,BO13<=Vertr4bis),BP13&Vertrag4Gage, IF(AND(BO13>=Vertr5von,BO13<=Vertr5bis),BP13&Vertrag5Gage, IF(AND(BO13>=Vertr6von,BO13<=Vertr6bis),BP13&Vertrag6Gage, "-")))))),"") ->  | BZ13: Di | CA13: 2025-09-09 | CC13: . | CD13: =IF(AND(CC$3="x",LEFT(CB13,1)="B", OR(AND(AKTIVB1="x",CB13="B1"), AND(AKTIVB2="x",CB13="B2"), AND(AKTIVB3="x",CB13="B3"), AND(AKTIVB4="x",CB13="B4"), AND(AKTIVB5="x",CB13="B5"), AND(AKTIVB6="x",CB13="B6"), AND(AKTIVB7="x",CB13="B7"), )), IF(AND(CA13>=Vertr1Von,CA13<=Vertr1Bis),CB13&Vertrag1Gage, IF(AND(CA13>=Vertr2von,CA13<=Vertr2Bis),CB13&Vertrag2Gage, IF(AND(CA13>=Vertr3Von,CA13<=Vertr3bis),CB13&Vertrag3Gage, IF(AND(CA13>=Vertr4von,CA13<=Vertr4bis),CB13&Vertrag4Gage, IF(AND(CA13>=Vertr5von,CA13<=Vertr5bis),CB13&Vertrag5Gage, IF(AND(CA13>=Vertr6von,CA13<=Vertr6bis),CB13&Vertrag6Gage, "-")))))),"") ->  | CL13: Do | CM13: 2025-10-09 | CO13: . | CP13: =IF(AND(CO$3="x",LEFT(CN13,1)="B", OR(AND(AKTIVB1="x",CN13="B1"), AND(AKTIVB2="x",CN13="B2"), AND(AKTIVB3="x",CN13="B3"), AND(AKTIVB4="x",CN13="B4"), AND(AKTIVB5="x",CN13="B5"), AND(AKTIVB6="x",CN13="B6"), AND(AKTIVB7="x",CN13="B7"), )), IF(AND(CM13>=Vertr1Von,CM13<=Vertr1Bis),CN13&Vertrag1Gage, IF(AND(CM13>=Vertr2von,CM13<=Vertr2Bis),CN13&Vertrag2Gage, IF(AND(CM13>=Vertr3Von,CM13<=Vertr3bis),CN13&Vertrag3Gage, IF(AND(CM13>=Vertr4von,CM13<=Vertr4bis),CN13&Vertrag4Gage, IF(AND(CM13>=Vertr5von,CM13<=Vertr5bis),CN13&Vertrag5Gage, IF(AND(CM13>=Vertr6von,CM13<=Vertr6bis),CN13&Vertrag6Gage, "-")))))),"") ->  | CY13: So | CZ13: 2025-11-09 | DC13: =IF(AND(DB$3="x",LEFT(DA13,1)="B", OR(AND(AKTIVB1="x",DA13="B1"), AND(AKTIVB2="x",DA13="B2"), AND(AKTIVB3="x",DA13="B3"), AND(AKTIVB4="x",DA13="B4"), AND(AKTIVB5="x",DA13="B5"), AND(AKTIVB6="x",DA13="B6"), AND(AKTIVB7="x",DA13="B7"), )), IF(AND(CZ13>=Vertr1Von,CZ13<=Vertr1Bis),DA13&Vertrag1Gage, IF(AND(CZ13>=Vertr2von,CZ13<=Vertr2Bis),DA13&Vertrag2Gage, IF(AND(CZ13>=Vertr3Von,CZ13<=Vertr3bis),DA13&Vertrag3Gage, IF(AND(CZ13>=Vertr4von,CZ13<=Vertr4bis),DA13&Vertrag4Gage, IF(AND(CZ13>=Vertr5von,CZ13<=Vertr5bis),DA13&Vertrag5Gage, IF(AND(CZ13>=Vertr6von,CZ13<=Vertr6bis),DA13&Vertrag6Gage, "-")))))),"") ->  | DK13: Di | DL13: 2025-12-09 | DN13: . | DO13: =IF(AND(DN$3="x",LEFT(DM13,1)="B", OR(AND(AKTIVB1="x",DM13="B1"), AND(AKTIVB2="x",DM13="B2"), AND(AKTIVB3="x",DM13="B3"), AND(AKTIVB4="x",DM13="B4"), AND(AKTIVB5="x",DM13="B5"), AND(AKTIVB6="x",DM13="B6"), AND(AKTIVB7="x",DM13="B7"), )), IF(AND(DL13>=Vertr1Von,DL13<=Vertr1Bis),DM13&Vertrag1Gage, IF(AND(DL13>=Vertr2von,DL13<=Vertr2Bis),DM13&Vertrag2Gage, IF(AND(DL13>=Vertr3Von,DL13<=Vertr3bis),DM13&Vertrag3Gage, IF(AND(DL13>=Vertr4von,DL13<=Vertr4bis),DM13&Vertrag4Gage, IF(AND(DL13>=Vertr5von,DL13<=Vertr5bis),DM13&Vertrag5Gage, IF(AND(DL13>=Vertr6von,DL13<=Vertr6bis),DM13&Vertrag6Gage, "-")))))),"") ->  | DW13: Fr | DX13: 2026-01-09 | DZ13: . | EA13: =IF(AND(DZ$3="x",LEFT(DY13,1)="B", OR(AND(AKTIVB1="x",DY13="B1"), AND(AKTIVB2="x",DY13="B2"), AND(AKTIVB3="x",DY13="B3"), AND(AKTIVB4="x",DY13="B4"), AND(AKTIVB5="x",DY13="B5"), AND(AKTIVB6="x",DY13="B6"), AND(AKTIVB7="x",DY13="B7"), )), IF(AND(DX13>=Vertr1Von,DX13<=Vertr1Bis),DY13&Vertrag1Gage, IF(AND(DX13>=Vertr2von,DX13<=Vertr2Bis),DY13&Vertrag2Gage, IF(AND(DX13>=Vertr3Von,DX13<=Vertr3bis),DY13&Vertrag3Gage, IF(AND(DX13>=Vertr4von,DX13<=Vertr4bis),DY13&Vertrag4Gage, IF(AND(DX13>=Vertr5von,DX13<=Vertr5bis),DY13&Vertrag5Gage, IF(AND(DX13>=Vertr6von,DX13<=Vertr6bis),DY13&Vertrag6Gage, "-")))))),"") ->  | EI13: Mo | EJ13: 2026-02-09 | EL13: . | EM13: =IF(AND(EL$3="x",LEFT(EK13,1)="B", OR(AND(AKTIVB1="x",EK13="B1"), AND(AKTIVB2="x",EK13="B2"), AND(AKTIVB3="x",EK13="B3"), AND(AKTIVB4="x",EK13="B4"), AND(AKTIVB5="x",EK13="B5"), AND(AKTIVB6="x",EK13="B6"), AND(AKTIVB7="x",EK13="B7"), )), IF(AND(EJ13>=Vertr1Von,EJ13<=Vertr1Bis),EK13&Vertrag1Gage, IF(AND(EJ13>=Vertr2von,EJ13<=Vertr2Bis),EK13&Vertrag2Gage, IF(AND(EJ13>=Vertr3Von,EJ13<=Vertr3bis),EK13&Vertrag3Gage, IF(AND(EJ13>=Vertr4von,EJ13<=Vertr4bis),EK13&Vertrag4Gage, IF(AND(EJ13>=Vertr5von,EJ13<=Vertr5bis),EK13&Vertrag5Gage, IF(AND(EJ13>=Vertr6von,EJ13<=Vertr6bis),EK13&Vertrag6Gage, "-")))))),"") ->  | EU13: Mo | EV13: 2026-03-09 | EX13: . | EY13: =IF(AND(EX$3="x",LEFT(EW13,1)="B", OR(AND(AKTIVB1="x",EW13="B1"), AND(AKTIVB2="x",EW13="B2"), AND(AKTIVB3="x",EW13="B3"), AND(AKTIVB4="x",EW13="B4"), AND(AKTIVB5="x",EW13="B5"), AND(AKTIVB6="x",EW13="B6"), AND(AKTIVB7="x",EW13="B7"), )), IF(AND(EV13>=Vertr1Von,EV13<=Vertr1Bis),EW13&Vertrag1Gage, IF(AND(EV13>=Vertr2von,EV13<=Vertr2Bis),EW13&Vertrag2Gage, IF(AND(EV13>=Vertr3Von,EV13<=Vertr3bis),EW13&Vertrag3Gage, IF(AND(EV13>=Vertr4von,EV13<=Vertr4bis),EW13&Vertrag4Gage, IF(AND(EV13>=Vertr5von,EV13<=Vertr5bis),EW13&Vertrag5Gage, IF(AND(EV13>=Vertr6von,EV13<=Vertr6bis),EW13&Vertrag6Gage, "-")))))),"") ->  | FG13: Do | FH13: 2026-04-09 | FJ13: . | FK13: =IF(AND(FJ$3="x",LEFT(FI13,1)="B", OR(AND(AKTIVB1="x",FI13="B1"), AND(AKTIVB2="x",FI13="B2"), AND(AKTIVB3="x",FI13="B3"), AND(AKTIVB4="x",FI13="B4"), AND(AKTIVB5="x",FI13="B5"), AND(AKTIVB6="x",FI13="B6"), AND(AKTIVB7="x",FI13="B7"), )), IF(AND(FH13>=Vertr1Von,FH13<=Vertr1Bis),FI13&Vertrag1Gage, IF(AND(FH13>=Vertr2von,FH13<=Vertr2Bis),FI13&Vertrag2Gage, IF(AND(FH13>=Vertr3Von,FH13<=Vertr3bis),FI13&Vertrag3Gage, IF(AND(FH13>=Vertr4von,FH13<=Vertr4bis),FI13&Vertrag4Gage, IF(AND(FH13>=Vertr5von,FH13<=Vertr5bis),FI13&Vertrag5Gage, IF(AND(FH13>=Vertr6von,FH13<=Vertr6bis),FI13&Vertrag6Gage, "-")))))),"") ->  | FS13: Sa | FT13: 2026-05-09 | FW13: =IF(AND(FV$3="x",LEFT(FU13,1)="B", OR(AND(AKTIVB1="x",FU13="B1"), AND(AKTIVB2="x",FU13="B2"), AND(AKTIVB3="x",FU13="B3"), AND(AKTIVB4="x",FU13="B4"), AND(AKTIVB5="x",FU13="B5"), AND(AKTIVB6="x",FU13="B6"), AND(AKTIVB7="x",FU13="B7"), )), IF(AND(FT13>=Vertr1Von,FT13<=Vertr1Bis),FU13&Vertrag1Gage, IF(AND(FT13>=Vertr2von,FT13<=Vertr2Bis),FU13&Vertrag2Gage, IF(AND(FT13>=Vertr3Von,FT13<=Vertr3bis),FU13&Vertrag3Gage, IF(AND(FT13>=Vertr4von,FT13<=Vertr4bis),FU13&Vertrag4Gage, IF(AND(FT13>=Vertr5von,FT13<=Vertr5bis),FU13&Vertrag5Gage, IF(AND(FT13>=Vertr6von,FT13<=Vertr6bis),FU13&Vertrag6Gage, "-")))))),"") -> 
Q14: Do | R14: 2025-04-10 | T14: . | U14: =IF(AND(T$3="x",LEFT(S14,1)="B", OR(AND(AKTIVB1="x",S14="B1"), AND(AKTIVB2="x",S14="B2"), AND(AKTIVB3="x",S14="B3"), AND(AKTIVB4="x",S14="B4"), AND(AKTIVB5="x",S14="B5"), AND(AKTIVB6="x",S14="B6"), AND(AKTIVB7="x",S14="B7"), )), IF(AND(R14>=Vertr1Von,R14<=Vertr1Bis),S14&Vertrag1Gage, IF(AND(R14>=Vertr2von,R14<=Vertr2Bis),S14&Vertrag2Gage, IF(AND(R14>=Vertr3Von,R14<=Vertr3bis),S14&Vertrag3Gage, IF(AND(R14>=Vertr4von,R14<=Vertr4bis),S14&Vertrag4Gage, IF(AND(R14>=Vertr5von,R14<=Vertr5bis),S14&Vertrag5Gage, IF(AND(R14>=Vertr6von,R14<=Vertr6bis),S14&Vertrag6Gage, "-")))))),"") ->  | AD14: Sa | AE14: 2025-05-10 | AH14: =IF(AND(AG$3="x",LEFT(AF14,1)="B", OR(AND(AKTIVB1="x",AF14="B1"), AND(AKTIVB2="x",AF14="B2"), AND(AKTIVB3="x",AF14="B3"), AND(AKTIVB4="x",AF14="B4"), AND(AKTIVB5="x",AF14="B5"), AND(AKTIVB6="x",AF14="B6"), AND(AKTIVB7="x",AF14="B7"), )), IF(AND(AE14>=Vertr1Von,AE14<=Vertr1Bis),AF14&Vertrag1Gage, IF(AND(AE14>=Vertr2von,AE14<=Vertr2Bis),AF14&Vertrag2Gage, IF(AND(AE14>=Vertr3Von,AE14<=Vertr3bis),AF14&Vertrag3Gage, IF(AND(AE14>=Vertr4von,AE14<=Vertr4bis),AF14&Vertrag4Gage, IF(AND(AE14>=Vertr5von,AE14<=Vertr5bis),AF14&Vertrag5Gage, IF(AND(AE14>=Vertr6von,AE14<=Vertr6bis),AF14&Vertrag6Gage, "-")))))),"") ->  | AP14: Di | AQ14: 2025-06-10 | AR14: AZV | AT14: =IF(AND(AS$3="x",LEFT(AR14,1)="B", OR(AND(AKTIVB1="x",AR14="B1"), AND(AKTIVB2="x",AR14="B2"), AND(AKTIVB3="x",AR14="B3"), AND(AKTIVB4="x",AR14="B4"), AND(AKTIVB5="x",AR14="B5"), AND(AKTIVB6="x",AR14="B6"), AND(AKTIVB7="x",AR14="B7"), )), IF(AND(AQ14>=Vertr1Von,AQ14<=Vertr1Bis),AR14&Vertrag1Gage, IF(AND(AQ14>=Vertr2von,AQ14<=Vertr2Bis),AR14&Vertrag2Gage, IF(AND(AQ14>=Vertr3Von,AQ14<=Vertr3bis),AR14&Vertrag3Gage, IF(AND(AQ14>=Vertr4von,AQ14<=Vertr4bis),AR14&Vertrag4Gage, IF(AND(AQ14>=Vertr5von,AQ14<=Vertr5bis),AR14&Vertrag5Gage, IF(AND(AQ14>=Vertr6von,AQ14<=Vertr6bis),AR14&Vertrag6Gage, "-")))))),"") ->  | BA14: AZV | BB14: Do | BC14: 2025-07-10 | BF14: =IF(AND(BE$3="x",LEFT(BD14,1)="B", OR(AND(AKTIVB1="x",BD14="B1"), AND(AKTIVB2="x",BD14="B2"), AND(AKTIVB3="x",BD14="B3"), AND(AKTIVB4="x",BD14="B4"), AND(AKTIVB5="x",BD14="B5"), AND(AKTIVB6="x",BD14="B6"), AND(AKTIVB7="x",BD14="B7"), )), IF(AND(BC14>=Vertr1Von,BC14<=Vertr1Bis),BD14&Vertrag1Gage, IF(AND(BC14>=Vertr2von,BC14<=Vertr2Bis),BD14&Vertrag2Gage, IF(AND(BC14>=Vertr3Von,BC14<=Vertr3bis),BD14&Vertrag3Gage, IF(AND(BC14>=Vertr4von,BC14<=Vertr4bis),BD14&Vertrag4Gage, IF(AND(BC14>=Vertr5von,BC14<=Vertr5bis),BD14&Vertrag5Gage, IF(AND(BC14>=Vertr6von,BC14<=Vertr6bis),BD14&Vertrag6Gage, "-")))))),"") ->  | BI14: B11 | BN14: So | BO14: 2025-08-10 | BR14: =IF(AND(BQ$3="x",LEFT(BP14,1)="B", OR(AND(AKTIVB1="x",BP14="B1"), AND(AKTIVB2="x",BP14="B2"), AND(AKTIVB3="x",BP14="B3"), AND(AKTIVB4="x",BP14="B4"), AND(AKTIVB5="x",BP14="B5"), AND(AKTIVB6="x",BP14="B6"), AND(AKTIVB7="x",BP14="B7"), )), IF(AND(BO14>=Vertr1Von,BO14<=Vertr1Bis),BP14&Vertrag1Gage, IF(AND(BO14>=Vertr2von,BO14<=Vertr2Bis),BP14&Vertrag2Gage, IF(AND(BO14>=Vertr3Von,BO14<=Vertr3bis),BP14&Vertrag3Gage, IF(AND(BO14>=Vertr4von,BO14<=Vertr4bis),BP14&Vertrag4Gage, IF(AND(BO14>=Vertr5von,BO14<=Vertr5bis),BP14&Vertrag5Gage, IF(AND(BO14>=Vertr6von,BO14<=Vertr6bis),BP14&Vertrag6Gage, "-")))))),"") ->  | BZ14: Mi | CA14: 2025-09-10 | CC14: . | CD14: =IF(AND(CC$3="x",LEFT(CB14,1)="B", OR(AND(AKTIVB1="x",CB14="B1"), AND(AKTIVB2="x",CB14="B2"), AND(AKTIVB3="x",CB14="B3"), AND(AKTIVB4="x",CB14="B4"), AND(AKTIVB5="x",CB14="B5"), AND(AKTIVB6="x",CB14="B6"), AND(AKTIVB7="x",CB14="B7"), )), IF(AND(CA14>=Vertr1Von,CA14<=Vertr1Bis),CB14&Vertrag1Gage, IF(AND(CA14>=Vertr2von,CA14<=Vertr2Bis),CB14&Vertrag2Gage, IF(AND(CA14>=Vertr3Von,CA14<=Vertr3bis),CB14&Vertrag3Gage, IF(AND(CA14>=Vertr4von,CA14<=Vertr4bis),CB14&Vertrag4Gage, IF(AND(CA14>=Vertr5von,CA14<=Vertr5bis),CB14&Vertrag5Gage, IF(AND(CA14>=Vertr6von,CA14<=Vertr6bis),CB14&Vertrag6Gage, "-")))))),"") ->  | CL14: Fr | CM14: 2025-10-10 | CO14: . | CP14: =IF(AND(CO$3="x",LEFT(CN14,1)="B", OR(AND(AKTIVB1="x",CN14="B1"), AND(AKTIVB2="x",CN14="B2"), AND(AKTIVB3="x",CN14="B3"), AND(AKTIVB4="x",CN14="B4"), AND(AKTIVB5="x",CN14="B5"), AND(AKTIVB6="x",CN14="B6"), AND(AKTIVB7="x",CN14="B7"), )), IF(AND(CM14>=Vertr1Von,CM14<=Vertr1Bis),CN14&Vertrag1Gage, IF(AND(CM14>=Vertr2von,CM14<=Vertr2Bis),CN14&Vertrag2Gage, IF(AND(CM14>=Vertr3Von,CM14<=Vertr3bis),CN14&Vertrag3Gage, IF(AND(CM14>=Vertr4von,CM14<=Vertr4bis),CN14&Vertrag4Gage, IF(AND(CM14>=Vertr5von,CM14<=Vertr5bis),CN14&Vertrag5Gage, IF(AND(CM14>=Vertr6von,CM14<=Vertr6bis),CN14&Vertrag6Gage, "-")))))),"") ->  | CY14: Mo | CZ14: 2025-11-10 | DB14: . | DC14: =IF(AND(DB$3="x",LEFT(DA14,1)="B", OR(AND(AKTIVB1="x",DA14="B1"), AND(AKTIVB2="x",DA14="B2"), AND(AKTIVB3="x",DA14="B3"), AND(AKTIVB4="x",DA14="B4"), AND(AKTIVB5="x",DA14="B5"), AND(AKTIVB6="x",DA14="B6"), AND(AKTIVB7="x",DA14="B7"), )), IF(AND(CZ14>=Vertr1Von,CZ14<=Vertr1Bis),DA14&Vertrag1Gage, IF(AND(CZ14>=Vertr2von,CZ14<=Vertr2Bis),DA14&Vertrag2Gage, IF(AND(CZ14>=Vertr3Von,CZ14<=Vertr3bis),DA14&Vertrag3Gage, IF(AND(CZ14>=Vertr4von,CZ14<=Vertr4bis),DA14&Vertrag4Gage, IF(AND(CZ14>=Vertr5von,CZ14<=Vertr5bis),DA14&Vertrag5Gage, IF(AND(CZ14>=Vertr6von,CZ14<=Vertr6bis),DA14&Vertrag6Gage, "-")))))),"") ->  | DK14: Mi | DL14: 2025-12-10 | DN14: . | DO14: =IF(AND(DN$3="x",LEFT(DM14,1)="B", OR(AND(AKTIVB1="x",DM14="B1"), AND(AKTIVB2="x",DM14="B2"), AND(AKTIVB3="x",DM14="B3"), AND(AKTIVB4="x",DM14="B4"), AND(AKTIVB5="x",DM14="B5"), AND(AKTIVB6="x",DM14="B6"), AND(AKTIVB7="x",DM14="B7"), )), IF(AND(DL14>=Vertr1Von,DL14<=Vertr1Bis),DM14&Vertrag1Gage, IF(AND(DL14>=Vertr2von,DL14<=Vertr2Bis),DM14&Vertrag2Gage, IF(AND(DL14>=Vertr3Von,DL14<=Vertr3bis),DM14&Vertrag3Gage, IF(AND(DL14>=Vertr4von,DL14<=Vertr4bis),DM14&Vertrag4Gage, IF(AND(DL14>=Vertr5von,DL14<=Vertr5bis),DM14&Vertrag5Gage, IF(AND(DL14>=Vertr6von,DL14<=Vertr6bis),DM14&Vertrag6Gage, "-")))))),"") ->  | DW14: Sa | DX14: 2026-01-10 | EA14: =IF(AND(DZ$3="x",LEFT(DY14,1)="B", OR(AND(AKTIVB1="x",DY14="B1"), AND(AKTIVB2="x",DY14="B2"), AND(AKTIVB3="x",DY14="B3"), AND(AKTIVB4="x",DY14="B4"), AND(AKTIVB5="x",DY14="B5"), AND(AKTIVB6="x",DY14="B6"), AND(AKTIVB7="x",DY14="B7"), )), IF(AND(DX14>=Vertr1Von,DX14<=Vertr1Bis),DY14&Vertrag1Gage, IF(AND(DX14>=Vertr2von,DX14<=Vertr2Bis),DY14&Vertrag2Gage, IF(AND(DX14>=Vertr3Von,DX14<=Vertr3bis),DY14&Vertrag3Gage, IF(AND(DX14>=Vertr4von,DX14<=Vertr4bis),DY14&Vertrag4Gage, IF(AND(DX14>=Vertr5von,DX14<=Vertr5bis),DY14&Vertrag5Gage, IF(AND(DX14>=Vertr6von,DX14<=Vertr6bis),DY14&Vertrag6Gage, "-")))))),"") ->  | EI14: Di | EJ14: 2026-02-10 | EL14: . | EM14: =IF(AND(EL$3="x",LEFT(EK14,1)="B", OR(AND(AKTIVB1="x",EK14="B1"), AND(AKTIVB2="x",EK14="B2"), AND(AKTIVB3="x",EK14="B3"), AND(AKTIVB4="x",EK14="B4"), AND(AKTIVB5="x",EK14="B5"), AND(AKTIVB6="x",EK14="B6"), AND(AKTIVB7="x",EK14="B7"), )), IF(AND(EJ14>=Vertr1Von,EJ14<=Vertr1Bis),EK14&Vertrag1Gage, IF(AND(EJ14>=Vertr2von,EJ14<=Vertr2Bis),EK14&Vertrag2Gage, IF(AND(EJ14>=Vertr3Von,EJ14<=Vertr3bis),EK14&Vertrag3Gage, IF(AND(EJ14>=Vertr4von,EJ14<=Vertr4bis),EK14&Vertrag4Gage, IF(AND(EJ14>=Vertr5von,EJ14<=Vertr5bis),EK14&Vertrag5Gage, IF(AND(EJ14>=Vertr6von,EJ14<=Vertr6bis),EK14&Vertrag6Gage, "-")))))),"") ->  | EU14: Di | EV14: 2026-03-10 | EX14: . | EY14: =IF(AND(EX$3="x",LEFT(EW14,1)="B", OR(AND(AKTIVB1="x",EW14="B1"), AND(AKTIVB2="x",EW14="B2"), AND(AKTIVB3="x",EW14="B3"), AND(AKTIVB4="x",EW14="B4"), AND(AKTIVB5="x",EW14="B5"), AND(AKTIVB6="x",EW14="B6"), AND(AKTIVB7="x",EW14="B7"), )), IF(AND(EV14>=Vertr1Von,EV14<=Vertr1Bis),EW14&Vertrag1Gage, IF(AND(EV14>=Vertr2von,EV14<=Vertr2Bis),EW14&Vertrag2Gage, IF(AND(EV14>=Vertr3Von,EV14<=Vertr3bis),EW14&Vertrag3Gage, IF(AND(EV14>=Vertr4von,EV14<=Vertr4bis),EW14&Vertrag4Gage, IF(AND(EV14>=Vertr5von,EV14<=Vertr5bis),EW14&Vertrag5Gage, IF(AND(EV14>=Vertr6von,EV14<=Vertr6bis),EW14&Vertrag6Gage, "-")))))),"") ->  | FG14: Fr | FH14: 2026-04-10 | FJ14: . | FK14: =IF(AND(FJ$3="x",LEFT(FI14,1)="B", OR(AND(AKTIVB1="x",FI14="B1"), AND(AKTIVB2="x",FI14="B2"), AND(AKTIVB3="x",FI14="B3"), AND(AKTIVB4="x",FI14="B4"), AND(AKTIVB5="x",FI14="B5"), AND(AKTIVB6="x",FI14="B6"), AND(AKTIVB7="x",FI14="B7"), )), IF(AND(FH14>=Vertr1Von,FH14<=Vertr1Bis),FI14&Vertrag1Gage, IF(AND(FH14>=Vertr2von,FH14<=Vertr2Bis),FI14&Vertrag2Gage, IF(AND(FH14>=Vertr3Von,FH14<=Vertr3bis),FI14&Vertrag3Gage, IF(AND(FH14>=Vertr4von,FH14<=Vertr4bis),FI14&Vertrag4Gage, IF(AND(FH14>=Vertr5von,FH14<=Vertr5bis),FI14&Vertrag5Gage, IF(AND(FH14>=Vertr6von,FH14<=Vertr6bis),FI14&Vertrag6Gage, "-")))))),"") ->  | FS14: So | FT14: 2026-05-10 | FW14: =IF(AND(FV$3="x",LEFT(FU14,1)="B", OR(AND(AKTIVB1="x",FU14="B1"), AND(AKTIVB2="x",FU14="B2"), AND(AKTIVB3="x",FU14="B3"), AND(AKTIVB4="x",FU14="B4"), AND(AKTIVB5="x",FU14="B5"), AND(AKTIVB6="x",FU14="B6"), AND(AKTIVB7="x",FU14="B7"), )), IF(AND(FT14>=Vertr1Von,FT14<=Vertr1Bis),FU14&Vertrag1Gage, IF(AND(FT14>=Vertr2von,FT14<=Vertr2Bis),FU14&Vertrag2Gage, IF(AND(FT14>=Vertr3Von,FT14<=Vertr3bis),FU14&Vertrag3Gage, IF(AND(FT14>=Vertr4von,FT14<=Vertr4bis),FU14&Vertrag4Gage, IF(AND(FT14>=Vertr5von,FT14<=Vertr5bis),FU14&Vertrag5Gage, IF(AND(FT14>=Vertr6von,FT14<=Vertr6bis),FU14&Vertrag6Gage, "-")))))),"") -> 
C15: von | F15: bis | H15: Gage | J15: Ende real | K15: SV | L15: Anmerkung | Q15: Fr | R15: 2025-04-11 | T15: . | U15: =IF(AND(T$3="x",LEFT(S15,1)="B", OR(AND(AKTIVB1="x",S15="B1"), AND(AKTIVB2="x",S15="B2"), AND(AKTIVB3="x",S15="B3"), AND(AKTIVB4="x",S15="B4"), AND(AKTIVB5="x",S15="B5"), AND(AKTIVB6="x",S15="B6"), AND(AKTIVB7="x",S15="B7"), )), IF(AND(R15>=Vertr1Von,R15<=Vertr1Bis),S15&Vertrag1Gage, IF(AND(R15>=Vertr2von,R15<=Vertr2Bis),S15&Vertrag2Gage, IF(AND(R15>=Vertr3Von,R15<=Vertr3bis),S15&Vertrag3Gage, IF(AND(R15>=Vertr4von,R15<=Vertr4bis),S15&Vertrag4Gage, IF(AND(R15>=Vertr5von,R15<=Vertr5bis),S15&Vertrag5Gage, IF(AND(R15>=Vertr6von,R15<=Vertr6bis),S15&Vertrag6Gage, "-")))))),"") ->  | AD15: So | AE15: 2025-05-11 | AH15: =IF(AND(AG$3="x",LEFT(AF15,1)="B", OR(AND(AKTIVB1="x",AF15="B1"), AND(AKTIVB2="x",AF15="B2"), AND(AKTIVB3="x",AF15="B3"), AND(AKTIVB4="x",AF15="B4"), AND(AKTIVB5="x",AF15="B5"), AND(AKTIVB6="x",AF15="B6"), AND(AKTIVB7="x",AF15="B7"), )), IF(AND(AE15>=Vertr1Von,AE15<=Vertr1Bis),AF15&Vertrag1Gage, IF(AND(AE15>=Vertr2von,AE15<=Vertr2Bis),AF15&Vertrag2Gage, IF(AND(AE15>=Vertr3Von,AE15<=Vertr3bis),AF15&Vertrag3Gage, IF(AND(AE15>=Vertr4von,AE15<=Vertr4bis),AF15&Vertrag4Gage, IF(AND(AE15>=Vertr5von,AE15<=Vertr5bis),AF15&Vertrag5Gage, IF(AND(AE15>=Vertr6von,AE15<=Vertr6bis),AF15&Vertrag6Gage, "-")))))),"") ->  | AP15: Mi | AQ15: 2025-06-11 | AR15: B1 | AT15: =IF(AND(AS$3="x",LEFT(AR15,1)="B", OR(AND(AKTIVB1="x",AR15="B1"), AND(AKTIVB2="x",AR15="B2"), AND(AKTIVB3="x",AR15="B3"), AND(AKTIVB4="x",AR15="B4"), AND(AKTIVB5="x",AR15="B5"), AND(AKTIVB6="x",AR15="B6"), AND(AKTIVB7="x",AR15="B7"), )), IF(AND(AQ15>=Vertr1Von,AQ15<=Vertr1Bis),AR15&Vertrag1Gage, IF(AND(AQ15>=Vertr2von,AQ15<=Vertr2Bis),AR15&Vertrag2Gage, IF(AND(AQ15>=Vertr3Von,AQ15<=Vertr3bis),AR15&Vertrag3Gage, IF(AND(AQ15>=Vertr4von,AQ15<=Vertr4bis),AR15&Vertrag4Gage, IF(AND(AQ15>=Vertr5von,AQ15<=Vertr5bis),AR15&Vertrag5Gage, IF(AND(AQ15>=Vertr6von,AQ15<=Vertr6bis),AR15&Vertrag6Gage, "-")))))),"") -> B11 | BB15: Fr | BC15: 2025-07-11 | BF15: =IF(AND(BE$3="x",LEFT(BD15,1)="B", OR(AND(AKTIVB1="x",BD15="B1"), AND(AKTIVB2="x",BD15="B2"), AND(AKTIVB3="x",BD15="B3"), AND(AKTIVB4="x",BD15="B4"), AND(AKTIVB5="x",BD15="B5"), AND(AKTIVB6="x",BD15="B6"), AND(AKTIVB7="x",BD15="B7"), )), IF(AND(BC15>=Vertr1Von,BC15<=Vertr1Bis),BD15&Vertrag1Gage, IF(AND(BC15>=Vertr2von,BC15<=Vertr2Bis),BD15&Vertrag2Gage, IF(AND(BC15>=Vertr3Von,BC15<=Vertr3bis),BD15&Vertrag3Gage, IF(AND(BC15>=Vertr4von,BC15<=Vertr4bis),BD15&Vertrag4Gage, IF(AND(BC15>=Vertr5von,BC15<=Vertr5bis),BD15&Vertrag5Gage, IF(AND(BC15>=Vertr6von,BC15<=Vertr6bis),BD15&Vertrag6Gage, "-")))))),"") ->  | BI15: B11 | BN15: Mo | BO15: 2025-08-11 | BQ15: . | BR15: =IF(AND(BQ$3="x",LEFT(BP15,1)="B", OR(AND(AKTIVB1="x",BP15="B1"), AND(AKTIVB2="x",BP15="B2"), AND(AKTIVB3="x",BP15="B3"), AND(AKTIVB4="x",BP15="B4"), AND(AKTIVB5="x",BP15="B5"), AND(AKTIVB6="x",BP15="B6"), AND(AKTIVB7="x",BP15="B7"), )), IF(AND(BO15>=Vertr1Von,BO15<=Vertr1Bis),BP15&Vertrag1Gage, IF(AND(BO15>=Vertr2von,BO15<=Vertr2Bis),BP15&Vertrag2Gage, IF(AND(BO15>=Vertr3Von,BO15<=Vertr3bis),BP15&Vertrag3Gage, IF(AND(BO15>=Vertr4von,BO15<=Vertr4bis),BP15&Vertrag4Gage, IF(AND(BO15>=Vertr5von,BO15<=Vertr5bis),BP15&Vertrag5Gage, IF(AND(BO15>=Vertr6von,BO15<=Vertr6bis),BP15&Vertrag6Gage, "-")))))),"") ->  | BZ15: Do | CA15: 2025-09-11 | CC15: . | CD15: =IF(AND(CC$3="x",LEFT(CB15,1)="B", OR(AND(AKTIVB1="x",CB15="B1"), AND(AKTIVB2="x",CB15="B2"), AND(AKTIVB3="x",CB15="B3"), AND(AKTIVB4="x",CB15="B4"), AND(AKTIVB5="x",CB15="B5"), AND(AKTIVB6="x",CB15="B6"), AND(AKTIVB7="x",CB15="B7"), )), IF(AND(CA15>=Vertr1Von,CA15<=Vertr1Bis),CB15&Vertrag1Gage, IF(AND(CA15>=Vertr2von,CA15<=Vertr2Bis),CB15&Vertrag2Gage, IF(AND(CA15>=Vertr3Von,CA15<=Vertr3bis),CB15&Vertrag3Gage, IF(AND(CA15>=Vertr4von,CA15<=Vertr4bis),CB15&Vertrag4Gage, IF(AND(CA15>=Vertr5von,CA15<=Vertr5bis),CB15&Vertrag5Gage, IF(AND(CA15>=Vertr6von,CA15<=Vertr6bis),CB15&Vertrag6Gage, "-")))))),"") ->  | CL15: Sa | CM15: 2025-10-11 | CP15: =IF(AND(CO$3="x",LEFT(CN15,1)="B", OR(AND(AKTIVB1="x",CN15="B1"), AND(AKTIVB2="x",CN15="B2"), AND(AKTIVB3="x",CN15="B3"), AND(AKTIVB4="x",CN15="B4"), AND(AKTIVB5="x",CN15="B5"), AND(AKTIVB6="x",CN15="B6"), AND(AKTIVB7="x",CN15="B7"), )), IF(AND(CM15>=Vertr1Von,CM15<=Vertr1Bis),CN15&Vertrag1Gage, IF(AND(CM15>=Vertr2von,CM15<=Vertr2Bis),CN15&Vertrag2Gage, IF(AND(CM15>=Vertr3Von,CM15<=Vertr3bis),CN15&Vertrag3Gage, IF(AND(CM15>=Vertr4von,CM15<=Vertr4bis),CN15&Vertrag4Gage, IF(AND(CM15>=Vertr5von,CM15<=Vertr5bis),CN15&Vertrag5Gage, IF(AND(CM15>=Vertr6von,CM15<=Vertr6bis),CN15&Vertrag6Gage, "-")))))),"") ->  | CY15: Di | CZ15: 2025-11-11 | DB15: . | DC15: =IF(AND(DB$3="x",LEFT(DA15,1)="B", OR(AND(AKTIVB1="x",DA15="B1"), AND(AKTIVB2="x",DA15="B2"), AND(AKTIVB3="x",DA15="B3"), AND(AKTIVB4="x",DA15="B4"), AND(AKTIVB5="x",DA15="B5"), AND(AKTIVB6="x",DA15="B6"), AND(AKTIVB7="x",DA15="B7"), )), IF(AND(CZ15>=Vertr1Von,CZ15<=Vertr1Bis),DA15&Vertrag1Gage, IF(AND(CZ15>=Vertr2von,CZ15<=Vertr2Bis),DA15&Vertrag2Gage, IF(AND(CZ15>=Vertr3Von,CZ15<=Vertr3bis),DA15&Vertrag3Gage, IF(AND(CZ15>=Vertr4von,CZ15<=Vertr4bis),DA15&Vertrag4Gage, IF(AND(CZ15>=Vertr5von,CZ15<=Vertr5bis),DA15&Vertrag5Gage, IF(AND(CZ15>=Vertr6von,CZ15<=Vertr6bis),DA15&Vertrag6Gage, "-")))))),"") ->  | DK15: Do | DL15: 2025-12-11 | DN15: . | DO15: =IF(AND(DN$3="x",LEFT(DM15,1)="B", OR(AND(AKTIVB1="x",DM15="B1"), AND(AKTIVB2="x",DM15="B2"), AND(AKTIVB3="x",DM15="B3"), AND(AKTIVB4="x",DM15="B4"), AND(AKTIVB5="x",DM15="B5"), AND(AKTIVB6="x",DM15="B6"), AND(AKTIVB7="x",DM15="B7"), )), IF(AND(DL15>=Vertr1Von,DL15<=Vertr1Bis),DM15&Vertrag1Gage, IF(AND(DL15>=Vertr2von,DL15<=Vertr2Bis),DM15&Vertrag2Gage, IF(AND(DL15>=Vertr3Von,DL15<=Vertr3bis),DM15&Vertrag3Gage, IF(AND(DL15>=Vertr4von,DL15<=Vertr4bis),DM15&Vertrag4Gage, IF(AND(DL15>=Vertr5von,DL15<=Vertr5bis),DM15&Vertrag5Gage, IF(AND(DL15>=Vertr6von,DL15<=Vertr6bis),DM15&Vertrag6Gage, "-")))))),"") ->  | DW15: So | DX15: 2026-01-11 | EA15: =IF(AND(DZ$3="x",LEFT(DY15,1)="B", OR(AND(AKTIVB1="x",DY15="B1"), AND(AKTIVB2="x",DY15="B2"), AND(AKTIVB3="x",DY15="B3"), AND(AKTIVB4="x",DY15="B4"), AND(AKTIVB5="x",DY15="B5"), AND(AKTIVB6="x",DY15="B6"), AND(AKTIVB7="x",DY15="B7"), )), IF(AND(DX15>=Vertr1Von,DX15<=Vertr1Bis),DY15&Vertrag1Gage, IF(AND(DX15>=Vertr2von,DX15<=Vertr2Bis),DY15&Vertrag2Gage, IF(AND(DX15>=Vertr3Von,DX15<=Vertr3bis),DY15&Vertrag3Gage, IF(AND(DX15>=Vertr4von,DX15<=Vertr4bis),DY15&Vertrag4Gage, IF(AND(DX15>=Vertr5von,DX15<=Vertr5bis),DY15&Vertrag5Gage, IF(AND(DX15>=Vertr6von,DX15<=Vertr6bis),DY15&Vertrag6Gage, "-")))))),"") ->  | EI15: Mi | EJ15: 2026-02-11 | EL15: . | EM15: =IF(AND(EL$3="x",LEFT(EK15,1)="B", OR(AND(AKTIVB1="x",EK15="B1"), AND(AKTIVB2="x",EK15="B2"), AND(AKTIVB3="x",EK15="B3"), AND(AKTIVB4="x",EK15="B4"), AND(AKTIVB5="x",EK15="B5"), AND(AKTIVB6="x",EK15="B6"), AND(AKTIVB7="x",EK15="B7"), )), IF(AND(EJ15>=Vertr1Von,EJ15<=Vertr1Bis),EK15&Vertrag1Gage, IF(AND(EJ15>=Vertr2von,EJ15<=Vertr2Bis),EK15&Vertrag2Gage, IF(AND(EJ15>=Vertr3Von,EJ15<=Vertr3bis),EK15&Vertrag3Gage, IF(AND(EJ15>=Vertr4von,EJ15<=Vertr4bis),EK15&Vertrag4Gage, IF(AND(EJ15>=Vertr5von,EJ15<=Vertr5bis),EK15&Vertrag5Gage, IF(AND(EJ15>=Vertr6von,EJ15<=Vertr6bis),EK15&Vertrag6Gage, "-")))))),"") ->  | EU15: Mi | EV15: 2026-03-11 | EX15: . | EY15: =IF(AND(EX$3="x",LEFT(EW15,1)="B", OR(AND(AKTIVB1="x",EW15="B1"), AND(AKTIVB2="x",EW15="B2"), AND(AKTIVB3="x",EW15="B3"), AND(AKTIVB4="x",EW15="B4"), AND(AKTIVB5="x",EW15="B5"), AND(AKTIVB6="x",EW15="B6"), AND(AKTIVB7="x",EW15="B7"), )), IF(AND(EV15>=Vertr1Von,EV15<=Vertr1Bis),EW15&Vertrag1Gage, IF(AND(EV15>=Vertr2von,EV15<=Vertr2Bis),EW15&Vertrag2Gage, IF(AND(EV15>=Vertr3Von,EV15<=Vertr3bis),EW15&Vertrag3Gage, IF(AND(EV15>=Vertr4von,EV15<=Vertr4bis),EW15&Vertrag4Gage, IF(AND(EV15>=Vertr5von,EV15<=Vertr5bis),EW15&Vertrag5Gage, IF(AND(EV15>=Vertr6von,EV15<=Vertr6bis),EW15&Vertrag6Gage, "-")))))),"") ->  | FG15: Sa | FH15: 2026-04-11 | FK15: =IF(AND(FJ$3="x",LEFT(FI15,1)="B", OR(AND(AKTIVB1="x",FI15="B1"), AND(AKTIVB2="x",FI15="B2"), AND(AKTIVB3="x",FI15="B3"), AND(AKTIVB4="x",FI15="B4"), AND(AKTIVB5="x",FI15="B5"), AND(AKTIVB6="x",FI15="B6"), AND(AKTIVB7="x",FI15="B7"), )), IF(AND(FH15>=Vertr1Von,FH15<=Vertr1Bis),FI15&Vertrag1Gage, IF(AND(FH15>=Vertr2von,FH15<=Vertr2Bis),FI15&Vertrag2Gage, IF(AND(FH15>=Vertr3Von,FH15<=Vertr3bis),FI15&Vertrag3Gage, IF(AND(FH15>=Vertr4von,FH15<=Vertr4bis),FI15&Vertrag4Gage, IF(AND(FH15>=Vertr5von,FH15<=Vertr5bis),FI15&Vertrag5Gage, IF(AND(FH15>=Vertr6von,FH15<=Vertr6bis),FI15&Vertrag6Gage, "-")))))),"") ->  | FS15: Mo | FT15: 2026-05-11 | FV15: . | FW15: =IF(AND(FV$3="x",LEFT(FU15,1)="B", OR(AND(AKTIVB1="x",FU15="B1"), AND(AKTIVB2="x",FU15="B2"), AND(AKTIVB3="x",FU15="B3"), AND(AKTIVB4="x",FU15="B4"), AND(AKTIVB5="x",FU15="B5"), AND(AKTIVB6="x",FU15="B6"), AND(AKTIVB7="x",FU15="B7"), )), IF(AND(FT15>=Vertr1Von,FT15<=Vertr1Bis),FU15&Vertrag1Gage, IF(AND(FT15>=Vertr2von,FT15<=Vertr2Bis),FU15&Vertrag2Gage, IF(AND(FT15>=Vertr3Von,FT15<=Vertr3bis),FU15&Vertrag3Gage, IF(AND(FT15>=Vertr4von,FT15<=Vertr4bis),FU15&Vertrag4Gage, IF(AND(FT15>=Vertr5von,FT15<=Vertr5bis),FU15&Vertrag5Gage, IF(AND(FT15>=Vertr6von,FT15<=Vertr6bis),FU15&Vertrag6Gage, "-")))))),"") -> 
A16: Vertrag 1 | C16: 2025-05-16 | E16: 2025-06-30 | H16: 1 | I16: 2025-07-11 | K16: =Vertr1SVTage -> 57 | Q16: Sa | R16: 2025-04-12 | U16: =IF(AND(T$3="x",LEFT(S16,1)="B", OR(AND(AKTIVB1="x",S16="B1"), AND(AKTIVB2="x",S16="B2"), AND(AKTIVB3="x",S16="B3"), AND(AKTIVB4="x",S16="B4"), AND(AKTIVB5="x",S16="B5"), AND(AKTIVB6="x",S16="B6"), AND(AKTIVB7="x",S16="B7"), )), IF(AND(R16>=Vertr1Von,R16<=Vertr1Bis),S16&Vertrag1Gage, IF(AND(R16>=Vertr2von,R16<=Vertr2Bis),S16&Vertrag2Gage, IF(AND(R16>=Vertr3Von,R16<=Vertr3bis),S16&Vertrag3Gage, IF(AND(R16>=Vertr4von,R16<=Vertr4bis),S16&Vertrag4Gage, IF(AND(R16>=Vertr5von,R16<=Vertr5bis),S16&Vertrag5Gage, IF(AND(R16>=Vertr6von,R16<=Vertr6bis),S16&Vertrag6Gage, "-")))))),"") ->  | AD16: Mo | AE16: 2025-05-12 | AG16: . | AH16: =IF(AND(AG$3="x",LEFT(AF16,1)="B", OR(AND(AKTIVB1="x",AF16="B1"), AND(AKTIVB2="x",AF16="B2"), AND(AKTIVB3="x",AF16="B3"), AND(AKTIVB4="x",AF16="B4"), AND(AKTIVB5="x",AF16="B5"), AND(AKTIVB6="x",AF16="B6"), AND(AKTIVB7="x",AF16="B7"), )), IF(AND(AE16>=Vertr1Von,AE16<=Vertr1Bis),AF16&Vertrag1Gage, IF(AND(AE16>=Vertr2von,AE16<=Vertr2Bis),AF16&Vertrag2Gage, IF(AND(AE16>=Vertr3Von,AE16<=Vertr3bis),AF16&Vertrag3Gage, IF(AND(AE16>=Vertr4von,AE16<=Vertr4bis),AF16&Vertrag4Gage, IF(AND(AE16>=Vertr5von,AE16<=Vertr5bis),AF16&Vertrag5Gage, IF(AND(AE16>=Vertr6von,AE16<=Vertr6bis),AF16&Vertrag6Gage, "-")))))),"") ->  | AP16: Do | AQ16: 2025-06-12 | AR16: B1 | AT16: =IF(AND(AS$3="x",LEFT(AR16,1)="B", OR(AND(AKTIVB1="x",AR16="B1"), AND(AKTIVB2="x",AR16="B2"), AND(AKTIVB3="x",AR16="B3"), AND(AKTIVB4="x",AR16="B4"), AND(AKTIVB5="x",AR16="B5"), AND(AKTIVB6="x",AR16="B6"), AND(AKTIVB7="x",AR16="B7"), )), IF(AND(AQ16>=Vertr1Von,AQ16<=Vertr1Bis),AR16&Vertrag1Gage, IF(AND(AQ16>=Vertr2von,AQ16<=Vertr2Bis),AR16&Vertrag2Gage, IF(AND(AQ16>=Vertr3Von,AQ16<=Vertr3bis),AR16&Vertrag3Gage, IF(AND(AQ16>=Vertr4von,AQ16<=Vertr4bis),AR16&Vertrag4Gage, IF(AND(AQ16>=Vertr5von,AQ16<=Vertr5bis),AR16&Vertrag5Gage, IF(AND(AQ16>=Vertr6von,AQ16<=Vertr6bis),AR16&Vertrag6Gage, "-")))))),"") -> B11 | BB16: Sa | BC16: 2025-07-12 | BF16: =IF(AND(BE$3="x",LEFT(BD16,1)="B", OR(AND(AKTIVB1="x",BD16="B1"), AND(AKTIVB2="x",BD16="B2"), AND(AKTIVB3="x",BD16="B3"), AND(AKTIVB4="x",BD16="B4"), AND(AKTIVB5="x",BD16="B5"), AND(AKTIVB6="x",BD16="B6"), AND(AKTIVB7="x",BD16="B7"), )), IF(AND(BC16>=Vertr1Von,BC16<=Vertr1Bis),BD16&Vertrag1Gage, IF(AND(BC16>=Vertr2von,BC16<=Vertr2Bis),BD16&Vertrag2Gage, IF(AND(BC16>=Vertr3Von,BC16<=Vertr3bis),BD16&Vertrag3Gage, IF(AND(BC16>=Vertr4von,BC16<=Vertr4bis),BD16&Vertrag4Gage, IF(AND(BC16>=Vertr5von,BC16<=Vertr5bis),BD16&Vertrag5Gage, IF(AND(BC16>=Vertr6von,BC16<=Vertr6bis),BD16&Vertrag6Gage, "-")))))),"") ->  | BN16: Di | BO16: 2025-08-12 | BQ16: . | BR16: =IF(AND(BQ$3="x",LEFT(BP16,1)="B", OR(AND(AKTIVB1="x",BP16="B1"), AND(AKTIVB2="x",BP16="B2"), AND(AKTIVB3="x",BP16="B3"), AND(AKTIVB4="x",BP16="B4"), AND(AKTIVB5="x",BP16="B5"), AND(AKTIVB6="x",BP16="B6"), AND(AKTIVB7="x",BP16="B7"), )), IF(AND(BO16>=Vertr1Von,BO16<=Vertr1Bis),BP16&Vertrag1Gage, IF(AND(BO16>=Vertr2von,BO16<=Vertr2Bis),BP16&Vertrag2Gage, IF(AND(BO16>=Vertr3Von,BO16<=Vertr3bis),BP16&Vertrag3Gage, IF(AND(BO16>=Vertr4von,BO16<=Vertr4bis),BP16&Vertrag4Gage, IF(AND(BO16>=Vertr5von,BO16<=Vertr5bis),BP16&Vertrag5Gage, IF(AND(BO16>=Vertr6von,BO16<=Vertr6bis),BP16&Vertrag6Gage, "-")))))),"") ->  | BZ16: Fr | CA16: 2025-09-12 | CC16: . | CD16: =IF(AND(CC$3="x",LEFT(CB16,1)="B", OR(AND(AKTIVB1="x",CB16="B1"), AND(AKTIVB2="x",CB16="B2"), AND(AKTIVB3="x",CB16="B3"), AND(AKTIVB4="x",CB16="B4"), AND(AKTIVB5="x",CB16="B5"), AND(AKTIVB6="x",CB16="B6"), AND(AKTIVB7="x",CB16="B7"), )), IF(AND(CA16>=Vertr1Von,CA16<=Vertr1Bis),CB16&Vertrag1Gage, IF(AND(CA16>=Vertr2von,CA16<=Vertr2Bis),CB16&Vertrag2Gage, IF(AND(CA16>=Vertr3Von,CA16<=Vertr3bis),CB16&Vertrag3Gage, IF(AND(CA16>=Vertr4von,CA16<=Vertr4bis),CB16&Vertrag4Gage, IF(AND(CA16>=Vertr5von,CA16<=Vertr5bis),CB16&Vertrag5Gage, IF(AND(CA16>=Vertr6von,CA16<=Vertr6bis),CB16&Vertrag6Gage, "-")))))),"") ->  | CL16: So | CM16: 2025-10-12 | CP16: =IF(AND(CO$3="x",LEFT(CN16,1)="B", OR(AND(AKTIVB1="x",CN16="B1"), AND(AKTIVB2="x",CN16="B2"), AND(AKTIVB3="x",CN16="B3"), AND(AKTIVB4="x",CN16="B4"), AND(AKTIVB5="x",CN16="B5"), AND(AKTIVB6="x",CN16="B6"), AND(AKTIVB7="x",CN16="B7"), )), IF(AND(CM16>=Vertr1Von,CM16<=Vertr1Bis),CN16&Vertrag1Gage, IF(AND(CM16>=Vertr2von,CM16<=Vertr2Bis),CN16&Vertrag2Gage, IF(AND(CM16>=Vertr3Von,CM16<=Vertr3bis),CN16&Vertrag3Gage, IF(AND(CM16>=Vertr4von,CM16<=Vertr4bis),CN16&Vertrag4Gage, IF(AND(CM16>=Vertr5von,CM16<=Vertr5bis),CN16&Vertrag5Gage, IF(AND(CM16>=Vertr6von,CM16<=Vertr6bis),CN16&Vertrag6Gage, "-")))))),"") ->  | CY16: Mi | CZ16: 2025-11-12 | DB16: . | DC16: =IF(AND(DB$3="x",LEFT(DA16,1)="B", OR(AND(AKTIVB1="x",DA16="B1"), AND(AKTIVB2="x",DA16="B2"), AND(AKTIVB3="x",DA16="B3"), AND(AKTIVB4="x",DA16="B4"), AND(AKTIVB5="x",DA16="B5"), AND(AKTIVB6="x",DA16="B6"), AND(AKTIVB7="x",DA16="B7"), )), IF(AND(CZ16>=Vertr1Von,CZ16<=Vertr1Bis),DA16&Vertrag1Gage, IF(AND(CZ16>=Vertr2von,CZ16<=Vertr2Bis),DA16&Vertrag2Gage, IF(AND(CZ16>=Vertr3Von,CZ16<=Vertr3bis),DA16&Vertrag3Gage, IF(AND(CZ16>=Vertr4von,CZ16<=Vertr4bis),DA16&Vertrag4Gage, IF(AND(CZ16>=Vertr5von,CZ16<=Vertr5bis),DA16&Vertrag5Gage, IF(AND(CZ16>=Vertr6von,CZ16<=Vertr6bis),DA16&Vertrag6Gage, "-")))))),"") ->  | DK16: Fr | DL16: 2025-12-12 | DN16: . | DO16: =IF(AND(DN$3="x",LEFT(DM16,1)="B", OR(AND(AKTIVB1="x",DM16="B1"), AND(AKTIVB2="x",DM16="B2"), AND(AKTIVB3="x",DM16="B3"), AND(AKTIVB4="x",DM16="B4"), AND(AKTIVB5="x",DM16="B5"), AND(AKTIVB6="x",DM16="B6"), AND(AKTIVB7="x",DM16="B7"), )), IF(AND(DL16>=Vertr1Von,DL16<=Vertr1Bis),DM16&Vertrag1Gage, IF(AND(DL16>=Vertr2von,DL16<=Vertr2Bis),DM16&Vertrag2Gage, IF(AND(DL16>=Vertr3Von,DL16<=Vertr3bis),DM16&Vertrag3Gage, IF(AND(DL16>=Vertr4von,DL16<=Vertr4bis),DM16&Vertrag4Gage, IF(AND(DL16>=Vertr5von,DL16<=Vertr5bis),DM16&Vertrag5Gage, IF(AND(DL16>=Vertr6von,DL16<=Vertr6bis),DM16&Vertrag6Gage, "-")))))),"") ->  | DW16: Mo | DX16: 2026-01-12 | DZ16: . | EA16: =IF(AND(DZ$3="x",LEFT(DY16,1)="B", OR(AND(AKTIVB1="x",DY16="B1"), AND(AKTIVB2="x",DY16="B2"), AND(AKTIVB3="x",DY16="B3"), AND(AKTIVB4="x",DY16="B4"), AND(AKTIVB5="x",DY16="B5"), AND(AKTIVB6="x",DY16="B6"), AND(AKTIVB7="x",DY16="B7"), )), IF(AND(DX16>=Vertr1Von,DX16<=Vertr1Bis),DY16&Vertrag1Gage, IF(AND(DX16>=Vertr2von,DX16<=Vertr2Bis),DY16&Vertrag2Gage, IF(AND(DX16>=Vertr3Von,DX16<=Vertr3bis),DY16&Vertrag3Gage, IF(AND(DX16>=Vertr4von,DX16<=Vertr4bis),DY16&Vertrag4Gage, IF(AND(DX16>=Vertr5von,DX16<=Vertr5bis),DY16&Vertrag5Gage, IF(AND(DX16>=Vertr6von,DX16<=Vertr6bis),DY16&Vertrag6Gage, "-")))))),"") ->  | EI16: Do | EJ16: 2026-02-12 | EL16: . | EM16: =IF(AND(EL$3="x",LEFT(EK16,1)="B", OR(AND(AKTIVB1="x",EK16="B1"), AND(AKTIVB2="x",EK16="B2"), AND(AKTIVB3="x",EK16="B3"), AND(AKTIVB4="x",EK16="B4"), AND(AKTIVB5="x",EK16="B5"), AND(AKTIVB6="x",EK16="B6"), AND(AKTIVB7="x",EK16="B7"), )), IF(AND(EJ16>=Vertr1Von,EJ16<=Vertr1Bis),EK16&Vertrag1Gage, IF(AND(EJ16>=Vertr2von,EJ16<=Vertr2Bis),EK16&Vertrag2Gage, IF(AND(EJ16>=Vertr3Von,EJ16<=Vertr3bis),EK16&Vertrag3Gage, IF(AND(EJ16>=Vertr4von,EJ16<=Vertr4bis),EK16&Vertrag4Gage, IF(AND(EJ16>=Vertr5von,EJ16<=Vertr5bis),EK16&Vertrag5Gage, IF(AND(EJ16>=Vertr6von,EJ16<=Vertr6bis),EK16&Vertrag6Gage, "-")))))),"") ->  | EU16: Do | EV16: 2026-03-12 | EX16: . | EY16: =IF(AND(EX$3="x",LEFT(EW16,1)="B", OR(AND(AKTIVB1="x",EW16="B1"), AND(AKTIVB2="x",EW16="B2"), AND(AKTIVB3="x",EW16="B3"), AND(AKTIVB4="x",EW16="B4"), AND(AKTIVB5="x",EW16="B5"), AND(AKTIVB6="x",EW16="B6"), AND(AKTIVB7="x",EW16="B7"), )), IF(AND(EV16>=Vertr1Von,EV16<=Vertr1Bis),EW16&Vertrag1Gage, IF(AND(EV16>=Vertr2von,EV16<=Vertr2Bis),EW16&Vertrag2Gage, IF(AND(EV16>=Vertr3Von,EV16<=Vertr3bis),EW16&Vertrag3Gage, IF(AND(EV16>=Vertr4von,EV16<=Vertr4bis),EW16&Vertrag4Gage, IF(AND(EV16>=Vertr5von,EV16<=Vertr5bis),EW16&Vertrag5Gage, IF(AND(EV16>=Vertr6von,EV16<=Vertr6bis),EW16&Vertrag6Gage, "-")))))),"") ->  | FG16: So | FH16: 2026-04-12 | FK16: =IF(AND(FJ$3="x",LEFT(FI16,1)="B", OR(AND(AKTIVB1="x",FI16="B1"), AND(AKTIVB2="x",FI16="B2"), AND(AKTIVB3="x",FI16="B3"), AND(AKTIVB4="x",FI16="B4"), AND(AKTIVB5="x",FI16="B5"), AND(AKTIVB6="x",FI16="B6"), AND(AKTIVB7="x",FI16="B7"), )), IF(AND(FH16>=Vertr1Von,FH16<=Vertr1Bis),FI16&Vertrag1Gage, IF(AND(FH16>=Vertr2von,FH16<=Vertr2Bis),FI16&Vertrag2Gage, IF(AND(FH16>=Vertr3Von,FH16<=Vertr3bis),FI16&Vertrag3Gage, IF(AND(FH16>=Vertr4von,FH16<=Vertr4bis),FI16&Vertrag4Gage, IF(AND(FH16>=Vertr5von,FH16<=Vertr5bis),FI16&Vertrag5Gage, IF(AND(FH16>=Vertr6von,FH16<=Vertr6bis),FI16&Vertrag6Gage, "-")))))),"") ->  | FS16: Di | FT16: 2026-05-12 | FV16: . | FW16: =IF(AND(FV$3="x",LEFT(FU16,1)="B", OR(AND(AKTIVB1="x",FU16="B1"), AND(AKTIVB2="x",FU16="B2"), AND(AKTIVB3="x",FU16="B3"), AND(AKTIVB4="x",FU16="B4"), AND(AKTIVB5="x",FU16="B5"), AND(AKTIVB6="x",FU16="B6"), AND(AKTIVB7="x",FU16="B7"), )), IF(AND(FT16>=Vertr1Von,FT16<=Vertr1Bis),FU16&Vertrag1Gage, IF(AND(FT16>=Vertr2von,FT16<=Vertr2Bis),FU16&Vertrag2Gage, IF(AND(FT16>=Vertr3Von,FT16<=Vertr3bis),FU16&Vertrag3Gage, IF(AND(FT16>=Vertr4von,FT16<=Vertr4bis),FU16&Vertrag4Gage, IF(AND(FT16>=Vertr5von,FT16<=Vertr5bis),FU16&Vertrag5Gage, IF(AND(FT16>=Vertr6von,FT16<=Vertr6bis),FU16&Vertrag6Gage, "-")))))),"") -> 
A17: Vertrag 2 | K17: =Vertr2SVTage -> 0 | Q17: So | R17: 2025-04-13 | U17: =IF(AND(T$3="x",LEFT(S17,1)="B", OR(AND(AKTIVB1="x",S17="B1"), AND(AKTIVB2="x",S17="B2"), AND(AKTIVB3="x",S17="B3"), AND(AKTIVB4="x",S17="B4"), AND(AKTIVB5="x",S17="B5"), AND(AKTIVB6="x",S17="B6"), AND(AKTIVB7="x",S17="B7"), )), IF(AND(R17>=Vertr1Von,R17<=Vertr1Bis),S17&Vertrag1Gage, IF(AND(R17>=Vertr2von,R17<=Vertr2Bis),S17&Vertrag2Gage, IF(AND(R17>=Vertr3Von,R17<=Vertr3bis),S17&Vertrag3Gage, IF(AND(R17>=Vertr4von,R17<=Vertr4bis),S17&Vertrag4Gage, IF(AND(R17>=Vertr5von,R17<=Vertr5bis),S17&Vertrag5Gage, IF(AND(R17>=Vertr6von,R17<=Vertr6bis),S17&Vertrag6Gage, "-")))))),"") ->  | AD17: Di | AE17: 2025-05-13 | AG17: . | AH17: =IF(AND(AG$3="x",LEFT(AF17,1)="B", OR(AND(AKTIVB1="x",AF17="B1"), AND(AKTIVB2="x",AF17="B2"), AND(AKTIVB3="x",AF17="B3"), AND(AKTIVB4="x",AF17="B4"), AND(AKTIVB5="x",AF17="B5"), AND(AKTIVB6="x",AF17="B6"), AND(AKTIVB7="x",AF17="B7"), )), IF(AND(AE17>=Vertr1Von,AE17<=Vertr1Bis),AF17&Vertrag1Gage, IF(AND(AE17>=Vertr2von,AE17<=Vertr2Bis),AF17&Vertrag2Gage, IF(AND(AE17>=Vertr3Von,AE17<=Vertr3bis),AF17&Vertrag3Gage, IF(AND(AE17>=Vertr4von,AE17<=Vertr4bis),AF17&Vertrag4Gage, IF(AND(AE17>=Vertr5von,AE17<=Vertr5bis),AF17&Vertrag5Gage, IF(AND(AE17>=Vertr6von,AE17<=Vertr6bis),AF17&Vertrag6Gage, "-")))))),"") ->  | AP17: Fr | AQ17: 2025-06-13 | AR17: B1 | AT17: =IF(AND(AS$3="x",LEFT(AR17,1)="B", OR(AND(AKTIVB1="x",AR17="B1"), AND(AKTIVB2="x",AR17="B2"), AND(AKTIVB3="x",AR17="B3"), AND(AKTIVB4="x",AR17="B4"), AND(AKTIVB5="x",AR17="B5"), AND(AKTIVB6="x",AR17="B6"), AND(AKTIVB7="x",AR17="B7"), )), IF(AND(AQ17>=Vertr1Von,AQ17<=Vertr1Bis),AR17&Vertrag1Gage, IF(AND(AQ17>=Vertr2von,AQ17<=Vertr2Bis),AR17&Vertrag2Gage, IF(AND(AQ17>=Vertr3Von,AQ17<=Vertr3bis),AR17&Vertrag3Gage, IF(AND(AQ17>=Vertr4von,AQ17<=Vertr4bis),AR17&Vertrag4Gage, IF(AND(AQ17>=Vertr5von,AQ17<=Vertr5bis),AR17&Vertrag5Gage, IF(AND(AQ17>=Vertr6von,AQ17<=Vertr6bis),AR17&Vertrag6Gage, "-")))))),"") -> B11 | BB17: So | BC17: 2025-07-13 | BF17: =IF(AND(BE$3="x",LEFT(BD17,1)="B", OR(AND(AKTIVB1="x",BD17="B1"), AND(AKTIVB2="x",BD17="B2"), AND(AKTIVB3="x",BD17="B3"), AND(AKTIVB4="x",BD17="B4"), AND(AKTIVB5="x",BD17="B5"), AND(AKTIVB6="x",BD17="B6"), AND(AKTIVB7="x",BD17="B7"), )), IF(AND(BC17>=Vertr1Von,BC17<=Vertr1Bis),BD17&Vertrag1Gage, IF(AND(BC17>=Vertr2von,BC17<=Vertr2Bis),BD17&Vertrag2Gage, IF(AND(BC17>=Vertr3Von,BC17<=Vertr3bis),BD17&Vertrag3Gage, IF(AND(BC17>=Vertr4von,BC17<=Vertr4bis),BD17&Vertrag4Gage, IF(AND(BC17>=Vertr5von,BC17<=Vertr5bis),BD17&Vertrag5Gage, IF(AND(BC17>=Vertr6von,BC17<=Vertr6bis),BD17&Vertrag6Gage, "-")))))),"") ->  | BN17: Mi | BO17: 2025-08-13 | BQ17: . | BR17: =IF(AND(BQ$3="x",LEFT(BP17,1)="B", OR(AND(AKTIVB1="x",BP17="B1"), AND(AKTIVB2="x",BP17="B2"), AND(AKTIVB3="x",BP17="B3"), AND(AKTIVB4="x",BP17="B4"), AND(AKTIVB5="x",BP17="B5"), AND(AKTIVB6="x",BP17="B6"), AND(AKTIVB7="x",BP17="B7"), )), IF(AND(BO17>=Vertr1Von,BO17<=Vertr1Bis),BP17&Vertrag1Gage, IF(AND(BO17>=Vertr2von,BO17<=Vertr2Bis),BP17&Vertrag2Gage, IF(AND(BO17>=Vertr3Von,BO17<=Vertr3bis),BP17&Vertrag3Gage, IF(AND(BO17>=Vertr4von,BO17<=Vertr4bis),BP17&Vertrag4Gage, IF(AND(BO17>=Vertr5von,BO17<=Vertr5bis),BP17&Vertrag5Gage, IF(AND(BO17>=Vertr6von,BO17<=Vertr6bis),BP17&Vertrag6Gage, "-")))))),"") ->  | BZ17: Sa | CA17: 2025-09-13 | CD17: =IF(AND(CC$3="x",LEFT(CB17,1)="B", OR(AND(AKTIVB1="x",CB17="B1"), AND(AKTIVB2="x",CB17="B2"), AND(AKTIVB3="x",CB17="B3"), AND(AKTIVB4="x",CB17="B4"), AND(AKTIVB5="x",CB17="B5"), AND(AKTIVB6="x",CB17="B6"), AND(AKTIVB7="x",CB17="B7"), )), IF(AND(CA17>=Vertr1Von,CA17<=Vertr1Bis),CB17&Vertrag1Gage, IF(AND(CA17>=Vertr2von,CA17<=Vertr2Bis),CB17&Vertrag2Gage, IF(AND(CA17>=Vertr3Von,CA17<=Vertr3bis),CB17&Vertrag3Gage, IF(AND(CA17>=Vertr4von,CA17<=Vertr4bis),CB17&Vertrag4Gage, IF(AND(CA17>=Vertr5von,CA17<=Vertr5bis),CB17&Vertrag5Gage, IF(AND(CA17>=Vertr6von,CA17<=Vertr6bis),CB17&Vertrag6Gage, "-")))))),"") ->  | CL17: Mo | CM17: 2025-10-13 | CO17: . | CP17: =IF(AND(CO$3="x",LEFT(CN17,1)="B", OR(AND(AKTIVB1="x",CN17="B1"), AND(AKTIVB2="x",CN17="B2"), AND(AKTIVB3="x",CN17="B3"), AND(AKTIVB4="x",CN17="B4"), AND(AKTIVB5="x",CN17="B5"), AND(AKTIVB6="x",CN17="B6"), AND(AKTIVB7="x",CN17="B7"), )), IF(AND(CM17>=Vertr1Von,CM17<=Vertr1Bis),CN17&Vertrag1Gage, IF(AND(CM17>=Vertr2von,CM17<=Vertr2Bis),CN17&Vertrag2Gage, IF(AND(CM17>=Vertr3Von,CM17<=Vertr3bis),CN17&Vertrag3Gage, IF(AND(CM17>=Vertr4von,CM17<=Vertr4bis),CN17&Vertrag4Gage, IF(AND(CM17>=Vertr5von,CM17<=Vertr5bis),CN17&Vertrag5Gage, IF(AND(CM17>=Vertr6von,CM17<=Vertr6bis),CN17&Vertrag6Gage, "-")))))),"") ->  | CY17: Do | CZ17: 2025-11-13 | DB17: . | DC17: =IF(AND(DB$3="x",LEFT(DA17,1)="B", OR(AND(AKTIVB1="x",DA17="B1"), AND(AKTIVB2="x",DA17="B2"), AND(AKTIVB3="x",DA17="B3"), AND(AKTIVB4="x",DA17="B4"), AND(AKTIVB5="x",DA17="B5"), AND(AKTIVB6="x",DA17="B6"), AND(AKTIVB7="x",DA17="B7"), )), IF(AND(CZ17>=Vertr1Von,CZ17<=Vertr1Bis),DA17&Vertrag1Gage, IF(AND(CZ17>=Vertr2von,CZ17<=Vertr2Bis),DA17&Vertrag2Gage, IF(AND(CZ17>=Vertr3Von,CZ17<=Vertr3bis),DA17&Vertrag3Gage, IF(AND(CZ17>=Vertr4von,CZ17<=Vertr4bis),DA17&Vertrag4Gage, IF(AND(CZ17>=Vertr5von,CZ17<=Vertr5bis),DA17&Vertrag5Gage, IF(AND(CZ17>=Vertr6von,CZ17<=Vertr6bis),DA17&Vertrag6Gage, "-")))))),"") ->  | DK17: Sa | DL17: 2025-12-13 | DO17: =IF(AND(DN$3="x",LEFT(DM17,1)="B", OR(AND(AKTIVB1="x",DM17="B1"), AND(AKTIVB2="x",DM17="B2"), AND(AKTIVB3="x",DM17="B3"), AND(AKTIVB4="x",DM17="B4"), AND(AKTIVB5="x",DM17="B5"), AND(AKTIVB6="x",DM17="B6"), AND(AKTIVB7="x",DM17="B7"), )), IF(AND(DL17>=Vertr1Von,DL17<=Vertr1Bis),DM17&Vertrag1Gage, IF(AND(DL17>=Vertr2von,DL17<=Vertr2Bis),DM17&Vertrag2Gage, IF(AND(DL17>=Vertr3Von,DL17<=Vertr3bis),DM17&Vertrag3Gage, IF(AND(DL17>=Vertr4von,DL17<=Vertr4bis),DM17&Vertrag4Gage, IF(AND(DL17>=Vertr5von,DL17<=Vertr5bis),DM17&Vertrag5Gage, IF(AND(DL17>=Vertr6von,DL17<=Vertr6bis),DM17&Vertrag6Gage, "-")))))),"") ->  | DW17: Di | DX17: 2026-01-13 | DZ17: . | EA17: =IF(AND(DZ$3="x",LEFT(DY17,1)="B", OR(AND(AKTIVB1="x",DY17="B1"), AND(AKTIVB2="x",DY17="B2"), AND(AKTIVB3="x",DY17="B3"), AND(AKTIVB4="x",DY17="B4"), AND(AKTIVB5="x",DY17="B5"), AND(AKTIVB6="x",DY17="B6"), AND(AKTIVB7="x",DY17="B7"), )), IF(AND(DX17>=Vertr1Von,DX17<=Vertr1Bis),DY17&Vertrag1Gage, IF(AND(DX17>=Vertr2von,DX17<=Vertr2Bis),DY17&Vertrag2Gage, IF(AND(DX17>=Vertr3Von,DX17<=Vertr3bis),DY17&Vertrag3Gage, IF(AND(DX17>=Vertr4von,DX17<=Vertr4bis),DY17&Vertrag4Gage, IF(AND(DX17>=Vertr5von,DX17<=Vertr5bis),DY17&Vertrag5Gage, IF(AND(DX17>=Vertr6von,DX17<=Vertr6bis),DY17&Vertrag6Gage, "-")))))),"") ->  | EI17: Fr | EJ17: 2026-02-13 | EL17: . | EM17: =IF(AND(EL$3="x",LEFT(EK17,1)="B", OR(AND(AKTIVB1="x",EK17="B1"), AND(AKTIVB2="x",EK17="B2"), AND(AKTIVB3="x",EK17="B3"), AND(AKTIVB4="x",EK17="B4"), AND(AKTIVB5="x",EK17="B5"), AND(AKTIVB6="x",EK17="B6"), AND(AKTIVB7="x",EK17="B7"), )), IF(AND(EJ17>=Vertr1Von,EJ17<=Vertr1Bis),EK17&Vertrag1Gage, IF(AND(EJ17>=Vertr2von,EJ17<=Vertr2Bis),EK17&Vertrag2Gage, IF(AND(EJ17>=Vertr3Von,EJ17<=Vertr3bis),EK17&Vertrag3Gage, IF(AND(EJ17>=Vertr4von,EJ17<=Vertr4bis),EK17&Vertrag4Gage, IF(AND(EJ17>=Vertr5von,EJ17<=Vertr5bis),EK17&Vertrag5Gage, IF(AND(EJ17>=Vertr6von,EJ17<=Vertr6bis),EK17&Vertrag6Gage, "-")))))),"") ->  | EU17: Fr | EV17: 2026-03-13 | EX17: . | EY17: =IF(AND(EX$3="x",LEFT(EW17,1)="B", OR(AND(AKTIVB1="x",EW17="B1"), AND(AKTIVB2="x",EW17="B2"), AND(AKTIVB3="x",EW17="B3"), AND(AKTIVB4="x",EW17="B4"), AND(AKTIVB5="x",EW17="B5"), AND(AKTIVB6="x",EW17="B6"), AND(AKTIVB7="x",EW17="B7"), )), IF(AND(EV17>=Vertr1Von,EV17<=Vertr1Bis),EW17&Vertrag1Gage, IF(AND(EV17>=Vertr2von,EV17<=Vertr2Bis),EW17&Vertrag2Gage, IF(AND(EV17>=Vertr3Von,EV17<=Vertr3bis),EW17&Vertrag3Gage, IF(AND(EV17>=Vertr4von,EV17<=Vertr4bis),EW17&Vertrag4Gage, IF(AND(EV17>=Vertr5von,EV17<=Vertr5bis),EW17&Vertrag5Gage, IF(AND(EV17>=Vertr6von,EV17<=Vertr6bis),EW17&Vertrag6Gage, "-")))))),"") ->  | FG17: Mo | FH17: 2026-04-13 | FJ17: . | FK17: =IF(AND(FJ$3="x",LEFT(FI17,1)="B", OR(AND(AKTIVB1="x",FI17="B1"), AND(AKTIVB2="x",FI17="B2"), AND(AKTIVB3="x",FI17="B3"), AND(AKTIVB4="x",FI17="B4"), AND(AKTIVB5="x",FI17="B5"), AND(AKTIVB6="x",FI17="B6"), AND(AKTIVB7="x",FI17="B7"), )), IF(AND(FH17>=Vertr1Von,FH17<=Vertr1Bis),FI17&Vertrag1Gage, IF(AND(FH17>=Vertr2von,FH17<=Vertr2Bis),FI17&Vertrag2Gage, IF(AND(FH17>=Vertr3Von,FH17<=Vertr3bis),FI17&Vertrag3Gage, IF(AND(FH17>=Vertr4von,FH17<=Vertr4bis),FI17&Vertrag4Gage, IF(AND(FH17>=Vertr5von,FH17<=Vertr5bis),FI17&Vertrag5Gage, IF(AND(FH17>=Vertr6von,FH17<=Vertr6bis),FI17&Vertrag6Gage, "-")))))),"") ->  | FS17: Mi | FT17: 2026-05-13 | FV17: . | FW17: =IF(AND(FV$3="x",LEFT(FU17,1)="B", OR(AND(AKTIVB1="x",FU17="B1"), AND(AKTIVB2="x",FU17="B2"), AND(AKTIVB3="x",FU17="B3"), AND(AKTIVB4="x",FU17="B4"), AND(AKTIVB5="x",FU17="B5"), AND(AKTIVB6="x",FU17="B6"), AND(AKTIVB7="x",FU17="B7"), )), IF(AND(FT17>=Vertr1Von,FT17<=Vertr1Bis),FU17&Vertrag1Gage, IF(AND(FT17>=Vertr2von,FT17<=Vertr2Bis),FU17&Vertrag2Gage, IF(AND(FT17>=Vertr3Von,FT17<=Vertr3bis),FU17&Vertrag3Gage, IF(AND(FT17>=Vertr4von,FT17<=Vertr4bis),FU17&Vertrag4Gage, IF(AND(FT17>=Vertr5von,FT17<=Vertr5bis),FU17&Vertrag5Gage, IF(AND(FT17>=Vertr6von,FT17<=Vertr6bis),FU17&Vertrag6Gage, "-")))))),"") -> 
A18: Vertrag 3 | K18: =Vertr3SVTage -> 0 | Q18: Mo | R18: 2025-04-14 | T18: . | U18: =IF(AND(T$3="x",LEFT(S18,1)="B", OR(AND(AKTIVB1="x",S18="B1"), AND(AKTIVB2="x",S18="B2"), AND(AKTIVB3="x",S18="B3"), AND(AKTIVB4="x",S18="B4"), AND(AKTIVB5="x",S18="B5"), AND(AKTIVB6="x",S18="B6"), AND(AKTIVB7="x",S18="B7"), )), IF(AND(R18>=Vertr1Von,R18<=Vertr1Bis),S18&Vertrag1Gage, IF(AND(R18>=Vertr2von,R18<=Vertr2Bis),S18&Vertrag2Gage, IF(AND(R18>=Vertr3Von,R18<=Vertr3bis),S18&Vertrag3Gage, IF(AND(R18>=Vertr4von,R18<=Vertr4bis),S18&Vertrag4Gage, IF(AND(R18>=Vertr5von,R18<=Vertr5bis),S18&Vertrag5Gage, IF(AND(R18>=Vertr6von,R18<=Vertr6bis),S18&Vertrag6Gage, "-")))))),"") ->  | AD18: Mi | AE18: 2025-05-14 | AG18: . | AH18: =IF(AND(AG$3="x",LEFT(AF18,1)="B", OR(AND(AKTIVB1="x",AF18="B1"), AND(AKTIVB2="x",AF18="B2"), AND(AKTIVB3="x",AF18="B3"), AND(AKTIVB4="x",AF18="B4"), AND(AKTIVB5="x",AF18="B5"), AND(AKTIVB6="x",AF18="B6"), AND(AKTIVB7="x",AF18="B7"), )), IF(AND(AE18>=Vertr1Von,AE18<=Vertr1Bis),AF18&Vertrag1Gage, IF(AND(AE18>=Vertr2von,AE18<=Vertr2Bis),AF18&Vertrag2Gage, IF(AND(AE18>=Vertr3Von,AE18<=Vertr3bis),AF18&Vertrag3Gage, IF(AND(AE18>=Vertr4von,AE18<=Vertr4bis),AF18&Vertrag4Gage, IF(AND(AE18>=Vertr5von,AE18<=Vertr5bis),AF18&Vertrag5Gage, IF(AND(AE18>=Vertr6von,AE18<=Vertr6bis),AF18&Vertrag6Gage, "-")))))),"") ->  | AP18: Sa | AQ18: 2025-06-14 | AT18: =IF(AND(AS$3="x",LEFT(AR18,1)="B", OR(AND(AKTIVB1="x",AR18="B1"), AND(AKTIVB2="x",AR18="B2"), AND(AKTIVB3="x",AR18="B3"), AND(AKTIVB4="x",AR18="B4"), AND(AKTIVB5="x",AR18="B5"), AND(AKTIVB6="x",AR18="B6"), AND(AKTIVB7="x",AR18="B7"), )), IF(AND(AQ18>=Vertr1Von,AQ18<=Vertr1Bis),AR18&Vertrag1Gage, IF(AND(AQ18>=Vertr2von,AQ18<=Vertr2Bis),AR18&Vertrag2Gage, IF(AND(AQ18>=Vertr3Von,AQ18<=Vertr3bis),AR18&Vertrag3Gage, IF(AND(AQ18>=Vertr4von,AQ18<=Vertr4bis),AR18&Vertrag4Gage, IF(AND(AQ18>=Vertr5von,AQ18<=Vertr5bis),AR18&Vertrag5Gage, IF(AND(AQ18>=Vertr6von,AQ18<=Vertr6bis),AR18&Vertrag6Gage, "-")))))),"") ->  | BB18: Mo | BC18: 2025-07-14 | BE18: . | BF18: =IF(AND(BE$3="x",LEFT(BD18,1)="B", OR(AND(AKTIVB1="x",BD18="B1"), AND(AKTIVB2="x",BD18="B2"), AND(AKTIVB3="x",BD18="B3"), AND(AKTIVB4="x",BD18="B4"), AND(AKTIVB5="x",BD18="B5"), AND(AKTIVB6="x",BD18="B6"), AND(AKTIVB7="x",BD18="B7"), )), IF(AND(BC18>=Vertr1Von,BC18<=Vertr1Bis),BD18&Vertrag1Gage, IF(AND(BC18>=Vertr2von,BC18<=Vertr2Bis),BD18&Vertrag2Gage, IF(AND(BC18>=Vertr3Von,BC18<=Vertr3bis),BD18&Vertrag3Gage, IF(AND(BC18>=Vertr4von,BC18<=Vertr4bis),BD18&Vertrag4Gage, IF(AND(BC18>=Vertr5von,BC18<=Vertr5bis),BD18&Vertrag5Gage, IF(AND(BC18>=Vertr6von,BC18<=Vertr6bis),BD18&Vertrag6Gage, "-")))))),"") ->  | BN18: Do | BO18: 2025-08-14 | BQ18: . | BR18: =IF(AND(BQ$3="x",LEFT(BP18,1)="B", OR(AND(AKTIVB1="x",BP18="B1"), AND(AKTIVB2="x",BP18="B2"), AND(AKTIVB3="x",BP18="B3"), AND(AKTIVB4="x",BP18="B4"), AND(AKTIVB5="x",BP18="B5"), AND(AKTIVB6="x",BP18="B6"), AND(AKTIVB7="x",BP18="B7"), )), IF(AND(BO18>=Vertr1Von,BO18<=Vertr1Bis),BP18&Vertrag1Gage, IF(AND(BO18>=Vertr2von,BO18<=Vertr2Bis),BP18&Vertrag2Gage, IF(AND(BO18>=Vertr3Von,BO18<=Vertr3bis),BP18&Vertrag3Gage, IF(AND(BO18>=Vertr4von,BO18<=Vertr4bis),BP18&Vertrag4Gage, IF(AND(BO18>=Vertr5von,BO18<=Vertr5bis),BP18&Vertrag5Gage, IF(AND(BO18>=Vertr6von,BO18<=Vertr6bis),BP18&Vertrag6Gage, "-")))))),"") ->  | BZ18: So | CA18: 2025-09-14 | CD18: =IF(AND(CC$3="x",LEFT(CB18,1)="B", OR(AND(AKTIVB1="x",CB18="B1"), AND(AKTIVB2="x",CB18="B2"), AND(AKTIVB3="x",CB18="B3"), AND(AKTIVB4="x",CB18="B4"), AND(AKTIVB5="x",CB18="B5"), AND(AKTIVB6="x",CB18="B6"), AND(AKTIVB7="x",CB18="B7"), )), IF(AND(CA18>=Vertr1Von,CA18<=Vertr1Bis),CB18&Vertrag1Gage, IF(AND(CA18>=Vertr2von,CA18<=Vertr2Bis),CB18&Vertrag2Gage, IF(AND(CA18>=Vertr3Von,CA18<=Vertr3bis),CB18&Vertrag3Gage, IF(AND(CA18>=Vertr4von,CA18<=Vertr4bis),CB18&Vertrag4Gage, IF(AND(CA18>=Vertr5von,CA18<=Vertr5bis),CB18&Vertrag5Gage, IF(AND(CA18>=Vertr6von,CA18<=Vertr6bis),CB18&Vertrag6Gage, "-")))))),"") ->  | CL18: Di | CM18: 2025-10-14 | CO18: . | CP18: =IF(AND(CO$3="x",LEFT(CN18,1)="B", OR(AND(AKTIVB1="x",CN18="B1"), AND(AKTIVB2="x",CN18="B2"), AND(AKTIVB3="x",CN18="B3"), AND(AKTIVB4="x",CN18="B4"), AND(AKTIVB5="x",CN18="B5"), AND(AKTIVB6="x",CN18="B6"), AND(AKTIVB7="x",CN18="B7"), )), IF(AND(CM18>=Vertr1Von,CM18<=Vertr1Bis),CN18&Vertrag1Gage, IF(AND(CM18>=Vertr2von,CM18<=Vertr2Bis),CN18&Vertrag2Gage, IF(AND(CM18>=Vertr3Von,CM18<=Vertr3bis),CN18&Vertrag3Gage, IF(AND(CM18>=Vertr4von,CM18<=Vertr4bis),CN18&Vertrag4Gage, IF(AND(CM18>=Vertr5von,CM18<=Vertr5bis),CN18&Vertrag5Gage, IF(AND(CM18>=Vertr6von,CM18<=Vertr6bis),CN18&Vertrag6Gage, "-")))))),"") ->  | CY18: Fr | CZ18: 2025-11-14 | DB18: . | DC18: =IF(AND(DB$3="x",LEFT(DA18,1)="B", OR(AND(AKTIVB1="x",DA18="B1"), AND(AKTIVB2="x",DA18="B2"), AND(AKTIVB3="x",DA18="B3"), AND(AKTIVB4="x",DA18="B4"), AND(AKTIVB5="x",DA18="B5"), AND(AKTIVB6="x",DA18="B6"), AND(AKTIVB7="x",DA18="B7"), )), IF(AND(CZ18>=Vertr1Von,CZ18<=Vertr1Bis),DA18&Vertrag1Gage, IF(AND(CZ18>=Vertr2von,CZ18<=Vertr2Bis),DA18&Vertrag2Gage, IF(AND(CZ18>=Vertr3Von,CZ18<=Vertr3bis),DA18&Vertrag3Gage, IF(AND(CZ18>=Vertr4von,CZ18<=Vertr4bis),DA18&Vertrag4Gage, IF(AND(CZ18>=Vertr5von,CZ18<=Vertr5bis),DA18&Vertrag5Gage, IF(AND(CZ18>=Vertr6von,CZ18<=Vertr6bis),DA18&Vertrag6Gage, "-")))))),"") ->  | DK18: So | DL18: 2025-12-14 | DO18: =IF(AND(DN$3="x",LEFT(DM18,1)="B", OR(AND(AKTIVB1="x",DM18="B1"), AND(AKTIVB2="x",DM18="B2"), AND(AKTIVB3="x",DM18="B3"), AND(AKTIVB4="x",DM18="B4"), AND(AKTIVB5="x",DM18="B5"), AND(AKTIVB6="x",DM18="B6"), AND(AKTIVB7="x",DM18="B7"), )), IF(AND(DL18>=Vertr1Von,DL18<=Vertr1Bis),DM18&Vertrag1Gage, IF(AND(DL18>=Vertr2von,DL18<=Vertr2Bis),DM18&Vertrag2Gage, IF(AND(DL18>=Vertr3Von,DL18<=Vertr3bis),DM18&Vertrag3Gage, IF(AND(DL18>=Vertr4von,DL18<=Vertr4bis),DM18&Vertrag4Gage, IF(AND(DL18>=Vertr5von,DL18<=Vertr5bis),DM18&Vertrag5Gage, IF(AND(DL18>=Vertr6von,DL18<=Vertr6bis),DM18&Vertrag6Gage, "-")))))),"") ->  | DW18: Mi | DX18: 2026-01-14 | DZ18: . | EA18: =IF(AND(DZ$3="x",LEFT(DY18,1)="B", OR(AND(AKTIVB1="x",DY18="B1"), AND(AKTIVB2="x",DY18="B2"), AND(AKTIVB3="x",DY18="B3"), AND(AKTIVB4="x",DY18="B4"), AND(AKTIVB5="x",DY18="B5"), AND(AKTIVB6="x",DY18="B6"), AND(AKTIVB7="x",DY18="B7"), )), IF(AND(DX18>=Vertr1Von,DX18<=Vertr1Bis),DY18&Vertrag1Gage, IF(AND(DX18>=Vertr2von,DX18<=Vertr2Bis),DY18&Vertrag2Gage, IF(AND(DX18>=Vertr3Von,DX18<=Vertr3bis),DY18&Vertrag3Gage, IF(AND(DX18>=Vertr4von,DX18<=Vertr4bis),DY18&Vertrag4Gage, IF(AND(DX18>=Vertr5von,DX18<=Vertr5bis),DY18&Vertrag5Gage, IF(AND(DX18>=Vertr6von,DX18<=Vertr6bis),DY18&Vertrag6Gage, "-")))))),"") ->  | EI18: Sa | EJ18: 2026-02-14 | EM18: =IF(AND(EL$3="x",LEFT(EK18,1)="B", OR(AND(AKTIVB1="x",EK18="B1"), AND(AKTIVB2="x",EK18="B2"), AND(AKTIVB3="x",EK18="B3"), AND(AKTIVB4="x",EK18="B4"), AND(AKTIVB5="x",EK18="B5"), AND(AKTIVB6="x",EK18="B6"), AND(AKTIVB7="x",EK18="B7"), )), IF(AND(EJ18>=Vertr1Von,EJ18<=Vertr1Bis),EK18&Vertrag1Gage, IF(AND(EJ18>=Vertr2von,EJ18<=Vertr2Bis),EK18&Vertrag2Gage, IF(AND(EJ18>=Vertr3Von,EJ18<=Vertr3bis),EK18&Vertrag3Gage, IF(AND(EJ18>=Vertr4von,EJ18<=Vertr4bis),EK18&Vertrag4Gage, IF(AND(EJ18>=Vertr5von,EJ18<=Vertr5bis),EK18&Vertrag5Gage, IF(AND(EJ18>=Vertr6von,EJ18<=Vertr6bis),EK18&Vertrag6Gage, "-")))))),"") ->  | EU18: Sa | EV18: 2026-03-14 | EY18: =IF(AND(EX$3="x",LEFT(EW18,1)="B", OR(AND(AKTIVB1="x",EW18="B1"), AND(AKTIVB2="x",EW18="B2"), AND(AKTIVB3="x",EW18="B3"), AND(AKTIVB4="x",EW18="B4"), AND(AKTIVB5="x",EW18="B5"), AND(AKTIVB6="x",EW18="B6"), AND(AKTIVB7="x",EW18="B7"), )), IF(AND(EV18>=Vertr1Von,EV18<=Vertr1Bis),EW18&Vertrag1Gage, IF(AND(EV18>=Vertr2von,EV18<=Vertr2Bis),EW18&Vertrag2Gage, IF(AND(EV18>=Vertr3Von,EV18<=Vertr3bis),EW18&Vertrag3Gage, IF(AND(EV18>=Vertr4von,EV18<=Vertr4bis),EW18&Vertrag4Gage, IF(AND(EV18>=Vertr5von,EV18<=Vertr5bis),EW18&Vertrag5Gage, IF(AND(EV18>=Vertr6von,EV18<=Vertr6bis),EW18&Vertrag6Gage, "-")))))),"") ->  | FG18: Di | FH18: 2026-04-14 | FJ18: . | FK18: =IF(AND(FJ$3="x",LEFT(FI18,1)="B", OR(AND(AKTIVB1="x",FI18="B1"), AND(AKTIVB2="x",FI18="B2"), AND(AKTIVB3="x",FI18="B3"), AND(AKTIVB4="x",FI18="B4"), AND(AKTIVB5="x",FI18="B5"), AND(AKTIVB6="x",FI18="B6"), AND(AKTIVB7="x",FI18="B7"), )), IF(AND(FH18>=Vertr1Von,FH18<=Vertr1Bis),FI18&Vertrag1Gage, IF(AND(FH18>=Vertr2von,FH18<=Vertr2Bis),FI18&Vertrag2Gage, IF(AND(FH18>=Vertr3Von,FH18<=Vertr3bis),FI18&Vertrag3Gage, IF(AND(FH18>=Vertr4von,FH18<=Vertr4bis),FI18&Vertrag4Gage, IF(AND(FH18>=Vertr5von,FH18<=Vertr5bis),FI18&Vertrag5Gage, IF(AND(FH18>=Vertr6von,FH18<=Vertr6bis),FI18&Vertrag6Gage, "-")))))),"") ->  | FS18: Do | FT18: 2026-05-14 | FV18: . | FW18: =IF(AND(FV$3="x",LEFT(FU18,1)="B", OR(AND(AKTIVB1="x",FU18="B1"), AND(AKTIVB2="x",FU18="B2"), AND(AKTIVB3="x",FU18="B3"), AND(AKTIVB4="x",FU18="B4"), AND(AKTIVB5="x",FU18="B5"), AND(AKTIVB6="x",FU18="B6"), AND(AKTIVB7="x",FU18="B7"), )), IF(AND(FT18>=Vertr1Von,FT18<=Vertr1Bis),FU18&Vertrag1Gage, IF(AND(FT18>=Vertr2von,FT18<=Vertr2Bis),FU18&Vertrag2Gage, IF(AND(FT18>=Vertr3Von,FT18<=Vertr3bis),FU18&Vertrag3Gage, IF(AND(FT18>=Vertr4von,FT18<=Vertr4bis),FU18&Vertrag4Gage, IF(AND(FT18>=Vertr5von,FT18<=Vertr5bis),FU18&Vertrag5Gage, IF(AND(FT18>=Vertr6von,FT18<=Vertr6bis),FU18&Vertrag6Gage, "-")))))),"") -> 
A19: Vertrag 4 | K19: =Vertr4SVTage -> 0 | Q19: Di | R19: 2025-04-15 | T19: . | U19: =IF(AND(T$3="x",LEFT(S19,1)="B", OR(AND(AKTIVB1="x",S19="B1"), AND(AKTIVB2="x",S19="B2"), AND(AKTIVB3="x",S19="B3"), AND(AKTIVB4="x",S19="B4"), AND(AKTIVB5="x",S19="B5"), AND(AKTIVB6="x",S19="B6"), AND(AKTIVB7="x",S19="B7"), )), IF(AND(R19>=Vertr1Von,R19<=Vertr1Bis),S19&Vertrag1Gage, IF(AND(R19>=Vertr2von,R19<=Vertr2Bis),S19&Vertrag2Gage, IF(AND(R19>=Vertr3Von,R19<=Vertr3bis),S19&Vertrag3Gage, IF(AND(R19>=Vertr4von,R19<=Vertr4bis),S19&Vertrag4Gage, IF(AND(R19>=Vertr5von,R19<=Vertr5bis),S19&Vertrag5Gage, IF(AND(R19>=Vertr6von,R19<=Vertr6bis),S19&Vertrag6Gage, "-")))))),"") ->  | AD19: Do | AE19: 2025-05-15 | AG19: . | AH19: =IF(AND(AG$3="x",LEFT(AF19,1)="B", OR(AND(AKTIVB1="x",AF19="B1"), AND(AKTIVB2="x",AF19="B2"), AND(AKTIVB3="x",AF19="B3"), AND(AKTIVB4="x",AF19="B4"), AND(AKTIVB5="x",AF19="B5"), AND(AKTIVB6="x",AF19="B6"), AND(AKTIVB7="x",AF19="B7"), )), IF(AND(AE19>=Vertr1Von,AE19<=Vertr1Bis),AF19&Vertrag1Gage, IF(AND(AE19>=Vertr2von,AE19<=Vertr2Bis),AF19&Vertrag2Gage, IF(AND(AE19>=Vertr3Von,AE19<=Vertr3bis),AF19&Vertrag3Gage, IF(AND(AE19>=Vertr4von,AE19<=Vertr4bis),AF19&Vertrag4Gage, IF(AND(AE19>=Vertr5von,AE19<=Vertr5bis),AF19&Vertrag5Gage, IF(AND(AE19>=Vertr6von,AE19<=Vertr6bis),AF19&Vertrag6Gage, "-")))))),"") ->  | AP19: So | AQ19: 2025-06-15 | AT19: =IF(AND(AS$3="x",LEFT(AR19,1)="B", OR(AND(AKTIVB1="x",AR19="B1"), AND(AKTIVB2="x",AR19="B2"), AND(AKTIVB3="x",AR19="B3"), AND(AKTIVB4="x",AR19="B4"), AND(AKTIVB5="x",AR19="B5"), AND(AKTIVB6="x",AR19="B6"), AND(AKTIVB7="x",AR19="B7"), )), IF(AND(AQ19>=Vertr1Von,AQ19<=Vertr1Bis),AR19&Vertrag1Gage, IF(AND(AQ19>=Vertr2von,AQ19<=Vertr2Bis),AR19&Vertrag2Gage, IF(AND(AQ19>=Vertr3Von,AQ19<=Vertr3bis),AR19&Vertrag3Gage, IF(AND(AQ19>=Vertr4von,AQ19<=Vertr4bis),AR19&Vertrag4Gage, IF(AND(AQ19>=Vertr5von,AQ19<=Vertr5bis),AR19&Vertrag5Gage, IF(AND(AQ19>=Vertr6von,AQ19<=Vertr6bis),AR19&Vertrag6Gage, "-")))))),"") ->  | BB19: Di | BC19: 2025-07-15 | BE19: . | BF19: =IF(AND(BE$3="x",LEFT(BD19,1)="B", OR(AND(AKTIVB1="x",BD19="B1"), AND(AKTIVB2="x",BD19="B2"), AND(AKTIVB3="x",BD19="B3"), AND(AKTIVB4="x",BD19="B4"), AND(AKTIVB5="x",BD19="B5"), AND(AKTIVB6="x",BD19="B6"), AND(AKTIVB7="x",BD19="B7"), )), IF(AND(BC19>=Vertr1Von,BC19<=Vertr1Bis),BD19&Vertrag1Gage, IF(AND(BC19>=Vertr2von,BC19<=Vertr2Bis),BD19&Vertrag2Gage, IF(AND(BC19>=Vertr3Von,BC19<=Vertr3bis),BD19&Vertrag3Gage, IF(AND(BC19>=Vertr4von,BC19<=Vertr4bis),BD19&Vertrag4Gage, IF(AND(BC19>=Vertr5von,BC19<=Vertr5bis),BD19&Vertrag5Gage, IF(AND(BC19>=Vertr6von,BC19<=Vertr6bis),BD19&Vertrag6Gage, "-")))))),"") ->  | BN19: Fr | BO19: 2025-08-15 | BQ19: . | BR19: =IF(AND(BQ$3="x",LEFT(BP19,1)="B", OR(AND(AKTIVB1="x",BP19="B1"), AND(AKTIVB2="x",BP19="B2"), AND(AKTIVB3="x",BP19="B3"), AND(AKTIVB4="x",BP19="B4"), AND(AKTIVB5="x",BP19="B5"), AND(AKTIVB6="x",BP19="B6"), AND(AKTIVB7="x",BP19="B7"), )), IF(AND(BO19>=Vertr1Von,BO19<=Vertr1Bis),BP19&Vertrag1Gage, IF(AND(BO19>=Vertr2von,BO19<=Vertr2Bis),BP19&Vertrag2Gage, IF(AND(BO19>=Vertr3Von,BO19<=Vertr3bis),BP19&Vertrag3Gage, IF(AND(BO19>=Vertr4von,BO19<=Vertr4bis),BP19&Vertrag4Gage, IF(AND(BO19>=Vertr5von,BO19<=Vertr5bis),BP19&Vertrag5Gage, IF(AND(BO19>=Vertr6von,BO19<=Vertr6bis),BP19&Vertrag6Gage, "-")))))),"") ->  | BZ19: Mo | CA19: 2025-09-15 | CC19: . | CD19: =IF(AND(CC$3="x",LEFT(CB19,1)="B", OR(AND(AKTIVB1="x",CB19="B1"), AND(AKTIVB2="x",CB19="B2"), AND(AKTIVB3="x",CB19="B3"), AND(AKTIVB4="x",CB19="B4"), AND(AKTIVB5="x",CB19="B5"), AND(AKTIVB6="x",CB19="B6"), AND(AKTIVB7="x",CB19="B7"), )), IF(AND(CA19>=Vertr1Von,CA19<=Vertr1Bis),CB19&Vertrag1Gage, IF(AND(CA19>=Vertr2von,CA19<=Vertr2Bis),CB19&Vertrag2Gage, IF(AND(CA19>=Vertr3Von,CA19<=Vertr3bis),CB19&Vertrag3Gage, IF(AND(CA19>=Vertr4von,CA19<=Vertr4bis),CB19&Vertrag4Gage, IF(AND(CA19>=Vertr5von,CA19<=Vertr5bis),CB19&Vertrag5Gage, IF(AND(CA19>=Vertr6von,CA19<=Vertr6bis),CB19&Vertrag6Gage, "-")))))),"") ->  | CL19: Mi | CM19: 2025-10-15 | CO19: . | CP19: =IF(AND(CO$3="x",LEFT(CN19,1)="B", OR(AND(AKTIVB1="x",CN19="B1"), AND(AKTIVB2="x",CN19="B2"), AND(AKTIVB3="x",CN19="B3"), AND(AKTIVB4="x",CN19="B4"), AND(AKTIVB5="x",CN19="B5"), AND(AKTIVB6="x",CN19="B6"), AND(AKTIVB7="x",CN19="B7"), )), IF(AND(CM19>=Vertr1Von,CM19<=Vertr1Bis),CN19&Vertrag1Gage, IF(AND(CM19>=Vertr2von,CM19<=Vertr2Bis),CN19&Vertrag2Gage, IF(AND(CM19>=Vertr3Von,CM19<=Vertr3bis),CN19&Vertrag3Gage, IF(AND(CM19>=Vertr4von,CM19<=Vertr4bis),CN19&Vertrag4Gage, IF(AND(CM19>=Vertr5von,CM19<=Vertr5bis),CN19&Vertrag5Gage, IF(AND(CM19>=Vertr6von,CM19<=Vertr6bis),CN19&Vertrag6Gage, "-")))))),"") ->  | CY19: Sa | CZ19: 2025-11-15 | DC19: =IF(AND(DB$3="x",LEFT(DA19,1)="B", OR(AND(AKTIVB1="x",DA19="B1"), AND(AKTIVB2="x",DA19="B2"), AND(AKTIVB3="x",DA19="B3"), AND(AKTIVB4="x",DA19="B4"), AND(AKTIVB5="x",DA19="B5"), AND(AKTIVB6="x",DA19="B6"), AND(AKTIVB7="x",DA19="B7"), )), IF(AND(CZ19>=Vertr1Von,CZ19<=Vertr1Bis),DA19&Vertrag1Gage, IF(AND(CZ19>=Vertr2von,CZ19<=Vertr2Bis),DA19&Vertrag2Gage, IF(AND(CZ19>=Vertr3Von,CZ19<=Vertr3bis),DA19&Vertrag3Gage, IF(AND(CZ19>=Vertr4von,CZ19<=Vertr4bis),DA19&Vertrag4Gage, IF(AND(CZ19>=Vertr5von,CZ19<=Vertr5bis),DA19&Vertrag5Gage, IF(AND(CZ19>=Vertr6von,CZ19<=Vertr6bis),DA19&Vertrag6Gage, "-")))))),"") ->  | DK19: Mo | DL19: 2025-12-15 | DN19: . | DO19: =IF(AND(DN$3="x",LEFT(DM19,1)="B", OR(AND(AKTIVB1="x",DM19="B1"), AND(AKTIVB2="x",DM19="B2"), AND(AKTIVB3="x",DM19="B3"), AND(AKTIVB4="x",DM19="B4"), AND(AKTIVB5="x",DM19="B5"), AND(AKTIVB6="x",DM19="B6"), AND(AKTIVB7="x",DM19="B7"), )), IF(AND(DL19>=Vertr1Von,DL19<=Vertr1Bis),DM19&Vertrag1Gage, IF(AND(DL19>=Vertr2von,DL19<=Vertr2Bis),DM19&Vertrag2Gage, IF(AND(DL19>=Vertr3Von,DL19<=Vertr3bis),DM19&Vertrag3Gage, IF(AND(DL19>=Vertr4von,DL19<=Vertr4bis),DM19&Vertrag4Gage, IF(AND(DL19>=Vertr5von,DL19<=Vertr5bis),DM19&Vertrag5Gage, IF(AND(DL19>=Vertr6von,DL19<=Vertr6bis),DM19&Vertrag6Gage, "-")))))),"") ->  | DW19: Do | DX19: 2026-01-15 | DZ19: . | EA19: =IF(AND(DZ$3="x",LEFT(DY19,1)="B", OR(AND(AKTIVB1="x",DY19="B1"), AND(AKTIVB2="x",DY19="B2"), AND(AKTIVB3="x",DY19="B3"), AND(AKTIVB4="x",DY19="B4"), AND(AKTIVB5="x",DY19="B5"), AND(AKTIVB6="x",DY19="B6"), AND(AKTIVB7="x",DY19="B7"), )), IF(AND(DX19>=Vertr1Von,DX19<=Vertr1Bis),DY19&Vertrag1Gage, IF(AND(DX19>=Vertr2von,DX19<=Vertr2Bis),DY19&Vertrag2Gage, IF(AND(DX19>=Vertr3Von,DX19<=Vertr3bis),DY19&Vertrag3Gage, IF(AND(DX19>=Vertr4von,DX19<=Vertr4bis),DY19&Vertrag4Gage, IF(AND(DX19>=Vertr5von,DX19<=Vertr5bis),DY19&Vertrag5Gage, IF(AND(DX19>=Vertr6von,DX19<=Vertr6bis),DY19&Vertrag6Gage, "-")))))),"") ->  | EI19: So | EJ19: 2026-02-15 | EM19: =IF(AND(EL$3="x",LEFT(EK19,1)="B", OR(AND(AKTIVB1="x",EK19="B1"), AND(AKTIVB2="x",EK19="B2"), AND(AKTIVB3="x",EK19="B3"), AND(AKTIVB4="x",EK19="B4"), AND(AKTIVB5="x",EK19="B5"), AND(AKTIVB6="x",EK19="B6"), AND(AKTIVB7="x",EK19="B7"), )), IF(AND(EJ19>=Vertr1Von,EJ19<=Vertr1Bis),EK19&Vertrag1Gage, IF(AND(EJ19>=Vertr2von,EJ19<=Vertr2Bis),EK19&Vertrag2Gage, IF(AND(EJ19>=Vertr3Von,EJ19<=Vertr3bis),EK19&Vertrag3Gage, IF(AND(EJ19>=Vertr4von,EJ19<=Vertr4bis),EK19&Vertrag4Gage, IF(AND(EJ19>=Vertr5von,EJ19<=Vertr5bis),EK19&Vertrag5Gage, IF(AND(EJ19>=Vertr6von,EJ19<=Vertr6bis),EK19&Vertrag6Gage, "-")))))),"") ->  | EU19: So | EV19: 2026-03-15 | EY19: =IF(AND(EX$3="x",LEFT(EW19,1)="B", OR(AND(AKTIVB1="x",EW19="B1"), AND(AKTIVB2="x",EW19="B2"), AND(AKTIVB3="x",EW19="B3"), AND(AKTIVB4="x",EW19="B4"), AND(AKTIVB5="x",EW19="B5"), AND(AKTIVB6="x",EW19="B6"), AND(AKTIVB7="x",EW19="B7"), )), IF(AND(EV19>=Vertr1Von,EV19<=Vertr1Bis),EW19&Vertrag1Gage, IF(AND(EV19>=Vertr2von,EV19<=Vertr2Bis),EW19&Vertrag2Gage, IF(AND(EV19>=Vertr3Von,EV19<=Vertr3bis),EW19&Vertrag3Gage, IF(AND(EV19>=Vertr4von,EV19<=Vertr4bis),EW19&Vertrag4Gage, IF(AND(EV19>=Vertr5von,EV19<=Vertr5bis),EW19&Vertrag5Gage, IF(AND(EV19>=Vertr6von,EV19<=Vertr6bis),EW19&Vertrag6Gage, "-")))))),"") ->  | FG19: Mi | FH19: 2026-04-15 | FJ19: . | FK19: =IF(AND(FJ$3="x",LEFT(FI19,1)="B", OR(AND(AKTIVB1="x",FI19="B1"), AND(AKTIVB2="x",FI19="B2"), AND(AKTIVB3="x",FI19="B3"), AND(AKTIVB4="x",FI19="B4"), AND(AKTIVB5="x",FI19="B5"), AND(AKTIVB6="x",FI19="B6"), AND(AKTIVB7="x",FI19="B7"), )), IF(AND(FH19>=Vertr1Von,FH19<=Vertr1Bis),FI19&Vertrag1Gage, IF(AND(FH19>=Vertr2von,FH19<=Vertr2Bis),FI19&Vertrag2Gage, IF(AND(FH19>=Vertr3Von,FH19<=Vertr3bis),FI19&Vertrag3Gage, IF(AND(FH19>=Vertr4von,FH19<=Vertr4bis),FI19&Vertrag4Gage, IF(AND(FH19>=Vertr5von,FH19<=Vertr5bis),FI19&Vertrag5Gage, IF(AND(FH19>=Vertr6von,FH19<=Vertr6bis),FI19&Vertrag6Gage, "-")))))),"") ->  | FS19: Fr | FT19: 2026-05-15 | FV19: . | FW19: =IF(AND(FV$3="x",LEFT(FU19,1)="B", OR(AND(AKTIVB1="x",FU19="B1"), AND(AKTIVB2="x",FU19="B2"), AND(AKTIVB3="x",FU19="B3"), AND(AKTIVB4="x",FU19="B4"), AND(AKTIVB5="x",FU19="B5"), AND(AKTIVB6="x",FU19="B6"), AND(AKTIVB7="x",FU19="B7"), )), IF(AND(FT19>=Vertr1Von,FT19<=Vertr1Bis),FU19&Vertrag1Gage, IF(AND(FT19>=Vertr2von,FT19<=Vertr2Bis),FU19&Vertrag2Gage, IF(AND(FT19>=Vertr3Von,FT19<=Vertr3bis),FU19&Vertrag3Gage, IF(AND(FT19>=Vertr4von,FT19<=Vertr4bis),FU19&Vertrag4Gage, IF(AND(FT19>=Vertr5von,FT19<=Vertr5bis),FU19&Vertrag5Gage, IF(AND(FT19>=Vertr6von,FT19<=Vertr6bis),FU19&Vertrag6Gage, "-")))))),"") -> 
A20: Vertrag 5 | K20: =Vertr5SVTage -> 0 | Q20: Mi | R20: 2025-04-16 | T20: . | U20: =IF(AND(T$3="x",LEFT(S20,1)="B", OR(AND(AKTIVB1="x",S20="B1"), AND(AKTIVB2="x",S20="B2"), AND(AKTIVB3="x",S20="B3"), AND(AKTIVB4="x",S20="B4"), AND(AKTIVB5="x",S20="B5"), AND(AKTIVB6="x",S20="B6"), AND(AKTIVB7="x",S20="B7"), )), IF(AND(R20>=Vertr1Von,R20<=Vertr1Bis),S20&Vertrag1Gage, IF(AND(R20>=Vertr2von,R20<=Vertr2Bis),S20&Vertrag2Gage, IF(AND(R20>=Vertr3Von,R20<=Vertr3bis),S20&Vertrag3Gage, IF(AND(R20>=Vertr4von,R20<=Vertr4bis),S20&Vertrag4Gage, IF(AND(R20>=Vertr5von,R20<=Vertr5bis),S20&Vertrag5Gage, IF(AND(R20>=Vertr6von,R20<=Vertr6bis),S20&Vertrag6Gage, "-")))))),"") ->  | AD20: Fr | AE20: 2025-05-16 | AG20: B11 | AH20: =IF(AND(AG$3="x",LEFT(AF20,1)="B", OR(AND(AKTIVB1="x",AF20="B1"), AND(AKTIVB2="x",AF20="B2"), AND(AKTIVB3="x",AF20="B3"), AND(AKTIVB4="x",AF20="B4"), AND(AKTIVB5="x",AF20="B5"), AND(AKTIVB6="x",AF20="B6"), AND(AKTIVB7="x",AF20="B7"), )), IF(AND(AE20>=Vertr1Von,AE20<=Vertr1Bis),AF20&Vertrag1Gage, IF(AND(AE20>=Vertr2von,AE20<=Vertr2Bis),AF20&Vertrag2Gage, IF(AND(AE20>=Vertr3Von,AE20<=Vertr3bis),AF20&Vertrag3Gage, IF(AND(AE20>=Vertr4von,AE20<=Vertr4bis),AF20&Vertrag4Gage, IF(AND(AE20>=Vertr5von,AE20<=Vertr5bis),AF20&Vertrag5Gage, IF(AND(AE20>=Vertr6von,AE20<=Vertr6bis),AF20&Vertrag6Gage, "-")))))),"") ->  | AP20: Mo | AQ20: 2025-06-16 | AR20: B1 | AT20: =IF(AND(AS$3="x",LEFT(AR20,1)="B", OR(AND(AKTIVB1="x",AR20="B1"), AND(AKTIVB2="x",AR20="B2"), AND(AKTIVB3="x",AR20="B3"), AND(AKTIVB4="x",AR20="B4"), AND(AKTIVB5="x",AR20="B5"), AND(AKTIVB6="x",AR20="B6"), AND(AKTIVB7="x",AR20="B7"), )), IF(AND(AQ20>=Vertr1Von,AQ20<=Vertr1Bis),AR20&Vertrag1Gage, IF(AND(AQ20>=Vertr2von,AQ20<=Vertr2Bis),AR20&Vertrag2Gage, IF(AND(AQ20>=Vertr3Von,AQ20<=Vertr3bis),AR20&Vertrag3Gage, IF(AND(AQ20>=Vertr4von,AQ20<=Vertr4bis),AR20&Vertrag4Gage, IF(AND(AQ20>=Vertr5von,AQ20<=Vertr5bis),AR20&Vertrag5Gage, IF(AND(AQ20>=Vertr6von,AQ20<=Vertr6bis),AR20&Vertrag6Gage, "-")))))),"") -> B11 | BB20: Mi | BC20: 2025-07-16 | BE20: . | BF20: =IF(AND(BE$3="x",LEFT(BD20,1)="B", OR(AND(AKTIVB1="x",BD20="B1"), AND(AKTIVB2="x",BD20="B2"), AND(AKTIVB3="x",BD20="B3"), AND(AKTIVB4="x",BD20="B4"), AND(AKTIVB5="x",BD20="B5"), AND(AKTIVB6="x",BD20="B6"), AND(AKTIVB7="x",BD20="B7"), )), IF(AND(BC20>=Vertr1Von,BC20<=Vertr1Bis),BD20&Vertrag1Gage, IF(AND(BC20>=Vertr2von,BC20<=Vertr2Bis),BD20&Vertrag2Gage, IF(AND(BC20>=Vertr3Von,BC20<=Vertr3bis),BD20&Vertrag3Gage, IF(AND(BC20>=Vertr4von,BC20<=Vertr4bis),BD20&Vertrag4Gage, IF(AND(BC20>=Vertr5von,BC20<=Vertr5bis),BD20&Vertrag5Gage, IF(AND(BC20>=Vertr6von,BC20<=Vertr6bis),BD20&Vertrag6Gage, "-")))))),"") ->  | BN20: Sa | BO20: 2025-08-16 | BR20: =IF(AND(BQ$3="x",LEFT(BP20,1)="B", OR(AND(AKTIVB1="x",BP20="B1"), AND(AKTIVB2="x",BP20="B2"), AND(AKTIVB3="x",BP20="B3"), AND(AKTIVB4="x",BP20="B4"), AND(AKTIVB5="x",BP20="B5"), AND(AKTIVB6="x",BP20="B6"), AND(AKTIVB7="x",BP20="B7"), )), IF(AND(BO20>=Vertr1Von,BO20<=Vertr1Bis),BP20&Vertrag1Gage, IF(AND(BO20>=Vertr2von,BO20<=Vertr2Bis),BP20&Vertrag2Gage, IF(AND(BO20>=Vertr3Von,BO20<=Vertr3bis),BP20&Vertrag3Gage, IF(AND(BO20>=Vertr4von,BO20<=Vertr4bis),BP20&Vertrag4Gage, IF(AND(BO20>=Vertr5von,BO20<=Vertr5bis),BP20&Vertrag5Gage, IF(AND(BO20>=Vertr6von,BO20<=Vertr6bis),BP20&Vertrag6Gage, "-")))))),"") ->  | BZ20: Di | CA20: 2025-09-16 | CC20: . | CD20: =IF(AND(CC$3="x",LEFT(CB20,1)="B", OR(AND(AKTIVB1="x",CB20="B1"), AND(AKTIVB2="x",CB20="B2"), AND(AKTIVB3="x",CB20="B3"), AND(AKTIVB4="x",CB20="B4"), AND(AKTIVB5="x",CB20="B5"), AND(AKTIVB6="x",CB20="B6"), AND(AKTIVB7="x",CB20="B7"), )), IF(AND(CA20>=Vertr1Von,CA20<=Vertr1Bis),CB20&Vertrag1Gage, IF(AND(CA20>=Vertr2von,CA20<=Vertr2Bis),CB20&Vertrag2Gage, IF(AND(CA20>=Vertr3Von,CA20<=Vertr3bis),CB20&Vertrag3Gage, IF(AND(CA20>=Vertr4von,CA20<=Vertr4bis),CB20&Vertrag4Gage, IF(AND(CA20>=Vertr5von,CA20<=Vertr5bis),CB20&Vertrag5Gage, IF(AND(CA20>=Vertr6von,CA20<=Vertr6bis),CB20&Vertrag6Gage, "-")))))),"") ->  | CL20: Do | CM20: 2025-10-16 | CO20: . | CP20: =IF(AND(CO$3="x",LEFT(CN20,1)="B", OR(AND(AKTIVB1="x",CN20="B1"), AND(AKTIVB2="x",CN20="B2"), AND(AKTIVB3="x",CN20="B3"), AND(AKTIVB4="x",CN20="B4"), AND(AKTIVB5="x",CN20="B5"), AND(AKTIVB6="x",CN20="B6"), AND(AKTIVB7="x",CN20="B7"), )), IF(AND(CM20>=Vertr1Von,CM20<=Vertr1Bis),CN20&Vertrag1Gage, IF(AND(CM20>=Vertr2von,CM20<=Vertr2Bis),CN20&Vertrag2Gage, IF(AND(CM20>=Vertr3Von,CM20<=Vertr3bis),CN20&Vertrag3Gage, IF(AND(CM20>=Vertr4von,CM20<=Vertr4bis),CN20&Vertrag4Gage, IF(AND(CM20>=Vertr5von,CM20<=Vertr5bis),CN20&Vertrag5Gage, IF(AND(CM20>=Vertr6von,CM20<=Vertr6bis),CN20&Vertrag6Gage, "-")))))),"") ->  | CY20: So | CZ20: 2025-11-16 | DC20: =IF(AND(DB$3="x",LEFT(DA20,1)="B", OR(AND(AKTIVB1="x",DA20="B1"), AND(AKTIVB2="x",DA20="B2"), AND(AKTIVB3="x",DA20="B3"), AND(AKTIVB4="x",DA20="B4"), AND(AKTIVB5="x",DA20="B5"), AND(AKTIVB6="x",DA20="B6"), AND(AKTIVB7="x",DA20="B7"), )), IF(AND(CZ20>=Vertr1Von,CZ20<=Vertr1Bis),DA20&Vertrag1Gage, IF(AND(CZ20>=Vertr2von,CZ20<=Vertr2Bis),DA20&Vertrag2Gage, IF(AND(CZ20>=Vertr3Von,CZ20<=Vertr3bis),DA20&Vertrag3Gage, IF(AND(CZ20>=Vertr4von,CZ20<=Vertr4bis),DA20&Vertrag4Gage, IF(AND(CZ20>=Vertr5von,CZ20<=Vertr5bis),DA20&Vertrag5Gage, IF(AND(CZ20>=Vertr6von,CZ20<=Vertr6bis),DA20&Vertrag6Gage, "-")))))),"") ->  | DK20: Di | DL20: 2025-12-16 | DN20: . | DO20: =IF(AND(DN$3="x",LEFT(DM20,1)="B", OR(AND(AKTIVB1="x",DM20="B1"), AND(AKTIVB2="x",DM20="B2"), AND(AKTIVB3="x",DM20="B3"), AND(AKTIVB4="x",DM20="B4"), AND(AKTIVB5="x",DM20="B5"), AND(AKTIVB6="x",DM20="B6"), AND(AKTIVB7="x",DM20="B7"), )), IF(AND(DL20>=Vertr1Von,DL20<=Vertr1Bis),DM20&Vertrag1Gage, IF(AND(DL20>=Vertr2von,DL20<=Vertr2Bis),DM20&Vertrag2Gage, IF(AND(DL20>=Vertr3Von,DL20<=Vertr3bis),DM20&Vertrag3Gage, IF(AND(DL20>=Vertr4von,DL20<=Vertr4bis),DM20&Vertrag4Gage, IF(AND(DL20>=Vertr5von,DL20<=Vertr5bis),DM20&Vertrag5Gage, IF(AND(DL20>=Vertr6von,DL20<=Vertr6bis),DM20&Vertrag6Gage, "-")))))),"") ->  | DW20: Fr | DX20: 2026-01-16 | DZ20: . | EA20: =IF(AND(DZ$3="x",LEFT(DY20,1)="B", OR(AND(AKTIVB1="x",DY20="B1"), AND(AKTIVB2="x",DY20="B2"), AND(AKTIVB3="x",DY20="B3"), AND(AKTIVB4="x",DY20="B4"), AND(AKTIVB5="x",DY20="B5"), AND(AKTIVB6="x",DY20="B6"), AND(AKTIVB7="x",DY20="B7"), )), IF(AND(DX20>=Vertr1Von,DX20<=Vertr1Bis),DY20&Vertrag1Gage, IF(AND(DX20>=Vertr2von,DX20<=Vertr2Bis),DY20&Vertrag2Gage, IF(AND(DX20>=Vertr3Von,DX20<=Vertr3bis),DY20&Vertrag3Gage, IF(AND(DX20>=Vertr4von,DX20<=Vertr4bis),DY20&Vertrag4Gage, IF(AND(DX20>=Vertr5von,DX20<=Vertr5bis),DY20&Vertrag5Gage, IF(AND(DX20>=Vertr6von,DX20<=Vertr6bis),DY20&Vertrag6Gage, "-")))))),"") ->  | EI20: Mo | EJ20: 2026-02-16 | EL20: . | EM20: =IF(AND(EL$3="x",LEFT(EK20,1)="B", OR(AND(AKTIVB1="x",EK20="B1"), AND(AKTIVB2="x",EK20="B2"), AND(AKTIVB3="x",EK20="B3"), AND(AKTIVB4="x",EK20="B4"), AND(AKTIVB5="x",EK20="B5"), AND(AKTIVB6="x",EK20="B6"), AND(AKTIVB7="x",EK20="B7"), )), IF(AND(EJ20>=Vertr1Von,EJ20<=Vertr1Bis),EK20&Vertrag1Gage, IF(AND(EJ20>=Vertr2von,EJ20<=Vertr2Bis),EK20&Vertrag2Gage, IF(AND(EJ20>=Vertr3Von,EJ20<=Vertr3bis),EK20&Vertrag3Gage, IF(AND(EJ20>=Vertr4von,EJ20<=Vertr4bis),EK20&Vertrag4Gage, IF(AND(EJ20>=Vertr5von,EJ20<=Vertr5bis),EK20&Vertrag5Gage, IF(AND(EJ20>=Vertr6von,EJ20<=Vertr6bis),EK20&Vertrag6Gage, "-")))))),"") ->  | EU20: Mo | EV20: 2026-03-16 | EX20: . | EY20: =IF(AND(EX$3="x",LEFT(EW20,1)="B", OR(AND(AKTIVB1="x",EW20="B1"), AND(AKTIVB2="x",EW20="B2"), AND(AKTIVB3="x",EW20="B3"), AND(AKTIVB4="x",EW20="B4"), AND(AKTIVB5="x",EW20="B5"), AND(AKTIVB6="x",EW20="B6"), AND(AKTIVB7="x",EW20="B7"), )), IF(AND(EV20>=Vertr1Von,EV20<=Vertr1Bis),EW20&Vertrag1Gage, IF(AND(EV20>=Vertr2von,EV20<=Vertr2Bis),EW20&Vertrag2Gage, IF(AND(EV20>=Vertr3Von,EV20<=Vertr3bis),EW20&Vertrag3Gage, IF(AND(EV20>=Vertr4von,EV20<=Vertr4bis),EW20&Vertrag4Gage, IF(AND(EV20>=Vertr5von,EV20<=Vertr5bis),EW20&Vertrag5Gage, IF(AND(EV20>=Vertr6von,EV20<=Vertr6bis),EW20&Vertrag6Gage, "-")))))),"") ->  | FG20: Do | FH20: 2026-04-16 | FJ20: . | FK20: =IF(AND(FJ$3="x",LEFT(FI20,1)="B", OR(AND(AKTIVB1="x",FI20="B1"), AND(AKTIVB2="x",FI20="B2"), AND(AKTIVB3="x",FI20="B3"), AND(AKTIVB4="x",FI20="B4"), AND(AKTIVB5="x",FI20="B5"), AND(AKTIVB6="x",FI20="B6"), AND(AKTIVB7="x",FI20="B7"), )), IF(AND(FH20>=Vertr1Von,FH20<=Vertr1Bis),FI20&Vertrag1Gage, IF(AND(FH20>=Vertr2von,FH20<=Vertr2Bis),FI20&Vertrag2Gage, IF(AND(FH20>=Vertr3Von,FH20<=Vertr3bis),FI20&Vertrag3Gage, IF(AND(FH20>=Vertr4von,FH20<=Vertr4bis),FI20&Vertrag4Gage, IF(AND(FH20>=Vertr5von,FH20<=Vertr5bis),FI20&Vertrag5Gage, IF(AND(FH20>=Vertr6von,FH20<=Vertr6bis),FI20&Vertrag6Gage, "-")))))),"") ->  | FS20: Sa | FT20: 2026-05-16 | FW20: =IF(AND(FV$3="x",LEFT(FU20,1)="B", OR(AND(AKTIVB1="x",FU20="B1"), AND(AKTIVB2="x",FU20="B2"), AND(AKTIVB3="x",FU20="B3"), AND(AKTIVB4="x",FU20="B4"), AND(AKTIVB5="x",FU20="B5"), AND(AKTIVB6="x",FU20="B6"), AND(AKTIVB7="x",FU20="B7"), )), IF(AND(FT20>=Vertr1Von,FT20<=Vertr1Bis),FU20&Vertrag1Gage, IF(AND(FT20>=Vertr2von,FT20<=Vertr2Bis),FU20&Vertrag2Gage, IF(AND(FT20>=Vertr3Von,FT20<=Vertr3bis),FU20&Vertrag3Gage, IF(AND(FT20>=Vertr4von,FT20<=Vertr4bis),FU20&Vertrag4Gage, IF(AND(FT20>=Vertr5von,FT20<=Vertr5bis),FU20&Vertrag5Gage, IF(AND(FT20>=Vertr6von,FT20<=Vertr6bis),FU20&Vertrag6Gage, "-")))))),"") -> 
A21: Vertrag 6 | K21: =Vertr6SVTage -> 0 | Q21: Do | R21: 2025-04-17 | T21: . | U21: =IF(AND(T$3="x",LEFT(S21,1)="B", OR(AND(AKTIVB1="x",S21="B1"), AND(AKTIVB2="x",S21="B2"), AND(AKTIVB3="x",S21="B3"), AND(AKTIVB4="x",S21="B4"), AND(AKTIVB5="x",S21="B5"), AND(AKTIVB6="x",S21="B6"), AND(AKTIVB7="x",S21="B7"), )), IF(AND(R21>=Vertr1Von,R21<=Vertr1Bis),S21&Vertrag1Gage, IF(AND(R21>=Vertr2von,R21<=Vertr2Bis),S21&Vertrag2Gage, IF(AND(R21>=Vertr3Von,R21<=Vertr3bis),S21&Vertrag3Gage, IF(AND(R21>=Vertr4von,R21<=Vertr4bis),S21&Vertrag4Gage, IF(AND(R21>=Vertr5von,R21<=Vertr5bis),S21&Vertrag5Gage, IF(AND(R21>=Vertr6von,R21<=Vertr6bis),S21&Vertrag6Gage, "-")))))),"") ->  | AD21: Sa | AE21: 2025-05-17 | AG21: =IF(AND(ISNUMBER(AE21),AO21<>"AZV",AG$3="x",COUNTIFS(AH21:AO21,"B*")=0,AD21<>"Sa",AD21<>"So"), IF(AND(AE21>=Vertr1Von,AE21<=Vertr1Bis),"X", IF(AND(AE21>=Vertr2von,AE21<=Vertr2Bis),"X", IF(AND(AE21>=Vertr3Von,AE21<=Vertr3bis),"X", IF(AND(AE21>=Vertr4von,AE21<=Vertr4bis),"X", IF(AND(AE21>=Vertr5von,AE21<=Vertr5bis),"X", IF(AND(AE21>=Vertr6von,AE21<=Vertr6bis),"X", ".")))))),"") ->  | AH21: =IF(AND(AG$3="x",LEFT(AF21,1)="B", OR(AND(AKTIVB1="x",AF21="B1"), AND(AKTIVB2="x",AF21="B2"), AND(AKTIVB3="x",AF21="B3"), AND(AKTIVB4="x",AF21="B4"), AND(AKTIVB5="x",AF21="B5"), AND(AKTIVB6="x",AF21="B6"), AND(AKTIVB7="x",AF21="B7"), )), IF(AND(AE21>=Vertr1Von,AE21<=Vertr1Bis),AF21&Vertrag1Gage, IF(AND(AE21>=Vertr2von,AE21<=Vertr2Bis),AF21&Vertrag2Gage, IF(AND(AE21>=Vertr3Von,AE21<=Vertr3bis),AF21&Vertrag3Gage, IF(AND(AE21>=Vertr4von,AE21<=Vertr4bis),AF21&Vertrag4Gage, IF(AND(AE21>=Vertr5von,AE21<=Vertr5bis),AF21&Vertrag5Gage, IF(AND(AE21>=Vertr6von,AE21<=Vertr6bis),AF21&Vertrag6Gage, "-")))))),"") ->  | AP21: Di | AQ21: 2025-06-17 | AR21: B1 | AT21: =IF(AND(AS$3="x",LEFT(AR21,1)="B", OR(AND(AKTIVB1="x",AR21="B1"), AND(AKTIVB2="x",AR21="B2"), AND(AKTIVB3="x",AR21="B3"), AND(AKTIVB4="x",AR21="B4"), AND(AKTIVB5="x",AR21="B5"), AND(AKTIVB6="x",AR21="B6"), AND(AKTIVB7="x",AR21="B7"), )), IF(AND(AQ21>=Vertr1Von,AQ21<=Vertr1Bis),AR21&Vertrag1Gage, IF(AND(AQ21>=Vertr2von,AQ21<=Vertr2Bis),AR21&Vertrag2Gage, IF(AND(AQ21>=Vertr3Von,AQ21<=Vertr3bis),AR21&Vertrag3Gage, IF(AND(AQ21>=Vertr4von,AQ21<=Vertr4bis),AR21&Vertrag4Gage, IF(AND(AQ21>=Vertr5von,AQ21<=Vertr5bis),AR21&Vertrag5Gage, IF(AND(AQ21>=Vertr6von,AQ21<=Vertr6bis),AR21&Vertrag6Gage, "-")))))),"") -> B11 | BB21: Do | BC21: 2025-07-17 | BE21: . | BF21: =IF(AND(BE$3="x",LEFT(BD21,1)="B", OR(AND(AKTIVB1="x",BD21="B1"), AND(AKTIVB2="x",BD21="B2"), AND(AKTIVB3="x",BD21="B3"), AND(AKTIVB4="x",BD21="B4"), AND(AKTIVB5="x",BD21="B5"), AND(AKTIVB6="x",BD21="B6"), AND(AKTIVB7="x",BD21="B7"), )), IF(AND(BC21>=Vertr1Von,BC21<=Vertr1Bis),BD21&Vertrag1Gage, IF(AND(BC21>=Vertr2von,BC21<=Vertr2Bis),BD21&Vertrag2Gage, IF(AND(BC21>=Vertr3Von,BC21<=Vertr3bis),BD21&Vertrag3Gage, IF(AND(BC21>=Vertr4von,BC21<=Vertr4bis),BD21&Vertrag4Gage, IF(AND(BC21>=Vertr5von,BC21<=Vertr5bis),BD21&Vertrag5Gage, IF(AND(BC21>=Vertr6von,BC21<=Vertr6bis),BD21&Vertrag6Gage, "-")))))),"") ->  | BN21: So | BO21: 2025-08-17 | BR21: =IF(AND(BQ$3="x",LEFT(BP21,1)="B", OR(AND(AKTIVB1="x",BP21="B1"), AND(AKTIVB2="x",BP21="B2"), AND(AKTIVB3="x",BP21="B3"), AND(AKTIVB4="x",BP21="B4"), AND(AKTIVB5="x",BP21="B5"), AND(AKTIVB6="x",BP21="B6"), AND(AKTIVB7="x",BP21="B7"), )), IF(AND(BO21>=Vertr1Von,BO21<=Vertr1Bis),BP21&Vertrag1Gage, IF(AND(BO21>=Vertr2von,BO21<=Vertr2Bis),BP21&Vertrag2Gage, IF(AND(BO21>=Vertr3Von,BO21<=Vertr3bis),BP21&Vertrag3Gage, IF(AND(BO21>=Vertr4von,BO21<=Vertr4bis),BP21&Vertrag4Gage, IF(AND(BO21>=Vertr5von,BO21<=Vertr5bis),BP21&Vertrag5Gage, IF(AND(BO21>=Vertr6von,BO21<=Vertr6bis),BP21&Vertrag6Gage, "-")))))),"") ->  | BZ21: Mi | CA21: 2025-09-17 | CC21: . | CD21: =IF(AND(CC$3="x",LEFT(CB21,1)="B", OR(AND(AKTIVB1="x",CB21="B1"), AND(AKTIVB2="x",CB21="B2"), AND(AKTIVB3="x",CB21="B3"), AND(AKTIVB4="x",CB21="B4"), AND(AKTIVB5="x",CB21="B5"), AND(AKTIVB6="x",CB21="B6"), AND(AKTIVB7="x",CB21="B7"), )), IF(AND(CA21>=Vertr1Von,CA21<=Vertr1Bis),CB21&Vertrag1Gage, IF(AND(CA21>=Vertr2von,CA21<=Vertr2Bis),CB21&Vertrag2Gage, IF(AND(CA21>=Vertr3Von,CA21<=Vertr3bis),CB21&Vertrag3Gage, IF(AND(CA21>=Vertr4von,CA21<=Vertr4bis),CB21&Vertrag4Gage, IF(AND(CA21>=Vertr5von,CA21<=Vertr5bis),CB21&Vertrag5Gage, IF(AND(CA21>=Vertr6von,CA21<=Vertr6bis),CB21&Vertrag6Gage, "-")))))),"") ->  | CL21: Fr | CM21: 2025-10-17 | CO21: . | CP21: =IF(AND(CO$3="x",LEFT(CN21,1)="B", OR(AND(AKTIVB1="x",CN21="B1"), AND(AKTIVB2="x",CN21="B2"), AND(AKTIVB3="x",CN21="B3"), AND(AKTIVB4="x",CN21="B4"), AND(AKTIVB5="x",CN21="B5"), AND(AKTIVB6="x",CN21="B6"), AND(AKTIVB7="x",CN21="B7"), )), IF(AND(CM21>=Vertr1Von,CM21<=Vertr1Bis),CN21&Vertrag1Gage, IF(AND(CM21>=Vertr2von,CM21<=Vertr2Bis),CN21&Vertrag2Gage, IF(AND(CM21>=Vertr3Von,CM21<=Vertr3bis),CN21&Vertrag3Gage, IF(AND(CM21>=Vertr4von,CM21<=Vertr4bis),CN21&Vertrag4Gage, IF(AND(CM21>=Vertr5von,CM21<=Vertr5bis),CN21&Vertrag5Gage, IF(AND(CM21>=Vertr6von,CM21<=Vertr6bis),CN21&Vertrag6Gage, "-")))))),"") ->  | CY21: Mo | CZ21: 2025-11-17 | DB21: . | DC21: =IF(AND(DB$3="x",LEFT(DA21,1)="B", OR(AND(AKTIVB1="x",DA21="B1"), AND(AKTIVB2="x",DA21="B2"), AND(AKTIVB3="x",DA21="B3"), AND(AKTIVB4="x",DA21="B4"), AND(AKTIVB5="x",DA21="B5"), AND(AKTIVB6="x",DA21="B6"), AND(AKTIVB7="x",DA21="B7"), )), IF(AND(CZ21>=Vertr1Von,CZ21<=Vertr1Bis),DA21&Vertrag1Gage, IF(AND(CZ21>=Vertr2von,CZ21<=Vertr2Bis),DA21&Vertrag2Gage, IF(AND(CZ21>=Vertr3Von,CZ21<=Vertr3bis),DA21&Vertrag3Gage, IF(AND(CZ21>=Vertr4von,CZ21<=Vertr4bis),DA21&Vertrag4Gage, IF(AND(CZ21>=Vertr5von,CZ21<=Vertr5bis),DA21&Vertrag5Gage, IF(AND(CZ21>=Vertr6von,CZ21<=Vertr6bis),DA21&Vertrag6Gage, "-")))))),"") ->  | DK21: Mi | DL21: 2025-12-17 | DN21: . | DO21: =IF(AND(DN$3="x",LEFT(DM21,1)="B", OR(AND(AKTIVB1="x",DM21="B1"), AND(AKTIVB2="x",DM21="B2"), AND(AKTIVB3="x",DM21="B3"), AND(AKTIVB4="x",DM21="B4"), AND(AKTIVB5="x",DM21="B5"), AND(AKTIVB6="x",DM21="B6"), AND(AKTIVB7="x",DM21="B7"), )), IF(AND(DL21>=Vertr1Von,DL21<=Vertr1Bis),DM21&Vertrag1Gage, IF(AND(DL21>=Vertr2von,DL21<=Vertr2Bis),DM21&Vertrag2Gage, IF(AND(DL21>=Vertr3Von,DL21<=Vertr3bis),DM21&Vertrag3Gage, IF(AND(DL21>=Vertr4von,DL21<=Vertr4bis),DM21&Vertrag4Gage, IF(AND(DL21>=Vertr5von,DL21<=Vertr5bis),DM21&Vertrag5Gage, IF(AND(DL21>=Vertr6von,DL21<=Vertr6bis),DM21&Vertrag6Gage, "-")))))),"") ->  | DW21: Sa | DX21: 2026-01-17 | EA21: =IF(AND(DZ$3="x",LEFT(DY21,1)="B", OR(AND(AKTIVB1="x",DY21="B1"), AND(AKTIVB2="x",DY21="B2"), AND(AKTIVB3="x",DY21="B3"), AND(AKTIVB4="x",DY21="B4"), AND(AKTIVB5="x",DY21="B5"), AND(AKTIVB6="x",DY21="B6"), AND(AKTIVB7="x",DY21="B7"), )), IF(AND(DX21>=Vertr1Von,DX21<=Vertr1Bis),DY21&Vertrag1Gage, IF(AND(DX21>=Vertr2von,DX21<=Vertr2Bis),DY21&Vertrag2Gage, IF(AND(DX21>=Vertr3Von,DX21<=Vertr3bis),DY21&Vertrag3Gage, IF(AND(DX21>=Vertr4von,DX21<=Vertr4bis),DY21&Vertrag4Gage, IF(AND(DX21>=Vertr5von,DX21<=Vertr5bis),DY21&Vertrag5Gage, IF(AND(DX21>=Vertr6von,DX21<=Vertr6bis),DY21&Vertrag6Gage, "-")))))),"") ->  | EI21: Di | EJ21: 2026-02-17 | EL21: . | EM21: =IF(AND(EL$3="x",LEFT(EK21,1)="B", OR(AND(AKTIVB1="x",EK21="B1"), AND(AKTIVB2="x",EK21="B2"), AND(AKTIVB3="x",EK21="B3"), AND(AKTIVB4="x",EK21="B4"), AND(AKTIVB5="x",EK21="B5"), AND(AKTIVB6="x",EK21="B6"), AND(AKTIVB7="x",EK21="B7"), )), IF(AND(EJ21>=Vertr1Von,EJ21<=Vertr1Bis),EK21&Vertrag1Gage, IF(AND(EJ21>=Vertr2von,EJ21<=Vertr2Bis),EK21&Vertrag2Gage, IF(AND(EJ21>=Vertr3Von,EJ21<=Vertr3bis),EK21&Vertrag3Gage, IF(AND(EJ21>=Vertr4von,EJ21<=Vertr4bis),EK21&Vertrag4Gage, IF(AND(EJ21>=Vertr5von,EJ21<=Vertr5bis),EK21&Vertrag5Gage, IF(AND(EJ21>=Vertr6von,EJ21<=Vertr6bis),EK21&Vertrag6Gage, "-")))))),"") ->  | EU21: Di | EV21: 2026-03-17 | EX21: . | EY21: =IF(AND(EX$3="x",LEFT(EW21,1)="B", OR(AND(AKTIVB1="x",EW21="B1"), AND(AKTIVB2="x",EW21="B2"), AND(AKTIVB3="x",EW21="B3"), AND(AKTIVB4="x",EW21="B4"), AND(AKTIVB5="x",EW21="B5"), AND(AKTIVB6="x",EW21="B6"), AND(AKTIVB7="x",EW21="B7"), )), IF(AND(EV21>=Vertr1Von,EV21<=Vertr1Bis),EW21&Vertrag1Gage, IF(AND(EV21>=Vertr2von,EV21<=Vertr2Bis),EW21&Vertrag2Gage, IF(AND(EV21>=Vertr3Von,EV21<=Vertr3bis),EW21&Vertrag3Gage, IF(AND(EV21>=Vertr4von,EV21<=Vertr4bis),EW21&Vertrag4Gage, IF(AND(EV21>=Vertr5von,EV21<=Vertr5bis),EW21&Vertrag5Gage, IF(AND(EV21>=Vertr6von,EV21<=Vertr6bis),EW21&Vertrag6Gage, "-")))))),"") ->  | FG21: Fr | FH21: 2026-04-17 | FJ21: . | FK21: =IF(AND(FJ$3="x",LEFT(FI21,1)="B", OR(AND(AKTIVB1="x",FI21="B1"), AND(AKTIVB2="x",FI21="B2"), AND(AKTIVB3="x",FI21="B3"), AND(AKTIVB4="x",FI21="B4"), AND(AKTIVB5="x",FI21="B5"), AND(AKTIVB6="x",FI21="B6"), AND(AKTIVB7="x",FI21="B7"), )), IF(AND(FH21>=Vertr1Von,FH21<=Vertr1Bis),FI21&Vertrag1Gage, IF(AND(FH21>=Vertr2von,FH21<=Vertr2Bis),FI21&Vertrag2Gage, IF(AND(FH21>=Vertr3Von,FH21<=Vertr3bis),FI21&Vertrag3Gage, IF(AND(FH21>=Vertr4von,FH21<=Vertr4bis),FI21&Vertrag4Gage, IF(AND(FH21>=Vertr5von,FH21<=Vertr5bis),FI21&Vertrag5Gage, IF(AND(FH21>=Vertr6von,FH21<=Vertr6bis),FI21&Vertrag6Gage, "-")))))),"") ->  | FS21: So | FT21: 2026-05-17 | FW21: =IF(AND(FV$3="x",LEFT(FU21,1)="B", OR(AND(AKTIVB1="x",FU21="B1"), AND(AKTIVB2="x",FU21="B2"), AND(AKTIVB3="x",FU21="B3"), AND(AKTIVB4="x",FU21="B4"), AND(AKTIVB5="x",FU21="B5"), AND(AKTIVB6="x",FU21="B6"), AND(AKTIVB7="x",FU21="B7"), )), IF(AND(FT21>=Vertr1Von,FT21<=Vertr1Bis),FU21&Vertrag1Gage, IF(AND(FT21>=Vertr2von,FT21<=Vertr2Bis),FU21&Vertrag2Gage, IF(AND(FT21>=Vertr3Von,FT21<=Vertr3bis),FU21&Vertrag3Gage, IF(AND(FT21>=Vertr4von,FT21<=Vertr4bis),FU21&Vertrag4Gage, IF(AND(FT21>=Vertr5von,FT21<=Vertr5bis),FU21&Vertrag5Gage, IF(AND(FT21>=Vertr6von,FT21<=Vertr6bis),FU21&Vertrag6Gage, "-")))))),"") -> 
Q22: Fr | R22: 2025-04-18 | S22: F | T22: . | U22: =IF(AND(T$3="x",LEFT(S22,1)="B", OR(AND(AKTIVB1="x",S22="B1"), AND(AKTIVB2="x",S22="B2"), AND(AKTIVB3="x",S22="B3"), AND(AKTIVB4="x",S22="B4"), AND(AKTIVB5="x",S22="B5"), AND(AKTIVB6="x",S22="B6"), AND(AKTIVB7="x",S22="B7"), )), IF(AND(R22>=Vertr1Von,R22<=Vertr1Bis),S22&Vertrag1Gage, IF(AND(R22>=Vertr2von,R22<=Vertr2Bis),S22&Vertrag2Gage, IF(AND(R22>=Vertr3Von,R22<=Vertr3bis),S22&Vertrag3Gage, IF(AND(R22>=Vertr4von,R22<=Vertr4bis),S22&Vertrag4Gage, IF(AND(R22>=Vertr5von,R22<=Vertr5bis),S22&Vertrag5Gage, IF(AND(R22>=Vertr6von,R22<=Vertr6bis),S22&Vertrag6Gage, "-")))))),"") ->  | AD22: So | AE22: 2025-05-18 | AH22: =IF(AND(AG$3="x",LEFT(AF22,1)="B", OR(AND(AKTIVB1="x",AF22="B1"), AND(AKTIVB2="x",AF22="B2"), AND(AKTIVB3="x",AF22="B3"), AND(AKTIVB4="x",AF22="B4"), AND(AKTIVB5="x",AF22="B5"), AND(AKTIVB6="x",AF22="B6"), AND(AKTIVB7="x",AF22="B7"), )), IF(AND(AE22>=Vertr1Von,AE22<=Vertr1Bis),AF22&Vertrag1Gage, IF(AND(AE22>=Vertr2von,AE22<=Vertr2Bis),AF22&Vertrag2Gage, IF(AND(AE22>=Vertr3Von,AE22<=Vertr3bis),AF22&Vertrag3Gage, IF(AND(AE22>=Vertr4von,AE22<=Vertr4bis),AF22&Vertrag4Gage, IF(AND(AE22>=Vertr5von,AE22<=Vertr5bis),AF22&Vertrag5Gage, IF(AND(AE22>=Vertr6von,AE22<=Vertr6bis),AF22&Vertrag6Gage, "-")))))),"") ->  | AP22: Mi | AQ22: 2025-06-18 | AR22: B1 | AT22: =IF(AND(AS$3="x",LEFT(AR22,1)="B", OR(AND(AKTIVB1="x",AR22="B1"), AND(AKTIVB2="x",AR22="B2"), AND(AKTIVB3="x",AR22="B3"), AND(AKTIVB4="x",AR22="B4"), AND(AKTIVB5="x",AR22="B5"), AND(AKTIVB6="x",AR22="B6"), AND(AKTIVB7="x",AR22="B7"), )), IF(AND(AQ22>=Vertr1Von,AQ22<=Vertr1Bis),AR22&Vertrag1Gage, IF(AND(AQ22>=Vertr2von,AQ22<=Vertr2Bis),AR22&Vertrag2Gage, IF(AND(AQ22>=Vertr3Von,AQ22<=Vertr3bis),AR22&Vertrag3Gage, IF(AND(AQ22>=Vertr4von,AQ22<=Vertr4bis),AR22&Vertrag4Gage, IF(AND(AQ22>=Vertr5von,AQ22<=Vertr5bis),AR22&Vertrag5Gage, IF(AND(AQ22>=Vertr6von,AQ22<=Vertr6bis),AR22&Vertrag6Gage, "-")))))),"") -> B11 | BB22: Fr | BC22: 2025-07-18 | BE22: . | BF22: =IF(AND(BE$3="x",LEFT(BD22,1)="B", OR(AND(AKTIVB1="x",BD22="B1"), AND(AKTIVB2="x",BD22="B2"), AND(AKTIVB3="x",BD22="B3"), AND(AKTIVB4="x",BD22="B4"), AND(AKTIVB5="x",BD22="B5"), AND(AKTIVB6="x",BD22="B6"), AND(AKTIVB7="x",BD22="B7"), )), IF(AND(BC22>=Vertr1Von,BC22<=Vertr1Bis),BD22&Vertrag1Gage, IF(AND(BC22>=Vertr2von,BC22<=Vertr2Bis),BD22&Vertrag2Gage, IF(AND(BC22>=Vertr3Von,BC22<=Vertr3bis),BD22&Vertrag3Gage, IF(AND(BC22>=Vertr4von,BC22<=Vertr4bis),BD22&Vertrag4Gage, IF(AND(BC22>=Vertr5von,BC22<=Vertr5bis),BD22&Vertrag5Gage, IF(AND(BC22>=Vertr6von,BC22<=Vertr6bis),BD22&Vertrag6Gage, "-")))))),"") ->  | BN22: Mo | BO22: 2025-08-18 | BQ22: . | BR22: =IF(AND(BQ$3="x",LEFT(BP22,1)="B", OR(AND(AKTIVB1="x",BP22="B1"), AND(AKTIVB2="x",BP22="B2"), AND(AKTIVB3="x",BP22="B3"), AND(AKTIVB4="x",BP22="B4"), AND(AKTIVB5="x",BP22="B5"), AND(AKTIVB6="x",BP22="B6"), AND(AKTIVB7="x",BP22="B7"), )), IF(AND(BO22>=Vertr1Von,BO22<=Vertr1Bis),BP22&Vertrag1Gage, IF(AND(BO22>=Vertr2von,BO22<=Vertr2Bis),BP22&Vertrag2Gage, IF(AND(BO22>=Vertr3Von,BO22<=Vertr3bis),BP22&Vertrag3Gage, IF(AND(BO22>=Vertr4von,BO22<=Vertr4bis),BP22&Vertrag4Gage, IF(AND(BO22>=Vertr5von,BO22<=Vertr5bis),BP22&Vertrag5Gage, IF(AND(BO22>=Vertr6von,BO22<=Vertr6bis),BP22&Vertrag6Gage, "-")))))),"") ->  | BZ22: Do | CA22: 2025-09-18 | CC22: . | CD22: =IF(AND(CC$3="x",LEFT(CB22,1)="B", OR(AND(AKTIVB1="x",CB22="B1"), AND(AKTIVB2="x",CB22="B2"), AND(AKTIVB3="x",CB22="B3"), AND(AKTIVB4="x",CB22="B4"), AND(AKTIVB5="x",CB22="B5"), AND(AKTIVB6="x",CB22="B6"), AND(AKTIVB7="x",CB22="B7"), )), IF(AND(CA22>=Vertr1Von,CA22<=Vertr1Bis),CB22&Vertrag1Gage, IF(AND(CA22>=Vertr2von,CA22<=Vertr2Bis),CB22&Vertrag2Gage, IF(AND(CA22>=Vertr3Von,CA22<=Vertr3bis),CB22&Vertrag3Gage, IF(AND(CA22>=Vertr4von,CA22<=Vertr4bis),CB22&Vertrag4Gage, IF(AND(CA22>=Vertr5von,CA22<=Vertr5bis),CB22&Vertrag5Gage, IF(AND(CA22>=Vertr6von,CA22<=Vertr6bis),CB22&Vertrag6Gage, "-")))))),"") ->  | CL22: Sa | CM22: 2025-10-18 | CP22: =IF(AND(CO$3="x",LEFT(CN22,1)="B", OR(AND(AKTIVB1="x",CN22="B1"), AND(AKTIVB2="x",CN22="B2"), AND(AKTIVB3="x",CN22="B3"), AND(AKTIVB4="x",CN22="B4"), AND(AKTIVB5="x",CN22="B5"), AND(AKTIVB6="x",CN22="B6"), AND(AKTIVB7="x",CN22="B7"), )), IF(AND(CM22>=Vertr1Von,CM22<=Vertr1Bis),CN22&Vertrag1Gage, IF(AND(CM22>=Vertr2von,CM22<=Vertr2Bis),CN22&Vertrag2Gage, IF(AND(CM22>=Vertr3Von,CM22<=Vertr3bis),CN22&Vertrag3Gage, IF(AND(CM22>=Vertr4von,CM22<=Vertr4bis),CN22&Vertrag4Gage, IF(AND(CM22>=Vertr5von,CM22<=Vertr5bis),CN22&Vertrag5Gage, IF(AND(CM22>=Vertr6von,CM22<=Vertr6bis),CN22&Vertrag6Gage, "-")))))),"") ->  | CY22: Di | CZ22: 2025-11-18 | DB22: . | DC22: =IF(AND(DB$3="x",LEFT(DA22,1)="B", OR(AND(AKTIVB1="x",DA22="B1"), AND(AKTIVB2="x",DA22="B2"), AND(AKTIVB3="x",DA22="B3"), AND(AKTIVB4="x",DA22="B4"), AND(AKTIVB5="x",DA22="B5"), AND(AKTIVB6="x",DA22="B6"), AND(AKTIVB7="x",DA22="B7"), )), IF(AND(CZ22>=Vertr1Von,CZ22<=Vertr1Bis),DA22&Vertrag1Gage, IF(AND(CZ22>=Vertr2von,CZ22<=Vertr2Bis),DA22&Vertrag2Gage, IF(AND(CZ22>=Vertr3Von,CZ22<=Vertr3bis),DA22&Vertrag3Gage, IF(AND(CZ22>=Vertr4von,CZ22<=Vertr4bis),DA22&Vertrag4Gage, IF(AND(CZ22>=Vertr5von,CZ22<=Vertr5bis),DA22&Vertrag5Gage, IF(AND(CZ22>=Vertr6von,CZ22<=Vertr6bis),DA22&Vertrag6Gage, "-")))))),"") ->  | DK22: Do | DL22: 2025-12-18 | DN22: . | DO22: =IF(AND(DN$3="x",LEFT(DM22,1)="B", OR(AND(AKTIVB1="x",DM22="B1"), AND(AKTIVB2="x",DM22="B2"), AND(AKTIVB3="x",DM22="B3"), AND(AKTIVB4="x",DM22="B4"), AND(AKTIVB5="x",DM22="B5"), AND(AKTIVB6="x",DM22="B6"), AND(AKTIVB7="x",DM22="B7"), )), IF(AND(DL22>=Vertr1Von,DL22<=Vertr1Bis),DM22&Vertrag1Gage, IF(AND(DL22>=Vertr2von,DL22<=Vertr2Bis),DM22&Vertrag2Gage, IF(AND(DL22>=Vertr3Von,DL22<=Vertr3bis),DM22&Vertrag3Gage, IF(AND(DL22>=Vertr4von,DL22<=Vertr4bis),DM22&Vertrag4Gage, IF(AND(DL22>=Vertr5von,DL22<=Vertr5bis),DM22&Vertrag5Gage, IF(AND(DL22>=Vertr6von,DL22<=Vertr6bis),DM22&Vertrag6Gage, "-")))))),"") ->  | DW22: So | DX22: 2026-01-18 | EA22: =IF(AND(DZ$3="x",LEFT(DY22,1)="B", OR(AND(AKTIVB1="x",DY22="B1"), AND(AKTIVB2="x",DY22="B2"), AND(AKTIVB3="x",DY22="B3"), AND(AKTIVB4="x",DY22="B4"), AND(AKTIVB5="x",DY22="B5"), AND(AKTIVB6="x",DY22="B6"), AND(AKTIVB7="x",DY22="B7"), )), IF(AND(DX22>=Vertr1Von,DX22<=Vertr1Bis),DY22&Vertrag1Gage, IF(AND(DX22>=Vertr2von,DX22<=Vertr2Bis),DY22&Vertrag2Gage, IF(AND(DX22>=Vertr3Von,DX22<=Vertr3bis),DY22&Vertrag3Gage, IF(AND(DX22>=Vertr4von,DX22<=Vertr4bis),DY22&Vertrag4Gage, IF(AND(DX22>=Vertr5von,DX22<=Vertr5bis),DY22&Vertrag5Gage, IF(AND(DX22>=Vertr6von,DX22<=Vertr6bis),DY22&Vertrag6Gage, "-")))))),"") ->  | EI22: Mi | EJ22: 2026-02-18 | EL22: . | EM22: =IF(AND(EL$3="x",LEFT(EK22,1)="B", OR(AND(AKTIVB1="x",EK22="B1"), AND(AKTIVB2="x",EK22="B2"), AND(AKTIVB3="x",EK22="B3"), AND(AKTIVB4="x",EK22="B4"), AND(AKTIVB5="x",EK22="B5"), AND(AKTIVB6="x",EK22="B6"), AND(AKTIVB7="x",EK22="B7"), )), IF(AND(EJ22>=Vertr1Von,EJ22<=Vertr1Bis),EK22&Vertrag1Gage, IF(AND(EJ22>=Vertr2von,EJ22<=Vertr2Bis),EK22&Vertrag2Gage, IF(AND(EJ22>=Vertr3Von,EJ22<=Vertr3bis),EK22&Vertrag3Gage, IF(AND(EJ22>=Vertr4von,EJ22<=Vertr4bis),EK22&Vertrag4Gage, IF(AND(EJ22>=Vertr5von,EJ22<=Vertr5bis),EK22&Vertrag5Gage, IF(AND(EJ22>=Vertr6von,EJ22<=Vertr6bis),EK22&Vertrag6Gage, "-")))))),"") ->  | EU22: Mi | EV22: 2026-03-18 | EX22: . | EY22: =IF(AND(EX$3="x",LEFT(EW22,1)="B", OR(AND(AKTIVB1="x",EW22="B1"), AND(AKTIVB2="x",EW22="B2"), AND(AKTIVB3="x",EW22="B3"), AND(AKTIVB4="x",EW22="B4"), AND(AKTIVB5="x",EW22="B5"), AND(AKTIVB6="x",EW22="B6"), AND(AKTIVB7="x",EW22="B7"), )), IF(AND(EV22>=Vertr1Von,EV22<=Vertr1Bis),EW22&Vertrag1Gage, IF(AND(EV22>=Vertr2von,EV22<=Vertr2Bis),EW22&Vertrag2Gage, IF(AND(EV22>=Vertr3Von,EV22<=Vertr3bis),EW22&Vertrag3Gage, IF(AND(EV22>=Vertr4von,EV22<=Vertr4bis),EW22&Vertrag4Gage, IF(AND(EV22>=Vertr5von,EV22<=Vertr5bis),EW22&Vertrag5Gage, IF(AND(EV22>=Vertr6von,EV22<=Vertr6bis),EW22&Vertrag6Gage, "-")))))),"") ->  | FG22: Sa | FH22: 2026-04-18 | FK22: =IF(AND(FJ$3="x",LEFT(FI22,1)="B", OR(AND(AKTIVB1="x",FI22="B1"), AND(AKTIVB2="x",FI22="B2"), AND(AKTIVB3="x",FI22="B3"), AND(AKTIVB4="x",FI22="B4"), AND(AKTIVB5="x",FI22="B5"), AND(AKTIVB6="x",FI22="B6"), AND(AKTIVB7="x",FI22="B7"), )), IF(AND(FH22>=Vertr1Von,FH22<=Vertr1Bis),FI22&Vertrag1Gage, IF(AND(FH22>=Vertr2von,FH22<=Vertr2Bis),FI22&Vertrag2Gage, IF(AND(FH22>=Vertr3Von,FH22<=Vertr3bis),FI22&Vertrag3Gage, IF(AND(FH22>=Vertr4von,FH22<=Vertr4bis),FI22&Vertrag4Gage, IF(AND(FH22>=Vertr5von,FH22<=Vertr5bis),FI22&Vertrag5Gage, IF(AND(FH22>=Vertr6von,FH22<=Vertr6bis),FI22&Vertrag6Gage, "-")))))),"") ->  | FS22: Mo | FT22: 2026-05-18 | FV22: . | FW22: =IF(AND(FV$3="x",LEFT(FU22,1)="B", OR(AND(AKTIVB1="x",FU22="B1"), AND(AKTIVB2="x",FU22="B2"), AND(AKTIVB3="x",FU22="B3"), AND(AKTIVB4="x",FU22="B4"), AND(AKTIVB5="x",FU22="B5"), AND(AKTIVB6="x",FU22="B6"), AND(AKTIVB7="x",FU22="B7"), )), IF(AND(FT22>=Vertr1Von,FT22<=Vertr1Bis),FU22&Vertrag1Gage, IF(AND(FT22>=Vertr2von,FT22<=Vertr2Bis),FU22&Vertrag2Gage, IF(AND(FT22>=Vertr3Von,FT22<=Vertr3bis),FU22&Vertrag3Gage, IF(AND(FT22>=Vertr4von,FT22<=Vertr4bis),FU22&Vertrag4Gage, IF(AND(FT22>=Vertr5von,FT22<=Vertr5bis),FU22&Vertrag5Gage, IF(AND(FT22>=Vertr6von,FT22<=Vertr6bis),FU22&Vertrag6Gage, "-")))))),"") -> 
A23: Ansatz Teilnahme Blöcke | H23: B1 | I23: B2 | J23: B3 | K23: B4 | L23: B5 | M23: B6 | N23: B7 | Q23: Sa | R23: 2025-04-19 | U23: =IF(AND(T$3="x",LEFT(S23,1)="B", OR(AND(AKTIVB1="x",S23="B1"), AND(AKTIVB2="x",S23="B2"), AND(AKTIVB3="x",S23="B3"), AND(AKTIVB4="x",S23="B4"), AND(AKTIVB5="x",S23="B5"), AND(AKTIVB6="x",S23="B6"), AND(AKTIVB7="x",S23="B7"), )), IF(AND(R23>=Vertr1Von,R23<=Vertr1Bis),S23&Vertrag1Gage, IF(AND(R23>=Vertr2von,R23<=Vertr2Bis),S23&Vertrag2Gage, IF(AND(R23>=Vertr3Von,R23<=Vertr3bis),S23&Vertrag3Gage, IF(AND(R23>=Vertr4von,R23<=Vertr4bis),S23&Vertrag4Gage, IF(AND(R23>=Vertr5von,R23<=Vertr5bis),S23&Vertrag5Gage, IF(AND(R23>=Vertr6von,R23<=Vertr6bis),S23&Vertrag6Gage, "-")))))),"") ->  | AD23: Mo | AE23: 2025-05-19 | AF23: REISE | AH23: =IF(AND(AG$3="x",LEFT(AF23,1)="B", OR(AND(AKTIVB1="x",AF23="B1"), AND(AKTIVB2="x",AF23="B2"), AND(AKTIVB3="x",AF23="B3"), AND(AKTIVB4="x",AF23="B4"), AND(AKTIVB5="x",AF23="B5"), AND(AKTIVB6="x",AF23="B6"), AND(AKTIVB7="x",AF23="B7"), )), IF(AND(AE23>=Vertr1Von,AE23<=Vertr1Bis),AF23&Vertrag1Gage, IF(AND(AE23>=Vertr2von,AE23<=Vertr2Bis),AF23&Vertrag2Gage, IF(AND(AE23>=Vertr3Von,AE23<=Vertr3bis),AF23&Vertrag3Gage, IF(AND(AE23>=Vertr4von,AE23<=Vertr4bis),AF23&Vertrag4Gage, IF(AND(AE23>=Vertr5von,AE23<=Vertr5bis),AF23&Vertrag5Gage, IF(AND(AE23>=Vertr6von,AE23<=Vertr6bis),AF23&Vertrag6Gage, "-")))))),"") ->  | AJ23: B11 | AP23: Do | AQ23: 2025-06-19 | AR23: B1 | AT23: =IF(AND(AS$3="x",LEFT(AR23,1)="B", OR(AND(AKTIVB1="x",AR23="B1"), AND(AKTIVB2="x",AR23="B2"), AND(AKTIVB3="x",AR23="B3"), AND(AKTIVB4="x",AR23="B4"), AND(AKTIVB5="x",AR23="B5"), AND(AKTIVB6="x",AR23="B6"), AND(AKTIVB7="x",AR23="B7"), )), IF(AND(AQ23>=Vertr1Von,AQ23<=Vertr1Bis),AR23&Vertrag1Gage, IF(AND(AQ23>=Vertr2von,AQ23<=Vertr2Bis),AR23&Vertrag2Gage, IF(AND(AQ23>=Vertr3Von,AQ23<=Vertr3bis),AR23&Vertrag3Gage, IF(AND(AQ23>=Vertr4von,AQ23<=Vertr4bis),AR23&Vertrag4Gage, IF(AND(AQ23>=Vertr5von,AQ23<=Vertr5bis),AR23&Vertrag5Gage, IF(AND(AQ23>=Vertr6von,AQ23<=Vertr6bis),AR23&Vertrag6Gage, "-")))))),"") -> B11 | BB23: Sa | BC23: 2025-07-19 | BF23: =IF(AND(BE$3="x",LEFT(BD23,1)="B", OR(AND(AKTIVB1="x",BD23="B1"), AND(AKTIVB2="x",BD23="B2"), AND(AKTIVB3="x",BD23="B3"), AND(AKTIVB4="x",BD23="B4"), AND(AKTIVB5="x",BD23="B5"), AND(AKTIVB6="x",BD23="B6"), AND(AKTIVB7="x",BD23="B7"), )), IF(AND(BC23>=Vertr1Von,BC23<=Vertr1Bis),BD23&Vertrag1Gage, IF(AND(BC23>=Vertr2von,BC23<=Vertr2Bis),BD23&Vertrag2Gage, IF(AND(BC23>=Vertr3Von,BC23<=Vertr3bis),BD23&Vertrag3Gage, IF(AND(BC23>=Vertr4von,BC23<=Vertr4bis),BD23&Vertrag4Gage, IF(AND(BC23>=Vertr5von,BC23<=Vertr5bis),BD23&Vertrag5Gage, IF(AND(BC23>=Vertr6von,BC23<=Vertr6bis),BD23&Vertrag6Gage, "-")))))),"") ->  | BN23: Di | BO23: 2025-08-19 | BQ23: . | BR23: =IF(AND(BQ$3="x",LEFT(BP23,1)="B", OR(AND(AKTIVB1="x",BP23="B1"), AND(AKTIVB2="x",BP23="B2"), AND(AKTIVB3="x",BP23="B3"), AND(AKTIVB4="x",BP23="B4"), AND(AKTIVB5="x",BP23="B5"), AND(AKTIVB6="x",BP23="B6"), AND(AKTIVB7="x",BP23="B7"), )), IF(AND(BO23>=Vertr1Von,BO23<=Vertr1Bis),BP23&Vertrag1Gage, IF(AND(BO23>=Vertr2von,BO23<=Vertr2Bis),BP23&Vertrag2Gage, IF(AND(BO23>=Vertr3Von,BO23<=Vertr3bis),BP23&Vertrag3Gage, IF(AND(BO23>=Vertr4von,BO23<=Vertr4bis),BP23&Vertrag4Gage, IF(AND(BO23>=Vertr5von,BO23<=Vertr5bis),BP23&Vertrag5Gage, IF(AND(BO23>=Vertr6von,BO23<=Vertr6bis),BP23&Vertrag6Gage, "-")))))),"") ->  | BZ23: Fr | CA23: 2025-09-19 | CC23: . | CD23: =IF(AND(CC$3="x",LEFT(CB23,1)="B", OR(AND(AKTIVB1="x",CB23="B1"), AND(AKTIVB2="x",CB23="B2"), AND(AKTIVB3="x",CB23="B3"), AND(AKTIVB4="x",CB23="B4"), AND(AKTIVB5="x",CB23="B5"), AND(AKTIVB6="x",CB23="B6"), AND(AKTIVB7="x",CB23="B7"), )), IF(AND(CA23>=Vertr1Von,CA23<=Vertr1Bis),CB23&Vertrag1Gage, IF(AND(CA23>=Vertr2von,CA23<=Vertr2Bis),CB23&Vertrag2Gage, IF(AND(CA23>=Vertr3Von,CA23<=Vertr3bis),CB23&Vertrag3Gage, IF(AND(CA23>=Vertr4von,CA23<=Vertr4bis),CB23&Vertrag4Gage, IF(AND(CA23>=Vertr5von,CA23<=Vertr5bis),CB23&Vertrag5Gage, IF(AND(CA23>=Vertr6von,CA23<=Vertr6bis),CB23&Vertrag6Gage, "-")))))),"") ->  | CL23: So | CM23: 2025-10-19 | CP23: =IF(AND(CO$3="x",LEFT(CN23,1)="B", OR(AND(AKTIVB1="x",CN23="B1"), AND(AKTIVB2="x",CN23="B2"), AND(AKTIVB3="x",CN23="B3"), AND(AKTIVB4="x",CN23="B4"), AND(AKTIVB5="x",CN23="B5"), AND(AKTIVB6="x",CN23="B6"), AND(AKTIVB7="x",CN23="B7"), )), IF(AND(CM23>=Vertr1Von,CM23<=Vertr1Bis),CN23&Vertrag1Gage, IF(AND(CM23>=Vertr2von,CM23<=Vertr2Bis),CN23&Vertrag2Gage, IF(AND(CM23>=Vertr3Von,CM23<=Vertr3bis),CN23&Vertrag3Gage, IF(AND(CM23>=Vertr4von,CM23<=Vertr4bis),CN23&Vertrag4Gage, IF(AND(CM23>=Vertr5von,CM23<=Vertr5bis),CN23&Vertrag5Gage, IF(AND(CM23>=Vertr6von,CM23<=Vertr6bis),CN23&Vertrag6Gage, "-")))))),"") ->  | CY23: Mi | CZ23: 2025-11-19 | DB23: . | DC23: =IF(AND(DB$3="x",LEFT(DA23,1)="B", OR(AND(AKTIVB1="x",DA23="B1"), AND(AKTIVB2="x",DA23="B2"), AND(AKTIVB3="x",DA23="B3"), AND(AKTIVB4="x",DA23="B4"), AND(AKTIVB5="x",DA23="B5"), AND(AKTIVB6="x",DA23="B6"), AND(AKTIVB7="x",DA23="B7"), )), IF(AND(CZ23>=Vertr1Von,CZ23<=Vertr1Bis),DA23&Vertrag1Gage, IF(AND(CZ23>=Vertr2von,CZ23<=Vertr2Bis),DA23&Vertrag2Gage, IF(AND(CZ23>=Vertr3Von,CZ23<=Vertr3bis),DA23&Vertrag3Gage, IF(AND(CZ23>=Vertr4von,CZ23<=Vertr4bis),DA23&Vertrag4Gage, IF(AND(CZ23>=Vertr5von,CZ23<=Vertr5bis),DA23&Vertrag5Gage, IF(AND(CZ23>=Vertr6von,CZ23<=Vertr6bis),DA23&Vertrag6Gage, "-")))))),"") ->  | DK23: Fr | DL23: 2025-12-19 | DN23: . | DO23: =IF(AND(DN$3="x",LEFT(DM23,1)="B", OR(AND(AKTIVB1="x",DM23="B1"), AND(AKTIVB2="x",DM23="B2"), AND(AKTIVB3="x",DM23="B3"), AND(AKTIVB4="x",DM23="B4"), AND(AKTIVB5="x",DM23="B5"), AND(AKTIVB6="x",DM23="B6"), AND(AKTIVB7="x",DM23="B7"), )), IF(AND(DL23>=Vertr1Von,DL23<=Vertr1Bis),DM23&Vertrag1Gage, IF(AND(DL23>=Vertr2von,DL23<=Vertr2Bis),DM23&Vertrag2Gage, IF(AND(DL23>=Vertr3Von,DL23<=Vertr3bis),DM23&Vertrag3Gage, IF(AND(DL23>=Vertr4von,DL23<=Vertr4bis),DM23&Vertrag4Gage, IF(AND(DL23>=Vertr5von,DL23<=Vertr5bis),DM23&Vertrag5Gage, IF(AND(DL23>=Vertr6von,DL23<=Vertr6bis),DM23&Vertrag6Gage, "-")))))),"") ->  | DW23: Mo | DX23: 2026-01-19 | DZ23: . | EA23: =IF(AND(DZ$3="x",LEFT(DY23,1)="B", OR(AND(AKTIVB1="x",DY23="B1"), AND(AKTIVB2="x",DY23="B2"), AND(AKTIVB3="x",DY23="B3"), AND(AKTIVB4="x",DY23="B4"), AND(AKTIVB5="x",DY23="B5"), AND(AKTIVB6="x",DY23="B6"), AND(AKTIVB7="x",DY23="B7"), )), IF(AND(DX23>=Vertr1Von,DX23<=Vertr1Bis),DY23&Vertrag1Gage, IF(AND(DX23>=Vertr2von,DX23<=Vertr2Bis),DY23&Vertrag2Gage, IF(AND(DX23>=Vertr3Von,DX23<=Vertr3bis),DY23&Vertrag3Gage, IF(AND(DX23>=Vertr4von,DX23<=Vertr4bis),DY23&Vertrag4Gage, IF(AND(DX23>=Vertr5von,DX23<=Vertr5bis),DY23&Vertrag5Gage, IF(AND(DX23>=Vertr6von,DX23<=Vertr6bis),DY23&Vertrag6Gage, "-")))))),"") ->  | EI23: Do | EJ23: 2026-02-19 | EL23: . | EM23: =IF(AND(EL$3="x",LEFT(EK23,1)="B", OR(AND(AKTIVB1="x",EK23="B1"), AND(AKTIVB2="x",EK23="B2"), AND(AKTIVB3="x",EK23="B3"), AND(AKTIVB4="x",EK23="B4"), AND(AKTIVB5="x",EK23="B5"), AND(AKTIVB6="x",EK23="B6"), AND(AKTIVB7="x",EK23="B7"), )), IF(AND(EJ23>=Vertr1Von,EJ23<=Vertr1Bis),EK23&Vertrag1Gage, IF(AND(EJ23>=Vertr2von,EJ23<=Vertr2Bis),EK23&Vertrag2Gage, IF(AND(EJ23>=Vertr3Von,EJ23<=Vertr3bis),EK23&Vertrag3Gage, IF(AND(EJ23>=Vertr4von,EJ23<=Vertr4bis),EK23&Vertrag4Gage, IF(AND(EJ23>=Vertr5von,EJ23<=Vertr5bis),EK23&Vertrag5Gage, IF(AND(EJ23>=Vertr6von,EJ23<=Vertr6bis),EK23&Vertrag6Gage, "-")))))),"") ->  | EU23: Do | EV23: 2026-03-19 | EX23: . | EY23: =IF(AND(EX$3="x",LEFT(EW23,1)="B", OR(AND(AKTIVB1="x",EW23="B1"), AND(AKTIVB2="x",EW23="B2"), AND(AKTIVB3="x",EW23="B3"), AND(AKTIVB4="x",EW23="B4"), AND(AKTIVB5="x",EW23="B5"), AND(AKTIVB6="x",EW23="B6"), AND(AKTIVB7="x",EW23="B7"), )), IF(AND(EV23>=Vertr1Von,EV23<=Vertr1Bis),EW23&Vertrag1Gage, IF(AND(EV23>=Vertr2von,EV23<=Vertr2Bis),EW23&Vertrag2Gage, IF(AND(EV23>=Vertr3Von,EV23<=Vertr3bis),EW23&Vertrag3Gage, IF(AND(EV23>=Vertr4von,EV23<=Vertr4bis),EW23&Vertrag4Gage, IF(AND(EV23>=Vertr5von,EV23<=Vertr5bis),EW23&Vertrag5Gage, IF(AND(EV23>=Vertr6von,EV23<=Vertr6bis),EW23&Vertrag6Gage, "-")))))),"") ->  | FG23: So | FH23: 2026-04-19 | FK23: =IF(AND(FJ$3="x",LEFT(FI23,1)="B", OR(AND(AKTIVB1="x",FI23="B1"), AND(AKTIVB2="x",FI23="B2"), AND(AKTIVB3="x",FI23="B3"), AND(AKTIVB4="x",FI23="B4"), AND(AKTIVB5="x",FI23="B5"), AND(AKTIVB6="x",FI23="B6"), AND(AKTIVB7="x",FI23="B7"), )), IF(AND(FH23>=Vertr1Von,FH23<=Vertr1Bis),FI23&Vertrag1Gage, IF(AND(FH23>=Vertr2von,FH23<=Vertr2Bis),FI23&Vertrag2Gage, IF(AND(FH23>=Vertr3Von,FH23<=Vertr3bis),FI23&Vertrag3Gage, IF(AND(FH23>=Vertr4von,FH23<=Vertr4bis),FI23&Vertrag4Gage, IF(AND(FH23>=Vertr5von,FH23<=Vertr5bis),FI23&Vertrag5Gage, IF(AND(FH23>=Vertr6von,FH23<=Vertr6bis),FI23&Vertrag6Gage, "-")))))),"") ->  | FS23: Di | FT23: 2026-05-19 | FV23: . | FW23: =IF(AND(FV$3="x",LEFT(FU23,1)="B", OR(AND(AKTIVB1="x",FU23="B1"), AND(AKTIVB2="x",FU23="B2"), AND(AKTIVB3="x",FU23="B3"), AND(AKTIVB4="x",FU23="B4"), AND(AKTIVB5="x",FU23="B5"), AND(AKTIVB6="x",FU23="B6"), AND(AKTIVB7="x",FU23="B7"), )), IF(AND(FT23>=Vertr1Von,FT23<=Vertr1Bis),FU23&Vertrag1Gage, IF(AND(FT23>=Vertr2von,FT23<=Vertr2Bis),FU23&Vertrag2Gage, IF(AND(FT23>=Vertr3Von,FT23<=Vertr3bis),FU23&Vertrag3Gage, IF(AND(FT23>=Vertr4von,FT23<=Vertr4bis),FU23&Vertrag4Gage, IF(AND(FT23>=Vertr5von,FT23<=Vertr5bis),FU23&Vertrag5Gage, IF(AND(FT23>=Vertr6von,FT23<=Vertr6bis),FU23&Vertrag6Gage, "-")))))),"") -> 
A24: Beschäftigt für Block | G24: Auswahl (x) | H24: x | Q24: So | R24: 2025-04-20 | U24: =IF(AND(T$3="x",LEFT(S24,1)="B", OR(AND(AKTIVB1="x",S24="B1"), AND(AKTIVB2="x",S24="B2"), AND(AKTIVB3="x",S24="B3"), AND(AKTIVB4="x",S24="B4"), AND(AKTIVB5="x",S24="B5"), AND(AKTIVB6="x",S24="B6"), AND(AKTIVB7="x",S24="B7"), )), IF(AND(R24>=Vertr1Von,R24<=Vertr1Bis),S24&Vertrag1Gage, IF(AND(R24>=Vertr2von,R24<=Vertr2Bis),S24&Vertrag2Gage, IF(AND(R24>=Vertr3Von,R24<=Vertr3bis),S24&Vertrag3Gage, IF(AND(R24>=Vertr4von,R24<=Vertr4bis),S24&Vertrag4Gage, IF(AND(R24>=Vertr5von,R24<=Vertr5bis),S24&Vertrag5Gage, IF(AND(R24>=Vertr6von,R24<=Vertr6bis),S24&Vertrag6Gage, "-")))))),"") ->  | AD24: Di | AE24: 2025-05-20 | AF24: B1 | AH24: =IF(AND(AG$3="x",LEFT(AF24,1)="B", OR(AND(AKTIVB1="x",AF24="B1"), AND(AKTIVB2="x",AF24="B2"), AND(AKTIVB3="x",AF24="B3"), AND(AKTIVB4="x",AF24="B4"), AND(AKTIVB5="x",AF24="B5"), AND(AKTIVB6="x",AF24="B6"), AND(AKTIVB7="x",AF24="B7"), )), IF(AND(AE24>=Vertr1Von,AE24<=Vertr1Bis),AF24&Vertrag1Gage, IF(AND(AE24>=Vertr2von,AE24<=Vertr2Bis),AF24&Vertrag2Gage, IF(AND(AE24>=Vertr3Von,AE24<=Vertr3bis),AF24&Vertrag3Gage, IF(AND(AE24>=Vertr4von,AE24<=Vertr4bis),AF24&Vertrag4Gage, IF(AND(AE24>=Vertr5von,AE24<=Vertr5bis),AF24&Vertrag5Gage, IF(AND(AE24>=Vertr6von,AE24<=Vertr6bis),AF24&Vertrag6Gage, "-")))))),"") -> B11 | AP24: Fr | AQ24: 2025-06-20 | AR24: B1 | AT24: =IF(AND(AS$3="x",LEFT(AR24,1)="B", OR(AND(AKTIVB1="x",AR24="B1"), AND(AKTIVB2="x",AR24="B2"), AND(AKTIVB3="x",AR24="B3"), AND(AKTIVB4="x",AR24="B4"), AND(AKTIVB5="x",AR24="B5"), AND(AKTIVB6="x",AR24="B6"), AND(AKTIVB7="x",AR24="B7"), )), IF(AND(AQ24>=Vertr1Von,AQ24<=Vertr1Bis),AR24&Vertrag1Gage, IF(AND(AQ24>=Vertr2von,AQ24<=Vertr2Bis),AR24&Vertrag2Gage, IF(AND(AQ24>=Vertr3Von,AQ24<=Vertr3bis),AR24&Vertrag3Gage, IF(AND(AQ24>=Vertr4von,AQ24<=Vertr4bis),AR24&Vertrag4Gage, IF(AND(AQ24>=Vertr5von,AQ24<=Vertr5bis),AR24&Vertrag5Gage, IF(AND(AQ24>=Vertr6von,AQ24<=Vertr6bis),AR24&Vertrag6Gage, "-")))))),"") -> B11 | BB24: So | BC24: 2025-07-20 | BF24: =IF(AND(BE$3="x",LEFT(BD24,1)="B", OR(AND(AKTIVB1="x",BD24="B1"), AND(AKTIVB2="x",BD24="B2"), AND(AKTIVB3="x",BD24="B3"), AND(AKTIVB4="x",BD24="B4"), AND(AKTIVB5="x",BD24="B5"), AND(AKTIVB6="x",BD24="B6"), AND(AKTIVB7="x",BD24="B7"), )), IF(AND(BC24>=Vertr1Von,BC24<=Vertr1Bis),BD24&Vertrag1Gage, IF(AND(BC24>=Vertr2von,BC24<=Vertr2Bis),BD24&Vertrag2Gage, IF(AND(BC24>=Vertr3Von,BC24<=Vertr3bis),BD24&Vertrag3Gage, IF(AND(BC24>=Vertr4von,BC24<=Vertr4bis),BD24&Vertrag4Gage, IF(AND(BC24>=Vertr5von,BC24<=Vertr5bis),BD24&Vertrag5Gage, IF(AND(BC24>=Vertr6von,BC24<=Vertr6bis),BD24&Vertrag6Gage, "-")))))),"") ->  | BN24: Mi | BO24: 2025-08-20 | BQ24: . | BR24: =IF(AND(BQ$3="x",LEFT(BP24,1)="B", OR(AND(AKTIVB1="x",BP24="B1"), AND(AKTIVB2="x",BP24="B2"), AND(AKTIVB3="x",BP24="B3"), AND(AKTIVB4="x",BP24="B4"), AND(AKTIVB5="x",BP24="B5"), AND(AKTIVB6="x",BP24="B6"), AND(AKTIVB7="x",BP24="B7"), )), IF(AND(BO24>=Vertr1Von,BO24<=Vertr1Bis),BP24&Vertrag1Gage, IF(AND(BO24>=Vertr2von,BO24<=Vertr2Bis),BP24&Vertrag2Gage, IF(AND(BO24>=Vertr3Von,BO24<=Vertr3bis),BP24&Vertrag3Gage, IF(AND(BO24>=Vertr4von,BO24<=Vertr4bis),BP24&Vertrag4Gage, IF(AND(BO24>=Vertr5von,BO24<=Vertr5bis),BP24&Vertrag5Gage, IF(AND(BO24>=Vertr6von,BO24<=Vertr6bis),BP24&Vertrag6Gage, "-")))))),"") ->  | BZ24: Sa | CA24: 2025-09-20 | CD24: =IF(AND(CC$3="x",LEFT(CB24,1)="B", OR(AND(AKTIVB1="x",CB24="B1"), AND(AKTIVB2="x",CB24="B2"), AND(AKTIVB3="x",CB24="B3"), AND(AKTIVB4="x",CB24="B4"), AND(AKTIVB5="x",CB24="B5"), AND(AKTIVB6="x",CB24="B6"), AND(AKTIVB7="x",CB24="B7"), )), IF(AND(CA24>=Vertr1Von,CA24<=Vertr1Bis),CB24&Vertrag1Gage, IF(AND(CA24>=Vertr2von,CA24<=Vertr2Bis),CB24&Vertrag2Gage, IF(AND(CA24>=Vertr3Von,CA24<=Vertr3bis),CB24&Vertrag3Gage, IF(AND(CA24>=Vertr4von,CA24<=Vertr4bis),CB24&Vertrag4Gage, IF(AND(CA24>=Vertr5von,CA24<=Vertr5bis),CB24&Vertrag5Gage, IF(AND(CA24>=Vertr6von,CA24<=Vertr6bis),CB24&Vertrag6Gage, "-")))))),"") ->  | CL24: Mo | CM24: 2025-10-20 | CO24: . | CP24: =IF(AND(CO$3="x",LEFT(CN24,1)="B", OR(AND(AKTIVB1="x",CN24="B1"), AND(AKTIVB2="x",CN24="B2"), AND(AKTIVB3="x",CN24="B3"), AND(AKTIVB4="x",CN24="B4"), AND(AKTIVB5="x",CN24="B5"), AND(AKTIVB6="x",CN24="B6"), AND(AKTIVB7="x",CN24="B7"), )), IF(AND(CM24>=Vertr1Von,CM24<=Vertr1Bis),CN24&Vertrag1Gage, IF(AND(CM24>=Vertr2von,CM24<=Vertr2Bis),CN24&Vertrag2Gage, IF(AND(CM24>=Vertr3Von,CM24<=Vertr3bis),CN24&Vertrag3Gage, IF(AND(CM24>=Vertr4von,CM24<=Vertr4bis),CN24&Vertrag4Gage, IF(AND(CM24>=Vertr5von,CM24<=Vertr5bis),CN24&Vertrag5Gage, IF(AND(CM24>=Vertr6von,CM24<=Vertr6bis),CN24&Vertrag6Gage, "-")))))),"") ->  | CY24: Do | CZ24: 2025-11-20 | DB24: . | DC24: =IF(AND(DB$3="x",LEFT(DA24,1)="B", OR(AND(AKTIVB1="x",DA24="B1"), AND(AKTIVB2="x",DA24="B2"), AND(AKTIVB3="x",DA24="B3"), AND(AKTIVB4="x",DA24="B4"), AND(AKTIVB5="x",DA24="B5"), AND(AKTIVB6="x",DA24="B6"), AND(AKTIVB7="x",DA24="B7"), )), IF(AND(CZ24>=Vertr1Von,CZ24<=Vertr1Bis),DA24&Vertrag1Gage, IF(AND(CZ24>=Vertr2von,CZ24<=Vertr2Bis),DA24&Vertrag2Gage, IF(AND(CZ24>=Vertr3Von,CZ24<=Vertr3bis),DA24&Vertrag3Gage, IF(AND(CZ24>=Vertr4von,CZ24<=Vertr4bis),DA24&Vertrag4Gage, IF(AND(CZ24>=Vertr5von,CZ24<=Vertr5bis),DA24&Vertrag5Gage, IF(AND(CZ24>=Vertr6von,CZ24<=Vertr6bis),DA24&Vertrag6Gage, "-")))))),"") ->  | DK24: Sa | DL24: 2025-12-20 | DO24: =IF(AND(DN$3="x",LEFT(DM24,1)="B", OR(AND(AKTIVB1="x",DM24="B1"), AND(AKTIVB2="x",DM24="B2"), AND(AKTIVB3="x",DM24="B3"), AND(AKTIVB4="x",DM24="B4"), AND(AKTIVB5="x",DM24="B5"), AND(AKTIVB6="x",DM24="B6"), AND(AKTIVB7="x",DM24="B7"), )), IF(AND(DL24>=Vertr1Von,DL24<=Vertr1Bis),DM24&Vertrag1Gage, IF(AND(DL24>=Vertr2von,DL24<=Vertr2Bis),DM24&Vertrag2Gage, IF(AND(DL24>=Vertr3Von,DL24<=Vertr3bis),DM24&Vertrag3Gage, IF(AND(DL24>=Vertr4von,DL24<=Vertr4bis),DM24&Vertrag4Gage, IF(AND(DL24>=Vertr5von,DL24<=Vertr5bis),DM24&Vertrag5Gage, IF(AND(DL24>=Vertr6von,DL24<=Vertr6bis),DM24&Vertrag6Gage, "-")))))),"") ->  | DW24: Di | DX24: 2026-01-20 | DZ24: . | EA24: =IF(AND(DZ$3="x",LEFT(DY24,1)="B", OR(AND(AKTIVB1="x",DY24="B1"), AND(AKTIVB2="x",DY24="B2"), AND(AKTIVB3="x",DY24="B3"), AND(AKTIVB4="x",DY24="B4"), AND(AKTIVB5="x",DY24="B5"), AND(AKTIVB6="x",DY24="B6"), AND(AKTIVB7="x",DY24="B7"), )), IF(AND(DX24>=Vertr1Von,DX24<=Vertr1Bis),DY24&Vertrag1Gage, IF(AND(DX24>=Vertr2von,DX24<=Vertr2Bis),DY24&Vertrag2Gage, IF(AND(DX24>=Vertr3Von,DX24<=Vertr3bis),DY24&Vertrag3Gage, IF(AND(DX24>=Vertr4von,DX24<=Vertr4bis),DY24&Vertrag4Gage, IF(AND(DX24>=Vertr5von,DX24<=Vertr5bis),DY24&Vertrag5Gage, IF(AND(DX24>=Vertr6von,DX24<=Vertr6bis),DY24&Vertrag6Gage, "-")))))),"") ->  | EI24: Fr | EJ24: 2026-02-20 | EL24: . | EM24: =IF(AND(EL$3="x",LEFT(EK24,1)="B", OR(AND(AKTIVB1="x",EK24="B1"), AND(AKTIVB2="x",EK24="B2"), AND(AKTIVB3="x",EK24="B3"), AND(AKTIVB4="x",EK24="B4"), AND(AKTIVB5="x",EK24="B5"), AND(AKTIVB6="x",EK24="B6"), AND(AKTIVB7="x",EK24="B7"), )), IF(AND(EJ24>=Vertr1Von,EJ24<=Vertr1Bis),EK24&Vertrag1Gage, IF(AND(EJ24>=Vertr2von,EJ24<=Vertr2Bis),EK24&Vertrag2Gage, IF(AND(EJ24>=Vertr3Von,EJ24<=Vertr3bis),EK24&Vertrag3Gage, IF(AND(EJ24>=Vertr4von,EJ24<=Vertr4bis),EK24&Vertrag4Gage, IF(AND(EJ24>=Vertr5von,EJ24<=Vertr5bis),EK24&Vertrag5Gage, IF(AND(EJ24>=Vertr6von,EJ24<=Vertr6bis),EK24&Vertrag6Gage, "-")))))),"") ->  | EU24: Fr | EV24: 2026-03-20 | EX24: . | EY24: =IF(AND(EX$3="x",LEFT(EW24,1)="B", OR(AND(AKTIVB1="x",EW24="B1"), AND(AKTIVB2="x",EW24="B2"), AND(AKTIVB3="x",EW24="B3"), AND(AKTIVB4="x",EW24="B4"), AND(AKTIVB5="x",EW24="B5"), AND(AKTIVB6="x",EW24="B6"), AND(AKTIVB7="x",EW24="B7"), )), IF(AND(EV24>=Vertr1Von,EV24<=Vertr1Bis),EW24&Vertrag1Gage, IF(AND(EV24>=Vertr2von,EV24<=Vertr2Bis),EW24&Vertrag2Gage, IF(AND(EV24>=Vertr3Von,EV24<=Vertr3bis),EW24&Vertrag3Gage, IF(AND(EV24>=Vertr4von,EV24<=Vertr4bis),EW24&Vertrag4Gage, IF(AND(EV24>=Vertr5von,EV24<=Vertr5bis),EW24&Vertrag5Gage, IF(AND(EV24>=Vertr6von,EV24<=Vertr6bis),EW24&Vertrag6Gage, "-")))))),"") ->  | FG24: Mo | FH24: 2026-04-20 | FJ24: . | FK24: =IF(AND(FJ$3="x",LEFT(FI24,1)="B", OR(AND(AKTIVB1="x",FI24="B1"), AND(AKTIVB2="x",FI24="B2"), AND(AKTIVB3="x",FI24="B3"), AND(AKTIVB4="x",FI24="B4"), AND(AKTIVB5="x",FI24="B5"), AND(AKTIVB6="x",FI24="B6"), AND(AKTIVB7="x",FI24="B7"), )), IF(AND(FH24>=Vertr1Von,FH24<=Vertr1Bis),FI24&Vertrag1Gage, IF(AND(FH24>=Vertr2von,FH24<=Vertr2Bis),FI24&Vertrag2Gage, IF(AND(FH24>=Vertr3Von,FH24<=Vertr3bis),FI24&Vertrag3Gage, IF(AND(FH24>=Vertr4von,FH24<=Vertr4bis),FI24&Vertrag4Gage, IF(AND(FH24>=Vertr5von,FH24<=Vertr5bis),FI24&Vertrag5Gage, IF(AND(FH24>=Vertr6von,FH24<=Vertr6bis),FI24&Vertrag6Gage, "-")))))),"") ->  | FS24: Mi | FT24: 2026-05-20 | FV24: . | FW24: =IF(AND(FV$3="x",LEFT(FU24,1)="B", OR(AND(AKTIVB1="x",FU24="B1"), AND(AKTIVB2="x",FU24="B2"), AND(AKTIVB3="x",FU24="B3"), AND(AKTIVB4="x",FU24="B4"), AND(AKTIVB5="x",FU24="B5"), AND(AKTIVB6="x",FU24="B6"), AND(AKTIVB7="x",FU24="B7"), )), IF(AND(FT24>=Vertr1Von,FT24<=Vertr1Bis),FU24&Vertrag1Gage, IF(AND(FT24>=Vertr2von,FT24<=Vertr2Bis),FU24&Vertrag2Gage, IF(AND(FT24>=Vertr3Von,FT24<=Vertr3bis),FU24&Vertrag3Gage, IF(AND(FT24>=Vertr4von,FT24<=Vertr4bis),FU24&Vertrag4Gage, IF(AND(FT24>=Vertr5von,FT24<=Vertr5bis),FU24&Vertrag5Gage, IF(AND(FT24>=Vertr6von,FT24<=Vertr6bis),FU24&Vertrag6Gage, "-")))))),"") -> 
Q25: Mo | R25: 2025-04-21 | S25: F | T25: . | U25: =IF(AND(T$3="x",LEFT(S25,1)="B", OR(AND(AKTIVB1="x",S25="B1"), AND(AKTIVB2="x",S25="B2"), AND(AKTIVB3="x",S25="B3"), AND(AKTIVB4="x",S25="B4"), AND(AKTIVB5="x",S25="B5"), AND(AKTIVB6="x",S25="B6"), AND(AKTIVB7="x",S25="B7"), )), IF(AND(R25>=Vertr1Von,R25<=Vertr1Bis),S25&Vertrag1Gage, IF(AND(R25>=Vertr2von,R25<=Vertr2Bis),S25&Vertrag2Gage, IF(AND(R25>=Vertr3Von,R25<=Vertr3bis),S25&Vertrag3Gage, IF(AND(R25>=Vertr4von,R25<=Vertr4bis),S25&Vertrag4Gage, IF(AND(R25>=Vertr5von,R25<=Vertr5bis),S25&Vertrag5Gage, IF(AND(R25>=Vertr6von,R25<=Vertr6bis),S25&Vertrag6Gage, "-")))))),"") ->  | AD25: Mi | AE25: 2025-05-21 | AF25: B1 | AH25: =IF(AND(AG$3="x",LEFT(AF25,1)="B", OR(AND(AKTIVB1="x",AF25="B1"), AND(AKTIVB2="x",AF25="B2"), AND(AKTIVB3="x",AF25="B3"), AND(AKTIVB4="x",AF25="B4"), AND(AKTIVB5="x",AF25="B5"), AND(AKTIVB6="x",AF25="B6"), AND(AKTIVB7="x",AF25="B7"), )), IF(AND(AE25>=Vertr1Von,AE25<=Vertr1Bis),AF25&Vertrag1Gage, IF(AND(AE25>=Vertr2von,AE25<=Vertr2Bis),AF25&Vertrag2Gage, IF(AND(AE25>=Vertr3Von,AE25<=Vertr3bis),AF25&Vertrag3Gage, IF(AND(AE25>=Vertr4von,AE25<=Vertr4bis),AF25&Vertrag4Gage, IF(AND(AE25>=Vertr5von,AE25<=Vertr5bis),AF25&Vertrag5Gage, IF(AND(AE25>=Vertr6von,AE25<=Vertr6bis),AF25&Vertrag6Gage, "-")))))),"") -> B11 | AP25: Sa | AQ25: 2025-06-21 | AT25: =IF(AND(AS$3="x",LEFT(AR25,1)="B", OR(AND(AKTIVB1="x",AR25="B1"), AND(AKTIVB2="x",AR25="B2"), AND(AKTIVB3="x",AR25="B3"), AND(AKTIVB4="x",AR25="B4"), AND(AKTIVB5="x",AR25="B5"), AND(AKTIVB6="x",AR25="B6"), AND(AKTIVB7="x",AR25="B7"), )), IF(AND(AQ25>=Vertr1Von,AQ25<=Vertr1Bis),AR25&Vertrag1Gage, IF(AND(AQ25>=Vertr2von,AQ25<=Vertr2Bis),AR25&Vertrag2Gage, IF(AND(AQ25>=Vertr3Von,AQ25<=Vertr3bis),AR25&Vertrag3Gage, IF(AND(AQ25>=Vertr4von,AQ25<=Vertr4bis),AR25&Vertrag4Gage, IF(AND(AQ25>=Vertr5von,AQ25<=Vertr5bis),AR25&Vertrag5Gage, IF(AND(AQ25>=Vertr6von,AQ25<=Vertr6bis),AR25&Vertrag6Gage, "-")))))),"") ->  | BB25: Mo | BC25: 2025-07-21 | BE25: . | BF25: =IF(AND(BE$3="x",LEFT(BD25,1)="B", OR(AND(AKTIVB1="x",BD25="B1"), AND(AKTIVB2="x",BD25="B2"), AND(AKTIVB3="x",BD25="B3"), AND(AKTIVB4="x",BD25="B4"), AND(AKTIVB5="x",BD25="B5"), AND(AKTIVB6="x",BD25="B6"), AND(AKTIVB7="x",BD25="B7"), )), IF(AND(BC25>=Vertr1Von,BC25<=Vertr1Bis),BD25&Vertrag1Gage, IF(AND(BC25>=Vertr2von,BC25<=Vertr2Bis),BD25&Vertrag2Gage, IF(AND(BC25>=Vertr3Von,BC25<=Vertr3bis),BD25&Vertrag3Gage, IF(AND(BC25>=Vertr4von,BC25<=Vertr4bis),BD25&Vertrag4Gage, IF(AND(BC25>=Vertr5von,BC25<=Vertr5bis),BD25&Vertrag5Gage, IF(AND(BC25>=Vertr6von,BC25<=Vertr6bis),BD25&Vertrag6Gage, "-")))))),"") ->  | BN25: Do | BO25: 2025-08-21 | BQ25: . | BR25: =IF(AND(BQ$3="x",LEFT(BP25,1)="B", OR(AND(AKTIVB1="x",BP25="B1"), AND(AKTIVB2="x",BP25="B2"), AND(AKTIVB3="x",BP25="B3"), AND(AKTIVB4="x",BP25="B4"), AND(AKTIVB5="x",BP25="B5"), AND(AKTIVB6="x",BP25="B6"), AND(AKTIVB7="x",BP25="B7"), )), IF(AND(BO25>=Vertr1Von,BO25<=Vertr1Bis),BP25&Vertrag1Gage, IF(AND(BO25>=Vertr2von,BO25<=Vertr2Bis),BP25&Vertrag2Gage, IF(AND(BO25>=Vertr3Von,BO25<=Vertr3bis),BP25&Vertrag3Gage, IF(AND(BO25>=Vertr4von,BO25<=Vertr4bis),BP25&Vertrag4Gage, IF(AND(BO25>=Vertr5von,BO25<=Vertr5bis),BP25&Vertrag5Gage, IF(AND(BO25>=Vertr6von,BO25<=Vertr6bis),BP25&Vertrag6Gage, "-")))))),"") ->  | BZ25: So | CA25: 2025-09-21 | CD25: =IF(AND(CC$3="x",LEFT(CB25,1)="B", OR(AND(AKTIVB1="x",CB25="B1"), AND(AKTIVB2="x",CB25="B2"), AND(AKTIVB3="x",CB25="B3"), AND(AKTIVB4="x",CB25="B4"), AND(AKTIVB5="x",CB25="B5"), AND(AKTIVB6="x",CB25="B6"), AND(AKTIVB7="x",CB25="B7"), )), IF(AND(CA25>=Vertr1Von,CA25<=Vertr1Bis),CB25&Vertrag1Gage, IF(AND(CA25>=Vertr2von,CA25<=Vertr2Bis),CB25&Vertrag2Gage, IF(AND(CA25>=Vertr3Von,CA25<=Vertr3bis),CB25&Vertrag3Gage, IF(AND(CA25>=Vertr4von,CA25<=Vertr4bis),CB25&Vertrag4Gage, IF(AND(CA25>=Vertr5von,CA25<=Vertr5bis),CB25&Vertrag5Gage, IF(AND(CA25>=Vertr6von,CA25<=Vertr6bis),CB25&Vertrag6Gage, "-")))))),"") ->  | CL25: Di | CM25: 2025-10-21 | CO25: . | CP25: =IF(AND(CO$3="x",LEFT(CN25,1)="B", OR(AND(AKTIVB1="x",CN25="B1"), AND(AKTIVB2="x",CN25="B2"), AND(AKTIVB3="x",CN25="B3"), AND(AKTIVB4="x",CN25="B4"), AND(AKTIVB5="x",CN25="B5"), AND(AKTIVB6="x",CN25="B6"), AND(AKTIVB7="x",CN25="B7"), )), IF(AND(CM25>=Vertr1Von,CM25<=Vertr1Bis),CN25&Vertrag1Gage, IF(AND(CM25>=Vertr2von,CM25<=Vertr2Bis),CN25&Vertrag2Gage, IF(AND(CM25>=Vertr3Von,CM25<=Vertr3bis),CN25&Vertrag3Gage, IF(AND(CM25>=Vertr4von,CM25<=Vertr4bis),CN25&Vertrag4Gage, IF(AND(CM25>=Vertr5von,CM25<=Vertr5bis),CN25&Vertrag5Gage, IF(AND(CM25>=Vertr6von,CM25<=Vertr6bis),CN25&Vertrag6Gage, "-")))))),"") ->  | CY25: Fr | CZ25: 2025-11-21 | DB25: . | DC25: =IF(AND(DB$3="x",LEFT(DA25,1)="B", OR(AND(AKTIVB1="x",DA25="B1"), AND(AKTIVB2="x",DA25="B2"), AND(AKTIVB3="x",DA25="B3"), AND(AKTIVB4="x",DA25="B4"), AND(AKTIVB5="x",DA25="B5"), AND(AKTIVB6="x",DA25="B6"), AND(AKTIVB7="x",DA25="B7"), )), IF(AND(CZ25>=Vertr1Von,CZ25<=Vertr1Bis),DA25&Vertrag1Gage, IF(AND(CZ25>=Vertr2von,CZ25<=Vertr2Bis),DA25&Vertrag2Gage, IF(AND(CZ25>=Vertr3Von,CZ25<=Vertr3bis),DA25&Vertrag3Gage, IF(AND(CZ25>=Vertr4von,CZ25<=Vertr4bis),DA25&Vertrag4Gage, IF(AND(CZ25>=Vertr5von,CZ25<=Vertr5bis),DA25&Vertrag5Gage, IF(AND(CZ25>=Vertr6von,CZ25<=Vertr6bis),DA25&Vertrag6Gage, "-")))))),"") ->  | DK25: So | DL25: 2025-12-21 | DO25: =IF(AND(DN$3="x",LEFT(DM25,1)="B", OR(AND(AKTIVB1="x",DM25="B1"), AND(AKTIVB2="x",DM25="B2"), AND(AKTIVB3="x",DM25="B3"), AND(AKTIVB4="x",DM25="B4"), AND(AKTIVB5="x",DM25="B5"), AND(AKTIVB6="x",DM25="B6"), AND(AKTIVB7="x",DM25="B7"), )), IF(AND(DL25>=Vertr1Von,DL25<=Vertr1Bis),DM25&Vertrag1Gage, IF(AND(DL25>=Vertr2von,DL25<=Vertr2Bis),DM25&Vertrag2Gage, IF(AND(DL25>=Vertr3Von,DL25<=Vertr3bis),DM25&Vertrag3Gage, IF(AND(DL25>=Vertr4von,DL25<=Vertr4bis),DM25&Vertrag4Gage, IF(AND(DL25>=Vertr5von,DL25<=Vertr5bis),DM25&Vertrag5Gage, IF(AND(DL25>=Vertr6von,DL25<=Vertr6bis),DM25&Vertrag6Gage, "-")))))),"") ->  | DW25: Mi | DX25: 2026-01-21 | DZ25: . | EA25: =IF(AND(DZ$3="x",LEFT(DY25,1)="B", OR(AND(AKTIVB1="x",DY25="B1"), AND(AKTIVB2="x",DY25="B2"), AND(AKTIVB3="x",DY25="B3"), AND(AKTIVB4="x",DY25="B4"), AND(AKTIVB5="x",DY25="B5"), AND(AKTIVB6="x",DY25="B6"), AND(AKTIVB7="x",DY25="B7"), )), IF(AND(DX25>=Vertr1Von,DX25<=Vertr1Bis),DY25&Vertrag1Gage, IF(AND(DX25>=Vertr2von,DX25<=Vertr2Bis),DY25&Vertrag2Gage, IF(AND(DX25>=Vertr3Von,DX25<=Vertr3bis),DY25&Vertrag3Gage, IF(AND(DX25>=Vertr4von,DX25<=Vertr4bis),DY25&Vertrag4Gage, IF(AND(DX25>=Vertr5von,DX25<=Vertr5bis),DY25&Vertrag5Gage, IF(AND(DX25>=Vertr6von,DX25<=Vertr6bis),DY25&Vertrag6Gage, "-")))))),"") ->  | EI25: Sa | EJ25: 2026-02-21 | EM25: =IF(AND(EL$3="x",LEFT(EK25,1)="B", OR(AND(AKTIVB1="x",EK25="B1"), AND(AKTIVB2="x",EK25="B2"), AND(AKTIVB3="x",EK25="B3"), AND(AKTIVB4="x",EK25="B4"), AND(AKTIVB5="x",EK25="B5"), AND(AKTIVB6="x",EK25="B6"), AND(AKTIVB7="x",EK25="B7"), )), IF(AND(EJ25>=Vertr1Von,EJ25<=Vertr1Bis),EK25&Vertrag1Gage, IF(AND(EJ25>=Vertr2von,EJ25<=Vertr2Bis),EK25&Vertrag2Gage, IF(AND(EJ25>=Vertr3Von,EJ25<=Vertr3bis),EK25&Vertrag3Gage, IF(AND(EJ25>=Vertr4von,EJ25<=Vertr4bis),EK25&Vertrag4Gage, IF(AND(EJ25>=Vertr5von,EJ25<=Vertr5bis),EK25&Vertrag5Gage, IF(AND(EJ25>=Vertr6von,EJ25<=Vertr6bis),EK25&Vertrag6Gage, "-")))))),"") ->  | EU25: Sa | EV25: 2026-03-21 | EY25: =IF(AND(EX$3="x",LEFT(EW25,1)="B", OR(AND(AKTIVB1="x",EW25="B1"), AND(AKTIVB2="x",EW25="B2"), AND(AKTIVB3="x",EW25="B3"), AND(AKTIVB4="x",EW25="B4"), AND(AKTIVB5="x",EW25="B5"), AND(AKTIVB6="x",EW25="B6"), AND(AKTIVB7="x",EW25="B7"), )), IF(AND(EV25>=Vertr1Von,EV25<=Vertr1Bis),EW25&Vertrag1Gage, IF(AND(EV25>=Vertr2von,EV25<=Vertr2Bis),EW25&Vertrag2Gage, IF(AND(EV25>=Vertr3Von,EV25<=Vertr3bis),EW25&Vertrag3Gage, IF(AND(EV25>=Vertr4von,EV25<=Vertr4bis),EW25&Vertrag4Gage, IF(AND(EV25>=Vertr5von,EV25<=Vertr5bis),EW25&Vertrag5Gage, IF(AND(EV25>=Vertr6von,EV25<=Vertr6bis),EW25&Vertrag6Gage, "-")))))),"") ->  | FG25: Di | FH25: 2026-04-21 | FJ25: . | FK25: =IF(AND(FJ$3="x",LEFT(FI25,1)="B", OR(AND(AKTIVB1="x",FI25="B1"), AND(AKTIVB2="x",FI25="B2"), AND(AKTIVB3="x",FI25="B3"), AND(AKTIVB4="x",FI25="B4"), AND(AKTIVB5="x",FI25="B5"), AND(AKTIVB6="x",FI25="B6"), AND(AKTIVB7="x",FI25="B7"), )), IF(AND(FH25>=Vertr1Von,FH25<=Vertr1Bis),FI25&Vertrag1Gage, IF(AND(FH25>=Vertr2von,FH25<=Vertr2Bis),FI25&Vertrag2Gage, IF(AND(FH25>=Vertr3Von,FH25<=Vertr3bis),FI25&Vertrag3Gage, IF(AND(FH25>=Vertr4von,FH25<=Vertr4bis),FI25&Vertrag4Gage, IF(AND(FH25>=Vertr5von,FH25<=Vertr5bis),FI25&Vertrag5Gage, IF(AND(FH25>=Vertr6von,FH25<=Vertr6bis),FI25&Vertrag6Gage, "-")))))),"") ->  | FS25: Do | FT25: 2026-05-21 | FV25: . | FW25: =IF(AND(FV$3="x",LEFT(FU25,1)="B", OR(AND(AKTIVB1="x",FU25="B1"), AND(AKTIVB2="x",FU25="B2"), AND(AKTIVB3="x",FU25="B3"), AND(AKTIVB4="x",FU25="B4"), AND(AKTIVB5="x",FU25="B5"), AND(AKTIVB6="x",FU25="B6"), AND(AKTIVB7="x",FU25="B7"), )), IF(AND(FT25>=Vertr1Von,FT25<=Vertr1Bis),FU25&Vertrag1Gage, IF(AND(FT25>=Vertr2von,FT25<=Vertr2Bis),FU25&Vertrag2Gage, IF(AND(FT25>=Vertr3Von,FT25<=Vertr3bis),FU25&Vertrag3Gage, IF(AND(FT25>=Vertr4von,FT25<=Vertr4bis),FU25&Vertrag4Gage, IF(AND(FT25>=Vertr5von,FT25<=Vertr5bis),FU25&Vertrag5Gage, IF(AND(FT25>=Vertr6von,FT25<=Vertr6bis),FU25&Vertrag6Gage, "-")))))),"") -> 
A26: Ansatz Zeitkonten | H26: B1 | I26: B2 | J26: B3 | K26: B4 | L26: B5 | M26: B6 | N26: B7 | Q26: Di | R26: 2025-04-22 | T26: . | U26: =IF(AND(T$3="x",LEFT(S26,1)="B", OR(AND(AKTIVB1="x",S26="B1"), AND(AKTIVB2="x",S26="B2"), AND(AKTIVB3="x",S26="B3"), AND(AKTIVB4="x",S26="B4"), AND(AKTIVB5="x",S26="B5"), AND(AKTIVB6="x",S26="B6"), AND(AKTIVB7="x",S26="B7"), )), IF(AND(R26>=Vertr1Von,R26<=Vertr1Bis),S26&Vertrag1Gage, IF(AND(R26>=Vertr2von,R26<=Vertr2Bis),S26&Vertrag2Gage, IF(AND(R26>=Vertr3Von,R26<=Vertr3bis),S26&Vertrag3Gage, IF(AND(R26>=Vertr4von,R26<=Vertr4bis),S26&Vertrag4Gage, IF(AND(R26>=Vertr5von,R26<=Vertr5bis),S26&Vertrag5Gage, IF(AND(R26>=Vertr6von,R26<=Vertr6bis),S26&Vertrag6Gage, "-")))))),"") ->  | AD26: Do | AE26: 2025-05-22 | AF26: B1 | AH26: =IF(AND(AG$3="x",LEFT(AF26,1)="B", OR(AND(AKTIVB1="x",AF26="B1"), AND(AKTIVB2="x",AF26="B2"), AND(AKTIVB3="x",AF26="B3"), AND(AKTIVB4="x",AF26="B4"), AND(AKTIVB5="x",AF26="B5"), AND(AKTIVB6="x",AF26="B6"), AND(AKTIVB7="x",AF26="B7"), )), IF(AND(AE26>=Vertr1Von,AE26<=Vertr1Bis),AF26&Vertrag1Gage, IF(AND(AE26>=Vertr2von,AE26<=Vertr2Bis),AF26&Vertrag2Gage, IF(AND(AE26>=Vertr3Von,AE26<=Vertr3bis),AF26&Vertrag3Gage, IF(AND(AE26>=Vertr4von,AE26<=Vertr4bis),AF26&Vertrag4Gage, IF(AND(AE26>=Vertr5von,AE26<=Vertr5bis),AF26&Vertrag5Gage, IF(AND(AE26>=Vertr6von,AE26<=Vertr6bis),AF26&Vertrag6Gage, "-")))))),"") -> B11 | AP26: So | AQ26: 2025-06-22 | AT26: =IF(AND(AS$3="x",LEFT(AR26,1)="B", OR(AND(AKTIVB1="x",AR26="B1"), AND(AKTIVB2="x",AR26="B2"), AND(AKTIVB3="x",AR26="B3"), AND(AKTIVB4="x",AR26="B4"), AND(AKTIVB5="x",AR26="B5"), AND(AKTIVB6="x",AR26="B6"), AND(AKTIVB7="x",AR26="B7"), )), IF(AND(AQ26>=Vertr1Von,AQ26<=Vertr1Bis),AR26&Vertrag1Gage, IF(AND(AQ26>=Vertr2von,AQ26<=Vertr2Bis),AR26&Vertrag2Gage, IF(AND(AQ26>=Vertr3Von,AQ26<=Vertr3bis),AR26&Vertrag3Gage, IF(AND(AQ26>=Vertr4von,AQ26<=Vertr4bis),AR26&Vertrag4Gage, IF(AND(AQ26>=Vertr5von,AQ26<=Vertr5bis),AR26&Vertrag5Gage, IF(AND(AQ26>=Vertr6von,AQ26<=Vertr6bis),AR26&Vertrag6Gage, "-")))))),"") ->  | BB26: Di | BC26: 2025-07-22 | BE26: . | BF26: =IF(AND(BE$3="x",LEFT(BD26,1)="B", OR(AND(AKTIVB1="x",BD26="B1"), AND(AKTIVB2="x",BD26="B2"), AND(AKTIVB3="x",BD26="B3"), AND(AKTIVB4="x",BD26="B4"), AND(AKTIVB5="x",BD26="B5"), AND(AKTIVB6="x",BD26="B6"), AND(AKTIVB7="x",BD26="B7"), )), IF(AND(BC26>=Vertr1Von,BC26<=Vertr1Bis),BD26&Vertrag1Gage, IF(AND(BC26>=Vertr2von,BC26<=Vertr2Bis),BD26&Vertrag2Gage, IF(AND(BC26>=Vertr3Von,BC26<=Vertr3bis),BD26&Vertrag3Gage, IF(AND(BC26>=Vertr4von,BC26<=Vertr4bis),BD26&Vertrag4Gage, IF(AND(BC26>=Vertr5von,BC26<=Vertr5bis),BD26&Vertrag5Gage, IF(AND(BC26>=Vertr6von,BC26<=Vertr6bis),BD26&Vertrag6Gage, "-")))))),"") ->  | BN26: Fr | BO26: 2025-08-22 | BQ26: . | BR26: =IF(AND(BQ$3="x",LEFT(BP26,1)="B", OR(AND(AKTIVB1="x",BP26="B1"), AND(AKTIVB2="x",BP26="B2"), AND(AKTIVB3="x",BP26="B3"), AND(AKTIVB4="x",BP26="B4"), AND(AKTIVB5="x",BP26="B5"), AND(AKTIVB6="x",BP26="B6"), AND(AKTIVB7="x",BP26="B7"), )), IF(AND(BO26>=Vertr1Von,BO26<=Vertr1Bis),BP26&Vertrag1Gage, IF(AND(BO26>=Vertr2von,BO26<=Vertr2Bis),BP26&Vertrag2Gage, IF(AND(BO26>=Vertr3Von,BO26<=Vertr3bis),BP26&Vertrag3Gage, IF(AND(BO26>=Vertr4von,BO26<=Vertr4bis),BP26&Vertrag4Gage, IF(AND(BO26>=Vertr5von,BO26<=Vertr5bis),BP26&Vertrag5Gage, IF(AND(BO26>=Vertr6von,BO26<=Vertr6bis),BP26&Vertrag6Gage, "-")))))),"") ->  | BZ26: Mo | CA26: 2025-09-22 | CC26: . | CD26: =IF(AND(CC$3="x",LEFT(CB26,1)="B", OR(AND(AKTIVB1="x",CB26="B1"), AND(AKTIVB2="x",CB26="B2"), AND(AKTIVB3="x",CB26="B3"), AND(AKTIVB4="x",CB26="B4"), AND(AKTIVB5="x",CB26="B5"), AND(AKTIVB6="x",CB26="B6"), AND(AKTIVB7="x",CB26="B7"), )), IF(AND(CA26>=Vertr1Von,CA26<=Vertr1Bis),CB26&Vertrag1Gage, IF(AND(CA26>=Vertr2von,CA26<=Vertr2Bis),CB26&Vertrag2Gage, IF(AND(CA26>=Vertr3Von,CA26<=Vertr3bis),CB26&Vertrag3Gage, IF(AND(CA26>=Vertr4von,CA26<=Vertr4bis),CB26&Vertrag4Gage, IF(AND(CA26>=Vertr5von,CA26<=Vertr5bis),CB26&Vertrag5Gage, IF(AND(CA26>=Vertr6von,CA26<=Vertr6bis),CB26&Vertrag6Gage, "-")))))),"") ->  | CL26: Mi | CM26: 2025-10-22 | CO26: . | CP26: =IF(AND(CO$3="x",LEFT(CN26,1)="B", OR(AND(AKTIVB1="x",CN26="B1"), AND(AKTIVB2="x",CN26="B2"), AND(AKTIVB3="x",CN26="B3"), AND(AKTIVB4="x",CN26="B4"), AND(AKTIVB5="x",CN26="B5"), AND(AKTIVB6="x",CN26="B6"), AND(AKTIVB7="x",CN26="B7"), )), IF(AND(CM26>=Vertr1Von,CM26<=Vertr1Bis),CN26&Vertrag1Gage, IF(AND(CM26>=Vertr2von,CM26<=Vertr2Bis),CN26&Vertrag2Gage, IF(AND(CM26>=Vertr3Von,CM26<=Vertr3bis),CN26&Vertrag3Gage, IF(AND(CM26>=Vertr4von,CM26<=Vertr4bis),CN26&Vertrag4Gage, IF(AND(CM26>=Vertr5von,CM26<=Vertr5bis),CN26&Vertrag5Gage, IF(AND(CM26>=Vertr6von,CM26<=Vertr6bis),CN26&Vertrag6Gage, "-")))))),"") ->  | CY26: Sa | CZ26: 2025-11-22 | DC26: =IF(AND(DB$3="x",LEFT(DA26,1)="B", OR(AND(AKTIVB1="x",DA26="B1"), AND(AKTIVB2="x",DA26="B2"), AND(AKTIVB3="x",DA26="B3"), AND(AKTIVB4="x",DA26="B4"), AND(AKTIVB5="x",DA26="B5"), AND(AKTIVB6="x",DA26="B6"), AND(AKTIVB7="x",DA26="B7"), )), IF(AND(CZ26>=Vertr1Von,CZ26<=Vertr1Bis),DA26&Vertrag1Gage, IF(AND(CZ26>=Vertr2von,CZ26<=Vertr2Bis),DA26&Vertrag2Gage, IF(AND(CZ26>=Vertr3Von,CZ26<=Vertr3bis),DA26&Vertrag3Gage, IF(AND(CZ26>=Vertr4von,CZ26<=Vertr4bis),DA26&Vertrag4Gage, IF(AND(CZ26>=Vertr5von,CZ26<=Vertr5bis),DA26&Vertrag5Gage, IF(AND(CZ26>=Vertr6von,CZ26<=Vertr6bis),DA26&Vertrag6Gage, "-")))))),"") ->  | DK26: Mo | DL26: 2025-12-22 | DN26: . | DO26: =IF(AND(DN$3="x",LEFT(DM26,1)="B", OR(AND(AKTIVB1="x",DM26="B1"), AND(AKTIVB2="x",DM26="B2"), AND(AKTIVB3="x",DM26="B3"), AND(AKTIVB4="x",DM26="B4"), AND(AKTIVB5="x",DM26="B5"), AND(AKTIVB6="x",DM26="B6"), AND(AKTIVB7="x",DM26="B7"), )), IF(AND(DL26>=Vertr1Von,DL26<=Vertr1Bis),DM26&Vertrag1Gage, IF(AND(DL26>=Vertr2von,DL26<=Vertr2Bis),DM26&Vertrag2Gage, IF(AND(DL26>=Vertr3Von,DL26<=Vertr3bis),DM26&Vertrag3Gage, IF(AND(DL26>=Vertr4von,DL26<=Vertr4bis),DM26&Vertrag4Gage, IF(AND(DL26>=Vertr5von,DL26<=Vertr5bis),DM26&Vertrag5Gage, IF(AND(DL26>=Vertr6von,DL26<=Vertr6bis),DM26&Vertrag6Gage, "-")))))),"") ->  | DW26: Do | DX26: 2026-01-22 | DZ26: . | EA26: =IF(AND(DZ$3="x",LEFT(DY26,1)="B", OR(AND(AKTIVB1="x",DY26="B1"), AND(AKTIVB2="x",DY26="B2"), AND(AKTIVB3="x",DY26="B3"), AND(AKTIVB4="x",DY26="B4"), AND(AKTIVB5="x",DY26="B5"), AND(AKTIVB6="x",DY26="B6"), AND(AKTIVB7="x",DY26="B7"), )), IF(AND(DX26>=Vertr1Von,DX26<=Vertr1Bis),DY26&Vertrag1Gage, IF(AND(DX26>=Vertr2von,DX26<=Vertr2Bis),DY26&Vertrag2Gage, IF(AND(DX26>=Vertr3Von,DX26<=Vertr3bis),DY26&Vertrag3Gage, IF(AND(DX26>=Vertr4von,DX26<=Vertr4bis),DY26&Vertrag4Gage, IF(AND(DX26>=Vertr5von,DX26<=Vertr5bis),DY26&Vertrag5Gage, IF(AND(DX26>=Vertr6von,DX26<=Vertr6bis),DY26&Vertrag6Gage, "-")))))),"") ->  | EI26: So | EJ26: 2026-02-22 | EM26: =IF(AND(EL$3="x",LEFT(EK26,1)="B", OR(AND(AKTIVB1="x",EK26="B1"), AND(AKTIVB2="x",EK26="B2"), AND(AKTIVB3="x",EK26="B3"), AND(AKTIVB4="x",EK26="B4"), AND(AKTIVB5="x",EK26="B5"), AND(AKTIVB6="x",EK26="B6"), AND(AKTIVB7="x",EK26="B7"), )), IF(AND(EJ26>=Vertr1Von,EJ26<=Vertr1Bis),EK26&Vertrag1Gage, IF(AND(EJ26>=Vertr2von,EJ26<=Vertr2Bis),EK26&Vertrag2Gage, IF(AND(EJ26>=Vertr3Von,EJ26<=Vertr3bis),EK26&Vertrag3Gage, IF(AND(EJ26>=Vertr4von,EJ26<=Vertr4bis),EK26&Vertrag4Gage, IF(AND(EJ26>=Vertr5von,EJ26<=Vertr5bis),EK26&Vertrag5Gage, IF(AND(EJ26>=Vertr6von,EJ26<=Vertr6bis),EK26&Vertrag6Gage, "-")))))),"") ->  | EU26: So | EV26: 2026-03-22 | EY26: =IF(AND(EX$3="x",LEFT(EW26,1)="B", OR(AND(AKTIVB1="x",EW26="B1"), AND(AKTIVB2="x",EW26="B2"), AND(AKTIVB3="x",EW26="B3"), AND(AKTIVB4="x",EW26="B4"), AND(AKTIVB5="x",EW26="B5"), AND(AKTIVB6="x",EW26="B6"), AND(AKTIVB7="x",EW26="B7"), )), IF(AND(EV26>=Vertr1Von,EV26<=Vertr1Bis),EW26&Vertrag1Gage, IF(AND(EV26>=Vertr2von,EV26<=Vertr2Bis),EW26&Vertrag2Gage, IF(AND(EV26>=Vertr3Von,EV26<=Vertr3bis),EW26&Vertrag3Gage, IF(AND(EV26>=Vertr4von,EV26<=Vertr4bis),EW26&Vertrag4Gage, IF(AND(EV26>=Vertr5von,EV26<=Vertr5bis),EW26&Vertrag5Gage, IF(AND(EV26>=Vertr6von,EV26<=Vertr6bis),EW26&Vertrag6Gage, "-")))))),"") ->  | FG26: Mi | FH26: 2026-04-22 | FJ26: . | FK26: =IF(AND(FJ$3="x",LEFT(FI26,1)="B", OR(AND(AKTIVB1="x",FI26="B1"), AND(AKTIVB2="x",FI26="B2"), AND(AKTIVB3="x",FI26="B3"), AND(AKTIVB4="x",FI26="B4"), AND(AKTIVB5="x",FI26="B5"), AND(AKTIVB6="x",FI26="B6"), AND(AKTIVB7="x",FI26="B7"), )), IF(AND(FH26>=Vertr1Von,FH26<=Vertr1Bis),FI26&Vertrag1Gage, IF(AND(FH26>=Vertr2von,FH26<=Vertr2Bis),FI26&Vertrag2Gage, IF(AND(FH26>=Vertr3Von,FH26<=Vertr3bis),FI26&Vertrag3Gage, IF(AND(FH26>=Vertr4von,FH26<=Vertr4bis),FI26&Vertrag4Gage, IF(AND(FH26>=Vertr5von,FH26<=Vertr5bis),FI26&Vertrag5Gage, IF(AND(FH26>=Vertr6von,FH26<=Vertr6bis),FI26&Vertrag6Gage, "-")))))),"") ->  | FS26: Fr | FT26: 2026-05-22 | FV26: . | FW26: =IF(AND(FV$3="x",LEFT(FU26,1)="B", OR(AND(AKTIVB1="x",FU26="B1"), AND(AKTIVB2="x",FU26="B2"), AND(AKTIVB3="x",FU26="B3"), AND(AKTIVB4="x",FU26="B4"), AND(AKTIVB5="x",FU26="B5"), AND(AKTIVB6="x",FU26="B6"), AND(AKTIVB7="x",FU26="B7"), )), IF(AND(FT26>=Vertr1Von,FT26<=Vertr1Bis),FU26&Vertrag1Gage, IF(AND(FT26>=Vertr2von,FT26<=Vertr2Bis),FU26&Vertrag2Gage, IF(AND(FT26>=Vertr3Von,FT26<=Vertr3bis),FU26&Vertrag3Gage, IF(AND(FT26>=Vertr4von,FT26<=Vertr4bis),FU26&Vertrag4Gage, IF(AND(FT26>=Vertr5von,FT26<=Vertr5bis),FU26&Vertrag5Gage, IF(AND(FT26>=Vertr6von,FT26<=Vertr6bis),FU26&Vertrag6Gage, "-")))))),"") -> 
A27: Üstd-Zeitkonto | G27: Auswahl (x) | Q27: Mi | R27: 2025-04-23 | T27: . | U27: =IF(AND(T$3="x",LEFT(S27,1)="B", OR(AND(AKTIVB1="x",S27="B1"), AND(AKTIVB2="x",S27="B2"), AND(AKTIVB3="x",S27="B3"), AND(AKTIVB4="x",S27="B4"), AND(AKTIVB5="x",S27="B5"), AND(AKTIVB6="x",S27="B6"), AND(AKTIVB7="x",S27="B7"), )), IF(AND(R27>=Vertr1Von,R27<=Vertr1Bis),S27&Vertrag1Gage, IF(AND(R27>=Vertr2von,R27<=Vertr2Bis),S27&Vertrag2Gage, IF(AND(R27>=Vertr3Von,R27<=Vertr3bis),S27&Vertrag3Gage, IF(AND(R27>=Vertr4von,R27<=Vertr4bis),S27&Vertrag4Gage, IF(AND(R27>=Vertr5von,R27<=Vertr5bis),S27&Vertrag5Gage, IF(AND(R27>=Vertr6von,R27<=Vertr6bis),S27&Vertrag6Gage, "-")))))),"") ->  | AD27: Fr | AE27: 2025-05-23 | AF27: B1 | AH27: =IF(AND(AG$3="x",LEFT(AF27,1)="B", OR(AND(AKTIVB1="x",AF27="B1"), AND(AKTIVB2="x",AF27="B2"), AND(AKTIVB3="x",AF27="B3"), AND(AKTIVB4="x",AF27="B4"), AND(AKTIVB5="x",AF27="B5"), AND(AKTIVB6="x",AF27="B6"), AND(AKTIVB7="x",AF27="B7"), )), IF(AND(AE27>=Vertr1Von,AE27<=Vertr1Bis),AF27&Vertrag1Gage, IF(AND(AE27>=Vertr2von,AE27<=Vertr2Bis),AF27&Vertrag2Gage, IF(AND(AE27>=Vertr3Von,AE27<=Vertr3bis),AF27&Vertrag3Gage, IF(AND(AE27>=Vertr4von,AE27<=Vertr4bis),AF27&Vertrag4Gage, IF(AND(AE27>=Vertr5von,AE27<=Vertr5bis),AF27&Vertrag5Gage, IF(AND(AE27>=Vertr6von,AE27<=Vertr6bis),AF27&Vertrag6Gage, "-")))))),"") -> B11 | AP27: Mo | AQ27: 2025-06-23 | AR27: B1 | AT27: =IF(AND(AS$3="x",LEFT(AR27,1)="B", OR(AND(AKTIVB1="x",AR27="B1"), AND(AKTIVB2="x",AR27="B2"), AND(AKTIVB3="x",AR27="B3"), AND(AKTIVB4="x",AR27="B4"), AND(AKTIVB5="x",AR27="B5"), AND(AKTIVB6="x",AR27="B6"), AND(AKTIVB7="x",AR27="B7"), )), IF(AND(AQ27>=Vertr1Von,AQ27<=Vertr1Bis),AR27&Vertrag1Gage, IF(AND(AQ27>=Vertr2von,AQ27<=Vertr2Bis),AR27&Vertrag2Gage, IF(AND(AQ27>=Vertr3Von,AQ27<=Vertr3bis),AR27&Vertrag3Gage, IF(AND(AQ27>=Vertr4von,AQ27<=Vertr4bis),AR27&Vertrag4Gage, IF(AND(AQ27>=Vertr5von,AQ27<=Vertr5bis),AR27&Vertrag5Gage, IF(AND(AQ27>=Vertr6von,AQ27<=Vertr6bis),AR27&Vertrag6Gage, "-")))))),"") -> B11 | BB27: Mi | BC27: 2025-07-23 | BE27: . | BF27: =IF(AND(BE$3="x",LEFT(BD27,1)="B", OR(AND(AKTIVB1="x",BD27="B1"), AND(AKTIVB2="x",BD27="B2"), AND(AKTIVB3="x",BD27="B3"), AND(AKTIVB4="x",BD27="B4"), AND(AKTIVB5="x",BD27="B5"), AND(AKTIVB6="x",BD27="B6"), AND(AKTIVB7="x",BD27="B7"), )), IF(AND(BC27>=Vertr1Von,BC27<=Vertr1Bis),BD27&Vertrag1Gage, IF(AND(BC27>=Vertr2von,BC27<=Vertr2Bis),BD27&Vertrag2Gage, IF(AND(BC27>=Vertr3Von,BC27<=Vertr3bis),BD27&Vertrag3Gage, IF(AND(BC27>=Vertr4von,BC27<=Vertr4bis),BD27&Vertrag4Gage, IF(AND(BC27>=Vertr5von,BC27<=Vertr5bis),BD27&Vertrag5Gage, IF(AND(BC27>=Vertr6von,BC27<=Vertr6bis),BD27&Vertrag6Gage, "-")))))),"") ->  | BN27: Sa | BO27: 2025-08-23 | BR27: =IF(AND(BQ$3="x",LEFT(BP27,1)="B", OR(AND(AKTIVB1="x",BP27="B1"), AND(AKTIVB2="x",BP27="B2"), AND(AKTIVB3="x",BP27="B3"), AND(AKTIVB4="x",BP27="B4"), AND(AKTIVB5="x",BP27="B5"), AND(AKTIVB6="x",BP27="B6"), AND(AKTIVB7="x",BP27="B7"), )), IF(AND(BO27>=Vertr1Von,BO27<=Vertr1Bis),BP27&Vertrag1Gage, IF(AND(BO27>=Vertr2von,BO27<=Vertr2Bis),BP27&Vertrag2Gage, IF(AND(BO27>=Vertr3Von,BO27<=Vertr3bis),BP27&Vertrag3Gage, IF(AND(BO27>=Vertr4von,BO27<=Vertr4bis),BP27&Vertrag4Gage, IF(AND(BO27>=Vertr5von,BO27<=Vertr5bis),BP27&Vertrag5Gage, IF(AND(BO27>=Vertr6von,BO27<=Vertr6bis),BP27&Vertrag6Gage, "-")))))),"") ->  | BZ27: Di | CA27: 2025-09-23 | CC27: . | CD27: =IF(AND(CC$3="x",LEFT(CB27,1)="B", OR(AND(AKTIVB1="x",CB27="B1"), AND(AKTIVB2="x",CB27="B2"), AND(AKTIVB3="x",CB27="B3"), AND(AKTIVB4="x",CB27="B4"), AND(AKTIVB5="x",CB27="B5"), AND(AKTIVB6="x",CB27="B6"), AND(AKTIVB7="x",CB27="B7"), )), IF(AND(CA27>=Vertr1Von,CA27<=Vertr1Bis),CB27&Vertrag1Gage, IF(AND(CA27>=Vertr2von,CA27<=Vertr2Bis),CB27&Vertrag2Gage, IF(AND(CA27>=Vertr3Von,CA27<=Vertr3bis),CB27&Vertrag3Gage, IF(AND(CA27>=Vertr4von,CA27<=Vertr4bis),CB27&Vertrag4Gage, IF(AND(CA27>=Vertr5von,CA27<=Vertr5bis),CB27&Vertrag5Gage, IF(AND(CA27>=Vertr6von,CA27<=Vertr6bis),CB27&Vertrag6Gage, "-")))))),"") ->  | CL27: Do | CM27: 2025-10-23 | CO27: . | CP27: =IF(AND(CO$3="x",LEFT(CN27,1)="B", OR(AND(AKTIVB1="x",CN27="B1"), AND(AKTIVB2="x",CN27="B2"), AND(AKTIVB3="x",CN27="B3"), AND(AKTIVB4="x",CN27="B4"), AND(AKTIVB5="x",CN27="B5"), AND(AKTIVB6="x",CN27="B6"), AND(AKTIVB7="x",CN27="B7"), )), IF(AND(CM27>=Vertr1Von,CM27<=Vertr1Bis),CN27&Vertrag1Gage, IF(AND(CM27>=Vertr2von,CM27<=Vertr2Bis),CN27&Vertrag2Gage, IF(AND(CM27>=Vertr3Von,CM27<=Vertr3bis),CN27&Vertrag3Gage, IF(AND(CM27>=Vertr4von,CM27<=Vertr4bis),CN27&Vertrag4Gage, IF(AND(CM27>=Vertr5von,CM27<=Vertr5bis),CN27&Vertrag5Gage, IF(AND(CM27>=Vertr6von,CM27<=Vertr6bis),CN27&Vertrag6Gage, "-")))))),"") ->  | CY27: So | CZ27: 2025-11-23 | DC27: =IF(AND(DB$3="x",LEFT(DA27,1)="B", OR(AND(AKTIVB1="x",DA27="B1"), AND(AKTIVB2="x",DA27="B2"), AND(AKTIVB3="x",DA27="B3"), AND(AKTIVB4="x",DA27="B4"), AND(AKTIVB5="x",DA27="B5"), AND(AKTIVB6="x",DA27="B6"), AND(AKTIVB7="x",DA27="B7"), )), IF(AND(CZ27>=Vertr1Von,CZ27<=Vertr1Bis),DA27&Vertrag1Gage, IF(AND(CZ27>=Vertr2von,CZ27<=Vertr2Bis),DA27&Vertrag2Gage, IF(AND(CZ27>=Vertr3Von,CZ27<=Vertr3bis),DA27&Vertrag3Gage, IF(AND(CZ27>=Vertr4von,CZ27<=Vertr4bis),DA27&Vertrag4Gage, IF(AND(CZ27>=Vertr5von,CZ27<=Vertr5bis),DA27&Vertrag5Gage, IF(AND(CZ27>=Vertr6von,CZ27<=Vertr6bis),DA27&Vertrag6Gage, "-")))))),"") ->  | DK27: Di | DL27: 2025-12-23 | DN27: . | DO27: =IF(AND(DN$3="x",LEFT(DM27,1)="B", OR(AND(AKTIVB1="x",DM27="B1"), AND(AKTIVB2="x",DM27="B2"), AND(AKTIVB3="x",DM27="B3"), AND(AKTIVB4="x",DM27="B4"), AND(AKTIVB5="x",DM27="B5"), AND(AKTIVB6="x",DM27="B6"), AND(AKTIVB7="x",DM27="B7"), )), IF(AND(DL27>=Vertr1Von,DL27<=Vertr1Bis),DM27&Vertrag1Gage, IF(AND(DL27>=Vertr2von,DL27<=Vertr2Bis),DM27&Vertrag2Gage, IF(AND(DL27>=Vertr3Von,DL27<=Vertr3bis),DM27&Vertrag3Gage, IF(AND(DL27>=Vertr4von,DL27<=Vertr4bis),DM27&Vertrag4Gage, IF(AND(DL27>=Vertr5von,DL27<=Vertr5bis),DM27&Vertrag5Gage, IF(AND(DL27>=Vertr6von,DL27<=Vertr6bis),DM27&Vertrag6Gage, "-")))))),"") ->  | DW27: Fr | DX27: 2026-01-23 | DZ27: . | EA27: =IF(AND(DZ$3="x",LEFT(DY27,1)="B", OR(AND(AKTIVB1="x",DY27="B1"), AND(AKTIVB2="x",DY27="B2"), AND(AKTIVB3="x",DY27="B3"), AND(AKTIVB4="x",DY27="B4"), AND(AKTIVB5="x",DY27="B5"), AND(AKTIVB6="x",DY27="B6"), AND(AKTIVB7="x",DY27="B7"), )), IF(AND(DX27>=Vertr1Von,DX27<=Vertr1Bis),DY27&Vertrag1Gage, IF(AND(DX27>=Vertr2von,DX27<=Vertr2Bis),DY27&Vertrag2Gage, IF(AND(DX27>=Vertr3Von,DX27<=Vertr3bis),DY27&Vertrag3Gage, IF(AND(DX27>=Vertr4von,DX27<=Vertr4bis),DY27&Vertrag4Gage, IF(AND(DX27>=Vertr5von,DX27<=Vertr5bis),DY27&Vertrag5Gage, IF(AND(DX27>=Vertr6von,DX27<=Vertr6bis),DY27&Vertrag6Gage, "-")))))),"") ->  | EI27: Mo | EJ27: 2026-02-23 | EL27: . | EM27: =IF(AND(EL$3="x",LEFT(EK27,1)="B", OR(AND(AKTIVB1="x",EK27="B1"), AND(AKTIVB2="x",EK27="B2"), AND(AKTIVB3="x",EK27="B3"), AND(AKTIVB4="x",EK27="B4"), AND(AKTIVB5="x",EK27="B5"), AND(AKTIVB6="x",EK27="B6"), AND(AKTIVB7="x",EK27="B7"), )), IF(AND(EJ27>=Vertr1Von,EJ27<=Vertr1Bis),EK27&Vertrag1Gage, IF(AND(EJ27>=Vertr2von,EJ27<=Vertr2Bis),EK27&Vertrag2Gage, IF(AND(EJ27>=Vertr3Von,EJ27<=Vertr3bis),EK27&Vertrag3Gage, IF(AND(EJ27>=Vertr4von,EJ27<=Vertr4bis),EK27&Vertrag4Gage, IF(AND(EJ27>=Vertr5von,EJ27<=Vertr5bis),EK27&Vertrag5Gage, IF(AND(EJ27>=Vertr6von,EJ27<=Vertr6bis),EK27&Vertrag6Gage, "-")))))),"") ->  | EU27: Mo | EV27: 2026-03-23 | EX27: . | EY27: =IF(AND(EX$3="x",LEFT(EW27,1)="B", OR(AND(AKTIVB1="x",EW27="B1"), AND(AKTIVB2="x",EW27="B2"), AND(AKTIVB3="x",EW27="B3"), AND(AKTIVB4="x",EW27="B4"), AND(AKTIVB5="x",EW27="B5"), AND(AKTIVB6="x",EW27="B6"), AND(AKTIVB7="x",EW27="B7"), )), IF(AND(EV27>=Vertr1Von,EV27<=Vertr1Bis),EW27&Vertrag1Gage, IF(AND(EV27>=Vertr2von,EV27<=Vertr2Bis),EW27&Vertrag2Gage, IF(AND(EV27>=Vertr3Von,EV27<=Vertr3bis),EW27&Vertrag3Gage, IF(AND(EV27>=Vertr4von,EV27<=Vertr4bis),EW27&Vertrag4Gage, IF(AND(EV27>=Vertr5von,EV27<=Vertr5bis),EW27&Vertrag5Gage, IF(AND(EV27>=Vertr6von,EV27<=Vertr6bis),EW27&Vertrag6Gage, "-")))))),"") ->  | FG27: Do | FH27: 2026-04-23 | FJ27: . | FK27: =IF(AND(FJ$3="x",LEFT(FI27,1)="B", OR(AND(AKTIVB1="x",FI27="B1"), AND(AKTIVB2="x",FI27="B2"), AND(AKTIVB3="x",FI27="B3"), AND(AKTIVB4="x",FI27="B4"), AND(AKTIVB5="x",FI27="B5"), AND(AKTIVB6="x",FI27="B6"), AND(AKTIVB7="x",FI27="B7"), )), IF(AND(FH27>=Vertr1Von,FH27<=Vertr1Bis),FI27&Vertrag1Gage, IF(AND(FH27>=Vertr2von,FH27<=Vertr2Bis),FI27&Vertrag2Gage, IF(AND(FH27>=Vertr3Von,FH27<=Vertr3bis),FI27&Vertrag3Gage, IF(AND(FH27>=Vertr4von,FH27<=Vertr4bis),FI27&Vertrag4Gage, IF(AND(FH27>=Vertr5von,FH27<=Vertr5bis),FI27&Vertrag5Gage, IF(AND(FH27>=Vertr6von,FH27<=Vertr6bis),FI27&Vertrag6Gage, "-")))))),"") ->  | FS27: Sa | FT27: 2026-05-23 | FW27: =IF(AND(FV$3="x",LEFT(FU27,1)="B", OR(AND(AKTIVB1="x",FU27="B1"), AND(AKTIVB2="x",FU27="B2"), AND(AKTIVB3="x",FU27="B3"), AND(AKTIVB4="x",FU27="B4"), AND(AKTIVB5="x",FU27="B5"), AND(AKTIVB6="x",FU27="B6"), AND(AKTIVB7="x",FU27="B7"), )), IF(AND(FT27>=Vertr1Von,FT27<=Vertr1Bis),FU27&Vertrag1Gage, IF(AND(FT27>=Vertr2von,FT27<=Vertr2Bis),FU27&Vertrag2Gage, IF(AND(FT27>=Vertr3Von,FT27<=Vertr3bis),FU27&Vertrag3Gage, IF(AND(FT27>=Vertr4von,FT27<=Vertr4bis),FU27&Vertrag4Gage, IF(AND(FT27>=Vertr5von,FT27<=Vertr5bis),FU27&Vertrag5Gage, IF(AND(FT27>=Vertr6von,FT27<=Vertr6bis),FU27&Vertrag6Gage, "-")))))),"") -> 
Q28: Do | R28: 2025-04-24 | T28: . | U28: =IF(AND(T$3="x",LEFT(S28,1)="B", OR(AND(AKTIVB1="x",S28="B1"), AND(AKTIVB2="x",S28="B2"), AND(AKTIVB3="x",S28="B3"), AND(AKTIVB4="x",S28="B4"), AND(AKTIVB5="x",S28="B5"), AND(AKTIVB6="x",S28="B6"), AND(AKTIVB7="x",S28="B7"), )), IF(AND(R28>=Vertr1Von,R28<=Vertr1Bis),S28&Vertrag1Gage, IF(AND(R28>=Vertr2von,R28<=Vertr2Bis),S28&Vertrag2Gage, IF(AND(R28>=Vertr3Von,R28<=Vertr3bis),S28&Vertrag3Gage, IF(AND(R28>=Vertr4von,R28<=Vertr4bis),S28&Vertrag4Gage, IF(AND(R28>=Vertr5von,R28<=Vertr5bis),S28&Vertrag5Gage, IF(AND(R28>=Vertr6von,R28<=Vertr6bis),S28&Vertrag6Gage, "-")))))),"") ->  | AD28: Sa | AE28: 2025-05-24 | AH28: =IF(AND(AG$3="x",LEFT(AF28,1)="B", OR(AND(AKTIVB1="x",AF28="B1"), AND(AKTIVB2="x",AF28="B2"), AND(AKTIVB3="x",AF28="B3"), AND(AKTIVB4="x",AF28="B4"), AND(AKTIVB5="x",AF28="B5"), AND(AKTIVB6="x",AF28="B6"), AND(AKTIVB7="x",AF28="B7"), )), IF(AND(AE28>=Vertr1Von,AE28<=Vertr1Bis),AF28&Vertrag1Gage, IF(AND(AE28>=Vertr2von,AE28<=Vertr2Bis),AF28&Vertrag2Gage, IF(AND(AE28>=Vertr3Von,AE28<=Vertr3bis),AF28&Vertrag3Gage, IF(AND(AE28>=Vertr4von,AE28<=Vertr4bis),AF28&Vertrag4Gage, IF(AND(AE28>=Vertr5von,AE28<=Vertr5bis),AF28&Vertrag5Gage, IF(AND(AE28>=Vertr6von,AE28<=Vertr6bis),AF28&Vertrag6Gage, "-")))))),"") ->  | AP28: Di | AQ28: 2025-06-24 | AR28: B1 | AT28: =IF(AND(AS$3="x",LEFT(AR28,1)="B", OR(AND(AKTIVB1="x",AR28="B1"), AND(AKTIVB2="x",AR28="B2"), AND(AKTIVB3="x",AR28="B3"), AND(AKTIVB4="x",AR28="B4"), AND(AKTIVB5="x",AR28="B5"), AND(AKTIVB6="x",AR28="B6"), AND(AKTIVB7="x",AR28="B7"), )), IF(AND(AQ28>=Vertr1Von,AQ28<=Vertr1Bis),AR28&Vertrag1Gage, IF(AND(AQ28>=Vertr2von,AQ28<=Vertr2Bis),AR28&Vertrag2Gage, IF(AND(AQ28>=Vertr3Von,AQ28<=Vertr3bis),AR28&Vertrag3Gage, IF(AND(AQ28>=Vertr4von,AQ28<=Vertr4bis),AR28&Vertrag4Gage, IF(AND(AQ28>=Vertr5von,AQ28<=Vertr5bis),AR28&Vertrag5Gage, IF(AND(AQ28>=Vertr6von,AQ28<=Vertr6bis),AR28&Vertrag6Gage, "-")))))),"") -> B11 | BB28: Do | BC28: 2025-07-24 | BE28: . | BF28: =IF(AND(BE$3="x",LEFT(BD28,1)="B", OR(AND(AKTIVB1="x",BD28="B1"), AND(AKTIVB2="x",BD28="B2"), AND(AKTIVB3="x",BD28="B3"), AND(AKTIVB4="x",BD28="B4"), AND(AKTIVB5="x",BD28="B5"), AND(AKTIVB6="x",BD28="B6"), AND(AKTIVB7="x",BD28="B7"), )), IF(AND(BC28>=Vertr1Von,BC28<=Vertr1Bis),BD28&Vertrag1Gage, IF(AND(BC28>=Vertr2von,BC28<=Vertr2Bis),BD28&Vertrag2Gage, IF(AND(BC28>=Vertr3Von,BC28<=Vertr3bis),BD28&Vertrag3Gage, IF(AND(BC28>=Vertr4von,BC28<=Vertr4bis),BD28&Vertrag4Gage, IF(AND(BC28>=Vertr5von,BC28<=Vertr5bis),BD28&Vertrag5Gage, IF(AND(BC28>=Vertr6von,BC28<=Vertr6bis),BD28&Vertrag6Gage, "-")))))),"") ->  | BN28: So | BO28: 2025-08-24 | BR28: =IF(AND(BQ$3="x",LEFT(BP28,1)="B", OR(AND(AKTIVB1="x",BP28="B1"), AND(AKTIVB2="x",BP28="B2"), AND(AKTIVB3="x",BP28="B3"), AND(AKTIVB4="x",BP28="B4"), AND(AKTIVB5="x",BP28="B5"), AND(AKTIVB6="x",BP28="B6"), AND(AKTIVB7="x",BP28="B7"), )), IF(AND(BO28>=Vertr1Von,BO28<=Vertr1Bis),BP28&Vertrag1Gage, IF(AND(BO28>=Vertr2von,BO28<=Vertr2Bis),BP28&Vertrag2Gage, IF(AND(BO28>=Vertr3Von,BO28<=Vertr3bis),BP28&Vertrag3Gage, IF(AND(BO28>=Vertr4von,BO28<=Vertr4bis),BP28&Vertrag4Gage, IF(AND(BO28>=Vertr5von,BO28<=Vertr5bis),BP28&Vertrag5Gage, IF(AND(BO28>=Vertr6von,BO28<=Vertr6bis),BP28&Vertrag6Gage, "-")))))),"") ->  | BZ28: Mi | CA28: 2025-09-24 | CC28: . | CD28: =IF(AND(CC$3="x",LEFT(CB28,1)="B", OR(AND(AKTIVB1="x",CB28="B1"), AND(AKTIVB2="x",CB28="B2"), AND(AKTIVB3="x",CB28="B3"), AND(AKTIVB4="x",CB28="B4"), AND(AKTIVB5="x",CB28="B5"), AND(AKTIVB6="x",CB28="B6"), AND(AKTIVB7="x",CB28="B7"), )), IF(AND(CA28>=Vertr1Von,CA28<=Vertr1Bis),CB28&Vertrag1Gage, IF(AND(CA28>=Vertr2von,CA28<=Vertr2Bis),CB28&Vertrag2Gage, IF(AND(CA28>=Vertr3Von,CA28<=Vertr3bis),CB28&Vertrag3Gage, IF(AND(CA28>=Vertr4von,CA28<=Vertr4bis),CB28&Vertrag4Gage, IF(AND(CA28>=Vertr5von,CA28<=Vertr5bis),CB28&Vertrag5Gage, IF(AND(CA28>=Vertr6von,CA28<=Vertr6bis),CB28&Vertrag6Gage, "-")))))),"") ->  | CL28: Fr | CM28: 2025-10-24 | CO28: . | CP28: =IF(AND(CO$3="x",LEFT(CN28,1)="B", OR(AND(AKTIVB1="x",CN28="B1"), AND(AKTIVB2="x",CN28="B2"), AND(AKTIVB3="x",CN28="B3"), AND(AKTIVB4="x",CN28="B4"), AND(AKTIVB5="x",CN28="B5"), AND(AKTIVB6="x",CN28="B6"), AND(AKTIVB7="x",CN28="B7"), )), IF(AND(CM28>=Vertr1Von,CM28<=Vertr1Bis),CN28&Vertrag1Gage, IF(AND(CM28>=Vertr2von,CM28<=Vertr2Bis),CN28&Vertrag2Gage, IF(AND(CM28>=Vertr3Von,CM28<=Vertr3bis),CN28&Vertrag3Gage, IF(AND(CM28>=Vertr4von,CM28<=Vertr4bis),CN28&Vertrag4Gage, IF(AND(CM28>=Vertr5von,CM28<=Vertr5bis),CN28&Vertrag5Gage, IF(AND(CM28>=Vertr6von,CM28<=Vertr6bis),CN28&Vertrag6Gage, "-")))))),"") ->  | CY28: Mo | CZ28: 2025-11-24 | DB28: . | DC28: =IF(AND(DB$3="x",LEFT(DA28,1)="B", OR(AND(AKTIVB1="x",DA28="B1"), AND(AKTIVB2="x",DA28="B2"), AND(AKTIVB3="x",DA28="B3"), AND(AKTIVB4="x",DA28="B4"), AND(AKTIVB5="x",DA28="B5"), AND(AKTIVB6="x",DA28="B6"), AND(AKTIVB7="x",DA28="B7"), )), IF(AND(CZ28>=Vertr1Von,CZ28<=Vertr1Bis),DA28&Vertrag1Gage, IF(AND(CZ28>=Vertr2von,CZ28<=Vertr2Bis),DA28&Vertrag2Gage, IF(AND(CZ28>=Vertr3Von,CZ28<=Vertr3bis),DA28&Vertrag3Gage, IF(AND(CZ28>=Vertr4von,CZ28<=Vertr4bis),DA28&Vertrag4Gage, IF(AND(CZ28>=Vertr5von,CZ28<=Vertr5bis),DA28&Vertrag5Gage, IF(AND(CZ28>=Vertr6von,CZ28<=Vertr6bis),DA28&Vertrag6Gage, "-")))))),"") ->  | DK28: Mi | DL28: 2025-12-24 | DN28: . | DO28: =IF(AND(DN$3="x",LEFT(DM28,1)="B", OR(AND(AKTIVB1="x",DM28="B1"), AND(AKTIVB2="x",DM28="B2"), AND(AKTIVB3="x",DM28="B3"), AND(AKTIVB4="x",DM28="B4"), AND(AKTIVB5="x",DM28="B5"), AND(AKTIVB6="x",DM28="B6"), AND(AKTIVB7="x",DM28="B7"), )), IF(AND(DL28>=Vertr1Von,DL28<=Vertr1Bis),DM28&Vertrag1Gage, IF(AND(DL28>=Vertr2von,DL28<=Vertr2Bis),DM28&Vertrag2Gage, IF(AND(DL28>=Vertr3Von,DL28<=Vertr3bis),DM28&Vertrag3Gage, IF(AND(DL28>=Vertr4von,DL28<=Vertr4bis),DM28&Vertrag4Gage, IF(AND(DL28>=Vertr5von,DL28<=Vertr5bis),DM28&Vertrag5Gage, IF(AND(DL28>=Vertr6von,DL28<=Vertr6bis),DM28&Vertrag6Gage, "-")))))),"") ->  | DW28: Sa | DX28: 2026-01-24 | EA28: =IF(AND(DZ$3="x",LEFT(DY28,1)="B", OR(AND(AKTIVB1="x",DY28="B1"), AND(AKTIVB2="x",DY28="B2"), AND(AKTIVB3="x",DY28="B3"), AND(AKTIVB4="x",DY28="B4"), AND(AKTIVB5="x",DY28="B5"), AND(AKTIVB6="x",DY28="B6"), AND(AKTIVB7="x",DY28="B7"), )), IF(AND(DX28>=Vertr1Von,DX28<=Vertr1Bis),DY28&Vertrag1Gage, IF(AND(DX28>=Vertr2von,DX28<=Vertr2Bis),DY28&Vertrag2Gage, IF(AND(DX28>=Vertr3Von,DX28<=Vertr3bis),DY28&Vertrag3Gage, IF(AND(DX28>=Vertr4von,DX28<=Vertr4bis),DY28&Vertrag4Gage, IF(AND(DX28>=Vertr5von,DX28<=Vertr5bis),DY28&Vertrag5Gage, IF(AND(DX28>=Vertr6von,DX28<=Vertr6bis),DY28&Vertrag6Gage, "-")))))),"") ->  | EI28: Di | EJ28: 2026-02-24 | EL28: . | EM28: =IF(AND(EL$3="x",LEFT(EK28,1)="B", OR(AND(AKTIVB1="x",EK28="B1"), AND(AKTIVB2="x",EK28="B2"), AND(AKTIVB3="x",EK28="B3"), AND(AKTIVB4="x",EK28="B4"), AND(AKTIVB5="x",EK28="B5"), AND(AKTIVB6="x",EK28="B6"), AND(AKTIVB7="x",EK28="B7"), )), IF(AND(EJ28>=Vertr1Von,EJ28<=Vertr1Bis),EK28&Vertrag1Gage, IF(AND(EJ28>=Vertr2von,EJ28<=Vertr2Bis),EK28&Vertrag2Gage, IF(AND(EJ28>=Vertr3Von,EJ28<=Vertr3bis),EK28&Vertrag3Gage, IF(AND(EJ28>=Vertr4von,EJ28<=Vertr4bis),EK28&Vertrag4Gage, IF(AND(EJ28>=Vertr5von,EJ28<=Vertr5bis),EK28&Vertrag5Gage, IF(AND(EJ28>=Vertr6von,EJ28<=Vertr6bis),EK28&Vertrag6Gage, "-")))))),"") ->  | EU28: Di | EV28: 2026-03-24 | EX28: . | EY28: =IF(AND(EX$3="x",LEFT(EW28,1)="B", OR(AND(AKTIVB1="x",EW28="B1"), AND(AKTIVB2="x",EW28="B2"), AND(AKTIVB3="x",EW28="B3"), AND(AKTIVB4="x",EW28="B4"), AND(AKTIVB5="x",EW28="B5"), AND(AKTIVB6="x",EW28="B6"), AND(AKTIVB7="x",EW28="B7"), )), IF(AND(EV28>=Vertr1Von,EV28<=Vertr1Bis),EW28&Vertrag1Gage, IF(AND(EV28>=Vertr2von,EV28<=Vertr2Bis),EW28&Vertrag2Gage, IF(AND(EV28>=Vertr3Von,EV28<=Vertr3bis),EW28&Vertrag3Gage, IF(AND(EV28>=Vertr4von,EV28<=Vertr4bis),EW28&Vertrag4Gage, IF(AND(EV28>=Vertr5von,EV28<=Vertr5bis),EW28&Vertrag5Gage, IF(AND(EV28>=Vertr6von,EV28<=Vertr6bis),EW28&Vertrag6Gage, "-")))))),"") ->  | FG28: Fr | FH28: 2026-04-24 | FJ28: . | FK28: =IF(AND(FJ$3="x",LEFT(FI28,1)="B", OR(AND(AKTIVB1="x",FI28="B1"), AND(AKTIVB2="x",FI28="B2"), AND(AKTIVB3="x",FI28="B3"), AND(AKTIVB4="x",FI28="B4"), AND(AKTIVB5="x",FI28="B5"), AND(AKTIVB6="x",FI28="B6"), AND(AKTIVB7="x",FI28="B7"), )), IF(AND(FH28>=Vertr1Von,FH28<=Vertr1Bis),FI28&Vertrag1Gage, IF(AND(FH28>=Vertr2von,FH28<=Vertr2Bis),FI28&Vertrag2Gage, IF(AND(FH28>=Vertr3Von,FH28<=Vertr3bis),FI28&Vertrag3Gage, IF(AND(FH28>=Vertr4von,FH28<=Vertr4bis),FI28&Vertrag4Gage, IF(AND(FH28>=Vertr5von,FH28<=Vertr5bis),FI28&Vertrag5Gage, IF(AND(FH28>=Vertr6von,FH28<=Vertr6bis),FI28&Vertrag6Gage, "-")))))),"") ->  | FS28: So | FT28: 2026-05-24 | FW28: =IF(AND(FV$3="x",LEFT(FU28,1)="B", OR(AND(AKTIVB1="x",FU28="B1"), AND(AKTIVB2="x",FU28="B2"), AND(AKTIVB3="x",FU28="B3"), AND(AKTIVB4="x",FU28="B4"), AND(AKTIVB5="x",FU28="B5"), AND(AKTIVB6="x",FU28="B6"), AND(AKTIVB7="x",FU28="B7"), )), IF(AND(FT28>=Vertr1Von,FT28<=Vertr1Bis),FU28&Vertrag1Gage, IF(AND(FT28>=Vertr2von,FT28<=Vertr2Bis),FU28&Vertrag2Gage, IF(AND(FT28>=Vertr3Von,FT28<=Vertr3bis),FU28&Vertrag3Gage, IF(AND(FT28>=Vertr4von,FT28<=Vertr4bis),FU28&Vertrag4Gage, IF(AND(FT28>=Vertr5von,FT28<=Vertr5bis),FU28&Vertrag5Gage, IF(AND(FT28>=Vertr6von,FT28<=Vertr6bis),FU28&Vertrag6Gage, "-")))))),"") -> 
H29: B1 | I29: B2 | J29: B3 | K29: B4 | L29: B5 | M29: B6 | N29: B7 | Q29: Fr | R29: 2025-04-25 | T29: . | U29: =IF(AND(T$3="x",LEFT(S29,1)="B", OR(AND(AKTIVB1="x",S29="B1"), AND(AKTIVB2="x",S29="B2"), AND(AKTIVB3="x",S29="B3"), AND(AKTIVB4="x",S29="B4"), AND(AKTIVB5="x",S29="B5"), AND(AKTIVB6="x",S29="B6"), AND(AKTIVB7="x",S29="B7"), )), IF(AND(R29>=Vertr1Von,R29<=Vertr1Bis),S29&Vertrag1Gage, IF(AND(R29>=Vertr2von,R29<=Vertr2Bis),S29&Vertrag2Gage, IF(AND(R29>=Vertr3Von,R29<=Vertr3bis),S29&Vertrag3Gage, IF(AND(R29>=Vertr4von,R29<=Vertr4bis),S29&Vertrag4Gage, IF(AND(R29>=Vertr5von,R29<=Vertr5bis),S29&Vertrag5Gage, IF(AND(R29>=Vertr6von,R29<=Vertr6bis),S29&Vertrag6Gage, "-")))))),"") ->  | AD29: So | AE29: 2025-05-25 | AH29: =IF(AND(AG$3="x",LEFT(AF29,1)="B", OR(AND(AKTIVB1="x",AF29="B1"), AND(AKTIVB2="x",AF29="B2"), AND(AKTIVB3="x",AF29="B3"), AND(AKTIVB4="x",AF29="B4"), AND(AKTIVB5="x",AF29="B5"), AND(AKTIVB6="x",AF29="B6"), AND(AKTIVB7="x",AF29="B7"), )), IF(AND(AE29>=Vertr1Von,AE29<=Vertr1Bis),AF29&Vertrag1Gage, IF(AND(AE29>=Vertr2von,AE29<=Vertr2Bis),AF29&Vertrag2Gage, IF(AND(AE29>=Vertr3Von,AE29<=Vertr3bis),AF29&Vertrag3Gage, IF(AND(AE29>=Vertr4von,AE29<=Vertr4bis),AF29&Vertrag4Gage, IF(AND(AE29>=Vertr5von,AE29<=Vertr5bis),AF29&Vertrag5Gage, IF(AND(AE29>=Vertr6von,AE29<=Vertr6bis),AF29&Vertrag6Gage, "-")))))),"") ->  | AP29: Mi | AQ29: 2025-06-25 | AR29: B1 | AT29: =IF(AND(AS$3="x",LEFT(AR29,1)="B", OR(AND(AKTIVB1="x",AR29="B1"), AND(AKTIVB2="x",AR29="B2"), AND(AKTIVB3="x",AR29="B3"), AND(AKTIVB4="x",AR29="B4"), AND(AKTIVB5="x",AR29="B5"), AND(AKTIVB6="x",AR29="B6"), AND(AKTIVB7="x",AR29="B7"), )), IF(AND(AQ29>=Vertr1Von,AQ29<=Vertr1Bis),AR29&Vertrag1Gage, IF(AND(AQ29>=Vertr2von,AQ29<=Vertr2Bis),AR29&Vertrag2Gage, IF(AND(AQ29>=Vertr3Von,AQ29<=Vertr3bis),AR29&Vertrag3Gage, IF(AND(AQ29>=Vertr4von,AQ29<=Vertr4bis),AR29&Vertrag4Gage, IF(AND(AQ29>=Vertr5von,AQ29<=Vertr5bis),AR29&Vertrag5Gage, IF(AND(AQ29>=Vertr6von,AQ29<=Vertr6bis),AR29&Vertrag6Gage, "-")))))),"") -> B11 | BB29: Fr | BC29: 2025-07-25 | BE29: . | BF29: =IF(AND(BE$3="x",LEFT(BD29,1)="B", OR(AND(AKTIVB1="x",BD29="B1"), AND(AKTIVB2="x",BD29="B2"), AND(AKTIVB3="x",BD29="B3"), AND(AKTIVB4="x",BD29="B4"), AND(AKTIVB5="x",BD29="B5"), AND(AKTIVB6="x",BD29="B6"), AND(AKTIVB7="x",BD29="B7"), )), IF(AND(BC29>=Vertr1Von,BC29<=Vertr1Bis),BD29&Vertrag1Gage, IF(AND(BC29>=Vertr2von,BC29<=Vertr2Bis),BD29&Vertrag2Gage, IF(AND(BC29>=Vertr3Von,BC29<=Vertr3bis),BD29&Vertrag3Gage, IF(AND(BC29>=Vertr4von,BC29<=Vertr4bis),BD29&Vertrag4Gage, IF(AND(BC29>=Vertr5von,BC29<=Vertr5bis),BD29&Vertrag5Gage, IF(AND(BC29>=Vertr6von,BC29<=Vertr6bis),BD29&Vertrag6Gage, "-")))))),"") ->  | BN29: Mo | BO29: 2025-08-25 | BQ29: . | BR29: =IF(AND(BQ$3="x",LEFT(BP29,1)="B", OR(AND(AKTIVB1="x",BP29="B1"), AND(AKTIVB2="x",BP29="B2"), AND(AKTIVB3="x",BP29="B3"), AND(AKTIVB4="x",BP29="B4"), AND(AKTIVB5="x",BP29="B5"), AND(AKTIVB6="x",BP29="B6"), AND(AKTIVB7="x",BP29="B7"), )), IF(AND(BO29>=Vertr1Von,BO29<=Vertr1Bis),BP29&Vertrag1Gage, IF(AND(BO29>=Vertr2von,BO29<=Vertr2Bis),BP29&Vertrag2Gage, IF(AND(BO29>=Vertr3Von,BO29<=Vertr3bis),BP29&Vertrag3Gage, IF(AND(BO29>=Vertr4von,BO29<=Vertr4bis),BP29&Vertrag4Gage, IF(AND(BO29>=Vertr5von,BO29<=Vertr5bis),BP29&Vertrag5Gage, IF(AND(BO29>=Vertr6von,BO29<=Vertr6bis),BP29&Vertrag6Gage, "-")))))),"") ->  | BZ29: Do | CA29: 2025-09-25 | CC29: . | CD29: =IF(AND(CC$3="x",LEFT(CB29,1)="B", OR(AND(AKTIVB1="x",CB29="B1"), AND(AKTIVB2="x",CB29="B2"), AND(AKTIVB3="x",CB29="B3"), AND(AKTIVB4="x",CB29="B4"), AND(AKTIVB5="x",CB29="B5"), AND(AKTIVB6="x",CB29="B6"), AND(AKTIVB7="x",CB29="B7"), )), IF(AND(CA29>=Vertr1Von,CA29<=Vertr1Bis),CB29&Vertrag1Gage, IF(AND(CA29>=Vertr2von,CA29<=Vertr2Bis),CB29&Vertrag2Gage, IF(AND(CA29>=Vertr3Von,CA29<=Vertr3bis),CB29&Vertrag3Gage, IF(AND(CA29>=Vertr4von,CA29<=Vertr4bis),CB29&Vertrag4Gage, IF(AND(CA29>=Vertr5von,CA29<=Vertr5bis),CB29&Vertrag5Gage, IF(AND(CA29>=Vertr6von,CA29<=Vertr6bis),CB29&Vertrag6Gage, "-")))))),"") ->  | CL29: Sa | CM29: 2025-10-25 | CP29: =IF(AND(CO$3="x",LEFT(CN29,1)="B", OR(AND(AKTIVB1="x",CN29="B1"), AND(AKTIVB2="x",CN29="B2"), AND(AKTIVB3="x",CN29="B3"), AND(AKTIVB4="x",CN29="B4"), AND(AKTIVB5="x",CN29="B5"), AND(AKTIVB6="x",CN29="B6"), AND(AKTIVB7="x",CN29="B7"), )), IF(AND(CM29>=Vertr1Von,CM29<=Vertr1Bis),CN29&Vertrag1Gage, IF(AND(CM29>=Vertr2von,CM29<=Vertr2Bis),CN29&Vertrag2Gage, IF(AND(CM29>=Vertr3Von,CM29<=Vertr3bis),CN29&Vertrag3Gage, IF(AND(CM29>=Vertr4von,CM29<=Vertr4bis),CN29&Vertrag4Gage, IF(AND(CM29>=Vertr5von,CM29<=Vertr5bis),CN29&Vertrag5Gage, IF(AND(CM29>=Vertr6von,CM29<=Vertr6bis),CN29&Vertrag6Gage, "-")))))),"") ->  | CY29: Di | CZ29: 2025-11-25 | DB29: . | DC29: =IF(AND(DB$3="x",LEFT(DA29,1)="B", OR(AND(AKTIVB1="x",DA29="B1"), AND(AKTIVB2="x",DA29="B2"), AND(AKTIVB3="x",DA29="B3"), AND(AKTIVB4="x",DA29="B4"), AND(AKTIVB5="x",DA29="B5"), AND(AKTIVB6="x",DA29="B6"), AND(AKTIVB7="x",DA29="B7"), )), IF(AND(CZ29>=Vertr1Von,CZ29<=Vertr1Bis),DA29&Vertrag1Gage, IF(AND(CZ29>=Vertr2von,CZ29<=Vertr2Bis),DA29&Vertrag2Gage, IF(AND(CZ29>=Vertr3Von,CZ29<=Vertr3bis),DA29&Vertrag3Gage, IF(AND(CZ29>=Vertr4von,CZ29<=Vertr4bis),DA29&Vertrag4Gage, IF(AND(CZ29>=Vertr5von,CZ29<=Vertr5bis),DA29&Vertrag5Gage, IF(AND(CZ29>=Vertr6von,CZ29<=Vertr6bis),DA29&Vertrag6Gage, "-")))))),"") ->  | DK29: Do | DL29: 2025-12-25 | DM29: F | DN29: . | DO29: =IF(AND(DN$3="x",LEFT(DM29,1)="B", OR(AND(AKTIVB1="x",DM29="B1"), AND(AKTIVB2="x",DM29="B2"), AND(AKTIVB3="x",DM29="B3"), AND(AKTIVB4="x",DM29="B4"), AND(AKTIVB5="x",DM29="B5"), AND(AKTIVB6="x",DM29="B6"), AND(AKTIVB7="x",DM29="B7"), )), IF(AND(DL29>=Vertr1Von,DL29<=Vertr1Bis),DM29&Vertrag1Gage, IF(AND(DL29>=Vertr2von,DL29<=Vertr2Bis),DM29&Vertrag2Gage, IF(AND(DL29>=Vertr3Von,DL29<=Vertr3bis),DM29&Vertrag3Gage, IF(AND(DL29>=Vertr4von,DL29<=Vertr4bis),DM29&Vertrag4Gage, IF(AND(DL29>=Vertr5von,DL29<=Vertr5bis),DM29&Vertrag5Gage, IF(AND(DL29>=Vertr6von,DL29<=Vertr6bis),DM29&Vertrag6Gage, "-")))))),"") ->  | DW29: So | DX29: 2026-01-25 | EA29: =IF(AND(DZ$3="x",LEFT(DY29,1)="B", OR(AND(AKTIVB1="x",DY29="B1"), AND(AKTIVB2="x",DY29="B2"), AND(AKTIVB3="x",DY29="B3"), AND(AKTIVB4="x",DY29="B4"), AND(AKTIVB5="x",DY29="B5"), AND(AKTIVB6="x",DY29="B6"), AND(AKTIVB7="x",DY29="B7"), )), IF(AND(DX29>=Vertr1Von,DX29<=Vertr1Bis),DY29&Vertrag1Gage, IF(AND(DX29>=Vertr2von,DX29<=Vertr2Bis),DY29&Vertrag2Gage, IF(AND(DX29>=Vertr3Von,DX29<=Vertr3bis),DY29&Vertrag3Gage, IF(AND(DX29>=Vertr4von,DX29<=Vertr4bis),DY29&Vertrag4Gage, IF(AND(DX29>=Vertr5von,DX29<=Vertr5bis),DY29&Vertrag5Gage, IF(AND(DX29>=Vertr6von,DX29<=Vertr6bis),DY29&Vertrag6Gage, "-")))))),"") ->  | EI29: Mi | EJ29: 2026-02-25 | EL29: . | EM29: =IF(AND(EL$3="x",LEFT(EK29,1)="B", OR(AND(AKTIVB1="x",EK29="B1"), AND(AKTIVB2="x",EK29="B2"), AND(AKTIVB3="x",EK29="B3"), AND(AKTIVB4="x",EK29="B4"), AND(AKTIVB5="x",EK29="B5"), AND(AKTIVB6="x",EK29="B6"), AND(AKTIVB7="x",EK29="B7"), )), IF(AND(EJ29>=Vertr1Von,EJ29<=Vertr1Bis),EK29&Vertrag1Gage, IF(AND(EJ29>=Vertr2von,EJ29<=Vertr2Bis),EK29&Vertrag2Gage, IF(AND(EJ29>=Vertr3Von,EJ29<=Vertr3bis),EK29&Vertrag3Gage, IF(AND(EJ29>=Vertr4von,EJ29<=Vertr4bis),EK29&Vertrag4Gage, IF(AND(EJ29>=Vertr5von,EJ29<=Vertr5bis),EK29&Vertrag5Gage, IF(AND(EJ29>=Vertr6von,EJ29<=Vertr6bis),EK29&Vertrag6Gage, "-")))))),"") ->  | EU29: Mi | EV29: 2026-03-25 | EX29: . | EY29: =IF(AND(EX$3="x",LEFT(EW29,1)="B", OR(AND(AKTIVB1="x",EW29="B1"), AND(AKTIVB2="x",EW29="B2"), AND(AKTIVB3="x",EW29="B3"), AND(AKTIVB4="x",EW29="B4"), AND(AKTIVB5="x",EW29="B5"), AND(AKTIVB6="x",EW29="B6"), AND(AKTIVB7="x",EW29="B7"), )), IF(AND(EV29>=Vertr1Von,EV29<=Vertr1Bis),EW29&Vertrag1Gage, IF(AND(EV29>=Vertr2von,EV29<=Vertr2Bis),EW29&Vertrag2Gage, IF(AND(EV29>=Vertr3Von,EV29<=Vertr3bis),EW29&Vertrag3Gage, IF(AND(EV29>=Vertr4von,EV29<=Vertr4bis),EW29&Vertrag4Gage, IF(AND(EV29>=Vertr5von,EV29<=Vertr5bis),EW29&Vertrag5Gage, IF(AND(EV29>=Vertr6von,EV29<=Vertr6bis),EW29&Vertrag6Gage, "-")))))),"") ->  | FG29: Sa | FH29: 2026-04-25 | FK29: =IF(AND(FJ$3="x",LEFT(FI29,1)="B", OR(AND(AKTIVB1="x",FI29="B1"), AND(AKTIVB2="x",FI29="B2"), AND(AKTIVB3="x",FI29="B3"), AND(AKTIVB4="x",FI29="B4"), AND(AKTIVB5="x",FI29="B5"), AND(AKTIVB6="x",FI29="B6"), AND(AKTIVB7="x",FI29="B7"), )), IF(AND(FH29>=Vertr1Von,FH29<=Vertr1Bis),FI29&Vertrag1Gage, IF(AND(FH29>=Vertr2von,FH29<=Vertr2Bis),FI29&Vertrag2Gage, IF(AND(FH29>=Vertr3Von,FH29<=Vertr3bis),FI29&Vertrag3Gage, IF(AND(FH29>=Vertr4von,FH29<=Vertr4bis),FI29&Vertrag4Gage, IF(AND(FH29>=Vertr5von,FH29<=Vertr5bis),FI29&Vertrag5Gage, IF(AND(FH29>=Vertr6von,FH29<=Vertr6bis),FI29&Vertrag6Gage, "-")))))),"") ->  | FS29: Mo | FT29: 2026-05-25 | FV29: . | FW29: =IF(AND(FV$3="x",LEFT(FU29,1)="B", OR(AND(AKTIVB1="x",FU29="B1"), AND(AKTIVB2="x",FU29="B2"), AND(AKTIVB3="x",FU29="B3"), AND(AKTIVB4="x",FU29="B4"), AND(AKTIVB5="x",FU29="B5"), AND(AKTIVB6="x",FU29="B6"), AND(AKTIVB7="x",FU29="B7"), )), IF(AND(FT29>=Vertr1Von,FT29<=Vertr1Bis),FU29&Vertrag1Gage, IF(AND(FT29>=Vertr2von,FT29<=Vertr2Bis),FU29&Vertrag2Gage, IF(AND(FT29>=Vertr3Von,FT29<=Vertr3bis),FU29&Vertrag3Gage, IF(AND(FT29>=Vertr4von,FT29<=Vertr4bis),FU29&Vertrag4Gage, IF(AND(FT29>=Vertr5von,FT29<=Vertr5bis),FU29&Vertrag5Gage, IF(AND(FT29>=Vertr6von,FT29<=Vertr6bis),FU29&Vertrag6Gage, "-")))))),"") -> 
A30: Ansatz ZK 80:20 | G30: Auswahl (x) | H30: x | Q30: Sa | R30: 2025-04-26 | U30: =IF(AND(T$3="x",LEFT(S30,1)="B", OR(AND(AKTIVB1="x",S30="B1"), AND(AKTIVB2="x",S30="B2"), AND(AKTIVB3="x",S30="B3"), AND(AKTIVB4="x",S30="B4"), AND(AKTIVB5="x",S30="B5"), AND(AKTIVB6="x",S30="B6"), AND(AKTIVB7="x",S30="B7"), )), IF(AND(R30>=Vertr1Von,R30<=Vertr1Bis),S30&Vertrag1Gage, IF(AND(R30>=Vertr2von,R30<=Vertr2Bis),S30&Vertrag2Gage, IF(AND(R30>=Vertr3Von,R30<=Vertr3bis),S30&Vertrag3Gage, IF(AND(R30>=Vertr4von,R30<=Vertr4bis),S30&Vertrag4Gage, IF(AND(R30>=Vertr5von,R30<=Vertr5bis),S30&Vertrag5Gage, IF(AND(R30>=Vertr6von,R30<=Vertr6bis),S30&Vertrag6Gage, "-")))))),"") ->  | AD30: Mo | AE30: 2025-05-26 | AF30: B1 | AH30: =IF(AND(AG$3="x",LEFT(AF30,1)="B", OR(AND(AKTIVB1="x",AF30="B1"), AND(AKTIVB2="x",AF30="B2"), AND(AKTIVB3="x",AF30="B3"), AND(AKTIVB4="x",AF30="B4"), AND(AKTIVB5="x",AF30="B5"), AND(AKTIVB6="x",AF30="B6"), AND(AKTIVB7="x",AF30="B7"), )), IF(AND(AE30>=Vertr1Von,AE30<=Vertr1Bis),AF30&Vertrag1Gage, IF(AND(AE30>=Vertr2von,AE30<=Vertr2Bis),AF30&Vertrag2Gage, IF(AND(AE30>=Vertr3Von,AE30<=Vertr3bis),AF30&Vertrag3Gage, IF(AND(AE30>=Vertr4von,AE30<=Vertr4bis),AF30&Vertrag4Gage, IF(AND(AE30>=Vertr5von,AE30<=Vertr5bis),AF30&Vertrag5Gage, IF(AND(AE30>=Vertr6von,AE30<=Vertr6bis),AF30&Vertrag6Gage, "-")))))),"") -> B11 | AP30: Do | AQ30: 2025-06-26 | AR30: B1 | AT30: =IF(AND(AS$3="x",LEFT(AR30,1)="B", OR(AND(AKTIVB1="x",AR30="B1"), AND(AKTIVB2="x",AR30="B2"), AND(AKTIVB3="x",AR30="B3"), AND(AKTIVB4="x",AR30="B4"), AND(AKTIVB5="x",AR30="B5"), AND(AKTIVB6="x",AR30="B6"), AND(AKTIVB7="x",AR30="B7"), )), IF(AND(AQ30>=Vertr1Von,AQ30<=Vertr1Bis),AR30&Vertrag1Gage, IF(AND(AQ30>=Vertr2von,AQ30<=Vertr2Bis),AR30&Vertrag2Gage, IF(AND(AQ30>=Vertr3Von,AQ30<=Vertr3bis),AR30&Vertrag3Gage, IF(AND(AQ30>=Vertr4von,AQ30<=Vertr4bis),AR30&Vertrag4Gage, IF(AND(AQ30>=Vertr5von,AQ30<=Vertr5bis),AR30&Vertrag5Gage, IF(AND(AQ30>=Vertr6von,AQ30<=Vertr6bis),AR30&Vertrag6Gage, "-")))))),"") -> B11 | BB30: Sa | BC30: 2025-07-26 | BF30: =IF(AND(BE$3="x",LEFT(BD30,1)="B", OR(AND(AKTIVB1="x",BD30="B1"), AND(AKTIVB2="x",BD30="B2"), AND(AKTIVB3="x",BD30="B3"), AND(AKTIVB4="x",BD30="B4"), AND(AKTIVB5="x",BD30="B5"), AND(AKTIVB6="x",BD30="B6"), AND(AKTIVB7="x",BD30="B7"), )), IF(AND(BC30>=Vertr1Von,BC30<=Vertr1Bis),BD30&Vertrag1Gage, IF(AND(BC30>=Vertr2von,BC30<=Vertr2Bis),BD30&Vertrag2Gage, IF(AND(BC30>=Vertr3Von,BC30<=Vertr3bis),BD30&Vertrag3Gage, IF(AND(BC30>=Vertr4von,BC30<=Vertr4bis),BD30&Vertrag4Gage, IF(AND(BC30>=Vertr5von,BC30<=Vertr5bis),BD30&Vertrag5Gage, IF(AND(BC30>=Vertr6von,BC30<=Vertr6bis),BD30&Vertrag6Gage, "-")))))),"") ->  | BN30: Di | BO30: 2025-08-26 | BQ30: . | BR30: =IF(AND(BQ$3="x",LEFT(BP30,1)="B", OR(AND(AKTIVB1="x",BP30="B1"), AND(AKTIVB2="x",BP30="B2"), AND(AKTIVB3="x",BP30="B3"), AND(AKTIVB4="x",BP30="B4"), AND(AKTIVB5="x",BP30="B5"), AND(AKTIVB6="x",BP30="B6"), AND(AKTIVB7="x",BP30="B7"), )), IF(AND(BO30>=Vertr1Von,BO30<=Vertr1Bis),BP30&Vertrag1Gage, IF(AND(BO30>=Vertr2von,BO30<=Vertr2Bis),BP30&Vertrag2Gage, IF(AND(BO30>=Vertr3Von,BO30<=Vertr3bis),BP30&Vertrag3Gage, IF(AND(BO30>=Vertr4von,BO30<=Vertr4bis),BP30&Vertrag4Gage, IF(AND(BO30>=Vertr5von,BO30<=Vertr5bis),BP30&Vertrag5Gage, IF(AND(BO30>=Vertr6von,BO30<=Vertr6bis),BP30&Vertrag6Gage, "-")))))),"") ->  | BZ30: Fr | CA30: 2025-09-26 | CC30: . | CD30: =IF(AND(CC$3="x",LEFT(CB30,1)="B", OR(AND(AKTIVB1="x",CB30="B1"), AND(AKTIVB2="x",CB30="B2"), AND(AKTIVB3="x",CB30="B3"), AND(AKTIVB4="x",CB30="B4"), AND(AKTIVB5="x",CB30="B5"), AND(AKTIVB6="x",CB30="B6"), AND(AKTIVB7="x",CB30="B7"), )), IF(AND(CA30>=Vertr1Von,CA30<=Vertr1Bis),CB30&Vertrag1Gage, IF(AND(CA30>=Vertr2von,CA30<=Vertr2Bis),CB30&Vertrag2Gage, IF(AND(CA30>=Vertr3Von,CA30<=Vertr3bis),CB30&Vertrag3Gage, IF(AND(CA30>=Vertr4von,CA30<=Vertr4bis),CB30&Vertrag4Gage, IF(AND(CA30>=Vertr5von,CA30<=Vertr5bis),CB30&Vertrag5Gage, IF(AND(CA30>=Vertr6von,CA30<=Vertr6bis),CB30&Vertrag6Gage, "-")))))),"") ->  | CL30: So | CM30: 2025-10-26 | CP30: =IF(AND(CO$3="x",LEFT(CN30,1)="B", OR(AND(AKTIVB1="x",CN30="B1"), AND(AKTIVB2="x",CN30="B2"), AND(AKTIVB3="x",CN30="B3"), AND(AKTIVB4="x",CN30="B4"), AND(AKTIVB5="x",CN30="B5"), AND(AKTIVB6="x",CN30="B6"), AND(AKTIVB7="x",CN30="B7"), )), IF(AND(CM30>=Vertr1Von,CM30<=Vertr1Bis),CN30&Vertrag1Gage, IF(AND(CM30>=Vertr2von,CM30<=Vertr2Bis),CN30&Vertrag2Gage, IF(AND(CM30>=Vertr3Von,CM30<=Vertr3bis),CN30&Vertrag3Gage, IF(AND(CM30>=Vertr4von,CM30<=Vertr4bis),CN30&Vertrag4Gage, IF(AND(CM30>=Vertr5von,CM30<=Vertr5bis),CN30&Vertrag5Gage, IF(AND(CM30>=Vertr6von,CM30<=Vertr6bis),CN30&Vertrag6Gage, "-")))))),"") ->  | CY30: Mi | CZ30: 2025-11-26 | DB30: . | DC30: =IF(AND(DB$3="x",LEFT(DA30,1)="B", OR(AND(AKTIVB1="x",DA30="B1"), AND(AKTIVB2="x",DA30="B2"), AND(AKTIVB3="x",DA30="B3"), AND(AKTIVB4="x",DA30="B4"), AND(AKTIVB5="x",DA30="B5"), AND(AKTIVB6="x",DA30="B6"), AND(AKTIVB7="x",DA30="B7"), )), IF(AND(CZ30>=Vertr1Von,CZ30<=Vertr1Bis),DA30&Vertrag1Gage, IF(AND(CZ30>=Vertr2von,CZ30<=Vertr2Bis),DA30&Vertrag2Gage, IF(AND(CZ30>=Vertr3Von,CZ30<=Vertr3bis),DA30&Vertrag3Gage, IF(AND(CZ30>=Vertr4von,CZ30<=Vertr4bis),DA30&Vertrag4Gage, IF(AND(CZ30>=Vertr5von,CZ30<=Vertr5bis),DA30&Vertrag5Gage, IF(AND(CZ30>=Vertr6von,CZ30<=Vertr6bis),DA30&Vertrag6Gage, "-")))))),"") ->  | DK30: Fr | DL30: 2025-12-26 | DM30: F | DN30: . | DO30: =IF(AND(DN$3="x",LEFT(DM30,1)="B", OR(AND(AKTIVB1="x",DM30="B1"), AND(AKTIVB2="x",DM30="B2"), AND(AKTIVB3="x",DM30="B3"), AND(AKTIVB4="x",DM30="B4"), AND(AKTIVB5="x",DM30="B5"), AND(AKTIVB6="x",DM30="B6"), AND(AKTIVB7="x",DM30="B7"), )), IF(AND(DL30>=Vertr1Von,DL30<=Vertr1Bis),DM30&Vertrag1Gage, IF(AND(DL30>=Vertr2von,DL30<=Vertr2Bis),DM30&Vertrag2Gage, IF(AND(DL30>=Vertr3Von,DL30<=Vertr3bis),DM30&Vertrag3Gage, IF(AND(DL30>=Vertr4von,DL30<=Vertr4bis),DM30&Vertrag4Gage, IF(AND(DL30>=Vertr5von,DL30<=Vertr5bis),DM30&Vertrag5Gage, IF(AND(DL30>=Vertr6von,DL30<=Vertr6bis),DM30&Vertrag6Gage, "-")))))),"") ->  | DW30: Mo | DX30: 2026-01-26 | DZ30: . | EA30: =IF(AND(DZ$3="x",LEFT(DY30,1)="B", OR(AND(AKTIVB1="x",DY30="B1"), AND(AKTIVB2="x",DY30="B2"), AND(AKTIVB3="x",DY30="B3"), AND(AKTIVB4="x",DY30="B4"), AND(AKTIVB5="x",DY30="B5"), AND(AKTIVB6="x",DY30="B6"), AND(AKTIVB7="x",DY30="B7"), )), IF(AND(DX30>=Vertr1Von,DX30<=Vertr1Bis),DY30&Vertrag1Gage, IF(AND(DX30>=Vertr2von,DX30<=Vertr2Bis),DY30&Vertrag2Gage, IF(AND(DX30>=Vertr3Von,DX30<=Vertr3bis),DY30&Vertrag3Gage, IF(AND(DX30>=Vertr4von,DX30<=Vertr4bis),DY30&Vertrag4Gage, IF(AND(DX30>=Vertr5von,DX30<=Vertr5bis),DY30&Vertrag5Gage, IF(AND(DX30>=Vertr6von,DX30<=Vertr6bis),DY30&Vertrag6Gage, "-")))))),"") ->  | EI30: Do | EJ30: 2026-02-26 | EL30: . | EM30: =IF(AND(EL$3="x",LEFT(EK30,1)="B", OR(AND(AKTIVB1="x",EK30="B1"), AND(AKTIVB2="x",EK30="B2"), AND(AKTIVB3="x",EK30="B3"), AND(AKTIVB4="x",EK30="B4"), AND(AKTIVB5="x",EK30="B5"), AND(AKTIVB6="x",EK30="B6"), AND(AKTIVB7="x",EK30="B7"), )), IF(AND(EJ30>=Vertr1Von,EJ30<=Vertr1Bis),EK30&Vertrag1Gage, IF(AND(EJ30>=Vertr2von,EJ30<=Vertr2Bis),EK30&Vertrag2Gage, IF(AND(EJ30>=Vertr3Von,EJ30<=Vertr3bis),EK30&Vertrag3Gage, IF(AND(EJ30>=Vertr4von,EJ30<=Vertr4bis),EK30&Vertrag4Gage, IF(AND(EJ30>=Vertr5von,EJ30<=Vertr5bis),EK30&Vertrag5Gage, IF(AND(EJ30>=Vertr6von,EJ30<=Vertr6bis),EK30&Vertrag6Gage, "-")))))),"") ->  | EU30: Do | EV30: 2026-03-26 | EX30: . | EY30: =IF(AND(EX$3="x",LEFT(EW30,1)="B", OR(AND(AKTIVB1="x",EW30="B1"), AND(AKTIVB2="x",EW30="B2"), AND(AKTIVB3="x",EW30="B3"), AND(AKTIVB4="x",EW30="B4"), AND(AKTIVB5="x",EW30="B5"), AND(AKTIVB6="x",EW30="B6"), AND(AKTIVB7="x",EW30="B7"), )), IF(AND(EV30>=Vertr1Von,EV30<=Vertr1Bis),EW30&Vertrag1Gage, IF(AND(EV30>=Vertr2von,EV30<=Vertr2Bis),EW30&Vertrag2Gage, IF(AND(EV30>=Vertr3Von,EV30<=Vertr3bis),EW30&Vertrag3Gage, IF(AND(EV30>=Vertr4von,EV30<=Vertr4bis),EW30&Vertrag4Gage, IF(AND(EV30>=Vertr5von,EV30<=Vertr5bis),EW30&Vertrag5Gage, IF(AND(EV30>=Vertr6von,EV30<=Vertr6bis),EW30&Vertrag6Gage, "-")))))),"") ->  | FG30: So | FH30: 2026-04-26 | FK30: =IF(AND(FJ$3="x",LEFT(FI30,1)="B", OR(AND(AKTIVB1="x",FI30="B1"), AND(AKTIVB2="x",FI30="B2"), AND(AKTIVB3="x",FI30="B3"), AND(AKTIVB4="x",FI30="B4"), AND(AKTIVB5="x",FI30="B5"), AND(AKTIVB6="x",FI30="B6"), AND(AKTIVB7="x",FI30="B7"), )), IF(AND(FH30>=Vertr1Von,FH30<=Vertr1Bis),FI30&Vertrag1Gage, IF(AND(FH30>=Vertr2von,FH30<=Vertr2Bis),FI30&Vertrag2Gage, IF(AND(FH30>=Vertr3Von,FH30<=Vertr3bis),FI30&Vertrag3Gage, IF(AND(FH30>=Vertr4von,FH30<=Vertr4bis),FI30&Vertrag4Gage, IF(AND(FH30>=Vertr5von,FH30<=Vertr5bis),FI30&Vertrag5Gage, IF(AND(FH30>=Vertr6von,FH30<=Vertr6bis),FI30&Vertrag6Gage, "-")))))),"") ->  | FS30: Di | FT30: 2026-05-26 | FV30: . | FW30: =IF(AND(FV$3="x",LEFT(FU30,1)="B", OR(AND(AKTIVB1="x",FU30="B1"), AND(AKTIVB2="x",FU30="B2"), AND(AKTIVB3="x",FU30="B3"), AND(AKTIVB4="x",FU30="B4"), AND(AKTIVB5="x",FU30="B5"), AND(AKTIVB6="x",FU30="B6"), AND(AKTIVB7="x",FU30="B7"), )), IF(AND(FT30>=Vertr1Von,FT30<=Vertr1Bis),FU30&Vertrag1Gage, IF(AND(FT30>=Vertr2von,FT30<=Vertr2Bis),FU30&Vertrag2Gage, IF(AND(FT30>=Vertr3Von,FT30<=Vertr3bis),FU30&Vertrag3Gage, IF(AND(FT30>=Vertr4von,FT30<=Vertr4bis),FU30&Vertrag4Gage, IF(AND(FT30>=Vertr5von,FT30<=Vertr5bis),FU30&Vertrag5Gage, IF(AND(FT30>=Vertr6von,FT30<=Vertr6bis),FU30&Vertrag6Gage, "-")))))),"") -> 
Q31: So | R31: 2025-04-27 | U31: =IF(AND(T$3="x",LEFT(S31,1)="B", OR(AND(AKTIVB1="x",S31="B1"), AND(AKTIVB2="x",S31="B2"), AND(AKTIVB3="x",S31="B3"), AND(AKTIVB4="x",S31="B4"), AND(AKTIVB5="x",S31="B5"), AND(AKTIVB6="x",S31="B6"), AND(AKTIVB7="x",S31="B7"), )), IF(AND(R31>=Vertr1Von,R31<=Vertr1Bis),S31&Vertrag1Gage, IF(AND(R31>=Vertr2von,R31<=Vertr2Bis),S31&Vertrag2Gage, IF(AND(R31>=Vertr3Von,R31<=Vertr3bis),S31&Vertrag3Gage, IF(AND(R31>=Vertr4von,R31<=Vertr4bis),S31&Vertrag4Gage, IF(AND(R31>=Vertr5von,R31<=Vertr5bis),S31&Vertrag5Gage, IF(AND(R31>=Vertr6von,R31<=Vertr6bis),S31&Vertrag6Gage, "-")))))),"") ->  | AD31: Di | AE31: 2025-05-27 | AF31: B1 | AH31: =IF(AND(AG$3="x",LEFT(AF31,1)="B", OR(AND(AKTIVB1="x",AF31="B1"), AND(AKTIVB2="x",AF31="B2"), AND(AKTIVB3="x",AF31="B3"), AND(AKTIVB4="x",AF31="B4"), AND(AKTIVB5="x",AF31="B5"), AND(AKTIVB6="x",AF31="B6"), AND(AKTIVB7="x",AF31="B7"), )), IF(AND(AE31>=Vertr1Von,AE31<=Vertr1Bis),AF31&Vertrag1Gage, IF(AND(AE31>=Vertr2von,AE31<=Vertr2Bis),AF31&Vertrag2Gage, IF(AND(AE31>=Vertr3Von,AE31<=Vertr3bis),AF31&Vertrag3Gage, IF(AND(AE31>=Vertr4von,AE31<=Vertr4bis),AF31&Vertrag4Gage, IF(AND(AE31>=Vertr5von,AE31<=Vertr5bis),AF31&Vertrag5Gage, IF(AND(AE31>=Vertr6von,AE31<=Vertr6bis),AF31&Vertrag6Gage, "-")))))),"") -> B11 | AP31: Fr | AQ31: 2025-06-27 | AR31: B1 | AT31: =IF(AND(AS$3="x",LEFT(AR31,1)="B", OR(AND(AKTIVB1="x",AR31="B1"), AND(AKTIVB2="x",AR31="B2"), AND(AKTIVB3="x",AR31="B3"), AND(AKTIVB4="x",AR31="B4"), AND(AKTIVB5="x",AR31="B5"), AND(AKTIVB6="x",AR31="B6"), AND(AKTIVB7="x",AR31="B7"), )), IF(AND(AQ31>=Vertr1Von,AQ31<=Vertr1Bis),AR31&Vertrag1Gage, IF(AND(AQ31>=Vertr2von,AQ31<=Vertr2Bis),AR31&Vertrag2Gage, IF(AND(AQ31>=Vertr3Von,AQ31<=Vertr3bis),AR31&Vertrag3Gage, IF(AND(AQ31>=Vertr4von,AQ31<=Vertr4bis),AR31&Vertrag4Gage, IF(AND(AQ31>=Vertr5von,AQ31<=Vertr5bis),AR31&Vertrag5Gage, IF(AND(AQ31>=Vertr6von,AQ31<=Vertr6bis),AR31&Vertrag6Gage, "-")))))),"") -> B11 | BB31: So | BC31: 2025-07-27 | BF31: =IF(AND(BE$3="x",LEFT(BD31,1)="B", OR(AND(AKTIVB1="x",BD31="B1"), AND(AKTIVB2="x",BD31="B2"), AND(AKTIVB3="x",BD31="B3"), AND(AKTIVB4="x",BD31="B4"), AND(AKTIVB5="x",BD31="B5"), AND(AKTIVB6="x",BD31="B6"), AND(AKTIVB7="x",BD31="B7"), )), IF(AND(BC31>=Vertr1Von,BC31<=Vertr1Bis),BD31&Vertrag1Gage, IF(AND(BC31>=Vertr2von,BC31<=Vertr2Bis),BD31&Vertrag2Gage, IF(AND(BC31>=Vertr3Von,BC31<=Vertr3bis),BD31&Vertrag3Gage, IF(AND(BC31>=Vertr4von,BC31<=Vertr4bis),BD31&Vertrag4Gage, IF(AND(BC31>=Vertr5von,BC31<=Vertr5bis),BD31&Vertrag5Gage, IF(AND(BC31>=Vertr6von,BC31<=Vertr6bis),BD31&Vertrag6Gage, "-")))))),"") ->  | BN31: Mi | BO31: 2025-08-27 | BQ31: . | BR31: =IF(AND(BQ$3="x",LEFT(BP31,1)="B", OR(AND(AKTIVB1="x",BP31="B1"), AND(AKTIVB2="x",BP31="B2"), AND(AKTIVB3="x",BP31="B3"), AND(AKTIVB4="x",BP31="B4"), AND(AKTIVB5="x",BP31="B5"), AND(AKTIVB6="x",BP31="B6"), AND(AKTIVB7="x",BP31="B7"), )), IF(AND(BO31>=Vertr1Von,BO31<=Vertr1Bis),BP31&Vertrag1Gage, IF(AND(BO31>=Vertr2von,BO31<=Vertr2Bis),BP31&Vertrag2Gage, IF(AND(BO31>=Vertr3Von,BO31<=Vertr3bis),BP31&Vertrag3Gage, IF(AND(BO31>=Vertr4von,BO31<=Vertr4bis),BP31&Vertrag4Gage, IF(AND(BO31>=Vertr5von,BO31<=Vertr5bis),BP31&Vertrag5Gage, IF(AND(BO31>=Vertr6von,BO31<=Vertr6bis),BP31&Vertrag6Gage, "-")))))),"") ->  | BZ31: Sa | CA31: 2025-09-27 | CD31: =IF(AND(CC$3="x",LEFT(CB31,1)="B", OR(AND(AKTIVB1="x",CB31="B1"), AND(AKTIVB2="x",CB31="B2"), AND(AKTIVB3="x",CB31="B3"), AND(AKTIVB4="x",CB31="B4"), AND(AKTIVB5="x",CB31="B5"), AND(AKTIVB6="x",CB31="B6"), AND(AKTIVB7="x",CB31="B7"), )), IF(AND(CA31>=Vertr1Von,CA31<=Vertr1Bis),CB31&Vertrag1Gage, IF(AND(CA31>=Vertr2von,CA31<=Vertr2Bis),CB31&Vertrag2Gage, IF(AND(CA31>=Vertr3Von,CA31<=Vertr3bis),CB31&Vertrag3Gage, IF(AND(CA31>=Vertr4von,CA31<=Vertr4bis),CB31&Vertrag4Gage, IF(AND(CA31>=Vertr5von,CA31<=Vertr5bis),CB31&Vertrag5Gage, IF(AND(CA31>=Vertr6von,CA31<=Vertr6bis),CB31&Vertrag6Gage, "-")))))),"") ->  | CL31: Mo | CM31: 2025-10-27 | CO31: . | CP31: =IF(AND(CO$3="x",LEFT(CN31,1)="B", OR(AND(AKTIVB1="x",CN31="B1"), AND(AKTIVB2="x",CN31="B2"), AND(AKTIVB3="x",CN31="B3"), AND(AKTIVB4="x",CN31="B4"), AND(AKTIVB5="x",CN31="B5"), AND(AKTIVB6="x",CN31="B6"), AND(AKTIVB7="x",CN31="B7"), )), IF(AND(CM31>=Vertr1Von,CM31<=Vertr1Bis),CN31&Vertrag1Gage, IF(AND(CM31>=Vertr2von,CM31<=Vertr2Bis),CN31&Vertrag2Gage, IF(AND(CM31>=Vertr3Von,CM31<=Vertr3bis),CN31&Vertrag3Gage, IF(AND(CM31>=Vertr4von,CM31<=Vertr4bis),CN31&Vertrag4Gage, IF(AND(CM31>=Vertr5von,CM31<=Vertr5bis),CN31&Vertrag5Gage, IF(AND(CM31>=Vertr6von,CM31<=Vertr6bis),CN31&Vertrag6Gage, "-")))))),"") ->  | CY31: Do | CZ31: 2025-11-27 | DB31: . | DC31: =IF(AND(DB$3="x",LEFT(DA31,1)="B", OR(AND(AKTIVB1="x",DA31="B1"), AND(AKTIVB2="x",DA31="B2"), AND(AKTIVB3="x",DA31="B3"), AND(AKTIVB4="x",DA31="B4"), AND(AKTIVB5="x",DA31="B5"), AND(AKTIVB6="x",DA31="B6"), AND(AKTIVB7="x",DA31="B7"), )), IF(AND(CZ31>=Vertr1Von,CZ31<=Vertr1Bis),DA31&Vertrag1Gage, IF(AND(CZ31>=Vertr2von,CZ31<=Vertr2Bis),DA31&Vertrag2Gage, IF(AND(CZ31>=Vertr3Von,CZ31<=Vertr3bis),DA31&Vertrag3Gage, IF(AND(CZ31>=Vertr4von,CZ31<=Vertr4bis),DA31&Vertrag4Gage, IF(AND(CZ31>=Vertr5von,CZ31<=Vertr5bis),DA31&Vertrag5Gage, IF(AND(CZ31>=Vertr6von,CZ31<=Vertr6bis),DA31&Vertrag6Gage, "-")))))),"") ->  | DK31: Sa | DL31: 2025-12-27 | DO31: =IF(AND(DN$3="x",LEFT(DM31,1)="B", OR(AND(AKTIVB1="x",DM31="B1"), AND(AKTIVB2="x",DM31="B2"), AND(AKTIVB3="x",DM31="B3"), AND(AKTIVB4="x",DM31="B4"), AND(AKTIVB5="x",DM31="B5"), AND(AKTIVB6="x",DM31="B6"), AND(AKTIVB7="x",DM31="B7"), )), IF(AND(DL31>=Vertr1Von,DL31<=Vertr1Bis),DM31&Vertrag1Gage, IF(AND(DL31>=Vertr2von,DL31<=Vertr2Bis),DM31&Vertrag2Gage, IF(AND(DL31>=Vertr3Von,DL31<=Vertr3bis),DM31&Vertrag3Gage, IF(AND(DL31>=Vertr4von,DL31<=Vertr4bis),DM31&Vertrag4Gage, IF(AND(DL31>=Vertr5von,DL31<=Vertr5bis),DM31&Vertrag5Gage, IF(AND(DL31>=Vertr6von,DL31<=Vertr6bis),DM31&Vertrag6Gage, "-")))))),"") ->  | DW31: Di | DX31: 2026-01-27 | DZ31: . | EA31: =IF(AND(DZ$3="x",LEFT(DY31,1)="B", OR(AND(AKTIVB1="x",DY31="B1"), AND(AKTIVB2="x",DY31="B2"), AND(AKTIVB3="x",DY31="B3"), AND(AKTIVB4="x",DY31="B4"), AND(AKTIVB5="x",DY31="B5"), AND(AKTIVB6="x",DY31="B6"), AND(AKTIVB7="x",DY31="B7"), )), IF(AND(DX31>=Vertr1Von,DX31<=Vertr1Bis),DY31&Vertrag1Gage, IF(AND(DX31>=Vertr2von,DX31<=Vertr2Bis),DY31&Vertrag2Gage, IF(AND(DX31>=Vertr3Von,DX31<=Vertr3bis),DY31&Vertrag3Gage, IF(AND(DX31>=Vertr4von,DX31<=Vertr4bis),DY31&Vertrag4Gage, IF(AND(DX31>=Vertr5von,DX31<=Vertr5bis),DY31&Vertrag5Gage, IF(AND(DX31>=Vertr6von,DX31<=Vertr6bis),DY31&Vertrag6Gage, "-")))))),"") ->  | EI31: Fr | EJ31: 2026-02-27 | EL31: . | EM31: =IF(AND(EL$3="x",LEFT(EK31,1)="B", OR(AND(AKTIVB1="x",EK31="B1"), AND(AKTIVB2="x",EK31="B2"), AND(AKTIVB3="x",EK31="B3"), AND(AKTIVB4="x",EK31="B4"), AND(AKTIVB5="x",EK31="B5"), AND(AKTIVB6="x",EK31="B6"), AND(AKTIVB7="x",EK31="B7"), )), IF(AND(EJ31>=Vertr1Von,EJ31<=Vertr1Bis),EK31&Vertrag1Gage, IF(AND(EJ31>=Vertr2von,EJ31<=Vertr2Bis),EK31&Vertrag2Gage, IF(AND(EJ31>=Vertr3Von,EJ31<=Vertr3bis),EK31&Vertrag3Gage, IF(AND(EJ31>=Vertr4von,EJ31<=Vertr4bis),EK31&Vertrag4Gage, IF(AND(EJ31>=Vertr5von,EJ31<=Vertr5bis),EK31&Vertrag5Gage, IF(AND(EJ31>=Vertr6von,EJ31<=Vertr6bis),EK31&Vertrag6Gage, "-")))))),"") ->  | EU31: Fr | EV31: 2026-03-27 | EX31: . | EY31: =IF(AND(EX$3="x",LEFT(EW31,1)="B", OR(AND(AKTIVB1="x",EW31="B1"), AND(AKTIVB2="x",EW31="B2"), AND(AKTIVB3="x",EW31="B3"), AND(AKTIVB4="x",EW31="B4"), AND(AKTIVB5="x",EW31="B5"), AND(AKTIVB6="x",EW31="B6"), AND(AKTIVB7="x",EW31="B7"), )), IF(AND(EV31>=Vertr1Von,EV31<=Vertr1Bis),EW31&Vertrag1Gage, IF(AND(EV31>=Vertr2von,EV31<=Vertr2Bis),EW31&Vertrag2Gage, IF(AND(EV31>=Vertr3Von,EV31<=Vertr3bis),EW31&Vertrag3Gage, IF(AND(EV31>=Vertr4von,EV31<=Vertr4bis),EW31&Vertrag4Gage, IF(AND(EV31>=Vertr5von,EV31<=Vertr5bis),EW31&Vertrag5Gage, IF(AND(EV31>=Vertr6von,EV31<=Vertr6bis),EW31&Vertrag6Gage, "-")))))),"") ->  | FG31: Mo | FH31: 2026-04-27 | FJ31: . | FK31: =IF(AND(FJ$3="x",LEFT(FI31,1)="B", OR(AND(AKTIVB1="x",FI31="B1"), AND(AKTIVB2="x",FI31="B2"), AND(AKTIVB3="x",FI31="B3"), AND(AKTIVB4="x",FI31="B4"), AND(AKTIVB5="x",FI31="B5"), AND(AKTIVB6="x",FI31="B6"), AND(AKTIVB7="x",FI31="B7"), )), IF(AND(FH31>=Vertr1Von,FH31<=Vertr1Bis),FI31&Vertrag1Gage, IF(AND(FH31>=Vertr2von,FH31<=Vertr2Bis),FI31&Vertrag2Gage, IF(AND(FH31>=Vertr3Von,FH31<=Vertr3bis),FI31&Vertrag3Gage, IF(AND(FH31>=Vertr4von,FH31<=Vertr4bis),FI31&Vertrag4Gage, IF(AND(FH31>=Vertr5von,FH31<=Vertr5bis),FI31&Vertrag5Gage, IF(AND(FH31>=Vertr6von,FH31<=Vertr6bis),FI31&Vertrag6Gage, "-")))))),"") ->  | FS31: Mi | FT31: 2026-05-27 | FV31: . | FW31: =IF(AND(FV$3="x",LEFT(FU31,1)="B", OR(AND(AKTIVB1="x",FU31="B1"), AND(AKTIVB2="x",FU31="B2"), AND(AKTIVB3="x",FU31="B3"), AND(AKTIVB4="x",FU31="B4"), AND(AKTIVB5="x",FU31="B5"), AND(AKTIVB6="x",FU31="B6"), AND(AKTIVB7="x",FU31="B7"), )), IF(AND(FT31>=Vertr1Von,FT31<=Vertr1Bis),FU31&Vertrag1Gage, IF(AND(FT31>=Vertr2von,FT31<=Vertr2Bis),FU31&Vertrag2Gage, IF(AND(FT31>=Vertr3Von,FT31<=Vertr3bis),FU31&Vertrag3Gage, IF(AND(FT31>=Vertr4von,FT31<=Vertr4bis),FU31&Vertrag4Gage, IF(AND(FT31>=Vertr5von,FT31<=Vertr5bis),FU31&Vertrag5Gage, IF(AND(FT31>=Vertr6von,FT31<=Vertr6bis),FU31&Vertrag6Gage, "-")))))),"") -> 
A32: Arbeitszeitverkürzung | H32: B1 | I32: B2 | J32: B3 | K32: B4 | L32: B5 | M32: B6 | N32: B7 | Q32: Mo | R32: 2025-04-28 | T32: . | U32: =IF(AND(T$3="x",LEFT(S32,1)="B", OR(AND(AKTIVB1="x",S32="B1"), AND(AKTIVB2="x",S32="B2"), AND(AKTIVB3="x",S32="B3"), AND(AKTIVB4="x",S32="B4"), AND(AKTIVB5="x",S32="B5"), AND(AKTIVB6="x",S32="B6"), AND(AKTIVB7="x",S32="B7"), )), IF(AND(R32>=Vertr1Von,R32<=Vertr1Bis),S32&Vertrag1Gage, IF(AND(R32>=Vertr2von,R32<=Vertr2Bis),S32&Vertrag2Gage, IF(AND(R32>=Vertr3Von,R32<=Vertr3bis),S32&Vertrag3Gage, IF(AND(R32>=Vertr4von,R32<=Vertr4bis),S32&Vertrag4Gage, IF(AND(R32>=Vertr5von,R32<=Vertr5bis),S32&Vertrag5Gage, IF(AND(R32>=Vertr6von,R32<=Vertr6bis),S32&Vertrag6Gage, "-")))))),"") ->  | AD32: Mi | AE32: 2025-05-28 | AF32: B1 | AH32: =IF(AND(AG$3="x",LEFT(AF32,1)="B", OR(AND(AKTIVB1="x",AF32="B1"), AND(AKTIVB2="x",AF32="B2"), AND(AKTIVB3="x",AF32="B3"), AND(AKTIVB4="x",AF32="B4"), AND(AKTIVB5="x",AF32="B5"), AND(AKTIVB6="x",AF32="B6"), AND(AKTIVB7="x",AF32="B7"), )), IF(AND(AE32>=Vertr1Von,AE32<=Vertr1Bis),AF32&Vertrag1Gage, IF(AND(AE32>=Vertr2von,AE32<=Vertr2Bis),AF32&Vertrag2Gage, IF(AND(AE32>=Vertr3Von,AE32<=Vertr3bis),AF32&Vertrag3Gage, IF(AND(AE32>=Vertr4von,AE32<=Vertr4bis),AF32&Vertrag4Gage, IF(AND(AE32>=Vertr5von,AE32<=Vertr5bis),AF32&Vertrag5Gage, IF(AND(AE32>=Vertr6von,AE32<=Vertr6bis),AF32&Vertrag6Gage, "-")))))),"") -> B11 | AP32: Sa | AQ32: 2025-06-28 | AT32: =IF(AND(AS$3="x",LEFT(AR32,1)="B", OR(AND(AKTIVB1="x",AR32="B1"), AND(AKTIVB2="x",AR32="B2"), AND(AKTIVB3="x",AR32="B3"), AND(AKTIVB4="x",AR32="B4"), AND(AKTIVB5="x",AR32="B5"), AND(AKTIVB6="x",AR32="B6"), AND(AKTIVB7="x",AR32="B7"), )), IF(AND(AQ32>=Vertr1Von,AQ32<=Vertr1Bis),AR32&Vertrag1Gage, IF(AND(AQ32>=Vertr2von,AQ32<=Vertr2Bis),AR32&Vertrag2Gage, IF(AND(AQ32>=Vertr3Von,AQ32<=Vertr3bis),AR32&Vertrag3Gage, IF(AND(AQ32>=Vertr4von,AQ32<=Vertr4bis),AR32&Vertrag4Gage, IF(AND(AQ32>=Vertr5von,AQ32<=Vertr5bis),AR32&Vertrag5Gage, IF(AND(AQ32>=Vertr6von,AQ32<=Vertr6bis),AR32&Vertrag6Gage, "-")))))),"") ->  | BB32: Mo | BC32: 2025-07-28 | BE32: . | BF32: =IF(AND(BE$3="x",LEFT(BD32,1)="B", OR(AND(AKTIVB1="x",BD32="B1"), AND(AKTIVB2="x",BD32="B2"), AND(AKTIVB3="x",BD32="B3"), AND(AKTIVB4="x",BD32="B4"), AND(AKTIVB5="x",BD32="B5"), AND(AKTIVB6="x",BD32="B6"), AND(AKTIVB7="x",BD32="B7"), )), IF(AND(BC32>=Vertr1Von,BC32<=Vertr1Bis),BD32&Vertrag1Gage, IF(AND(BC32>=Vertr2von,BC32<=Vertr2Bis),BD32&Vertrag2Gage, IF(AND(BC32>=Vertr3Von,BC32<=Vertr3bis),BD32&Vertrag3Gage, IF(AND(BC32>=Vertr4von,BC32<=Vertr4bis),BD32&Vertrag4Gage, IF(AND(BC32>=Vertr5von,BC32<=Vertr5bis),BD32&Vertrag5Gage, IF(AND(BC32>=Vertr6von,BC32<=Vertr6bis),BD32&Vertrag6Gage, "-")))))),"") ->  | BN32: Do | BO32: 2025-08-28 | BQ32: . | BR32: =IF(AND(BQ$3="x",LEFT(BP32,1)="B", OR(AND(AKTIVB1="x",BP32="B1"), AND(AKTIVB2="x",BP32="B2"), AND(AKTIVB3="x",BP32="B3"), AND(AKTIVB4="x",BP32="B4"), AND(AKTIVB5="x",BP32="B5"), AND(AKTIVB6="x",BP32="B6"), AND(AKTIVB7="x",BP32="B7"), )), IF(AND(BO32>=Vertr1Von,BO32<=Vertr1Bis),BP32&Vertrag1Gage, IF(AND(BO32>=Vertr2von,BO32<=Vertr2Bis),BP32&Vertrag2Gage, IF(AND(BO32>=Vertr3Von,BO32<=Vertr3bis),BP32&Vertrag3Gage, IF(AND(BO32>=Vertr4von,BO32<=Vertr4bis),BP32&Vertrag4Gage, IF(AND(BO32>=Vertr5von,BO32<=Vertr5bis),BP32&Vertrag5Gage, IF(AND(BO32>=Vertr6von,BO32<=Vertr6bis),BP32&Vertrag6Gage, "-")))))),"") ->  | BZ32: So | CA32: 2025-09-28 | CD32: =IF(AND(CC$3="x",LEFT(CB32,1)="B", OR(AND(AKTIVB1="x",CB32="B1"), AND(AKTIVB2="x",CB32="B2"), AND(AKTIVB3="x",CB32="B3"), AND(AKTIVB4="x",CB32="B4"), AND(AKTIVB5="x",CB32="B5"), AND(AKTIVB6="x",CB32="B6"), AND(AKTIVB7="x",CB32="B7"), )), IF(AND(CA32>=Vertr1Von,CA32<=Vertr1Bis),CB32&Vertrag1Gage, IF(AND(CA32>=Vertr2von,CA32<=Vertr2Bis),CB32&Vertrag2Gage, IF(AND(CA32>=Vertr3Von,CA32<=Vertr3bis),CB32&Vertrag3Gage, IF(AND(CA32>=Vertr4von,CA32<=Vertr4bis),CB32&Vertrag4Gage, IF(AND(CA32>=Vertr5von,CA32<=Vertr5bis),CB32&Vertrag5Gage, IF(AND(CA32>=Vertr6von,CA32<=Vertr6bis),CB32&Vertrag6Gage, "-")))))),"") ->  | CL32: Di | CM32: 2025-10-28 | CO32: . | CP32: =IF(AND(CO$3="x",LEFT(CN32,1)="B", OR(AND(AKTIVB1="x",CN32="B1"), AND(AKTIVB2="x",CN32="B2"), AND(AKTIVB3="x",CN32="B3"), AND(AKTIVB4="x",CN32="B4"), AND(AKTIVB5="x",CN32="B5"), AND(AKTIVB6="x",CN32="B6"), AND(AKTIVB7="x",CN32="B7"), )), IF(AND(CM32>=Vertr1Von,CM32<=Vertr1Bis),CN32&Vertrag1Gage, IF(AND(CM32>=Vertr2von,CM32<=Vertr2Bis),CN32&Vertrag2Gage, IF(AND(CM32>=Vertr3Von,CM32<=Vertr3bis),CN32&Vertrag3Gage, IF(AND(CM32>=Vertr4von,CM32<=Vertr4bis),CN32&Vertrag4Gage, IF(AND(CM32>=Vertr5von,CM32<=Vertr5bis),CN32&Vertrag5Gage, IF(AND(CM32>=Vertr6von,CM32<=Vertr6bis),CN32&Vertrag6Gage, "-")))))),"") ->  | CY32: Fr | CZ32: 2025-11-28 | DB32: . | DC32: =IF(AND(DB$3="x",LEFT(DA32,1)="B", OR(AND(AKTIVB1="x",DA32="B1"), AND(AKTIVB2="x",DA32="B2"), AND(AKTIVB3="x",DA32="B3"), AND(AKTIVB4="x",DA32="B4"), AND(AKTIVB5="x",DA32="B5"), AND(AKTIVB6="x",DA32="B6"), AND(AKTIVB7="x",DA32="B7"), )), IF(AND(CZ32>=Vertr1Von,CZ32<=Vertr1Bis),DA32&Vertrag1Gage, IF(AND(CZ32>=Vertr2von,CZ32<=Vertr2Bis),DA32&Vertrag2Gage, IF(AND(CZ32>=Vertr3Von,CZ32<=Vertr3bis),DA32&Vertrag3Gage, IF(AND(CZ32>=Vertr4von,CZ32<=Vertr4bis),DA32&Vertrag4Gage, IF(AND(CZ32>=Vertr5von,CZ32<=Vertr5bis),DA32&Vertrag5Gage, IF(AND(CZ32>=Vertr6von,CZ32<=Vertr6bis),DA32&Vertrag6Gage, "-")))))),"") ->  | DK32: So | DL32: 2025-12-28 | DO32: =IF(AND(DN$3="x",LEFT(DM32,1)="B", OR(AND(AKTIVB1="x",DM32="B1"), AND(AKTIVB2="x",DM32="B2"), AND(AKTIVB3="x",DM32="B3"), AND(AKTIVB4="x",DM32="B4"), AND(AKTIVB5="x",DM32="B5"), AND(AKTIVB6="x",DM32="B6"), AND(AKTIVB7="x",DM32="B7"), )), IF(AND(DL32>=Vertr1Von,DL32<=Vertr1Bis),DM32&Vertrag1Gage, IF(AND(DL32>=Vertr2von,DL32<=Vertr2Bis),DM32&Vertrag2Gage, IF(AND(DL32>=Vertr3Von,DL32<=Vertr3bis),DM32&Vertrag3Gage, IF(AND(DL32>=Vertr4von,DL32<=Vertr4bis),DM32&Vertrag4Gage, IF(AND(DL32>=Vertr5von,DL32<=Vertr5bis),DM32&Vertrag5Gage, IF(AND(DL32>=Vertr6von,DL32<=Vertr6bis),DM32&Vertrag6Gage, "-")))))),"") ->  | DW32: Mi | DX32: 2026-01-28 | DZ32: . | EA32: =IF(AND(DZ$3="x",LEFT(DY32,1)="B", OR(AND(AKTIVB1="x",DY32="B1"), AND(AKTIVB2="x",DY32="B2"), AND(AKTIVB3="x",DY32="B3"), AND(AKTIVB4="x",DY32="B4"), AND(AKTIVB5="x",DY32="B5"), AND(AKTIVB6="x",DY32="B6"), AND(AKTIVB7="x",DY32="B7"), )), IF(AND(DX32>=Vertr1Von,DX32<=Vertr1Bis),DY32&Vertrag1Gage, IF(AND(DX32>=Vertr2von,DX32<=Vertr2Bis),DY32&Vertrag2Gage, IF(AND(DX32>=Vertr3Von,DX32<=Vertr3bis),DY32&Vertrag3Gage, IF(AND(DX32>=Vertr4von,DX32<=Vertr4bis),DY32&Vertrag4Gage, IF(AND(DX32>=Vertr5von,DX32<=Vertr5bis),DY32&Vertrag5Gage, IF(AND(DX32>=Vertr6von,DX32<=Vertr6bis),DY32&Vertrag6Gage, "-")))))),"") ->  | EI32: Sa | EJ32: 2026-02-28 | EM32: =IF(AND(EL$3="x",LEFT(EK32,1)="B", OR(AND(AKTIVB1="x",EK32="B1"), AND(AKTIVB2="x",EK32="B2"), AND(AKTIVB3="x",EK32="B3"), AND(AKTIVB4="x",EK32="B4"), AND(AKTIVB5="x",EK32="B5"), AND(AKTIVB6="x",EK32="B6"), AND(AKTIVB7="x",EK32="B7"), )), IF(AND(EJ32>=Vertr1Von,EJ32<=Vertr1Bis),EK32&Vertrag1Gage, IF(AND(EJ32>=Vertr2von,EJ32<=Vertr2Bis),EK32&Vertrag2Gage, IF(AND(EJ32>=Vertr3Von,EJ32<=Vertr3bis),EK32&Vertrag3Gage, IF(AND(EJ32>=Vertr4von,EJ32<=Vertr4bis),EK32&Vertrag4Gage, IF(AND(EJ32>=Vertr5von,EJ32<=Vertr5bis),EK32&Vertrag5Gage, IF(AND(EJ32>=Vertr6von,EJ32<=Vertr6bis),EK32&Vertrag6Gage, "-")))))),"") ->  | EU32: Sa | EV32: 2026-03-28 | EY32: =IF(AND(EX$3="x",LEFT(EW32,1)="B", OR(AND(AKTIVB1="x",EW32="B1"), AND(AKTIVB2="x",EW32="B2"), AND(AKTIVB3="x",EW32="B3"), AND(AKTIVB4="x",EW32="B4"), AND(AKTIVB5="x",EW32="B5"), AND(AKTIVB6="x",EW32="B6"), AND(AKTIVB7="x",EW32="B7"), )), IF(AND(EV32>=Vertr1Von,EV32<=Vertr1Bis),EW32&Vertrag1Gage, IF(AND(EV32>=Vertr2von,EV32<=Vertr2Bis),EW32&Vertrag2Gage, IF(AND(EV32>=Vertr3Von,EV32<=Vertr3bis),EW32&Vertrag3Gage, IF(AND(EV32>=Vertr4von,EV32<=Vertr4bis),EW32&Vertrag4Gage, IF(AND(EV32>=Vertr5von,EV32<=Vertr5bis),EW32&Vertrag5Gage, IF(AND(EV32>=Vertr6von,EV32<=Vertr6bis),EW32&Vertrag6Gage, "-")))))),"") ->  | FG32: Di | FH32: 2026-04-28 | FJ32: . | FK32: =IF(AND(FJ$3="x",LEFT(FI32,1)="B", OR(AND(AKTIVB1="x",FI32="B1"), AND(AKTIVB2="x",FI32="B2"), AND(AKTIVB3="x",FI32="B3"), AND(AKTIVB4="x",FI32="B4"), AND(AKTIVB5="x",FI32="B5"), AND(AKTIVB6="x",FI32="B6"), AND(AKTIVB7="x",FI32="B7"), )), IF(AND(FH32>=Vertr1Von,FH32<=Vertr1Bis),FI32&Vertrag1Gage, IF(AND(FH32>=Vertr2von,FH32<=Vertr2Bis),FI32&Vertrag2Gage, IF(AND(FH32>=Vertr3Von,FH32<=Vertr3bis),FI32&Vertrag3Gage, IF(AND(FH32>=Vertr4von,FH32<=Vertr4bis),FI32&Vertrag4Gage, IF(AND(FH32>=Vertr5von,FH32<=Vertr5bis),FI32&Vertrag5Gage, IF(AND(FH32>=Vertr6von,FH32<=Vertr6bis),FI32&Vertrag6Gage, "-")))))),"") ->  | FS32: Do | FT32: 2026-05-28 | FV32: . | FW32: =IF(AND(FV$3="x",LEFT(FU32,1)="B", OR(AND(AKTIVB1="x",FU32="B1"), AND(AKTIVB2="x",FU32="B2"), AND(AKTIVB3="x",FU32="B3"), AND(AKTIVB4="x",FU32="B4"), AND(AKTIVB5="x",FU32="B5"), AND(AKTIVB6="x",FU32="B6"), AND(AKTIVB7="x",FU32="B7"), )), IF(AND(FT32>=Vertr1Von,FT32<=Vertr1Bis),FU32&Vertrag1Gage, IF(AND(FT32>=Vertr2von,FT32<=Vertr2Bis),FU32&Vertrag2Gage, IF(AND(FT32>=Vertr3Von,FT32<=Vertr3bis),FU32&Vertrag3Gage, IF(AND(FT32>=Vertr4von,FT32<=Vertr4bis),FU32&Vertrag4Gage, IF(AND(FT32>=Vertr5von,FT32<=Vertr5bis),FU32&Vertrag5Gage, IF(AND(FT32>=Vertr6von,FT32<=Vertr6bis),FU32&Vertrag6Gage, "-")))))),"") -> 
G33: Auswahl (x) | H33: x | Q33: Di | R33: 2025-04-29 | T33: . | U33: =IF(AND(T$3="x",LEFT(S33,1)="B", OR(AND(AKTIVB1="x",S33="B1"), AND(AKTIVB2="x",S33="B2"), AND(AKTIVB3="x",S33="B3"), AND(AKTIVB4="x",S33="B4"), AND(AKTIVB5="x",S33="B5"), AND(AKTIVB6="x",S33="B6"), AND(AKTIVB7="x",S33="B7"), )), IF(AND(R33>=Vertr1Von,R33<=Vertr1Bis),S33&Vertrag1Gage, IF(AND(R33>=Vertr2von,R33<=Vertr2Bis),S33&Vertrag2Gage, IF(AND(R33>=Vertr3Von,R33<=Vertr3bis),S33&Vertrag3Gage, IF(AND(R33>=Vertr4von,R33<=Vertr4bis),S33&Vertrag4Gage, IF(AND(R33>=Vertr5von,R33<=Vertr5bis),S33&Vertrag5Gage, IF(AND(R33>=Vertr6von,R33<=Vertr6bis),S33&Vertrag6Gage, "-")))))),"") ->  | AD33: Do | AE33: 2025-05-29 | AF33: F | AH33: =IF(AND(AG$3="x",LEFT(AF33,1)="B", OR(AND(AKTIVB1="x",AF33="B1"), AND(AKTIVB2="x",AF33="B2"), AND(AKTIVB3="x",AF33="B3"), AND(AKTIVB4="x",AF33="B4"), AND(AKTIVB5="x",AF33="B5"), AND(AKTIVB6="x",AF33="B6"), AND(AKTIVB7="x",AF33="B7"), )), IF(AND(AE33>=Vertr1Von,AE33<=Vertr1Bis),AF33&Vertrag1Gage, IF(AND(AE33>=Vertr2von,AE33<=Vertr2Bis),AF33&Vertrag2Gage, IF(AND(AE33>=Vertr3Von,AE33<=Vertr3bis),AF33&Vertrag3Gage, IF(AND(AE33>=Vertr4von,AE33<=Vertr4bis),AF33&Vertrag4Gage, IF(AND(AE33>=Vertr5von,AE33<=Vertr5bis),AF33&Vertrag5Gage, IF(AND(AE33>=Vertr6von,AE33<=Vertr6bis),AF33&Vertrag6Gage, "-")))))),"") ->  | AL33: B11 | AP33: So | AQ33: 2025-06-29 | AT33: =IF(AND(AS$3="x",LEFT(AR33,1)="B", OR(AND(AKTIVB1="x",AR33="B1"), AND(AKTIVB2="x",AR33="B2"), AND(AKTIVB3="x",AR33="B3"), AND(AKTIVB4="x",AR33="B4"), AND(AKTIVB5="x",AR33="B5"), AND(AKTIVB6="x",AR33="B6"), AND(AKTIVB7="x",AR33="B7"), )), IF(AND(AQ33>=Vertr1Von,AQ33<=Vertr1Bis),AR33&Vertrag1Gage, IF(AND(AQ33>=Vertr2von,AQ33<=Vertr2Bis),AR33&Vertrag2Gage, IF(AND(AQ33>=Vertr3Von,AQ33<=Vertr3bis),AR33&Vertrag3Gage, IF(AND(AQ33>=Vertr4von,AQ33<=Vertr4bis),AR33&Vertrag4Gage, IF(AND(AQ33>=Vertr5von,AQ33<=Vertr5bis),AR33&Vertrag5Gage, IF(AND(AQ33>=Vertr6von,AQ33<=Vertr6bis),AR33&Vertrag6Gage, "-")))))),"") ->  | BB33: Di | BC33: 2025-07-29 | BE33: . | BF33: =IF(AND(BE$3="x",LEFT(BD33,1)="B", OR(AND(AKTIVB1="x",BD33="B1"), AND(AKTIVB2="x",BD33="B2"), AND(AKTIVB3="x",BD33="B3"), AND(AKTIVB4="x",BD33="B4"), AND(AKTIVB5="x",BD33="B5"), AND(AKTIVB6="x",BD33="B6"), AND(AKTIVB7="x",BD33="B7"), )), IF(AND(BC33>=Vertr1Von,BC33<=Vertr1Bis),BD33&Vertrag1Gage, IF(AND(BC33>=Vertr2von,BC33<=Vertr2Bis),BD33&Vertrag2Gage, IF(AND(BC33>=Vertr3Von,BC33<=Vertr3bis),BD33&Vertrag3Gage, IF(AND(BC33>=Vertr4von,BC33<=Vertr4bis),BD33&Vertrag4Gage, IF(AND(BC33>=Vertr5von,BC33<=Vertr5bis),BD33&Vertrag5Gage, IF(AND(BC33>=Vertr6von,BC33<=Vertr6bis),BD33&Vertrag6Gage, "-")))))),"") ->  | BN33: Fr | BO33: 2025-08-29 | BQ33: . | BR33: =IF(AND(BQ$3="x",LEFT(BP33,1)="B", OR(AND(AKTIVB1="x",BP33="B1"), AND(AKTIVB2="x",BP33="B2"), AND(AKTIVB3="x",BP33="B3"), AND(AKTIVB4="x",BP33="B4"), AND(AKTIVB5="x",BP33="B5"), AND(AKTIVB6="x",BP33="B6"), AND(AKTIVB7="x",BP33="B7"), )), IF(AND(BO33>=Vertr1Von,BO33<=Vertr1Bis),BP33&Vertrag1Gage, IF(AND(BO33>=Vertr2von,BO33<=Vertr2Bis),BP33&Vertrag2Gage, IF(AND(BO33>=Vertr3Von,BO33<=Vertr3bis),BP33&Vertrag3Gage, IF(AND(BO33>=Vertr4von,BO33<=Vertr4bis),BP33&Vertrag4Gage, IF(AND(BO33>=Vertr5von,BO33<=Vertr5bis),BP33&Vertrag5Gage, IF(AND(BO33>=Vertr6von,BO33<=Vertr6bis),BP33&Vertrag6Gage, "-")))))),"") ->  | BZ33: Mo | CA33: 2025-09-29 | CC33: . | CD33: =IF(AND(CC$3="x",LEFT(CB33,1)="B", OR(AND(AKTIVB1="x",CB33="B1"), AND(AKTIVB2="x",CB33="B2"), AND(AKTIVB3="x",CB33="B3"), AND(AKTIVB4="x",CB33="B4"), AND(AKTIVB5="x",CB33="B5"), AND(AKTIVB6="x",CB33="B6"), AND(AKTIVB7="x",CB33="B7"), )), IF(AND(CA33>=Vertr1Von,CA33<=Vertr1Bis),CB33&Vertrag1Gage, IF(AND(CA33>=Vertr2von,CA33<=Vertr2Bis),CB33&Vertrag2Gage, IF(AND(CA33>=Vertr3Von,CA33<=Vertr3bis),CB33&Vertrag3Gage, IF(AND(CA33>=Vertr4von,CA33<=Vertr4bis),CB33&Vertrag4Gage, IF(AND(CA33>=Vertr5von,CA33<=Vertr5bis),CB33&Vertrag5Gage, IF(AND(CA33>=Vertr6von,CA33<=Vertr6bis),CB33&Vertrag6Gage, "-")))))),"") ->  | CL33: Mi | CM33: 2025-10-29 | CO33: . | CP33: =IF(AND(CO$3="x",LEFT(CN33,1)="B", OR(AND(AKTIVB1="x",CN33="B1"), AND(AKTIVB2="x",CN33="B2"), AND(AKTIVB3="x",CN33="B3"), AND(AKTIVB4="x",CN33="B4"), AND(AKTIVB5="x",CN33="B5"), AND(AKTIVB6="x",CN33="B6"), AND(AKTIVB7="x",CN33="B7"), )), IF(AND(CM33>=Vertr1Von,CM33<=Vertr1Bis),CN33&Vertrag1Gage, IF(AND(CM33>=Vertr2von,CM33<=Vertr2Bis),CN33&Vertrag2Gage, IF(AND(CM33>=Vertr3Von,CM33<=Vertr3bis),CN33&Vertrag3Gage, IF(AND(CM33>=Vertr4von,CM33<=Vertr4bis),CN33&Vertrag4Gage, IF(AND(CM33>=Vertr5von,CM33<=Vertr5bis),CN33&Vertrag5Gage, IF(AND(CM33>=Vertr6von,CM33<=Vertr6bis),CN33&Vertrag6Gage, "-")))))),"") ->  | CY33: Sa | CZ33: 2025-11-29 | DC33: =IF(AND(DB$3="x",LEFT(DA33,1)="B", OR(AND(AKTIVB1="x",DA33="B1"), AND(AKTIVB2="x",DA33="B2"), AND(AKTIVB3="x",DA33="B3"), AND(AKTIVB4="x",DA33="B4"), AND(AKTIVB5="x",DA33="B5"), AND(AKTIVB6="x",DA33="B6"), AND(AKTIVB7="x",DA33="B7"), )), IF(AND(CZ33>=Vertr1Von,CZ33<=Vertr1Bis),DA33&Vertrag1Gage, IF(AND(CZ33>=Vertr2von,CZ33<=Vertr2Bis),DA33&Vertrag2Gage, IF(AND(CZ33>=Vertr3Von,CZ33<=Vertr3bis),DA33&Vertrag3Gage, IF(AND(CZ33>=Vertr4von,CZ33<=Vertr4bis),DA33&Vertrag4Gage, IF(AND(CZ33>=Vertr5von,CZ33<=Vertr5bis),DA33&Vertrag5Gage, IF(AND(CZ33>=Vertr6von,CZ33<=Vertr6bis),DA33&Vertrag6Gage, "-")))))),"") ->  | DK33: Mo | DL33: 2025-12-29 | DN33: . | DO33: =IF(AND(DN$3="x",LEFT(DM33,1)="B", OR(AND(AKTIVB1="x",DM33="B1"), AND(AKTIVB2="x",DM33="B2"), AND(AKTIVB3="x",DM33="B3"), AND(AKTIVB4="x",DM33="B4"), AND(AKTIVB5="x",DM33="B5"), AND(AKTIVB6="x",DM33="B6"), AND(AKTIVB7="x",DM33="B7"), )), IF(AND(DL33>=Vertr1Von,DL33<=Vertr1Bis),DM33&Vertrag1Gage, IF(AND(DL33>=Vertr2von,DL33<=Vertr2Bis),DM33&Vertrag2Gage, IF(AND(DL33>=Vertr3Von,DL33<=Vertr3bis),DM33&Vertrag3Gage, IF(AND(DL33>=Vertr4von,DL33<=Vertr4bis),DM33&Vertrag4Gage, IF(AND(DL33>=Vertr5von,DL33<=Vertr5bis),DM33&Vertrag5Gage, IF(AND(DL33>=Vertr6von,DL33<=Vertr6bis),DM33&Vertrag6Gage, "-")))))),"") ->  | DW33: Do | DX33: 2026-01-29 | DZ33: . | EA33: =IF(AND(DZ$3="x",LEFT(DY33,1)="B", OR(AND(AKTIVB1="x",DY33="B1"), AND(AKTIVB2="x",DY33="B2"), AND(AKTIVB3="x",DY33="B3"), AND(AKTIVB4="x",DY33="B4"), AND(AKTIVB5="x",DY33="B5"), AND(AKTIVB6="x",DY33="B6"), AND(AKTIVB7="x",DY33="B7"), )), IF(AND(DX33>=Vertr1Von,DX33<=Vertr1Bis),DY33&Vertrag1Gage, IF(AND(DX33>=Vertr2von,DX33<=Vertr2Bis),DY33&Vertrag2Gage, IF(AND(DX33>=Vertr3Von,DX33<=Vertr3bis),DY33&Vertrag3Gage, IF(AND(DX33>=Vertr4von,DX33<=Vertr4bis),DY33&Vertrag4Gage, IF(AND(DX33>=Vertr5von,DX33<=Vertr5bis),DY33&Vertrag5Gage, IF(AND(DX33>=Vertr6von,DX33<=Vertr6bis),DY33&Vertrag6Gage, "-")))))),"") ->  | EM33: =IF(AND(EL$3="x",LEFT(EK33,1)="B", OR(AND(AKTIVB1="x",EK33="B1"), AND(AKTIVB2="x",EK33="B2"), AND(AKTIVB3="x",EK33="B3"), AND(AKTIVB4="x",EK33="B4"), AND(AKTIVB5="x",EK33="B5"), AND(AKTIVB6="x",EK33="B6"), AND(AKTIVB7="x",EK33="B7"), )), IF(AND(EJ33>=Vertr1Von,EJ33<=Vertr1Bis),EK33&Vertrag1Gage, IF(AND(EJ33>=Vertr2von,EJ33<=Vertr2Bis),EK33&Vertrag2Gage, IF(AND(EJ33>=Vertr3Von,EJ33<=Vertr3bis),EK33&Vertrag3Gage, IF(AND(EJ33>=Vertr4von,EJ33<=Vertr4bis),EK33&Vertrag4Gage, IF(AND(EJ33>=Vertr5von,EJ33<=Vertr5bis),EK33&Vertrag5Gage, IF(AND(EJ33>=Vertr6von,EJ33<=Vertr6bis),EK33&Vertrag6Gage, "-")))))),"") ->  | EU33: So | EV33: 2026-03-29 | EY33: =IF(AND(EX$3="x",LEFT(EW33,1)="B", OR(AND(AKTIVB1="x",EW33="B1"), AND(AKTIVB2="x",EW33="B2"), AND(AKTIVB3="x",EW33="B3"), AND(AKTIVB4="x",EW33="B4"), AND(AKTIVB5="x",EW33="B5"), AND(AKTIVB6="x",EW33="B6"), AND(AKTIVB7="x",EW33="B7"), )), IF(AND(EV33>=Vertr1Von,EV33<=Vertr1Bis),EW33&Vertrag1Gage, IF(AND(EV33>=Vertr2von,EV33<=Vertr2Bis),EW33&Vertrag2Gage, IF(AND(EV33>=Vertr3Von,EV33<=Vertr3bis),EW33&Vertrag3Gage, IF(AND(EV33>=Vertr4von,EV33<=Vertr4bis),EW33&Vertrag4Gage, IF(AND(EV33>=Vertr5von,EV33<=Vertr5bis),EW33&Vertrag5Gage, IF(AND(EV33>=Vertr6von,EV33<=Vertr6bis),EW33&Vertrag6Gage, "-")))))),"") ->  | FG33: Mi | FH33: 2026-04-29 | FJ33: . | FK33: =IF(AND(FJ$3="x",LEFT(FI33,1)="B", OR(AND(AKTIVB1="x",FI33="B1"), AND(AKTIVB2="x",FI33="B2"), AND(AKTIVB3="x",FI33="B3"), AND(AKTIVB4="x",FI33="B4"), AND(AKTIVB5="x",FI33="B5"), AND(AKTIVB6="x",FI33="B6"), AND(AKTIVB7="x",FI33="B7"), )), IF(AND(FH33>=Vertr1Von,FH33<=Vertr1Bis),FI33&Vertrag1Gage, IF(AND(FH33>=Vertr2von,FH33<=Vertr2Bis),FI33&Vertrag2Gage, IF(AND(FH33>=Vertr3Von,FH33<=Vertr3bis),FI33&Vertrag3Gage, IF(AND(FH33>=Vertr4von,FH33<=Vertr4bis),FI33&Vertrag4Gage, IF(AND(FH33>=Vertr5von,FH33<=Vertr5bis),FI33&Vertrag5Gage, IF(AND(FH33>=Vertr6von,FH33<=Vertr6bis),FI33&Vertrag6Gage, "-")))))),"") ->  | FS33: Fr | FT33: 2026-05-29 | FV33: . | FW33: =IF(AND(FV$3="x",LEFT(FU33,1)="B", OR(AND(AKTIVB1="x",FU33="B1"), AND(AKTIVB2="x",FU33="B2"), AND(AKTIVB3="x",FU33="B3"), AND(AKTIVB4="x",FU33="B4"), AND(AKTIVB5="x",FU33="B5"), AND(AKTIVB6="x",FU33="B6"), AND(AKTIVB7="x",FU33="B7"), )), IF(AND(FT33>=Vertr1Von,FT33<=Vertr1Bis),FU33&Vertrag1Gage, IF(AND(FT33>=Vertr2von,FT33<=Vertr2Bis),FU33&Vertrag2Gage, IF(AND(FT33>=Vertr3Von,FT33<=Vertr3bis),FU33&Vertrag3Gage, IF(AND(FT33>=Vertr4von,FT33<=Vertr4bis),FU33&Vertrag4Gage, IF(AND(FT33>=Vertr5von,FT33<=Vertr5bis),FU33&Vertrag5Gage, IF(AND(FT33>=Vertr6von,FT33<=Vertr6bis),FU33&Vertrag6Gage, "-")))))),"") -> 
G34: AZV-Tagesgage - Eingabe EUR | H34: 290 | Q34: Mi | R34: 2025-04-30 | T34: . | U34: =IF(AND(T$3="x",LEFT(S34,1)="B", OR(AND(AKTIVB1="x",S34="B1"), AND(AKTIVB2="x",S34="B2"), AND(AKTIVB3="x",S34="B3"), AND(AKTIVB4="x",S34="B4"), AND(AKTIVB5="x",S34="B5"), AND(AKTIVB6="x",S34="B6"), AND(AKTIVB7="x",S34="B7"), )), IF(AND(R34>=Vertr1Von,R34<=Vertr1Bis),S34&Vertrag1Gage, IF(AND(R34>=Vertr2von,R34<=Vertr2Bis),S34&Vertrag2Gage, IF(AND(R34>=Vertr3Von,R34<=Vertr3bis),S34&Vertrag3Gage, IF(AND(R34>=Vertr4von,R34<=Vertr4bis),S34&Vertrag4Gage, IF(AND(R34>=Vertr5von,R34<=Vertr5bis),S34&Vertrag5Gage, IF(AND(R34>=Vertr6von,R34<=Vertr6bis),S34&Vertrag6Gage, "-")))))),"") ->  | AD34: Fr | AE34: 2025-05-30 | AF34: B1 | AH34: =IF(AND(AG$3="x",LEFT(AF34,1)="B", OR(AND(AKTIVB1="x",AF34="B1"), AND(AKTIVB2="x",AF34="B2"), AND(AKTIVB3="x",AF34="B3"), AND(AKTIVB4="x",AF34="B4"), AND(AKTIVB5="x",AF34="B5"), AND(AKTIVB6="x",AF34="B6"), AND(AKTIVB7="x",AF34="B7"), )), IF(AND(AE34>=Vertr1Von,AE34<=Vertr1Bis),AF34&Vertrag1Gage, IF(AND(AE34>=Vertr2von,AE34<=Vertr2Bis),AF34&Vertrag2Gage, IF(AND(AE34>=Vertr3Von,AE34<=Vertr3bis),AF34&Vertrag3Gage, IF(AND(AE34>=Vertr4von,AE34<=Vertr4bis),AF34&Vertrag4Gage, IF(AND(AE34>=Vertr5von,AE34<=Vertr5bis),AF34&Vertrag5Gage, IF(AND(AE34>=Vertr6von,AE34<=Vertr6bis),AF34&Vertrag6Gage, "-")))))),"") -> B11 | AP34: Mo | AQ34: 2025-06-30 | AT34: =IF(AND(AS$3="x",LEFT(AR34,1)="B", OR(AND(AKTIVB1="x",AR34="B1"), AND(AKTIVB2="x",AR34="B2"), AND(AKTIVB3="x",AR34="B3"), AND(AKTIVB4="x",AR34="B4"), AND(AKTIVB5="x",AR34="B5"), AND(AKTIVB6="x",AR34="B6"), AND(AKTIVB7="x",AR34="B7"), )), IF(AND(AQ34>=Vertr1Von,AQ34<=Vertr1Bis),AR34&Vertrag1Gage, IF(AND(AQ34>=Vertr2von,AQ34<=Vertr2Bis),AR34&Vertrag2Gage, IF(AND(AQ34>=Vertr3Von,AQ34<=Vertr3bis),AR34&Vertrag3Gage, IF(AND(AQ34>=Vertr4von,AQ34<=Vertr4bis),AR34&Vertrag4Gage, IF(AND(AQ34>=Vertr5von,AQ34<=Vertr5bis),AR34&Vertrag5Gage, IF(AND(AQ34>=Vertr6von,AQ34<=Vertr6bis),AR34&Vertrag6Gage, "-")))))),"") ->  | AU34: B11 | BB34: Mi | BC34: 2025-07-30 | BE34: . | BF34: =IF(AND(BE$3="x",LEFT(BD34,1)="B", OR(AND(AKTIVB1="x",BD34="B1"), AND(AKTIVB2="x",BD34="B2"), AND(AKTIVB3="x",BD34="B3"), AND(AKTIVB4="x",BD34="B4"), AND(AKTIVB5="x",BD34="B5"), AND(AKTIVB6="x",BD34="B6"), AND(AKTIVB7="x",BD34="B7"), )), IF(AND(BC34>=Vertr1Von,BC34<=Vertr1Bis),BD34&Vertrag1Gage, IF(AND(BC34>=Vertr2von,BC34<=Vertr2Bis),BD34&Vertrag2Gage, IF(AND(BC34>=Vertr3Von,BC34<=Vertr3bis),BD34&Vertrag3Gage, IF(AND(BC34>=Vertr4von,BC34<=Vertr4bis),BD34&Vertrag4Gage, IF(AND(BC34>=Vertr5von,BC34<=Vertr5bis),BD34&Vertrag5Gage, IF(AND(BC34>=Vertr6von,BC34<=Vertr6bis),BD34&Vertrag6Gage, "-")))))),"") ->  | BN34: Sa | BO34: 2025-08-30 | BR34: =IF(AND(BQ$3="x",LEFT(BP34,1)="B", OR(AND(AKTIVB1="x",BP34="B1"), AND(AKTIVB2="x",BP34="B2"), AND(AKTIVB3="x",BP34="B3"), AND(AKTIVB4="x",BP34="B4"), AND(AKTIVB5="x",BP34="B5"), AND(AKTIVB6="x",BP34="B6"), AND(AKTIVB7="x",BP34="B7"), )), IF(AND(BO34>=Vertr1Von,BO34<=Vertr1Bis),BP34&Vertrag1Gage, IF(AND(BO34>=Vertr2von,BO34<=Vertr2Bis),BP34&Vertrag2Gage, IF(AND(BO34>=Vertr3Von,BO34<=Vertr3bis),BP34&Vertrag3Gage, IF(AND(BO34>=Vertr4von,BO34<=Vertr4bis),BP34&Vertrag4Gage, IF(AND(BO34>=Vertr5von,BO34<=Vertr5bis),BP34&Vertrag5Gage, IF(AND(BO34>=Vertr6von,BO34<=Vertr6bis),BP34&Vertrag6Gage, "-")))))),"") ->  | BZ34: Di | CA34: 2025-09-30 | CC34: . | CD34: =IF(AND(CC$3="x",LEFT(CB34,1)="B", OR(AND(AKTIVB1="x",CB34="B1"), AND(AKTIVB2="x",CB34="B2"), AND(AKTIVB3="x",CB34="B3"), AND(AKTIVB4="x",CB34="B4"), AND(AKTIVB5="x",CB34="B5"), AND(AKTIVB6="x",CB34="B6"), AND(AKTIVB7="x",CB34="B7"), )), IF(AND(CA34>=Vertr1Von,CA34<=Vertr1Bis),CB34&Vertrag1Gage, IF(AND(CA34>=Vertr2von,CA34<=Vertr2Bis),CB34&Vertrag2Gage, IF(AND(CA34>=Vertr3Von,CA34<=Vertr3bis),CB34&Vertrag3Gage, IF(AND(CA34>=Vertr4von,CA34<=Vertr4bis),CB34&Vertrag4Gage, IF(AND(CA34>=Vertr5von,CA34<=Vertr5bis),CB34&Vertrag5Gage, IF(AND(CA34>=Vertr6von,CA34<=Vertr6bis),CB34&Vertrag6Gage, "-")))))),"") ->  | CL34: Do | CM34: 2025-10-30 | CO34: . | CP34: =IF(AND(CO$3="x",LEFT(CN34,1)="B", OR(AND(AKTIVB1="x",CN34="B1"), AND(AKTIVB2="x",CN34="B2"), AND(AKTIVB3="x",CN34="B3"), AND(AKTIVB4="x",CN34="B4"), AND(AKTIVB5="x",CN34="B5"), AND(AKTIVB6="x",CN34="B6"), AND(AKTIVB7="x",CN34="B7"), )), IF(AND(CM34>=Vertr1Von,CM34<=Vertr1Bis),CN34&Vertrag1Gage, IF(AND(CM34>=Vertr2von,CM34<=Vertr2Bis),CN34&Vertrag2Gage, IF(AND(CM34>=Vertr3Von,CM34<=Vertr3bis),CN34&Vertrag3Gage, IF(AND(CM34>=Vertr4von,CM34<=Vertr4bis),CN34&Vertrag4Gage, IF(AND(CM34>=Vertr5von,CM34<=Vertr5bis),CN34&Vertrag5Gage, IF(AND(CM34>=Vertr6von,CM34<=Vertr6bis),CN34&Vertrag6Gage, "-")))))),"") ->  | CY34: So | CZ34: 2025-11-30 | DC34: =IF(AND(DB$3="x",LEFT(DA34,1)="B", OR(AND(AKTIVB1="x",DA34="B1"), AND(AKTIVB2="x",DA34="B2"), AND(AKTIVB3="x",DA34="B3"), AND(AKTIVB4="x",DA34="B4"), AND(AKTIVB5="x",DA34="B5"), AND(AKTIVB6="x",DA34="B6"), AND(AKTIVB7="x",DA34="B7"), )), IF(AND(CZ34>=Vertr1Von,CZ34<=Vertr1Bis),DA34&Vertrag1Gage, IF(AND(CZ34>=Vertr2von,CZ34<=Vertr2Bis),DA34&Vertrag2Gage, IF(AND(CZ34>=Vertr3Von,CZ34<=Vertr3bis),DA34&Vertrag3Gage, IF(AND(CZ34>=Vertr4von,CZ34<=Vertr4bis),DA34&Vertrag4Gage, IF(AND(CZ34>=Vertr5von,CZ34<=Vertr5bis),DA34&Vertrag5Gage, IF(AND(CZ34>=Vertr6von,CZ34<=Vertr6bis),DA34&Vertrag6Gage, "-")))))),"") ->  | DK34: Di | DL34: 2025-12-30 | DN34: . | DO34: =IF(AND(DN$3="x",LEFT(DM34,1)="B", OR(AND(AKTIVB1="x",DM34="B1"), AND(AKTIVB2="x",DM34="B2"), AND(AKTIVB3="x",DM34="B3"), AND(AKTIVB4="x",DM34="B4"), AND(AKTIVB5="x",DM34="B5"), AND(AKTIVB6="x",DM34="B6"), AND(AKTIVB7="x",DM34="B7"), )), IF(AND(DL34>=Vertr1Von,DL34<=Vertr1Bis),DM34&Vertrag1Gage, IF(AND(DL34>=Vertr2von,DL34<=Vertr2Bis),DM34&Vertrag2Gage, IF(AND(DL34>=Vertr3Von,DL34<=Vertr3bis),DM34&Vertrag3Gage, IF(AND(DL34>=Vertr4von,DL34<=Vertr4bis),DM34&Vertrag4Gage, IF(AND(DL34>=Vertr5von,DL34<=Vertr5bis),DM34&Vertrag5Gage, IF(AND(DL34>=Vertr6von,DL34<=Vertr6bis),DM34&Vertrag6Gage, "-")))))),"") ->  | DW34: Fr | DX34: 2026-01-30 | DZ34: . | EA34: =IF(AND(DZ$3="x",LEFT(DY34,1)="B", OR(AND(AKTIVB1="x",DY34="B1"), AND(AKTIVB2="x",DY34="B2"), AND(AKTIVB3="x",DY34="B3"), AND(AKTIVB4="x",DY34="B4"), AND(AKTIVB5="x",DY34="B5"), AND(AKTIVB6="x",DY34="B6"), AND(AKTIVB7="x",DY34="B7"), )), IF(AND(DX34>=Vertr1Von,DX34<=Vertr1Bis),DY34&Vertrag1Gage, IF(AND(DX34>=Vertr2von,DX34<=Vertr2Bis),DY34&Vertrag2Gage, IF(AND(DX34>=Vertr3Von,DX34<=Vertr3bis),DY34&Vertrag3Gage, IF(AND(DX34>=Vertr4von,DX34<=Vertr4bis),DY34&Vertrag4Gage, IF(AND(DX34>=Vertr5von,DX34<=Vertr5bis),DY34&Vertrag5Gage, IF(AND(DX34>=Vertr6von,DX34<=Vertr6bis),DY34&Vertrag6Gage, "-")))))),"") ->  | EM34: =IF(AND(EL$3="x",LEFT(EK34,1)="B", OR(AND(AKTIVB1="x",EK34="B1"), AND(AKTIVB2="x",EK34="B2"), AND(AKTIVB3="x",EK34="B3"), AND(AKTIVB4="x",EK34="B4"), AND(AKTIVB5="x",EK34="B5"), AND(AKTIVB6="x",EK34="B6"), AND(AKTIVB7="x",EK34="B7"), )), IF(AND(EJ34>=Vertr1Von,EJ34<=Vertr1Bis),EK34&Vertrag1Gage, IF(AND(EJ34>=Vertr2von,EJ34<=Vertr2Bis),EK34&Vertrag2Gage, IF(AND(EJ34>=Vertr3Von,EJ34<=Vertr3bis),EK34&Vertrag3Gage, IF(AND(EJ34>=Vertr4von,EJ34<=Vertr4bis),EK34&Vertrag4Gage, IF(AND(EJ34>=Vertr5von,EJ34<=Vertr5bis),EK34&Vertrag5Gage, IF(AND(EJ34>=Vertr6von,EJ34<=Vertr6bis),EK34&Vertrag6Gage, "-")))))),"") ->  | EU34: Mo | EV34: 2026-03-30 | EX34: . | EY34: =IF(AND(EX$3="x",LEFT(EW34,1)="B", OR(AND(AKTIVB1="x",EW34="B1"), AND(AKTIVB2="x",EW34="B2"), AND(AKTIVB3="x",EW34="B3"), AND(AKTIVB4="x",EW34="B4"), AND(AKTIVB5="x",EW34="B5"), AND(AKTIVB6="x",EW34="B6"), AND(AKTIVB7="x",EW34="B7"), )), IF(AND(EV34>=Vertr1Von,EV34<=Vertr1Bis),EW34&Vertrag1Gage, IF(AND(EV34>=Vertr2von,EV34<=Vertr2Bis),EW34&Vertrag2Gage, IF(AND(EV34>=Vertr3Von,EV34<=Vertr3bis),EW34&Vertrag3Gage, IF(AND(EV34>=Vertr4von,EV34<=Vertr4bis),EW34&Vertrag4Gage, IF(AND(EV34>=Vertr5von,EV34<=Vertr5bis),EW34&Vertrag5Gage, IF(AND(EV34>=Vertr6von,EV34<=Vertr6bis),EW34&Vertrag6Gage, "-")))))),"") ->  | FG34: Do | FH34: 2026-04-30 | FJ34: . | FK34: =IF(AND(FJ$3="x",LEFT(FI34,1)="B", OR(AND(AKTIVB1="x",FI34="B1"), AND(AKTIVB2="x",FI34="B2"), AND(AKTIVB3="x",FI34="B3"), AND(AKTIVB4="x",FI34="B4"), AND(AKTIVB5="x",FI34="B5"), AND(AKTIVB6="x",FI34="B6"), AND(AKTIVB7="x",FI34="B7"), )), IF(AND(FH34>=Vertr1Von,FH34<=Vertr1Bis),FI34&Vertrag1Gage, IF(AND(FH34>=Vertr2von,FH34<=Vertr2Bis),FI34&Vertrag2Gage, IF(AND(FH34>=Vertr3Von,FH34<=Vertr3bis),FI34&Vertrag3Gage, IF(AND(FH34>=Vertr4von,FH34<=Vertr4bis),FI34&Vertrag4Gage, IF(AND(FH34>=Vertr5von,FH34<=Vertr5bis),FI34&Vertrag5Gage, IF(AND(FH34>=Vertr6von,FH34<=Vertr6bis),FI34&Vertrag6Gage, "-")))))),"") ->  | FS34: Sa | FT34: 2026-05-30 | FW34: =IF(AND(FV$3="x",LEFT(FU34,1)="B", OR(AND(AKTIVB1="x",FU34="B1"), AND(AKTIVB2="x",FU34="B2"), AND(AKTIVB3="x",FU34="B3"), AND(AKTIVB4="x",FU34="B4"), AND(AKTIVB5="x",FU34="B5"), AND(AKTIVB6="x",FU34="B6"), AND(AKTIVB7="x",FU34="B7"), )), IF(AND(FT34>=Vertr1Von,FT34<=Vertr1Bis),FU34&Vertrag1Gage, IF(AND(FT34>=Vertr2von,FT34<=Vertr2Bis),FU34&Vertrag2Gage, IF(AND(FT34>=Vertr3Von,FT34<=Vertr3bis),FU34&Vertrag3Gage, IF(AND(FT34>=Vertr4von,FT34<=Vertr4bis),FU34&Vertrag4Gage, IF(AND(FT34>=Vertr5von,FT34<=Vertr5bis),FU34&Vertrag5Gage, IF(AND(FT34>=Vertr6von,FT34<=Vertr6bis),FU34&Vertrag6Gage, "-")))))),"") -> 
